Workbook

Sheet STANDARD
A1: Programme de calcul de la puissance thermique: STANDARD
A3: Te | B3: 75 | C3: <= Entrez la température à l'entrée en C°
A4: Ts | B4: 65 | C4: <= Entrez la température à la sortie en C°
A5: Ti | B5: 20 | C5: <= Entrez la température ambiante en C°
A6: Rapport | B6: =(B4-B5)/(B3-B5) -> 0.8181818182
A7: Delta T | B7: =((B3+B4)/2)-B5 -> 50
A8: Delta T2 | B8: =(B3-B4)/LN((B3-B5)/(B4-B5)) -> 49.83288655 | C8: Si Rapport < 0,7
A11: Hauteur | C11: =C59 -> 300 | K11: =K59 -> 400 | S11: =S59 -> 500
A12: Type | C12: =C60 -> STD11 | E12: =E60 -> STD21 | G12: =G60 -> STD22 | I12: =I60 -> STD33 | K12: =K60 -> STD11 | M12: =M60 -> STD21 | O12: =O60 -> STD22 | Q12: =Q60 -> STD33 | S12: =S60 -> STD11 | U12: =U60 -> STD21 | W12: =W60 -> STD22 | Y12: =Y60 -> STD33
A13: Longueur (mm) | B13: Nombre éléments | C13: Modèle | D13: Puissance (watts) | E13: Modèle | F13: Puissance (watts) | G13: Modèle | H13: Puissance (watts) | I13: Modèle | J13: Puissance (watts) | K13: Modèle | L13: Puissance (watts) | M13: Modèle | N13: Puissance (watts) | O13: Modèle | P13: Puissance (watts) | Q13: Modèle | R13: Puissance (watts) | S13: Modèle | T13: Puissance (watts) | U13: Modèle | V13: Puissance (watts) | W13: Modèle | X13: Puissance (watts) | Y13: Modèle | Z13: Puissance (watts)
A14: =A62 -> 450 | B14: =B62 -> 9 | C14: =C62 -> STD113000450 | D14: =IF(D62=""," - ",IF($B$6<0.7,D62*POWER($B$8/50,C$58),D62*POWER($B$7/50,C$58))) -> 247 | E14: =E62 -> STD213000450 | F14: =IF(F62=""," - ",IF($B$6<0.7,F62*POWER($B$8/50,E$58),F62*POWER($B$7/50,E$58))) -> 369 | G14: =G62 -> STD223000450 | H14: =IF(H62=""," - ",IF($B$6<0.7,H62*POWER($B$8/50,G$58),H62*POWER($B$7/50,G$58))) -> 482 | I14: =I62 -> STD333000450 | J14: =IF(J62=""," - ",IF($B$6<0.7,J62*POWER($B$8/50,I$58),J62*POWER($B$7/50,I$58))) -> 702 | K14: =K62 -> STD114000450 | L14: =IF(L62=""," - ",IF($B$6<0.7,L62*POWER($B$8/50,K$58),L62*POWER($B$7/50,K$58))) -> 317 | M14: =M62 -> STD214000450 | N14: =IF(N62=""," - ",IF($B$6<0.7,N62*POWER($B$8/50,M$58),N62*POWER($B$7/50,M$58))) -> 458 | O14: =O62 -> STD224000450 | P14: =IF(P62=""," - ",IF($B$6<0.7,P62*POWER($B$8/50,O$58),P62*POWER($B$7/50,O$58))) -> 614 | Q14: =Q62 -> STD334000450 | R14: =IF(R62=""," - ",IF($B$6<0.7,R62*POWER($B$8/50,Q$58),R62*POWER($B$7/50,Q$58))) -> 901 | S14: =S62 -> STD115000450 | T14: =IF(T62=""," - ",IF($B$6<0.7,T62*POWER($B$8/50,S$58),T62*POWER($B$7/50,S$58))) -> 383 | U14: =U62 -> STD215000450 | V14: =IF(V62=""," - ",IF($B$6<0.7,V62*POWER($B$8/50,U$58),V62*POWER($B$7/50,U$58))) -> 540 | W14: =W62 -> STD225000450 | X14: =IF(X62=""," - ",IF($B$6<0.7,X62*POWER($B$8/50,W$58),X62*POWER($B$7/50,W$58))) -> 734 | Y14: =Y62 -> STD335000450 | Z14: =IF(Z62=""," - ",IF($B$6<0.7,Z62*POWER($B$8/50,Y$58),Z62*POWER($B$7/50,Y$58))) -> 1081
A15: =A63 -> 600 | B15: 12 | C15: STD113000600 | D15: 329 | E15: =E63 -> STD213000600 | F15: 493 | G15: =G63 -> STD223000600 | H15: 643 | I15: =I63 -> STD333000600 | J15: 935 | K15: =K63 -> STD114000600 | L15: 423 | M15: =M63 -> STD214000600 | N15: 611 | O15: =O63 -> STD224000600 | P15: 818 | Q15: =Q63 -> STD334000600 | R15: 1201 | S15: STD115000600 | T15: 511 | U15: STD215000600 | V15: 720 | W15: STD225000600 | X15: 979 | Y15: STD335000600 | Z15: 1442
A16: 750 | B16: 15 | C16: STD113000750 | D16: 412 | E16: STD213000750 | F16: 616 | G16: STD223000750 | H16: 804 | I16: STD333000750 | J16: 1169 | K16: STD114000750 | L16: 529 | M16: STD214000750 | N16: 764 | O16: STD224000750 | P16: 1023 | Q16: STD334000750 | R16: 1502 | S16: STD115000750 | T16: 639 | U16: STD215000750 | V16: 900 | W16: STD225000750 | X16: 1224 | Y16: STD335000750 | Z16: 1802
A17: 900 | B17: 18 | C17: STD113000900 | D17: 494 | E17: STD213000900 | F17: 739 | G17: STD223000900 | H17: 965 | I17: STD333000900 | J17: 1403 | K17: STD114000900 | L17: 635 | M17: STD214000900 | N17: 916 | O17: STD224000900 | P17: 1228 | Q17: STD334000900 | R17: 1802 | S17: STD115000900 | T17: 767 | U17: STD215000900 | V17: 1080 | W17: STD225000900 | X17: 1469 | Y17: STD335000900 | Z17: 2163
A18: 1050 | B18: 21 | C18: STD113001050 | D18: 576 | E18: STD213001050 | F18: 862 | G18: STD223001050 | H18: 1126 | I18: STD333001050 | J18: 1637 | K18: STD114001050 | L18: 740 | M18: STD214001050 | N18: 1069 | O18: STD224001050 | P18: 1432 | Q18: STD334001050 | R18: 2102 | S18: STD115001050 | T18: 895 | U18: STD215001050 | V18: 1260 | W18: STD225001050 | X18: 1714 | Y18: STD335001050 | Z18: 2523
A19: 1200 | B19: 24 | C19: STD113001200 | D19: 659 | E19: STD213001200 | F19: 985 | G19: STD223001200 | H19: 1286 | I19: STD333001200 | J19: 1871 | K19: STD114001200 | L19: 846 | M19: STD214001200 | N19: 1222 | O19: STD224001200 | P19: 1637 | Q19: STD334001200 | R19: 2402 | S19: STD115001200 | T19: 1022 | U19: STD215001200 | V19: 1440 | W19: STD225001200 | X19: 1958 | Y19: STD335001200 | Z19: 2884
A20: 1350 | B20: 27 | C20: STD113001350 | D20: 741 | E20: STD213001350 | F20: 1108 | G20: STD223001350 | H20: 1447 | I20: STD333001350 | J20: 2105 | K20: STD114001350 | L20: 952 | M20: STD214001350 | N20: 1374 | O20: STD224001350 | P20: 1841 | Q20: STD334001350 | R20: 2703 | S20: STD115001350 | T20: 1150 | U20: STD215001350 | V20: 1620 | W20: STD225001350 | X20: 2203 | Y20: STD335001350 | Z20: 3244
A21: 1500 | B21: 30 | C21: STD113001500 | D21: 824 | E21: STD213001500 | F21: 1232 | G21: STD223001500 | H21: 1608 | I21: STD333001500 | J21: 2339 | K21: STD114001500 | L21: 1058 | M21: STD214001500 | N21: 1527 | O21: STD224001500 | P21: 2046 | Q21: STD334001500 | R21: 3003 | S21: STD115001500 | T21: 1278 | U21: STD215001500 | V21: 1800 | W21: STD225001500 | X21: 2448 | Y21: STD335001500 | Z21: 3605
A22: 1650 | B22: 33 | C22: STD113001650 | D22: 906 | E22: STD213001650 | F22: 1355 | G22: STD223001650 | H22: 1769 | I22: STD333001650 | J22: 2572 | K22: STD114001650 | L22: 1163 | M22: STD214001650 | N22: 1680 | O22: STD224001650 | P22: 2251 | Q22: STD334001650 | R22: 3303 | S22: STD115001650 | T22: 1406 | U22: STD215001650 | V22: 1980 | W22: STD225001650 | X22: 2693 | Y22: STD335001650 | Z22: 3965
A23: 1800 | B23: 36 | C23: STD113001800 | D23: 988 | E23: STD213001800 | F23: 1478 | G23: STD223001800 | H23: 1930 | I23: STD333001800 | J23: 2806 | K23: STD114001800 | L23: 1269 | M23: STD214001800 | N23: 1832 | O23: STD224001800 | P23: 2455 | Q23: STD334001800 | R23: 3604 | S23: STD115001800 | T23: 1534 | U23: STD215001800 | V23: 2160 | W23: STD225001800 | X23: 2938 | Y23: STD335001800 | Z23: 4325
A24: 1950 | B24: 39 | C24: - | D24: - | E24: STD213001950 | F24: 1601 | G24: STD223001950 | H24: 2090 | I24: STD333001950 | J24: 3040 | K24: - | L24: - | M24: STD214001950 | N24: 1985 | O24: STD224001950 | P24: 2660 | Q24: STD334001950 | R24: 3904 | S24: - | T24: - | U24: STD215001950 | V24: 2340 | W24: STD225001950 | X24: 3182 | Y24: STD335001950 | Z24: 4686
A25: 2100 | B25: 42 | C25: - | D25: - | E25: STD213002100 | F25: 1724 | G25: STD223002100 | H25: 2251 | I25: STD333002100 | J25: 3274 | K25: - | L25: - | M25: STD214002100 | N25: 2138 | O25: STD224002100 | P25: 2864 | Q25: STD334002100 | R25: 4204 | S25: - | T25: - | U25: STD215002100 | V25: 2520 | W25: STD225002100 | X25: 3427 | Y25: STD335002100 | Z25: 5046
A26: 2250 | B26: 45 | C26: - | D26: - | E26: STD213002250 | F26: 1847 | G26: STD223002250 | H26: 2412 | I26: STD333002250 | J26: 3508 | K26: - | L26: - | M26: STD214002250 | N26: 2291 | O26: STD224002250 | P26: 3069 | Q26: STD334002250 | R26: 4505 | S26: - | T26: - | U26: STD215002250 | V26: 2700 | W26: STD225002250 | X26: 3672 | Y26: STD335002250 | Z26: 5407
A27: 2400 | B27: 48 | C27: - | D27: - | E27: STD213002400 | F27: 1970 | G27: STD223002400 | H27: 2573 | I27: STD333002400 | J27: 3742 | K27: - | L27: - | M27: STD214002400 | N27: 2443 | O27: STD224002400 | P27: 3274 | Q27: STD334002400 | R27: 4805 | S27: - | T27: - | U27: STD215002400 | V27: 2880 | W27: STD225002400 | X27: 3917 | Y27: STD335002400 | Z27: 5767
A28: 2550 | B28: 51 | C28: - | D28: - | E28: STD213002550 | F28: 2094 | G28: STD223002550 | H28: 2734 | I28: STD333002550 | J28: 3975 | K28: - | L28: - | M28: STD214002550 | N28: 2596 | O28: STD224002550 | P28: 3478 | Q28: STD334002550 | R28: 5105 | S28: - | T28: - | U28: STD215002550 | V28: 3060 | W28: STD225002550 | X28: 4162 | Y28: STD335002550 | Z28: 6128
A29: 2700 | B29: 54 | C29: - | D29: - | E29: STD213002700 | F29: 2217 | G29: STD223002700 | H29: 2894 | I29: STD333002700 | J29: 4209 | K29: - | L29: - | M29: STD214002700 | N29: 2749 | O29: STD224002700 | P29: 3683 | Q29: STD334002700 | R29: 5405 | S29: - | T29: - | U29: STD215002700 | V29: 3240 | W29: STD225002700 | X29: 4406 | Y29: STD335002700 | Z29: 6488
A30: 3000 | B30: 60 | C30: - | D30: - | E30: STD213003000 | F30: 2463 | G30: STD223003000 | H30: 3216 | I30: STD333003000 | J30: 4677 | K30: - | L30: - | M30: STD214003000 | N30: 3054 | O30: STD224003000 | P30: 4092 | Q30: STD334003000 | R30: 6006 | S30: - | T30: - | U30: STD215003000 | V30: 3600 | W30: STD225003000 | X30: 4896 | Y30: STD335003000 | Z30: 7209
A33: Hauteur | C33: =C81 -> 600 | K33: =K81 -> 750 | S33: =S81 -> 900
A34: Type | C34: =C82 -> STD11 | E34: =E82 -> STD21 | G34: =G82 -> STD22 | I34: =I82 -> STD33 | K34: =K82 -> STD11 | M34: =M82 -> STD21 | O34: =O82 -> STD22 | Q34: =Q82 -> STD33 | S34: =S82 -> STD11 | U34: =U82 -> STD21 | W34: =W82 -> STD22 | Y34: =Y82 -> STD33
A35: Longueur (mm) | B35: Nombre éléments | C35: Modèle | D35: Puissance (watts) | E35: Modèle | F35: Puissance (watts) | G35: Modèle | H35: Puissance (watts) | I35: Modèle | J35: Puissance (watts) | K35: Modèle | L35: Puissance (watts) | M35: Modèle | N35: Puissance (watts) | O35: Modèle | P35: Puissance (watts) | Q35: Modèle | R35: Puissance (watts) | S35: Modèle | T35: Puissance (watts) | U35: Modèle | V35: Puissance (watts) | W35: Modèle | X35: Puissance (watts) | Y35: Modèle | Z35: Puissance (watts)
A36: =A84 -> 450 | B36: =B84 -> 9 | C36: =C84 -> STD116000450 | D36: =IF(D84=""," - ",IF($B$6<0.7,D84*POWER($B$8/50,C$80),D84*POWER($B$7/50,C$80))) -> 446 | E36: =E84 -> STD216000450 | F36: =IF(F84=""," - ",IF($B$6<0.7,F84*POWER($B$8/50,E$80),F84*POWER($B$7/50,E$80))) -> 617 | G36: =G84 -> STD226000450 | H36: =IF(H84=""," - ",IF($B$6<0.7,H84*POWER($B$8/50,G$80),H84*POWER($B$7/50,G$80))) -> 846 | I36: =I84 -> STD336000450 | J36: =IF(J84=""," - ",IF($B$6<0.7,J84*POWER($B$8/50,I$80),J84*POWER($B$7/50,I$80))) -> 1244 | K36: =K84 -> STD117500450 | L36: =IF(L84=""," - ",IF($B$6<0.7,L84*POWER($B$8/50,K$80),L84*POWER($B$7/50,K$80))) -> 534 | M36: =M84 -> STD217500450 | N36: =IF(N84=""," - ",IF($B$6<0.7,N84*POWER($B$8/50,M$80),N84*POWER($B$7/50,M$80))) -> 726 | O36: =O84 -> STD227500450 | P36: =IF(P84=""," - ",IF($B$6<0.7,P84*POWER($B$8/50,O$80),P84*POWER($B$7/50,O$80))) -> 996 | Q36: =Q84 -> STD337500450 | R36: =IF(R84=""," - ",IF($B$6<0.7,R84*POWER($B$8/50,Q$80),R84*POWER($B$7/50,Q$80))) -> 1458 | S36: =S84 -> STD119000450 | T36: =IF(T84=""," - ",IF($B$6<0.7,T84*POWER($B$8/50,S$80),T84*POWER($B$7/50,S$80))) -> 614 | U36: =U84 -> STD219000450 | V36: =IF(V84=""," - ",IF($B$6<0.7,V84*POWER($B$8/50,U$80),V84*POWER($B$7/50,U$80))) -> 826 | W36: =W84 -> STD229000450 | X36: =IF(X84=""," - ",IF($B$6<0.7,X84*POWER($B$8/50,W$80),X84*POWER($B$7/50,W$80))) -> 1128 | Y36: =Y84 -> STD339000450 | Z36: =IF(Z84=""," - ",IF($B$6<0.7,Z84*POWER($B$8/50,Y$80),Z84*POWER($B$7/50,Y$80))) -> 1637
A37: =A85 -> 600 | B37: 12 | C37: =C85 -> STD116000600 | D37: 595 | E37: STD216000600 | F37: 823 | G37: STD226000600 | H37: 1127 | I37: STD336000600 | J37: 1659 | K37: STD117500600 | L37: 712 | M37: STD217500600 | N37: 968 | O37: STD227500600 | P37: 1328 | Q37: STD337500600 | R37: 1944 | S37: STD119000600 | T37: 819 | U37: STD219000600 | V37: 1102 | W37: STD229000600 | X37: 1504 | Y37: STD339000600 | Z37: 2183
A38: 750 | B38: 15 | C38: STD116000750 | D38: 744 | E38: STD216000750 | F38: 1029 | G38: STD226000750 | H38: 1409 | I38: STD336000750 | J38: 2074 | K38: STD117500750 | L38: 890 | M38: STD217500750 | N38: 1210 | O38: STD227500750 | P38: 1660 | Q38: STD337500750 | R38: 2430 | S38: STD119000750 | T38: 1024 | U38: STD219000750 | V38: 1377 | W38: STD229000750 | X38: 1880 | Y38: STD339000750 | Z38: 2729
A39: 900 | B39: 18 | C39: STD116000900 | D39: 893 | E39: STD216000900 | F39: 1235 | G39: STD226000900 | H39: 1691 | I39: STD336000900 | J39: 2489 | K39: STD117500900 | L39: 1067 | M39: STD217500900 | N39: 1452 | O39: STD227500900 | P39: 1992 | Q39: STD337500900 | R39: 2916 | S39: STD119000900 | T39: 1229 | U39: STD219000900 | V39: 1652 | W39: STD229000900 | X39: 2256 | Y39: STD339000900 | Z39: 3274
A40: 1050 | B40: 21 | C40: STD116001050 | D40: 1042 | E40: STD216001050 | F40: 1441 | G40: STD226001050 | H40: 1973 | I40: STD336001050 | J40: 2903 | K40: STD117501050 | L40: 1245 | M40: STD217501050 | N40: 1694 | O40: STD227501050 | P40: 2324 | Q40: STD337501050 | R40: 3402 | S40: STD119001050 | T40: 1433 | U40: STD219001050 | V40: 1928 | W40: STD229001050 | X40: 2632 | Y40: STD339001050 | Z40: 3820
A41: 1200 | B41: 24 | C41: STD116001200 | D41: 1190 | E41: STD216001200 | F41: 1646 | G41: STD226001200 | H41: 2255 | I41: STD336001200 | J41: 3318 | K41: STD117501200 | L41: 1423 | M41: STD217501200 | N41: 1936 | O41: STD227501200 | P41: 2656 | Q41: STD337501200 | R41: 3888 | S41: STD119001200 | T41: 1638 | U41: STD219001200 | V41: 2203 | W41: STD229001200 | X41: 3008 | Y41: STD339001200 | Z41: 4366
A42: 1350 | B42: 27 | C42: STD116001350 | D42: 1339 | E42: STD216001350 | F42: 1852 | G42: STD226001350 | H42: 2537 | I42: STD336001350 | J42: 3733 | K42: STD117501350 | L42: 1601 | M42: STD217501350 | N42: 2178 | O42: STD227501350 | P42: 2988 | Q42: STD337501350 | R42: 4374 | S42: STD119001350 | T42: 1843 | U42: STD219001350 | V42: 2479 | W42: STD229001350 | X42: 3384 | Y42: STD339001350 | Z42: 4911
A43: 1500 | B43: 30 | C43: STD116001500 | D43: 1488 | E43: STD216001500 | F43: 2058 | G43: STD226001500 | H43: 2819 | I43: STD336001500 | J43: 4148 | K43: STD117501500 | L43: 1779 | M43: STD217501500 | N43: 2420 | O43: STD227501500 | P43: 3320 | Q43: STD337501500 | R43: 4860 | S43: STD119001500 | T43: 2048 | U43: STD219001500 | V43: 2754 | W43: STD229001500 | X43: 3761 | Y43: STD339001500 | Z43: 5457
A44: 1650 | B44: 33 | C44: STD116001650 | D44: 1637 | E44: STD216001650 | F44: 2264 | G44: STD226001650 | H44: 3100 | I44: STD336001650 | J44: 4562 | K44: STD117501650 | L44: 1957 | M44: STD217501650 | N44: 2661 | O44: STD227501650 | P44: 3651 | Q44: STD337501650 | R44: 5346 | S44: STD119001650 | T44: 2252 | U44: STD219001650 | V44: 3029 | W44: STD229001650 | X44: 4137 | Y44: STD339001650 | Z44: 6003
A45: 1800 | B45: 36 | C45: STD116001800 | D45: 1786 | E45: STD216001800 | F45: 2470 | G45: STD226001800 | H45: 3382 | I45: STD336001800 | J45: 4977 | K45: STD117501800 | L45: 2135 | M45: STD217501800 | N45: 2903 | O45: STD227501800 | P45: 3983 | Q45: STD337501800 | R45: 5832 | S45: STD119001800 | T45: 2457 | U45: STD219001800 | V45: 3305 | W45: STD229001800 | X45: 4513 | Y45: STD339001800 | Z45: 6548
A46: 1950 | B46: 39 | C46: - | D46: - | E46: STD216001950 | F46: 2675 | G46: STD226001950 | H46: 3664 | I46: STD336001950 | J46: 5392 | K46: - | L46: - | M46: STD217501950 | N46: 3145 | O46: STD227501950 | P46: 4315 | Q46: STD337501950 | R46: 6318 | S46: - | T46: - | U46: STD219001950 | V46: 3580 | W46: STD229001950 | X46: 4889 | Y46: STD339001950 | Z46: 7094
A47: 2100 | B47: 42 | C47: - | D47: - | E47: STD216002100 | F47: 2881 | G47: STD226002100 | H47: 3946 | I47: STD336002100 | J47: 5807 | K47: - | L47: - | M47: STD217502100 | N47: 3387 | O47: STD227502100 | P47: 4647 | Q47: STD337502100 | R47: 6804 | S47: - | T47: - | U47: STD219002100 | V47: 3856 | W47: STD229002100 | X47: 5265 | Y47: STD339002100 | Z47: 7640
A48: 2250 | B48: 45 | C48: - | D48: - | E48: STD216002250 | F48: 3087 | G48: STD226002250 | H48: 4228 | I48: STD336002250 | J48: 6221 | K48: - | L48: - | M48: STD217502250 | N48: 3629 | O48: STD227502250 | P48: 4979 | Q48: STD337502250 | R48: 7290 | S48: - | T48: - | U48: STD219002250 | V48: 4131 | W48: STD229002250 | X48: 5641 | Y48: STD339002250 | Z48: 8186
A49: 2400 | B49: 48 | C49: - | D49: - | E49: STD216002400 | F49: 3293 | G49: STD226002400 | H49: 4510 | I49: STD336002400 | J49: 6636 | K49: - | L49: - | M49: STD217502400 | N49: 3871 | O49: STD227502400 | P49: 5311 | Q49: STD337502400 | R49: 7776 | S49: - | T49: - | U49: STD219002400 | V49: 4406 | W49: STD229002400 | X49: 6017 | Y49: STD339002400 | Z49: 8731
A50: 2550 | B50: 51 | C50: - | D50: - | E50: STD216002550 | F50: 3499 | G50: STD226002550 | H50: 4791 | I50: STD336002550 | J50: 7051 | K50: - | L50: - | M50: STD217502550 | N50: 4113 | O50: STD227502550 | P50: 5643 | Q50: STD337502550 | R50: 8262 | S50: - | T50: - | U50: STD219002550 | V50: 4682 | W50: STD229002550 | X50: 6393 | Y50: STD339002550 | Z50: 9277
A51: 2700 | B51: 54 | C51: - | D51: - | E51: STD216002700 | F51: 3704 | G51: STD226002700 | H51: 5073 | I51: STD336002700 | J51: 7466 | K51: - | L51: - | M51: STD217502700 | N51: 4355 | O51: STD227502700 | P51: 5975 | Q51: STD337502700 | R51: 8748 | S51: - | T51: - | U51: STD219002700 | V51: 4957 | W51: STD229002700 | X51: 6769 | Y51: STD339002700 | Z51: 9823
A52: 3000 | B52: 60 | C52: - | D52: - | E52: STD216003000 | F52: 4116 | G52: STD226003000 | H52: 5637 | I52: STD336003000 | J52: 8295 | K52: - | L52: - | M52: STD217503000 | N52: 4839 | O52: STD227503000 | P52: 6639 | Q52: STD337503000 | R52: 9720 | S52: - | T52: - | U52: STD219003000 | V52: 5508 | W52: STD229003000 | X52: 7521 | Y52: STD339003000 | Z52: 10914
A56: Tableau de référence
A58: PENTE : | C58: 1.3514 | E58: 1.3608 | G58: 1.3908 | I58: 1.4025 | K58: 1.346 | M58: 1.3589 | O58: 1.3826 | Q58: 1.39 | S58: 1.3406 | U58: 1.357 | W58: 1.3745 | Y58: 1.3775
A59: Hauteur | C59: 300 | K59: 400 | S59: 500
A60: Type | C60: STD11 | E60: STD21 | G60: STD22 | I60: STD33 | K60: STD11 | M60: STD21 | O60: STD22 | Q60: STD33 | S60: STD11 | U60: STD21 | W60: STD22 | Y60: STD33
A61: Longueur (mm) | B61: Nombre éléments | C61: Modèle | D61: Watt Dt 50°C | E61: Modèle | F61: Watt Dt 50°C | G61: Modèle | H61: Watt Dt 50°C | I61: Modèle | J61: Watt Dt 50°C | K61: Modèle | L61: Watt Dt 50°C | M61: Modèle | N61: Watt Dt 50°C | O61: Modèle | P61: Watt Dt 50°C | Q61: Modèle | R61: Watt Dt 50°C | S61: Modèle | T61: Watt Dt 50°C | U61: Modèle | V61: Watt Dt 50°C | W61: Modèle | X61: Watt Dt 50°C | Y61: Modèle | Z61: Watt Dt 50°C
A62: 450 | B62: =A62/50 -> 9 | C62: =IF(D62=""," - ",IF(LEN($A62)=3,C$60&$C$59&"0"&$A62,C$60&$C$59&$A62)) -> STD113000450 | D62: 247 | E62: =IF(F62=""," - ",IF(LEN($A62)=3,E$60&$C$59&"0"&$A62,E$60&$C$59&$A62)) -> STD213000450 | F62: 369 | G62: =IF(H62=""," - ",IF(LEN($A62)=3,G$60&$C$59&"0"&$A62,G$60&$C$59&$A62)) -> STD223000450 | H62: 482 | I62: =IF(J62=""," - ",IF(LEN($A62)=3,I$60&$C$59&"0"&$A62,I$60&$C$59&$A62)) -> STD333000450 | J62: 702 | K62: =IF(L62=""," - ",IF(LEN($A62)=3,K$60&$K$59&"0"&$A62,K$60&$K$59&$A62)) -> STD114000450 | L62: 317 | M62: =IF(N62=""," - ",IF(LEN($A62)=3,M$60&$K$59&"0"&$A62,M$60&$K$59&$A62)) -> STD214000450 | N62: 458 | O62: =IF(P62=""," - ",IF(LEN($A62)=3,O$60&$K$59&"0"&$A62,O$60&$K$59&$A62)) -> STD224000450 | P62: 614 | Q62: =IF(R62=""," - ",IF(LEN($A62)=3,Q$60&$K$59&"0"&$A62,Q$60&$K$59&$A62)) -> STD334000450 | R62: 901 | S62: =IF(T62=""," - ",IF(LEN($A62)=3,S$60&$S$59&"0"&$A62,S$60&$S$59&$A62)) -> STD115000450 | T62: 383 | U62: =IF(V62=""," - ",IF(LEN($A62)=3,U$60&$S$59&"0"&$A62,U$60&$S$59&$A62)) -> STD215000450 | V62: 540 | W62: =IF(X62=""," - ",IF(LEN($A62)=3,W$60&$S$59&"0"&$A62,W$60&$S$59&$A62)) -> STD225000450 | X62: 734 | Y62: =IF(Z62=""," - ",IF(LEN($A62)=3,Y$60&$S$59&"0"&$A62,Y$60&$S$59&$A62)) -> STD335000450 | Z62: 1081
A63: 600 | B63: =A63/50 -> 12 | C63: STD113000600 | D63: 329 | E63: STD213000600 | F63: 493 | G63: STD223000600 | H63: 643 | I63: STD333000600 | J63: 935 | K63: STD114000600 | L63: 423 | M63: STD214000600 | N63: 611 | O63: STD224000600 | P63: 818 | Q63: STD334000600 | R63: 1201 | S63: STD115000600 | T63: 511 | U63: STD215000600 | V63: 720 | W63: STD225000600 | X63: 979 | Y63: STD335000600 | Z63: 1442
A64: 750 | B64: 15 | C64: STD113000750 | D64: 412 | E64: STD213000750 | F64: 616 | G64: STD223000750 | H64: 804 | I64: STD333000750 | J64: 1169 | K64: STD114000750 | L64: 529 | M64: STD214000750 | N64: 764 | O64: STD224000750 | P64: 1023 | Q64: STD334000750 | R64: 1502 | S64: STD115000750 | T64: 639 | U64: STD215000750 | V64: 900 | W64: STD225000750 | X64: 1224 | Y64: STD335000750 | Z64: 1802
A65: 900 | B65: 18 | C65: STD113000900 | D65: 494 | E65: STD213000900 | F65: 739 | G65: STD223000900 | H65: 965 | I65: STD333000900 | J65: 1403 | K65: STD114000900 | L65: 635 | M65: STD214000900 | N65: 916 | O65: STD224000900 | P65: 1228 | Q65: STD334000900 | R65: 1802 | S65: STD115000900 | T65: 767 | U65: STD215000900 | V65: 1080 | W65: STD225000900 | X65: 1469 | Y65: STD335000900 | Z65: 2163
A66: 1050 | B66: 21 | C66: STD113001050 | D66: 576 | E66: STD213001050 | F66: 862 | G66: STD223001050 | H66: 1126 | I66: STD333001050 | J66: 1637 | K66: STD114001050 | L66: 740 | M66: STD214001050 | N66: 1069 | O66: STD224001050 | P66: 1432 | Q66: STD334001050 | R66: 2102 | S66: STD115001050 | T66: 895 | U66: STD215001050 | V66: 1260 | W66: STD225001050 | X66: 1714 | Y66: STD335001050 | Z66: 2523
A67: 1200 | B67: 24 | C67: STD113001200 | D67: 659 | E67: STD213001200 | F67: 985 | G67: STD223001200 | H67: 1286 | I67: STD333001200 | J67: 1871 | K67: STD114001200 | L67: 846 | M67: STD214001200 | N67: 1222 | O67: STD224001200 | P67: 1637 | Q67: STD334001200 | R67: 2402 | S67: STD115001200 | T67: 1022 | U67: STD215001200 | V67: 1440 | W67: STD225001200 | X67: 1958 | Y67: STD335001200 | Z67: 2884
A68: 1350 | B68: 27 | C68: STD113001350 | D68: 741 | E68: STD213001350 | F68: 1108 | G68: STD223001350 | H68: 1447 | I68: STD333001350 | J68: 2105 | K68: STD114001350 | L68: 952 | M68: STD214001350 | N68: 1374 | O68: STD224001350 | P68: 1841 | Q68: STD334001350 | R68: 2703 | S68: STD115001350 | T68: 1150 | U68: STD215001350 | V68: 1620 | W68: STD225001350 | X68: 2203 | Y68: STD335001350 | Z68: 3244
A69: 1500 | B69: 30 | C69: STD113001500 | D69: 824 | E69: STD213001500 | F69: 1232 | G69: STD223001500 | H69: 1608 | I69: STD333001500 | J69: 2339 | K69: STD114001500 | L69: 1058 | M69: STD214001500 | N69: 1527 | O69: STD224001500 | P69: 2046 | Q69: STD334001500 | R69: 3003 | S69: STD115001500 | T69: 1278 | U69: STD215001500 | V69: 1800 | W69: STD225001500 | X69: 2448 | Y69: STD335001500 | Z69: 3605
A70: 1650 | B70: 33 | C70: STD113001650 | D70: 906 | E70: STD213001650 | F70: 1355 | G70: STD223001650 | H70: 1769 | I70: STD333001650 | J70: 2572 | K70: STD114001650 | L70: 1163 | M70: STD214001650 | N70: 1680 | O70: STD224001650 | P70: 2251 | Q70: STD334001650 | R70: 3303 | S70: STD115001650 | T70: 1406 | U70: STD215001650 | V70: 1980 | W70: STD225001650 | X70: 2693 | Y70: STD335001650 | Z70: 3965
A71: 1800 | B71: 36 | C71: STD113001800 | D71: 988 | E71: STD213001800 | F71: 1478 | G71: STD223001800 | H71: 1930 | I71: STD333001800 | J71: 2806 | K71: STD114001800 | L71: 1269 | M71: STD214001800 | N71: 1832 | O71: STD224001800 | P71: 2455 | Q71: STD334001800 | R71: 3604 | S71: STD115001800 | T71: 1534 | U71: STD215001800 | V71: 2160 | W71: STD225001800 | X71: 2938 | Y71: STD335001800 | Z71: 4325
A72: 1950 | B72: 39 | C72: - | E72: STD213001950 | F72: 1601 | G72: STD223001950 | H72: 2090 | I72: STD333001950 | J72: 3040 | K72: - | M72: STD214001950 | N72: 1985 | O72: STD224001950 | P72: 2660 | Q72: STD334001950 | R72: 3904 | S72: - | U72: STD215001950 | V72: 2340 | W72: STD225001950 | X72: 3182 | Y72: STD335001950 | Z72: 4686
A73: 2100 | B73: 42 | C73: - | E73: STD213002100 | F73: 1724 | G73: STD223002100 | H73: 2251 | I73: STD333002100 | J73: 3274 | K73: - | M73: STD214002100 | N73: 2138 | O73: STD224002100 | P73: 2864 | Q73: STD334002100 | R73: 4204 | S73: - | U73: STD215002100 | V73: 2520 | W73: STD225002100 | X73: 3427 | Y73: STD335002100 | Z73: 5046
A74: 2250 | B74: 45 | C74: - | E74: STD213002250 | F74: 1847 | G74: STD223002250 | H74: 2412 | I74: STD333002250 | J74: 3508 | K74: - | M74: STD214002250 | N74: 2291 | O74: STD224002250 | P74: 3069 | Q74: STD334002250 | R74: 4505 | S74: - | U74: STD215002250 | V74: 2700 | W74: STD225002250 | X74: 3672 | Y74: STD335002250 | Z74: 5407
A75: 2400 | B75: 48 | C75: - | E75: STD213002400 | F75: 1970 | G75: STD223002400 | H75: 2573 | I75: STD333002400 | J75: 3742 | K75: - | M75: STD214002400 | N75: 2443 | O75: STD224002400 | P75: 3274 | Q75: STD334002400 | R75: 4805 | S75: - | U75: STD215002400 | V75: 2880 | W75: STD225002400 | X75: 3917 | Y75: STD335002400 | Z75: 5767
A76: 2550 | B76: 51 | C76: - | E76: STD213002550 | F76: 2094 | G76: STD223002550 | H76: 2734 | I76: STD333002550 | J76: 3975 | K76: - | M76: STD214002550 | N76: 2596 | O76: STD224002550 | P76: 3478 | Q76: STD334002550 | R76: 5105 | S76: - | U76: STD215002550 | V76: 3060 | W76: STD225002550 | X76: 4162 | Y76: STD335002550 | Z76: 6128
A77: 2700 | B77: 54 | C77: - | E77: STD213002700 | F77: 2217 | G77: STD223002700 | H77: 2894 | I77: STD333002700 | J77: 4209 | K77: - | M77: STD214002700 | N77: 2749 | O77: STD224002700 | P77: 3683 | Q77: STD334002700 | R77: 5405 | S77: - | U77: STD215002700 | V77: 3240 | W77: STD225002700 | X77: 4406 | Y77: STD335002700 | Z77: 6488
A78: 3000 | B78: 60 | C78: - | E78: STD213003000 | F78: 2463 | G78: STD223003000 | H78: 3216 | I78: STD333003000 | J78: 4677 | K78: - | M78: STD214003000 | N78: 3054 | O78: STD224003000 | P78: 4092 | Q78: STD334003000 | R78: 6006 | S78: - | U78: STD215003000 | V78: 3600 | W78: STD225003000 | X78: 4896 | Y78: STD335003000 | Z78: 7209
A80: PENTE : | C80: 1.3353 | E80: 1.3536 | G80: 1.3663 | I80: 1.365 | K80: 1.3272 | M80: 1.3522 | O80: 1.354 | Q80: 1.3462 | S80: 1.3191 | U80: 1.3493 | W80: 1.3418 | Y80: 1.3274
A81: Hauteur | C81: 600 | K81: 750 | S81: 900
A82: Type | C82: STD11 | E82: STD21 | G82: STD22 | I82: STD33 | K82: STD11 | M82: STD21 | O82: STD22 | Q82: STD33 | S82: STD11 | U82: STD21 | W82: STD22 | Y82: STD33
A83: Longueur (mm) | B83: Nombre éléments | C83: Modèle | D83: Watt Dt 50°C | E83: Modèle | F83: Watt Dt 50°C | G83: Modèle | H83: Watt Dt 50°C | I83: Modèle | J83: Watt Dt 50°C | K83: Modèle | L83: Watt Dt 50°C | M83: Modèle | N83: Watt Dt 50°C | O83: Modèle | P83: Watt Dt 50°C | Q83: Modèle | R83: Watt Dt 50°C | S83: Modèle | T83: Watt Dt 50°C | U83: Modèle | V83: Watt Dt 50°C | W83: Modèle | X83: Watt Dt 50°C | Y83: Modèle | Z83: Watt Dt 50°C
A84: 450 | B84: =A84/50 -> 9 | C84: =IF(D84=""," - ",IF(LEN($A84)=3,C$82&$C$81&"0"&$A84,C$82&$C$81&$A84)) -> STD116000450 | D84: 446 | E84: =IF(F84=""," - ",IF(LEN($A84)=3,E$82&$C$81&"0"&$A84,E$82&$C$81&$A84)) -> STD216000450 | F84: 617 | G84: =IF(H84=""," - ",IF(LEN($A84)=3,G$82&$C$81&"0"&$A84,G$82&$C$81&$A84)) -> STD226000450 | H84: 846 | I84: =IF(J84=""," - ",IF(LEN($A84)=3,I$82&$C$81&"0"&$A84,I$82&$C$81&$A84)) -> STD336000450 | J84: 1244 | K84: =IF(L84=""," - ",IF(LEN($A84)=3,K$82&$K$81&"0"&$A84,K$82&$K$81&$A84)) -> STD117500450 | L84: 534 | M84: =IF(N84=""," - ",IF(LEN($A84)=3,M$82&$K$81&"0"&$A84,M$82&$K$81&$A84)) -> STD217500450 | N84: 726 | O84: =IF(P84=""," - ",IF(LEN($A84)=3,O$82&$K$81&"0"&$A84,O$82&$K$81&$A84)) -> STD227500450 | P84: 996 | Q84: =IF(R84=""," - ",IF(LEN($A84)=3,Q$82&$K$81&"0"&$A84,Q$82&$K$81&$A84)) -> STD337500450 | R84: 1458 | S84: =IF(T84=""," - ",IF(LEN($A84)=3,S$82&$S$81&"0"&$A84,S$82&$S$81&$A84)) -> STD119000450 | T84: 614 | U84: =IF(V84=""," - ",IF(LEN($A84)=3,U$82&$S$81&"0"&$A84,U$82&$S$81&$A84)) -> STD219000450 | V84: 826 | W84: =IF(X84=""," - ",IF(LEN($A84)=3,W$82&$S$81&"0"&$A84,W$82&$S$81&$A84)) -> STD229000450 | X84: 1128 | Y84: =IF(Z84=""," - ",IF(LEN($A84)=3,Y$82&$S$81&"0"&$A84,Y$82&$S$81&$A84)) -> STD339000450 | Z84: 1637
A85: 600 | B85: =A85/50 -> 12 | C85: STD116000600 | D85: 595 | E85: STD216000600 | F85: 823 | G85: STD226000600 | H85: 1127 | I85: STD336000600 | J85: 1659 | K85: STD117500600 | L85: 712 | M85: STD217500600 | N85: 968 | O85: STD227500600 | P85: 1328 | Q85: STD337500600 | R85: 1944 | S85: STD119000600 | T85: 819 | U85: STD219000600 | V85: 1102 | W85: STD229000600 | X85: 1504 | Y85: STD339000600 | Z85: 2183
A86: 750 | B86: 15 | C86: STD116000750 | D86: 744 | E86: STD216000750 | F86: 1029 | G86: STD226000750 | H86: 1409 | I86: STD336000750 | J86: 2074 | K86: STD117500750 | L86: 890 | M86: STD217500750 | N86: 1210 | O86: STD227500750 | P86: 1660 | Q86: STD337500750 | R86: 2430 | S86: STD119000750 | T86: 1024 | U86: STD219000750 | V86: 1377 | W86: STD229000750 | X86: 1880 | Y86: STD339000750 | Z86: 2729
A87: 900 | B87: 18 | C87: STD116000900 | D87: 893 | E87: STD216000900 | F87: 1235 | G87: STD226000900 | H87: 1691 | I87: STD336000900 | J87: 2489 | K87: STD117500900 | L87: 1067 | M87: STD217500900 | N87: 1452 | O87: STD227500900 | P87: 1992 | Q87: STD337500900 | R87: 2916 | S87: STD119000900 | T87: 1229 | U87: STD219000900 | V87: 1652 | W87: STD229000900 | X87: 2256 | Y87: STD339000900 | Z87: 3274
A88: 1050 | B88: 21 | C88: STD116001050 | D88: 1042 | E88: STD216001050 | F88: 1441 | G88: STD226001050 | H88: 1973 | I88: STD336001050 | J88: 2903 | K88: STD117501050 | L88: 1245 | M88: STD217501050 | N88: 1694 | O88: STD227501050 | P88: 2324 | Q88: STD337501050 | R88: 3402 | S88: STD119001050 | T88: 1433 | U88: STD219001050 | V88: 1928 | W88: STD229001050 | X88: 2632 | Y88: STD339001050 | Z88: 3820
A89: 1200 | B89: 24 | C89: STD116001200 | D89: 1190 | E89: STD216001200 | F89: 1646 | G89: STD226001200 | H89: 2255 | I89: STD336001200 | J89: 3318 | K89: STD117501200 | L89: 1423 | M89: STD217501200 | N89: 1936 | O89: STD227501200 | P89: 2656 | Q89: STD337501200 | R89: 3888 | S89: STD119001200 | T89: 1638 | U89: STD219001200 | V89: 2203 | W89: STD229001200 | X89: 3008 | Y89: STD339001200 | Z89: 4366
A90: 1350 | B90: 27 | C90: STD116001350 | D90: 1339 | E90: STD216001350 | F90: 1852 | G90: STD226001350 | H90: 2537 | I90: STD336001350 | J90: 3733 | K90: STD117501350 | L90: 1601 | M90: STD217501350 | N90: 2178 | O90: STD227501350 | P90: 2988 | Q90: STD337501350 | R90: 4374 | S90: STD119001350 | T90: 1843 | U90: STD219001350 | V90: 2479 | W90: STD229001350 | X90: 3384 | Y90: STD339001350 | Z90: 4911
A91: 1500 | B91: 30 | C91: STD116001500 | D91: 1488 | E91: STD216001500 | F91: 2058 | G91: STD226001500 | H91: 2819 | I91: STD336001500 | J91: 4148 | K91: STD117501500 | L91: 1779 | M91: STD217501500 | N91: 2420 | O91: STD227501500 | P91: 3320 | Q91: STD337501500 | R91: 4860 | S91: STD119001500 | T91: 2048 | U91: STD219001500 | V91: 2754 | W91: STD229001500 | X91: 3761 | Y91: STD339001500 | Z91: 5457
A92: 1650 | B92: 33 | C92: STD116001650 | D92: 1637 | E92: STD216001650 | F92: 2264 | G92: STD226001650 | H92: 3100 | I92: STD336001650 | J92: 4562 | K92: STD117501650 | L92: 1957 | M92: STD217501650 | N92: 2661 | O92: STD227501650 | P92: 3651 | Q92: STD337501650 | R92: 5346 | S92: STD119001650 | T92: 2252 | U92: STD219001650 | V92: 3029 | W92: STD229001650 | X92: 4137 | Y92: STD339001650 | Z92: 6003
A93: 1800 | B93: 36 | C93: STD116001800 | D93: 1786 | E93: STD216001800 | F93: 2470 | G93: STD226001800 | H93: 3382 | I93: STD336001800 | J93: 4977 | K93: STD117501800 | L93: 2135 | M93: STD217501800 | N93: 2903 | O93: STD227501800 | P93: 3983 | Q93: STD337501800 | R93: 5832 | S93: STD119001800 | T93: 2457 | U93: STD219001800 | V93: 3305 | W93: STD229001800 | X93: 4513 | Y93: STD339001800 | Z93: 6548
A94: 1950 | B94: 39 | C94: - | E94: STD216001950 | F94: 2675 | G94: STD226001950 | H94: 3664 | I94: STD336001950 | J94: 5392 | K94: - | M94: STD217501950 | N94: 3145 | O94: STD227501950 | P94: 4315 | Q94: STD337501950 | R94: 6318 | S94: - | U94: STD219001950 | V94: 3580 | W94: STD229001950 | X94: 4889 | Y94: STD339001950 | Z94: 7094
A95: 2100 | B95: 42 | C95: - | E95: STD216002100 | F95: 2881 | G95: STD226002100 | H95: 3946 | I95: STD336002100 | J95: 5807 | K95: - | M95: STD217502100 | N95: 3387 | O95: STD227502100 | P95: 4647 | Q95: STD337502100 | R95: 6804 | S95: - | U95: STD219002100 | V95: 3856 | W95: STD229002100 | X95: 5265 | Y95: STD339002100 | Z95: 7640
A96: 2250 | B96: 45 | C96: - | E96: STD216002250 | F96: 3087 | G96: STD226002250 | H96: 4228 | I96: STD336002250 | J96: 6221 | K96: - | M96: STD217502250 | N96: 3629 | O96: STD227502250 | P96: 4979 | Q96: STD337502250 | R96: 7290 | S96: - | U96: STD219002250 | V96: 4131 | W96: STD229002250 | X96: 5641 | Y96: STD339002250 | Z96: 8186
A97: 2400 | B97: 48 | C97: - | E97: STD216002400 | F97: 3293 | G97: STD226002400 | H97: 4510 | I97: STD336002400 | J97: 6636 | K97: - | M97: STD217502400 | N97: 3871 | O97: STD227502400 | P97: 5311 | Q97: STD337502400 | R97: 7776 | S97: - | U97: STD219002400 | V97: 4406 | W97: STD229002400 | X97: 6017 | Y97: STD339002400 | Z97: 8731
A98: 2550 | B98: 51 | C98: - | E98: STD216002550 | F98: 3499 | G98: STD226002550 | H98: 4791 | I98: STD336002550 | J98: 7051 | K98: - | M98: STD217502550 | N98: 4113 | O98: STD227502550 | P98: 5643 | Q98: STD337502550 | R98: 8262 | S98: - | U98: STD219002550 | V98: 4682 | W98: STD229002550 | X98: 6393 | Y98: STD339002550 | Z98: 9277
A99: 2700 | B99: 54 | C99: - | E99: STD216002700 | F99: 3704 | G99: STD226002700 | H99: 5073 | I99: STD336002700 | J99: 7466 | K99: - | M99: STD217502700 | N99: 4355 | O99: STD227502700 | P99: 5975 | Q99: STD337502700 | R99: 8748 | S99: - | U99: STD219002700 | V99: 4957 | W99: STD229002700 | X99: 6769 | Y99: STD339002700 | Z99: 9823
A100: 3000 | B100: 60 | C100: - | E100: STD216003000 | F100: 4116 | G100: STD226003000 | H100: 5637 | I100: STD336003000 | J100: 8295 | K100: - | M100: STD217503000 | N100: 4839 | O100: STD227503000 | P100: 6639 | Q100: STD337503000 | R100: 9720 | S100: - | U100: STD219003000 | V100: 5508 | W100: STD229003000 | X100: 7521 | Y100: STD339003000 | Z100: 10914

Sheet STANDARD HYGIENE
A1: Programme de calcul de la puissance thermique: STANDARD
A3: Te | B3: 75 | C3: <= Entrez la température à l'entrée en C°
A4: Ts | B4: 65 | C4: <= Entrez la température à la sortie en C°
A5: Ti | B5: 20 | C5: <= Entrez la température ambiante en C°
A6: Rapport | B6: =(B4-B5)/(B3-B5) -> 0.8181818182
A7: Delta T | B7: =((B3+B4)/2)-B5 -> 50
A8: Delta T2 | B8: =(B3-B4)/LN((B3-B5)/(B4-B5)) -> 49.83288655 | C8: Si Rapport < 0,7
A11: Hauteur | C11: =C59 -> 300 | I11: =I59 -> 400 | O11: =O59 -> 500
A12: Type | C12: =C60 -> STD10 | E12: =E60 -> STD20 | G12: =G60 -> HYG30 | I12: =I60 -> STD10 | K12: =K60 -> STD20 | M12: =M60 -> HYG30 | O12: =O60 -> STD10 | Q12: =Q60 -> STD20 | S12: =S60 -> HYG30
A13: Longueur (mm) | B13: Nombre éléments | C13: Modèle | D13: Puissance (watts) | E13: Modèle | F13: Puissance (watts) | G13: Modèle | H13: Puissance (watts) | I13: Modèle | J13: Puissance (watts) | K13: Modèle | L13: Puissance (watts) | M13: Modèle | N13: Puissance (watts) | O13: Modèle | P13: Puissance (watts) | Q13: Modèle | R13: Puissance (watts) | S13: Modèle | T13: Puissance (watts)
A14: =A62 -> 450 | B14: =B62 -> 9 | C14: =C62 -> STD103000450 | D14: =IF(D62=""," - ",IF($B$6<0.7,D62*POWER($B$8/50,C$58),D62*POWER($B$7/50,C$58))) -> 145 | E14: =E62 -> STD203000450 | F14: =IF(F62=""," - ",IF($B$6<0.7,F62*POWER($B$8/50,E$58),F62*POWER($B$7/50,E$58))) -> 255 | G14: =G62 -> HYG303000450 | H14: =IF(H62=""," - ",IF($B$6<0.7,H62*POWER($B$8/50,G$58),H62*POWER($B$7/50,G$58))) -> 382 | I14: =I62 -> STD104000450 | J14: =IF(J62=""," - ",IF($B$6<0.7,J62*POWER($B$8/50,I$58),J62*POWER($B$7/50,I$58))) -> 186 | K14: =K62 -> STD204000450 | L14: =IF(L62=""," - ",IF($B$6<0.7,L62*POWER($B$8/50,K$58),L62*POWER($B$7/50,K$58))) -> 324 | M14: =M62 -> HYG304000450 | N14: =IF(N62=""," - ",IF($B$6<0.7,N62*POWER($B$8/50,M$58),N62*POWER($B$7/50,M$58))) -> 476 | O14: =O62 -> STD105000450 | P14: =IF(P62=""," - ",IF($B$6<0.7,P62*POWER($B$8/50,O$58),P62*POWER($B$7/50,O$58))) -> 225 | Q14: =Q62 -> STD205000450 | R14: =IF(R62=""," - ",IF($B$6<0.7,R62*POWER($B$8/50,Q$58),R62*POWER($B$7/50,Q$58))) -> 390 | S14: =S62 -> HYG305000450 | T14: =IF(T62=""," - ",IF($B$6<0.7,T62*POWER($B$8/50,S$58),T62*POWER($B$7/50,S$58))) -> 567
A15: =A63 -> 600 | B15: 12 | C15: STD103000600 | D15: 193 | E15: =E63 -> STD203000600 | F15: 340 | G15: =G63 -> HYG303000600 | H15: 509 | I15: =I63 -> STD104000600 | J15: 248 | K15: =K63 -> STD204000600 | L15: 432 | M15: =M63 -> HYG304000600 | N15: 634 | O15: STD105000600 | P15: 301 | Q15: STD205000600 | R15: 520 | S15: HYG305000600 | T15: 755
A16: 750 | B16: 15 | C16: STD103000750 | D16: 242 | E16: STD203000750 | F16: 425 | G16: HYG303000750 | H16: 636 | I16: STD104000750 | J16: 310 | K16: STD204000750 | L16: 540 | M16: HYG304000750 | N16: 793 | O16: STD105000750 | P16: 376 | Q16: STD205000750 | R16: 650 | S16: HYG305000750 | T16: 944
A17: 900 | B17: 18 | C17: STD103000900 | D17: 290 | E17: STD203000900 | F17: 510 | G17: HYG303000900 | H17: 763 | I17: STD104000900 | J17: 372 | K17: STD204000900 | L17: 648 | M17: HYG304000900 | N17: 951 | O17: STD105000900 | P17: 451 | Q17: STD205000900 | R17: 779 | S17: HYG305000900 | T17: 1133
A18: 1050 | B18: 21 | C18: STD103001050 | D18: 338 | E18: STD203001050 | F18: 595 | G18: HYG303001050 | H18: 890 | I18: STD104001050 | J18: 434 | K18: STD204001050 | L18: 756 | M18: HYG304001050 | N18: 1110 | O18: STD105001050 | P18: 526 | Q18: STD205001050 | R18: 909 | S18: HYG305001050 | T18: 1322
A19: 1200 | B19: 24 | C19: STD103001200 | D19: 386 | E19: STD203001200 | F19: 680 | G19: HYG303001200 | H19: 1018 | I19: STD104001200 | J19: 496 | K19: STD204001200 | L19: 864 | M19: HYG304001200 | N19: 1268 | O19: STD105001200 | P19: 601 | Q19: STD205001200 | R19: 1039 | S19: HYG305001200 | T19: 1511
A20: 1350 | B20: 27 | C20: STD103001350 | D20: 435 | E20: STD203001350 | F20: 765 | G20: HYG303001350 | H20: 1145 | I20: STD104001350 | J20: 558 | K20: STD204001350 | L20: 972 | M20: HYG304001350 | N20: 1427 | O20: STD105001350 | P20: 676 | Q20: STD205001350 | R20: 1169 | S20: HYG305001350 | T20: 1700
A21: 1500 | B21: 30 | C21: STD103001500 | D21: 483 | E21: STD203001500 | F21: 851 | G21: HYG303001500 | H21: 1272 | I21: STD104001500 | J21: 620 | K21: STD204001500 | L21: 1080 | M21: HYG304001500 | N21: 1586 | O21: STD105001500 | P21: 752 | Q21: STD205001500 | R21: 1299 | S21: HYG305001500 | T21: 1889
A22: 1650 | B22: 33 | C22: STD103001650 | D22: 531 | E22: STD203001650 | F22: 936 | G22: HYG303001650 | H22: 1399 | I22: STD104001650 | J22: 681 | K22: STD204001650 | L22: 1188 | M22: HYG304001650 | N22: 1744 | O22: STD105001650 | P22: 827 | Q22: STD205001650 | R22: 1429 | S22: HYG305001650 | T22: 2077
A23: 1800 | B23: 36 | C23: STD103001800 | D23: 580 | E23: STD203001800 | F23: 1021 | G23: HYG303001800 | H23: 1526 | I23: STD104001800 | J23: 743 | K23: STD204001800 | L23: 1296 | M23: HYG304001800 | N23: 1903 | O23: STD105001800 | P23: 902 | Q23: STD205001800 | R23: 1559 | S23: HYG305001800 | T23: 2266
A24: 1950 | B24: 39 | C24: - | D24: - | E24: STD203001950 | F24: 1106 | G24: HYG303001950 | H24: 1654 | I24: - | J24: - | K24: STD204001950 | L24: 1404 | M24: HYG304001950 | N24: 2061 | O24: - | P24: - | Q24: STD205001950 | R24: 1689 | S24: HYG305001950 | T24: 2455
A25: 2100 | B25: 42 | C25: - | D25: - | E25: STD203002100 | F25: 1191 | G25: HYG303002100 | H25: 1781 | I25: - | J25: - | K25: STD204002100 | L25: 1512 | M25: HYG304002100 | N25: 2220 | O25: - | P25: - | Q25: STD205002100 | R25: 1819 | S25: HYG305002100 | T25: 2644
A26: 2250 | B26: 45 | C26: - | D26: - | E26: STD203002250 | F26: 1276 | G26: HYG303002250 | H26: 1908 | I26: - | J26: - | K26: STD204002250 | L26: 1620 | M26: HYG304002250 | N26: 2378 | O26: - | P26: - | Q26: STD205002250 | R26: 1949 | S26: HYG305002250 | T26: 2833
A27: 2400 | B27: 48 | C27: - | D27: - | E27: STD203002400 | F27: 1361 | G27: HYG303002400 | H27: 2035 | I27: - | J27: - | K27: STD204002400 | L27: 1728 | M27: HYG304002400 | N27: 2537 | O27: - | P27: - | Q27: STD205002400 | R27: 2078 | S27: HYG305002400 | T27: 3022
A28: 2550 | B28: 51 | C28: - | D28: - | E28: STD203002550 | F28: 1446 | G28: HYG303002550 | H28: 2162 | I28: - | J28: - | K28: STD204002550 | L28: 1836 | M28: HYG304002550 | N28: 2695 | O28: - | P28: - | Q28: STD205002550 | R28: 2208 | S28: HYG305002550 | T28: 3210
A29: 2700 | B29: 54 | C29: - | D29: - | E29: STD203002700 | F29: 1531 | G29: HYG303002700 | H29: 2290 | I29: - | J29: - | K29: STD204002700 | L29: 1944 | M29: HYG304002700 | N29: 2854 | O29: - | P29: - | Q29: STD205002700 | R29: 2338 | S29: HYG305002700 | T29: 3399
A30: 3000 | B30: 60 | C30: - | D30: - | E30: STD203003000 | F30: 1701 | G30: HYG303003000 | H30: 2544 | I30: - | J30: - | K30: STD204003000 | L30: 2160 | M30: HYG304003000 | N30: 3171 | O30: - | P30: - | Q30: STD205003000 | R30: 2598 | S30: HYG305003000 | T30: 3777
A33: Hauteur | C33: =C81 -> 600 | I33: =I81 -> 750 | O33: =O81 -> 900
A34: Type | C34: =C82 -> STD10 | E34: =E82 -> STD20 | G34: =G82 -> HYG30 | I34: =I82 -> STD10 | K34: =K82 -> STD20 | M34: =M82 -> HYG30 | O34: =O82 -> STD10 | Q34: =Q82 -> STD20 | S34: =S82 -> HYG30
A35: Longueur (mm) | B35: Nombre éléments | C35: Modèle | D35: Puissance (watts) | E35: Modèle | F35: Puissance (watts) | G35: Modèle | H35: Puissance (watts) | I35: Modèle | J35: Puissance (watts) | K35: Modèle | L35: Puissance (watts) | M35: Modèle | N35: Puissance (watts) | O35: Modèle | P35: Puissance (watts) | Q35: Modèle | R35: Puissance (watts) | S35: Modèle | T35: Puissance (watts)
A36: =A84 -> 450 | B36: =B84 -> 9 | C36: =C84 -> STD106000450 | D36: =IF(D84=""," - ",IF($B$6<0.7,D84*POWER($B$8/50,C$80),D84*POWER($B$7/50,C$80))) -> 263 | E36: =E84 -> STD206000450 | F36: =IF(F84=""," - ",IF($B$6<0.7,F84*POWER($B$8/50,E$80),F84*POWER($B$7/50,E$80))) -> 454 | G36: =G84 -> HYG306000450 | H36: =IF(H84=""," - ",IF($B$6<0.7,H84*POWER($B$8/50,G$80),H84*POWER($B$7/50,G$80))) -> 656 | I36: =I84 -> STD107500450 | J36: =IF(J84=""," - ",IF($B$6<0.7,J84*POWER($B$8/50,I$80),J84*POWER($B$7/50,I$80))) -> 318 | K36: =K84 -> STD207500450 | L36: =IF(L84=""," - ",IF($B$6<0.7,L84*POWER($B$8/50,K$80),L84*POWER($B$7/50,K$80))) -> 548 | M36: =M84 -> HYG307500450 | N36: =IF(N84=""," - ",IF($B$6<0.7,N84*POWER($B$8/50,M$80),N84*POWER($B$7/50,M$80))) -> 788 | O36: =O84 -> STD109000450 | P36: =IF(P84=""," - ",IF($B$6<0.7,P84*POWER($B$8/50,O$80),P84*POWER($B$7/50,O$80))) -> 370 | Q36: =Q84 -> STD209000450 | R36: =IF(R84=""," - ",IF($B$6<0.7,R84*POWER($B$8/50,Q$80),R84*POWER($B$7/50,Q$80))) -> 640 | S36: =S84 -> HYG309000450 | T36: =IF(T84=""," - ",IF($B$6<0.7,T84*POWER($B$8/50,S$80),T84*POWER($B$7/50,S$80))) -> 919
A37: =A85 -> 600 | B37: 12 | C37: =C85 -> STD106000600 | D37: 351 | E37: STD206000600 | F37: 605 | G37: HYG306000600 | H37: 874 | I37: STD107500600 | J37: 424 | K37: STD207500600 | L37: 730 | M37: HYG307500600 | N37: 1051 | O37: STD109000600 | P37: 493 | Q37: STD209000600 | R37: 853 | S37: HYG309000600 | T37: 1226
A38: 750 | B38: 15 | C38: STD106000750 | D38: 439 | E38: STD206000750 | F38: 757 | G38: HYG306000750 | H38: 1093 | I38: STD107500750 | J38: 530 | K38: STD207500750 | L38: 913 | M38: HYG307500750 | N38: 1313 | O38: STD109000750 | P38: 617 | Q38: STD209000750 | R38: 1067 | S38: HYG309000750 | T38: 1532
A39: 900 | B39: 18 | C39: STD106000900 | D39: 527 | E39: STD206000900 | F39: 908 | G39: HYG306000900 | H39: 1311 | I39: STD107500900 | J39: 635 | K39: STD207500900 | L39: 1095 | M39: HYG307500900 | N39: 1576 | O39: STD109000900 | P39: 740 | Q39: STD209000900 | R39: 1280 | S39: HYG309000900 | T39: 1839
A40: 1050 | B40: 21 | C40: STD106001050 | D40: 614 | E40: STD206001050 | F40: 1059 | G40: HYG306001050 | H40: 1530 | I40: STD107501050 | J40: 741 | K40: STD207501050 | L40: 1278 | M40: HYG307501050 | N40: 1839 | O40: STD109001050 | P40: 863 | Q40: STD209001050 | R40: 1493 | S40: HYG309001050 | T40: 2145
A41: 1200 | B41: 24 | C41: STD106001200 | D41: 702 | E41: STD206001200 | F41: 1211 | G41: HYG306001200 | H41: 1748 | I41: STD107501200 | J41: 847 | K41: STD207501200 | L41: 1460 | M41: HYG307501200 | N41: 2101 | O41: STD109001200 | P41: 986 | Q41: STD209001200 | R41: 1706 | S41: HYG309001200 | T41: 2452
A42: 1350 | B42: 27 | C42: STD106001350 | D42: 790 | E42: STD206001350 | F42: 1362 | G42: HYG306001350 | H42: 1967 | I42: STD107501350 | J42: 953 | K42: STD207501350 | L42: 1643 | M42: HYG307501350 | N42: 2364 | O42: STD109001350 | P42: 1110 | Q42: STD209001350 | R42: 1920 | S42: HYG309001350 | T42: 2758
A43: 1500 | B43: 30 | C43: STD106001500 | D43: 878 | E43: STD206001500 | F43: 1514 | G43: HYG306001500 | H43: 2186 | I43: STD107501500 | J43: 1059 | K43: STD207501500 | L43: 1826 | M43: HYG307501500 | N43: 2627 | O43: STD109001500 | P43: 1233 | Q43: STD209001500 | R43: 2133 | S43: HYG309001500 | T43: 3065
A44: 1650 | B44: 33 | C44: STD106001650 | D44: 965 | E44: STD206001650 | F44: 1665 | G44: HYG306001650 | H44: 2404 | I44: STD107501650 | J44: 1165 | K44: STD207501650 | L44: 2008 | M44: HYG307501650 | N44: 2889 | O44: STD109001650 | P44: 1356 | Q44: STD209001650 | R44: 2346 | S44: HYG309001650 | T44: 3371
A45: 1800 | B45: 36 | C45: STD106001800 | D45: 1053 | E45: STD206001800 | F45: 1816 | G45: HYG306001800 | H45: 2623 | I45: STD107501800 | J45: 1271 | K45: STD207501800 | L45: 2191 | M45: HYG307501800 | N45: 3152 | O45: STD109001800 | P45: 1480 | Q45: STD209001800 | R45: 2560 | S45: HYG309001800 | T45: 3677
A46: 1950 | B46: 39 | C46: - | D46: - | E46: STD206001950 | F46: 1968 | G46: HYG306001950 | H46: 2841 | I46: - | J46: - | K46: STD207501950 | L46: 2373 | M46: HYG307501950 | N46: 3414 | O46: - | P46: - | Q46: STD209001950 | R46: 2773 | S46: HYG309001950 | T46: 3984
A47: 2100 | B47: 42 | C47: - | D47: - | E47: STD206002100 | F47: 2119 | G47: HYG306002100 | H47: 3060 | I47: - | J47: - | K47: STD207502100 | L47: 2556 | M47: HYG307502100 | N47: 3677 | O47: - | P47: - | Q47: STD209002100 | R47: 2986 | S47: HYG309002100 | T47: 4290
A48: 2250 | B48: 45 | C48: - | D48: - | E48: STD206002250 | F48: 2270 | G48: HYG306002250 | H48: 3278 | I48: - | J48: - | K48: STD207502250 | L48: 2738 | M48: HYG307502250 | N48: 3940 | O48: - | P48: - | Q48: STD209002250 | R48: 3200 | S48: HYG309002250 | T48: 4597
A49: 2400 | B49: 48 | C49: - | D49: - | E49: STD206002400 | F49: 2422 | G49: HYG306002400 | H49: 3497 | I49: - | J49: - | K49: STD207502400 | L49: 2921 | M49: HYG307502400 | N49: 4202 | O49: - | P49: - | Q49: STD209002400 | R49: 3413 | S49: HYG309002400 | T49: 4903
A50: 2550 | B50: 51 | C50: - | D50: - | E50: STD206002550 | F50: 2573 | G50: HYG306002550 | H50: 3715 | I50: - | J50: - | K50: STD207502550 | L50: 3103 | M50: HYG307502550 | N50: 4465 | O50: - | P50: - | Q50: STD209002550 | R50: 3626 | S50: HYG309002550 | T50: 5210
A51: 2700 | B51: 54 | C51: - | D51: - | E51: STD206002700 | F51: 2724 | G51: HYG306002700 | H51: 3934 | I51: - | J51: - | K51: STD207502700 | L51: 3286 | M51: HYG307502700 | N51: 4728 | O51: - | P51: - | Q51: STD209002700 | R51: 3839 | S51: HYG309002700 | T51: 5516
A52: 3000 | B52: 60 | C52: - | D52: - | E52: STD206003000 | F52: 3027 | G52: HYG306003000 | H52: 4371 | I52: - | J52: - | K52: STD207503000 | L52: 3651 | M52: HYG307503000 | N52: 5253 | O52: - | P52: - | Q52: STD209003000 | R52: 4266 | S52: HYG309003000 | T52: 6129
A56: Tableau de référence
A58: PENTE : | C58: 1.3325 | E58: 1.3709 | G58: 1.2831 | I58: 1.3307 | K58: 1.3466 | M58: 1.2875 | O58: 1.3288 | Q58: 1.3222 | S58: 1.2919
A59: Hauteur | C59: 300 | I59: 400 | O59: 500
A60: Type | C60: STD10 | E60: STD20 | G60: HYG30 | I60: STD10 | K60: STD20 | M60: HYG30 | O60: STD10 | Q60: STD20 | S60: HYG30
A61: Longueur (mm) | B61: Nombre éléments | C61: Modèle | D61: Watt Dt 50°C | E61: Modèle | F61: Watt Dt 50°C | G61: Modèle | H61: Watt Dt 50°C | I61: Modèle | J61: Watt Dt 50°C | K61: Modèle | L61: Watt Dt 50°C | M61: Modèle | N61: Watt Dt 50°C | O61: Modèle | P61: Watt Dt 50°C | Q61: Modèle | R61: Watt Dt 50°C | S61: Modèle | T61: Watt Dt 50°C
A62: 450 | B62: =A62/50 -> 9 | C62: =IF(D62=""," - ",IF(LEN($A62)=3,C$60&$C$59&"0"&$A62,C$60&$C$59&$A62)) -> STD103000450 | D62: 145 | E62: =IF(F62=""," - ",IF(LEN($A62)=3,E$60&$C$59&"0"&$A62,E$60&$C$59&$A62)) -> STD203000450 | F62: 255 | G62: =IF(H62=""," - ",IF(LEN($A62)=3,G$60&$C$59&"0"&$A62,G$60&$C$59&$A62)) -> HYG303000450 | H62: 382 | I62: =IF(J62=""," - ",IF(LEN($A62)=3,I$60&$I$59&"0"&$A62,I$60&$I$59&$A62)) -> STD104000450 | J62: 186 | K62: =IF(L62=""," - ",IF(LEN($A62)=3,K$60&$I$59&"0"&$A62,K$60&$I$59&$A62)) -> STD204000450 | L62: 324 | M62: =IF(N62=""," - ",IF(LEN($A62)=3,M$60&$I$59&"0"&$A62,M$60&$I$59&$A62)) -> HYG304000450 | N62: 476 | O62: =IF(P62=""," - ",IF(LEN($A62)=3,O$60&$O$59&"0"&$A62,O$60&$O$59&$A62)) -> STD105000450 | P62: 225 | Q62: =IF(R62=""," - ",IF(LEN($A62)=3,Q$60&$O$59&"0"&$A62,Q$60&$O$59&$A62)) -> STD205000450 | R62: 390 | S62: =IF(T62=""," - ",IF(LEN($A62)=3,S$60&$O$59&"0"&$A62,S$60&$O$59&$A62)) -> HYG305000450 | T62: 567
A63: 600 | B63: =A63/50 -> 12 | C63: STD103000600 | D63: 193 | E63: STD203000600 | F63: 340 | G63: HYG303000600 | H63: 509 | I63: STD104000600 | J63: 248 | K63: STD204000600 | L63: 432 | M63: HYG304000600 | N63: 634 | O63: STD105000600 | P63: 301 | Q63: STD205000600 | R63: 520 | S63: HYG305000600 | T63: 755
A64: 750 | B64: 15 | C64: STD103000750 | D64: 242 | E64: STD203000750 | F64: 425 | G64: HYG303000750 | H64: 636 | I64: STD104000750 | J64: 310 | K64: STD204000750 | L64: 540 | M64: HYG304000750 | N64: 793 | O64: STD105000750 | P64: 376 | Q64: STD205000750 | R64: 650 | S64: HYG305000750 | T64: 944
A65: 900 | B65: 18 | C65: STD103000900 | D65: 290 | E65: STD203000900 | F65: 510 | G65: HYG303000900 | H65: 763 | I65: STD104000900 | J65: 372 | K65: STD204000900 | L65: 648 | M65: HYG304000900 | N65: 951 | O65: STD105000900 | P65: 451 | Q65: STD205000900 | R65: 779 | S65: HYG305000900 | T65: 1133
A66: 1050 | B66: 21 | C66: STD103001050 | D66: 338 | E66: STD203001050 | F66: 595 | G66: HYG303001050 | H66: 890 | I66: STD104001050 | J66: 434 | K66: STD204001050 | L66: 756 | M66: HYG304001050 | N66: 1110 | O66: STD105001050 | P66: 526 | Q66: STD205001050 | R66: 909 | S66: HYG305001050 | T66: 1322
A67: 1200 | B67: 24 | C67: STD103001200 | D67: 386 | E67: STD203001200 | F67: 680 | G67: HYG303001200 | H67: 1018 | I67: STD104001200 | J67: 496 | K67: STD204001200 | L67: 864 | M67: HYG304001200 | N67: 1268 | O67: STD105001200 | P67: 601 | Q67: STD205001200 | R67: 1039 | S67: HYG305001200 | T67: 1511
A68: 1350 | B68: 27 | C68: STD103001350 | D68: 435 | E68: STD203001350 | F68: 765 | G68: HYG303001350 | H68: 1145 | I68: STD104001350 | J68: 558 | K68: STD204001350 | L68: 972 | M68: HYG304001350 | N68: 1427 | O68: STD105001350 | P68: 676 | Q68: STD205001350 | R68: 1169 | S68: HYG305001350 | T68: 1700
A69: 1500 | B69: 30 | C69: STD103001500 | D69: 483 | E69: STD203001500 | F69: 851 | G69: HYG303001500 | H69: 1272 | I69: STD104001500 | J69: 620 | K69: STD204001500 | L69: 1080 | M69: HYG304001500 | N69: 1586 | O69: STD105001500 | P69: 752 | Q69: STD205001500 | R69: 1299 | S69: HYG305001500 | T69: 1889
A70: 1650 | B70: 33 | C70: STD103001650 | D70: 531 | E70: STD203001650 | F70: 936 | G70: HYG303001650 | H70: 1399 | I70: STD104001650 | J70: 681 | K70: STD204001650 | L70: 1188 | M70: HYG304001650 | N70: 1744 | O70: STD105001650 | P70: 827 | Q70: STD205001650 | R70: 1429 | S70: HYG305001650 | T70: 2077
A71: 1800 | B71: 36 | C71: STD103001800 | D71: 580 | E71: STD203001800 | F71: 1021 | G71: HYG303001800 | H71: 1526 | I71: STD104001800 | J71: 743 | K71: STD204001800 | L71: 1296 | M71: HYG304001800 | N71: 1903 | O71: STD105001800 | P71: 902 | Q71: STD205001800 | R71: 1559 | S71: HYG305001800 | T71: 2266
A72: 1950 | B72: 39 | C72: - | E72: STD203001950 | F72: 1106 | G72: HYG303001950 | H72: 1654 | I72: - | K72: STD204001950 | L72: 1404 | M72: HYG304001950 | N72: 2061 | O72: - | Q72: STD205001950 | R72: 1689 | S72: HYG305001950 | T72: 2455
A73: 2100 | B73: 42 | C73: - | E73: STD203002100 | F73: 1191 | G73: HYG303002100 | H73: 1781 | I73: - | K73: STD204002100 | L73: 1512 | M73: HYG304002100 | N73: 2220 | O73: - | Q73: STD205002100 | R73: 1819 | S73: HYG305002100 | T73: 2644
A74: 2250 | B74: 45 | C74: - | E74: STD203002250 | F74: 1276 | G74: HYG303002250 | H74: 1908 | I74: - | K74: STD204002250 | L74: 1620 | M74: HYG304002250 | N74: 2378 | O74: - | Q74: STD205002250 | R74: 1949 | S74: HYG305002250 | T74: 2833
A75: 2400 | B75: 48 | C75: - | E75: STD203002400 | F75: 1361 | G75: HYG303002400 | H75: 2035 | I75: - | K75: STD204002400 | L75: 1728 | M75: HYG304002400 | N75: 2537 | O75: - | Q75: STD205002400 | R75: 2078 | S75: HYG305002400 | T75: 3022
A76: 2550 | B76: 51 | C76: - | E76: STD203002550 | F76: 1446 | G76: HYG303002550 | H76: 2162 | I76: - | K76: STD204002550 | L76: 1836 | M76: HYG304002550 | N76: 2695 | O76: - | Q76: STD205002550 | R76: 2208 | S76: HYG305002550 | T76: 3210
A77: 2700 | B77: 54 | C77: - | E77: STD203002700 | F77: 1531 | G77: HYG303002700 | H77: 2290 | I77: - | K77: STD204002700 | L77: 1944 | M77: HYG304002700 | N77: 2854 | O77: - | Q77: STD205002700 | R77: 2338 | S77: HYG305002700 | T77: 3399
A78: 3000 | B78: 60 | C78: - | E78: STD203003000 | F78: 1701 | G78: HYG303003000 | H78: 2544 | I78: - | K78: STD204003000 | L78: 2160 | M78: HYG304003000 | N78: 3171 | O78: - | Q78: STD205003000 | R78: 2598 | S78: HYG305003000 | T78: 3777
A80: PENTE : | C80: 1.327 | E80: 1.2979 | G80: 1.2963 | I80: 1.3242 | K80: 1.2613 | M80: 1.3029 | O80: 1.3215 | Q80: 1.2248 | S80: 1.3094
A81: Hauteur | C81: 600 | I81: 750 | O81: 900
A82: Type | C82: STD10 | E82: STD20 | G82: HYG30 | I82: STD10 | K82: STD20 | M82: HYG30 | O82: STD10 | Q82: STD20 | S82: HYG30
A83: Longueur (mm) | B83: Nombre éléments | C83: Modèle | D83: Watt Dt 50°C | E83: Modèle | F83: Watt Dt 50°C | G83: Modèle | H83: Watt Dt 50°C | I83: Modèle | J83: Watt Dt 50°C | K83: Modèle | L83: Watt Dt 50°C | M83: Modèle | N83: Watt Dt 50°C | O83: Modèle | P83: Watt Dt 50°C | Q83: Modèle | R83: Watt Dt 50°C | S83: Modèle | T83: Watt Dt 50°C
A84: 450 | B84: =A84/50 -> 9 | C84: =IF(D84=""," - ",IF(LEN($A84)=3,C$82&$C$81&"0"&$A84,C$82&$C$81&$A84)) -> STD106000450 | D84: 263 | E84: =IF(F84=""," - ",IF(LEN($A84)=3,E$82&$C$81&"0"&$A84,E$82&$C$81&$A84)) -> STD206000450 | F84: 454 | G84: =IF(H84=""," - ",IF(LEN($A84)=3,G$82&$C$81&"0"&$A84,G$82&$C$81&$A84)) -> HYG306000450 | H84: 656 | I84: =IF(J84=""," - ",IF(LEN($A84)=3,I$82&$I$81&"0"&$A84,I$82&$I$81&$A84)) -> STD107500450 | J84: 318 | K84: =IF(L84=""," - ",IF(LEN($A84)=3,K$82&$I$81&"0"&$A84,K$82&$I$81&$A84)) -> STD207500450 | L84: 548 | M84: =IF(N84=""," - ",IF(LEN($A84)=3,M$82&$I$81&"0"&$A84,M$82&$I$81&$A84)) -> HYG307500450 | N84: 788 | O84: =IF(P84=""," - ",IF(LEN($A84)=3,O$82&$O$81&"0"&$A84,O$82&$O$81&$A84)) -> STD109000450 | P84: 370 | Q84: =IF(R84=""," - ",IF(LEN($A84)=3,Q$82&$O$81&"0"&$A84,Q$82&$O$81&$A84)) -> STD209000450 | R84: 640 | S84: =IF(T84=""," - ",IF(LEN($A84)=3,S$82&$O$81&"0"&$A84,S$82&$O$81&$A84)) -> HYG309000450 | T84: 919
A85: 600 | B85: =A85/50 -> 12 | C85: STD106000600 | D85: 351 | E85: STD206000600 | F85: 605 | G85: HYG306000600 | H85: 874 | I85: STD107500600 | J85: 424 | K85: STD207500600 | L85: 730 | M85: HYG307500600 | N85: 1051 | O85: STD109000600 | P85: 493 | Q85: STD209000600 | R85: 853 | S85: HYG309000600 | T85: 1226
A86: 750 | B86: 15 | C86: STD106000750 | D86: 439 | E86: STD206000750 | F86: 757 | G86: HYG306000750 | H86: 1093 | I86: STD107500750 | J86: 530 | K86: STD207500750 | L86: 913 | M86: HYG307500750 | N86: 1313 | O86: STD109000750 | P86: 617 | Q86: STD209000750 | R86: 1067 | S86: HYG309000750 | T86: 1532
A87: 900 | B87: 18 | C87: STD106000900 | D87: 527 | E87: STD206000900 | F87: 908 | G87: HYG306000900 | H87: 1311 | I87: STD107500900 | J87: 635 | K87: STD207500900 | L87: 1095 | M87: HYG307500900 | N87: 1576 | O87: STD109000900 | P87: 740 | Q87: STD209000900 | R87: 1280 | S87: HYG309000900 | T87: 1839
A88: 1050 | B88: 21 | C88: STD106001050 | D88: 614 | E88: STD206001050 | F88: 1059 | G88: HYG306001050 | H88: 1530 | I88: STD107501050 | J88: 741 | K88: STD207501050 | L88: 1278 | M88: HYG307501050 | N88: 1839 | O88: STD109001050 | P88: 863 | Q88: STD209001050 | R88: 1493 | S88: HYG309001050 | T88: 2145
A89: 1200 | B89: 24 | C89: STD106001200 | D89: 702 | E89: STD206001200 | F89: 1211 | G89: HYG306001200 | H89: 1748 | I89: STD107501200 | J89: 847 | K89: STD207501200 | L89: 1460 | M89: HYG307501200 | N89: 2101 | O89: STD109001200 | P89: 986 | Q89: STD209001200 | R89: 1706 | S89: HYG309001200 | T89: 2452
A90: 1350 | B90: 27 | C90: STD106001350 | D90: 790 | E90: STD206001350 | F90: 1362 | G90: HYG306001350 | H90: 1967 | I90: STD107501350 | J90: 953 | K90: STD207501350 | L90: 1643 | M90: HYG307501350 | N90: 2364 | O90: STD109001350 | P90: 1110 | Q90: STD209001350 | R90: 1920 | S90: HYG309001350 | T90: 2758
A91: 1500 | B91: 30 | C91: STD106001500 | D91: 878 | E91: STD206001500 | F91: 1514 | G91: HYG306001500 | H91: 2186 | I91: STD107501500 | J91: 1059 | K91: STD207501500 | L91: 1826 | M91: HYG307501500 | N91: 2627 | O91: STD109001500 | P91: 1233 | Q91: STD209001500 | R91: 2133 | S91: HYG309001500 | T91: 3065
A92: 1650 | B92: 33 | C92: STD106001650 | D92: 965 | E92: STD206001650 | F92: 1665 | G92: HYG306001650 | H92: 2404 | I92: STD107501650 | J92: 1165 | K92: STD207501650 | L92: 2008 | M92: HYG307501650 | N92: 2889 | O92: STD109001650 | P92: 1356 | Q92: STD209001650 | R92: 2346 | S92: HYG309001650 | T92: 3371
A93: 1800 | B93: 36 | C93: STD106001800 | D93: 1053 | E93: STD206001800 | F93: 1816 | G93: HYG306001800 | H93: 2623 | I93: STD107501800 | J93: 1271 | K93: STD207501800 | L93: 2191 | M93: HYG307501800 | N93: 3152 | O93: STD109001800 | P93: 1480 | Q93: STD209001800 | R93: 2560 | S93: HYG309001800 | T93: 3677
A94: 1950 | B94: 39 | C94: - | E94: STD206001950 | F94: 1968 | G94: HYG306001950 | H94: 2841 | I94: - | K94: STD207501950 | L94: 2373 | M94: HYG307501950 | N94: 3414 | O94: - | Q94: STD209001950 | R94: 2773 | S94: HYG309001950 | T94: 3984
A95: 2100 | B95: 42 | C95: - | E95: STD206002100 | F95: 2119 | G95: HYG306002100 | H95: 3060 | I95: - | K95: STD207502100 | L95: 2556 | M95: HYG307502100 | N95: 3677 | O95: - | Q95: STD209002100 | R95: 2986 | S95: HYG309002100 | T95: 4290
A96: 2250 | B96: 45 | C96: - | E96: STD206002250 | F96: 2270 | G96: HYG306002250 | H96: 3278 | I96: - | K96: STD207502250 | L96: 2738 | M96: HYG307502250 | N96: 3940 | O96: - | Q96: STD209002250 | R96: 3200 | S96: HYG309002250 | T96: 4597
A97: 2400 | B97: 48 | C97: - | E97: STD206002400 | F97: 2422 | G97: HYG306002400 | H97: 3497 | I97: - | K97: STD207502400 | L97: 2921 | M97: HYG307502400 | N97: 4202 | O97: - | Q97: STD209002400 | R97: 3413 | S97: HYG309002400 | T97: 4903
A98: 2550 | B98: 51 | C98: - | E98: STD206002550 | F98: 2573 | G98: HYG306002550 | H98: 3715 | I98: - | K98: STD207502550 | L98: 3103 | M98: HYG307502550 | N98: 4465 | O98: - | Q98: STD209002550 | R98: 3626 | S98: HYG309002550 | T98: 5210
A99: 2700 | B99: 54 | C99: - | E99: STD206002700 | F99: 2724 | G99: HYG306002700 | H99: 3934 | I99: - | K99: STD207502700 | L99: 3286 | M99: HYG307502700 | N99: 4728 | O99: - | Q99: STD209002700 | R99: 3839 | S99: HYG309002700 | T99: 5516
A100: 3000 | B100: 60 | C100: - | E100: STD206003000 | F100: 3027 | G100: HYG306003000 | H100: 4371 | I100: - | K100: STD207503000 | L100: 3651 | M100: HYG307503000 | N100: 5253 | O100: - | Q100: STD209003000 | R100: 4266 | S100: HYG309003000 | T100: 6129

Sheet COMPACT
A1: Programme de calcul de la puissance thermique: COMPACT
A3: Te | B3: 75 | C3: <= Entrez la température à l'entrée en C°
A4: Ts | B4: 65 | C4: <= Entrez la température à la sortie en C°
A5: Ti | B5: 20 | C5: <= Entrez la température ambiante en C°
A6: Rapport | B6: =(B4-B5)/(B3-B5) -> 0.8181818182
A7: Delta T | B7: =((B3+B4)/2)-B5 -> 50
A8: Delta T2 | B8: =(B3-B4)/LN((B3-B5)/(B4-B5)) -> 49.83288655 | C8: Si Rapport < 0,7
A11: Hauteur | C11: =C59 -> 300 | K11: =K59 -> 400 | S11: =S59 -> 500
A12: Type | C12: =C60 -> KMP11 | E12: =E60 -> KMP21 | G12: =G60 -> KMP22 | I12: =I60 -> KMP33 | K12: =K60 -> KMP11 | M12: =M60 -> KMP21 | O12: =O60 -> KMP22 | Q12: =Q60 -> KMP33 | S12: =S60 -> KMP11 | U12: =U60 -> KMP21 | W12: =W60 -> KMP22 | Y12: =Y60 -> KMP33
A13: Longueur (mm) | B13: Nombre éléments | C13: Modèle | D13: Puissance (watts) | E13: Modèle | F13: Puissance (watts) | G13: Modèle | H13: Puissance (watts) | I13: Modèle | J13: Puissance (watts) | K13: Modèle | L13: Puissance (watts) | M13: Modèle | N13: Puissance (watts) | O13: Modèle | P13: Puissance (watts) | Q13: Modèle | R13: Puissance (watts) | S13: Modèle | T13: Puissance (watts) | U13: Modèle | V13: Puissance (watts) | W13: Modèle | X13: Puissance (watts) | Y13: Modèle | Z13: Puissance (watts)
A14: =A62 -> 450 | B14: =B62 -> 9 | C14: =C62 -> KMP113000450 | D14: =IF(D62=""," - ",IF($B$6<0.7,D62*POWER($B$8/50,C$58),D62*POWER($B$7/50,C$58))) -> 248 | E14: =E62 -> KMP213000450 | F14: =IF(F62=""," - ",IF($B$6<0.7,F62*POWER($B$8/50,E$58),F62*POWER($B$7/50,E$58))) -> 361 | G14: =G62 -> KMP223000450 | H14: =IF(H62=""," - ",IF($B$6<0.7,H62*POWER($B$8/50,G$58),H62*POWER($B$7/50,G$58))) -> 474 | I14: =I62 -> KMP333000450 | J14: =IF(J62=""," - ",IF($B$6<0.7,J62*POWER($B$8/50,I$58),J62*POWER($B$7/50,I$58))) -> 672 | K14: =K62 -> KMP114000450 | L14: =IF(L62=""," - ",IF($B$6<0.7,L62*POWER($B$8/50,K$58),L62*POWER($B$7/50,K$58))) -> 318 | M14: =M62 -> KMP214000450 | N14: =IF(N62=""," - ",IF($B$6<0.7,N62*POWER($B$8/50,M$58),N62*POWER($B$7/50,M$58))) -> 448 | O14: =O62 -> KMP224000450 | P14: =IF(P62=""," - ",IF($B$6<0.7,P62*POWER($B$8/50,O$58),P62*POWER($B$7/50,O$58))) -> 601 | Q14: =Q62 -> KMP334000450 | R14: =IF(R62=""," - ",IF($B$6<0.7,R62*POWER($B$8/50,Q$58),R62*POWER($B$7/50,Q$58))) -> 863 | S14: =S62 -> KMP115000450 | T14: =IF(T62=""," - ",IF($B$6<0.7,T62*POWER($B$8/50,S$58),T62*POWER($B$7/50,S$58))) -> 384 | U14: =U62 -> KMP215000450 | V14: =IF(V62=""," - ",IF($B$6<0.7,V62*POWER($B$8/50,U$58),V62*POWER($B$7/50,U$58))) -> 530 | W14: =W62 -> KMP225000450 | X14: =IF(X62=""," - ",IF($B$6<0.7,X62*POWER($B$8/50,W$58),X62*POWER($B$7/50,W$58))) -> 718 | Y14: =Y62 -> KMP335000450 | Z14: =IF(Z62=""," - ",IF($B$6<0.7,Z62*POWER($B$8/50,Y$58),Z62*POWER($B$7/50,Y$58))) -> 1037
A15: =A63 -> 600 | B15: 12 | C15: =C63 -> KMP113000600 | D15: 331 | E15: =E63 -> KMP213000600 | F15: 481 | G15: =G63 -> KMP223000600 | H15: 632 | I15: =I63 -> KMP333000600 | J15: 896 | K15: =K63 -> KMP114000600 | L15: 424 | M15: =M63 -> KMP214000600 | N15: 598 | O15: =O63 -> KMP224000600 | P15: 802 | Q15: =Q63 -> KMP334000600 | R15: 1151 | S15: KMP115000600 | T15: 512 | U15: KMP215000600 | V15: 706 | W15: KMP225000600 | X15: 957 | Y15: KMP335000600 | Z15: 1383
A16: =A64 -> 750 | B16: 15 | C16: KMP113000750 | D16: 413 | E16: KMP213000750 | F16: 602 | G16: KMP223000750 | H16: 790 | I16: KMP333000750 | J16: 1121 | K16: KMP114000750 | L16: 530 | M16: KMP214000750 | N16: 747 | O16: KMP224000750 | P16: 1002 | Q16: KMP334000750 | R16: 1439 | S16: KMP115000750 | T16: 640 | U16: KMP215000750 | V16: 883 | W16: KMP225000750 | X16: 1196 | Y16: KMP335000750 | Z16: 1729
A17: =A65 -> 900 | B17: 18 | C17: KMP113000900 | D17: 496 | E17: KMP213000900 | F17: 722 | G17: KMP223000900 | H17: 948 | I17: KMP333000900 | J17: 1345 | K17: KMP114000900 | L17: 635 | M17: KMP214000900 | N17: 896 | O17: KMP224000900 | P17: 1202 | Q17: KMP334000900 | R17: 1726 | S17: KMP115000900 | T17: 768 | U17: KMP215000900 | V17: 1059 | W17: KMP225000900 | X17: 1436 | Y17: KMP335000900 | Z17: 2075
A18: =A66 -> 1050 | B18: 21 | C18: KMP113001050 | D18: 579 | E18: KMP213001050 | F18: 842 | G18: KMP223001050 | H18: 1106 | I18: KMP333001050 | J18: 1569 | K18: KMP114001050 | L18: 741 | M18: KMP214001050 | N18: 1046 | O18: KMP224001050 | P18: 1403 | Q18: KMP334001050 | R18: 2014 | S18: KMP115001050 | T18: 896 | U18: KMP215001050 | V18: 1236 | W18: KMP225001050 | X18: 1675 | Y18: KMP335001050 | Z18: 2420
A19: =A67 -> 1200 | B19: 24 | C19: KMP113001200 | D19: 661 | E19: KMP213001200 | F19: 962 | G19: KMP223001200 | H19: 1264 | I19: KMP333001200 | J19: 1793 | K19: KMP114001200 | L19: 847 | M19: KMP214001200 | N19: 1195 | O19: KMP224001200 | P19: 1603 | Q19: KMP334001200 | R19: 2302 | S19: KMP115001200 | T19: 1024 | U19: KMP215001200 | V19: 1412 | W19: KMP225001200 | X19: 1914 | Y19: KMP335001200 | Z19: 2766
A20: =A68 -> 1350 | B20: 27 | C20: KMP113001350 | D20: 744 | E20: KMP213001350 | F20: 1083 | G20: KMP223001350 | H20: 1422 | I20: KMP333001350 | J20: 2017 | K20: KMP114001350 | L20: 953 | M20: KMP214001350 | N20: 1345 | O20: KMP224001350 | P20: 1804 | Q20: KMP334001350 | R20: 2589 | S20: KMP115001350 | T20: 1152 | U20: KMP215001350 | V20: 1589 | W20: KMP225001350 | X20: 2153 | Y20: KMP335001350 | Z20: 3112
A21: =A69 -> 1500 | B21: 30 | C21: KMP113001500 | D21: 827 | E21: KMP213001500 | F21: 1203 | G21: KMP223001500 | H21: 1580 | I21: KMP333001500 | J21: 2241 | K21: KMP114001500 | L21: 1059 | M21: KMP214001500 | N21: 1494 | O21: KMP224001500 | P21: 2004 | Q21: KMP334001500 | R21: 2877 | S21: KMP115001500 | T21: 1280 | U21: KMP215001500 | V21: 1766 | W21: KMP225001500 | X21: 2393 | Y21: KMP335001500 | Z21: 3458
A22: =A70 -> 1650 | B22: 33 | C22: KMP113001650 | D22: 909 | E22: KMP213001650 | F22: 1323 | G22: KMP223001650 | H22: 1737 | I22: KMP333001650 | J22: 2465 | K22: KMP114001650 | L22: 1165 | M22: KMP214001650 | N22: 1643 | O22: KMP224001650 | P22: 2204 | Q22: KMP334001650 | R22: 3165 | S22: KMP115001650 | T22: 1407 | U22: KMP215001650 | V22: 1942 | W22: KMP225001650 | X22: 2632 | Y22: KMP335001650 | Z22: 3803
A23: =A71 -> 1800 | B23: 36 | C23: KMP113001800 | D23: 992 | E23: KMP213001800 | F23: 1444 | G23: KMP223001800 | H23: 1895 | I23: KMP333001800 | J23: 2689 | K23: KMP114001800 | L23: 1271 | M23: KMP214001800 | N23: 1793 | O23: KMP224001800 | P23: 2405 | Q23: KMP334001800 | R23: 3452 | S23: KMP115001800 | T23: 1535 | U23: KMP215001800 | V23: 2119 | W23: KMP225001800 | X23: 2871 | Y23: KMP335001800 | Z23: 4149
A24: =A72 -> 1950 | B24: 39 | C24: KMP113001950 | D24: 1074 | E24: KMP213001950 | F24: 1564 | G24: KMP223001950 | H24: 2053 | I24: KMP333001950 | J24: 2913 | K24: KMP114001950 | L24: 1377 | M24: KMP214001950 | N24: 1942 | O24: KMP224001950 | P24: 2605 | Q24: KMP334001950 | R24: 3740 | S24: KMP115001950 | T24: 1663 | U24: KMP215001950 | V24: 2295 | W24: KMP225001950 | X24: 3110 | Y24: KMP335001950 | Z24: 4495
A25: =A73 -> 2100 | B25: 42 | C25: KMP113002100 | D25: 1157 | E25: KMP213002100 | F25: 1684 | G25: KMP223002100 | H25: 2211 | I25: KMP333002100 | J25: 3137 | K25: KMP114002100 | L25: 1483 | M25: KMP214002100 | N25: 2092 | O25: KMP224002100 | P25: 2806 | Q25: KMP334002100 | R25: 4028 | S25: KMP115002100 | T25: 1791 | U25: KMP215002100 | V25: 2472 | W25: KMP225002100 | X25: 3350 | Y25: KMP335002100 | Z25: 4841
A26: =A74 -> 2250 | B26: 45 | C26: KMP113002250 | D26: 1240 | E26: KMP213002250 | F26: 1805 | G26: KMP223002250 | H26: 2369 | I26: KMP333002250 | J26: 3362 | K26: KMP114002250 | L26: 1589 | M26: KMP214002250 | N26: 2241 | O26: KMP224002250 | P26: 3006 | Q26: KMP334002250 | R26: 4316 | S26: KMP115002250 | T26: 1919 | U26: KMP215002250 | V26: 2648 | W26: KMP225002250 | X26: 3589 | Y26: KMP335002250 | Z26: 5186
A27: =A75 -> 2400 | B27: 48 | C27: KMP113002400 | D27: 1322 | E27: KMP213002400 | F27: 1925 | G27: KMP223002400 | H27: 2527 | I27: KMP333002400 | J27: 3586 | K27: KMP114002400 | L27: 1694 | M27: KMP214002400 | N27: 2390 | O27: KMP224002400 | P27: 3206 | Q27: KMP334002400 | R27: 4603 | S27: KMP115002400 | T27: 2047 | U27: KMP215002400 | V27: 2825 | W27: KMP225002400 | X27: 3828 | Y27: KMP335002400 | Z27: 5532
A28: =A76 -> 2550 | B28: 51 | C28: KMP113002550 | D28: 1405 | E28: KMP213002550 | F28: 2045 | G28: KMP223002550 | H28: 2685 | I28: KMP333002550 | J28: 3810 | K28: KMP114002550 | L28: 1800 | M28: KMP214002550 | N28: 2540 | O28: KMP224002550 | P28: 3407 | Q28: KMP334002550 | R28: 4891 | S28: KMP115002550 | T28: 2175 | U28: KMP215002550 | V28: 3001 | W28: KMP225002550 | X28: 4067 | Y28: KMP335002550 | Z28: 5878
A29: =A77 -> 2700 | B29: 54 | C29: KMP113002700 | D29: 1488 | E29: KMP213002700 | F29: 2165 | G29: KMP223002700 | H29: 2843 | I29: KMP333002700 | J29: 4034 | K29: KMP114002700 | L29: 1906 | M29: KMP214002700 | N29: 2689 | O29: KMP224002700 | P29: 3607 | Q29: KMP334002700 | R29: 5179 | S29: KMP115002700 | T29: 2303 | U29: KMP215002700 | V29: 3178 | W29: KMP225002700 | X29: 4307 | Y29: KMP335002700 | Z29: 6224
A30: =A78 -> 3000 | B30: 60 | C30: KMP113003000 | D30: 1653 | E30: KMP213003000 | F30: 2406 | G30: KMP223003000 | H30: 3159 | I30: KMP333003000 | J30: 4482 | K30: KMP114003000 | L30: 2118 | M30: KMP214003000 | N30: 2988 | O30: KMP224003000 | P30: 4008 | Q30: KMP334003000 | R30: 5754 | S30: KMP115003000 | T30: 2559 | U30: KMP215003000 | V30: 3531 | W30: KMP225003000 | X30: 4785 | Y30: KMP335003000 | Z30: 6915
A33: Hauteur | C33: =C81 -> 600 | K33: =K81 -> 750 | S33: =S81 -> 900
A34: Type | C34: =C82 -> KMP11 | E34: =E82 -> KMP21 | G34: =G82 -> KMP22 | I34: =I82 -> KMP33 | K34: =K82 -> KMP11 | M34: =M82 -> KMP21 | O34: =O82 -> KMP22 | Q34: =Q82 -> KMP33 | S34: =S82 -> KMP11 | U34: =U82 -> KMP21 | W34: =W82 -> KMP22 | Y34: =Y82 -> KMP33
A35: Longueur (mm) | B35: Nombre éléments | C35: Modèle | D35: Puissance (watts) | E35: Modèle | F35: Puissance (watts) | G35: Modèle | H35: Puissance (watts) | I35: Modèle | J35: Puissance (watts) | K35: Modèle | L35: Puissance (watts) | M35: Modèle | N35: Puissance (watts) | O35: Modèle | P35: Puissance (watts) | Q35: Modèle | R35: Puissance (watts) | S35: Modèle | T35: Puissance (watts) | U35: Modèle | V35: Puissance (watts) | W35: Modèle | X35: Puissance (watts) | Y35: Modèle | Z35: Puissance (watts)
A36: =A84 -> 450 | B36: =B84 -> 9 | C36: =C84 -> KMP116000450 | D36: =IF(D84=""," - ",IF($B$6<0.7,D84*POWER($B$8/50,C$80),D84*POWER($B$7/50,C$80))) -> 446 | E36: =E84 -> KMP216000450 | F36: =IF(F84=""," - ",IF($B$6<0.7,F84*POWER($B$8/50,E$80),F84*POWER($B$7/50,E$80))) -> 607 | G36: =G84 -> KMP226000450 | H36: =IF(H84=""," - ",IF($B$6<0.7,H84*POWER($B$8/50,G$80),H84*POWER($B$7/50,G$80))) -> 824 | I36: =I84 -> KMP336000450 | J36: =IF(J84=""," - ",IF($B$6<0.7,J84*POWER($B$8/50,I$80),J84*POWER($B$7/50,I$80))) -> 1195 | K36: =K84 -> KMP117500450 | L36: =IF(L84=""," - ",IF($B$6<0.7,L84*POWER($B$8/50,K$80),L84*POWER($B$7/50,K$80))) -> 534 | M36: =M84 -> KMP217500450 | N36: =IF(N84=""," - ",IF($B$6<0.7,N84*POWER($B$8/50,M$80),N84*POWER($B$7/50,M$80))) -> 718 | O36: =O84 -> KMP227500450 | P36: =IF(P84=""," - ",IF($B$6<0.7,P84*POWER($B$8/50,O$80),P84*POWER($B$7/50,O$80))) -> 968 | Q36: =Q84 -> KMP337500450 | R36: =IF(R84=""," - ",IF($B$6<0.7,R84*POWER($B$8/50,Q$80),R84*POWER($B$7/50,Q$80))) -> 1404 | S36: =S84 -> KMP119000450 | T36: =IF(T84=""," - ",IF($B$6<0.7,T84*POWER($B$8/50,S$80),T84*POWER($B$7/50,S$80))) -> 616 | U36: =U84 -> KMP219000450 | V36: =IF(V84=""," - ",IF($B$6<0.7,V84*POWER($B$8/50,U$80),V84*POWER($B$7/50,U$80))) -> 823 | W36: =W84 -> KMP229000450 | X36: =IF(X84=""," - ",IF($B$6<0.7,X84*POWER($B$8/50,W$80),X84*POWER($B$7/50,W$80))) -> 1092 | Y36: =Y84 -> KMP339000450 | Z36: =IF(Z84=""," - ",IF($B$6<0.7,Z84*POWER($B$8/50,Y$80),Z84*POWER($B$7/50,Y$80))) -> 1580
A37: =A85 -> 600 | B37: 12 | C37: =C85 -> KMP116000600 | D37: 595 | E37: KMP216000600 | F37: 809 | G37: KMP226000600 | H37: 1099 | I37: KMP336000600 | J37: 1594 | K37: KMP117500600 | L37: 712 | M37: KMP217500600 | N37: 957 | O37: KMP227500600 | P37: 1290 | Q37: KMP337500600 | R37: 1871 | S37: KMP119000600 | T37: 821 | U37: KMP219000600 | V37: 1097 | W37: KMP229000600 | X37: 1456 | Y37: KMP339000600 | Z37: 2107
A38: =A86 -> 750 | B38: 15 | C38: KMP116000750 | D38: 744 | E38: KMP216000750 | F38: 1012 | G38: KMP226000750 | H38: 1374 | I38: KMP336000750 | J38: 1992 | K38: KMP117500750 | L38: 890 | M38: KMP217500750 | N38: 1196 | O38: KMP227500750 | P38: 1613 | Q38: KMP337500750 | R38: 2339 | S38: KMP119000750 | T38: 1026 | U38: KMP219000750 | V38: 1372 | W38: KMP229000750 | X38: 1820 | Y38: KMP339000750 | Z38: 2634
A39: =A87 -> 900 | B39: 18 | C39: KMP116000900 | D39: 893 | E39: KMP216000900 | F39: 1214 | G39: KMP226000900 | H39: 1649 | I39: KMP336000900 | J39: 2390 | K39: KMP117500900 | L39: 1068 | M39: KMP217500900 | N39: 1436 | O39: KMP227500900 | P39: 1935 | Q39: KMP337500900 | R39: 2807 | S39: KMP119000900 | T39: 1231 | U39: KMP219000900 | V39: 1646 | W39: KMP229000900 | X39: 2184 | Y39: KMP339000900 | Z39: 3161
A40: =A88 -> 1050 | B40: 21 | C40: KMP116001050 | D40: 1042 | E40: KMP216001050 | F40: 1416 | G40: KMP226001050 | H40: 1924 | I40: KMP336001050 | J40: 2789 | K40: KMP117501050 | L40: 1246 | M40: KMP217501050 | N40: 1675 | O40: KMP227501050 | P40: 2258 | Q40: KMP337501050 | R40: 3275 | S40: KMP119001050 | T40: 1436 | U40: KMP219001050 | V40: 1920 | W40: KMP229001050 | X40: 2548 | Y40: KMP339001050 | Z40: 3688
A41: =A89 -> 1200 | B41: 24 | C41: KMP116001200 | D41: 1190 | E41: KMP216001200 | F41: 1619 | G41: KMP226001200 | H41: 2198 | I41: KMP336001200 | J41: 3187 | K41: KMP117501200 | L41: 1424 | M41: KMP217501200 | N41: 1914 | O41: KMP227501200 | P41: 2580 | Q41: KMP337501200 | R41: 3743 | S41: KMP119001200 | T41: 1642 | U41: KMP219001200 | V41: 2195 | W41: KMP229001200 | X41: 2912 | Y41: KMP339001200 | Z41: 4214
A42: =A90 -> 1350 | B42: 27 | C42: KMP116001350 | D42: 1339 | E42: KMP216001350 | F42: 1821 | G42: KMP226001350 | H42: 2473 | I42: KMP336001350 | J42: 3586 | K42: KMP117501350 | L42: 1602 | M42: KMP217501350 | N42: 2153 | O42: KMP227501350 | P42: 2903 | Q42: KMP337501350 | R42: 4211 | S42: KMP119001350 | T42: 1847 | U42: KMP219001350 | V42: 2469 | W42: KMP229001350 | X42: 3276 | Y42: KMP339001350 | Z42: 4741
A43: =A91 -> 1500 | B43: 30 | C43: KMP116001500 | D43: 1488 | E43: KMP216001500 | F43: 2024 | G43: KMP226001500 | H43: 2748 | I43: KMP336001500 | J43: 3984 | K43: KMP117501500 | L43: 1781 | M43: KMP217501500 | N43: 2393 | O43: KMP227501500 | P43: 3225 | Q43: KMP337501500 | R43: 4679 | S43: KMP119001500 | T43: 2052 | U43: KMP219001500 | V43: 2744 | W43: KMP229001500 | X43: 3641 | Y43: KMP339001500 | Z43: 5268
A44: =A92 -> 1650 | B44: 33 | C44: KMP116001650 | D44: 1637 | E44: KMP216001650 | F44: 2226 | G44: KMP226001650 | H44: 3023 | I44: KMP336001650 | J44: 4382 | K44: KMP117501650 | L44: 1959 | M44: KMP217501650 | N44: 2632 | O44: KMP227501650 | P44: 3548 | Q44: KMP337501650 | R44: 5146 | S44: KMP119001650 | T44: 2257 | U44: KMP219001650 | V44: 3018 | W44: KMP229001650 | X44: 4005 | Y44: KMP339001650 | Z44: 5795
A45: =A93 -> 1800 | B45: 36 | C45: KMP116001800 | D45: 1786 | E45: KMP216001800 | F45: 2428 | G45: KMP226001800 | H45: 3298 | I45: KMP336001800 | J45: 4781 | K45: KMP117501800 | L45: 2137 | M45: KMP217501800 | N45: 2871 | O45: KMP227501800 | P45: 3870 | Q45: KMP337501800 | R45: 5614 | S45: KMP119001800 | T45: 2462 | U45: KMP219001800 | V45: 3292 | W45: KMP229001800 | X45: 4369 | Y45: KMP339001800 | Z45: 6322
A46: =A94 -> 1950 | B46: 39 | C46: KMP116001950 | D46: 1934 | E46: KMP216001950 | F46: 2631 | G46: KMP226001950 | H46: 3572 | I46: KMP336001950 | J46: 5179 | K46: KMP117501950 | L46: 2315 | M46: KMP217501950 | N46: 3110 | O46: KMP227501950 | P46: 4193 | Q46: KMP337501950 | R46: 6082 | S46: KMP119001950 | T46: 2668 | U46: KMP219001950 | V46: 3567 | W46: KMP229001950 | X46: 4733 | Y46: KMP339001950 | Z46: 6848
A47: =A95 -> 2100 | B47: 42 | C47: KMP116002100 | D47: 2083 | E47: KMP216002100 | F47: 2833 | G47: KMP226002100 | H47: 3847 | I47: KMP336002100 | J47: 5578 | K47: KMP117502100 | L47: 2493 | M47: KMP217502100 | N47: 3350 | O47: KMP227502100 | P47: 4515 | Q47: KMP337502100 | R47: 6550 | S47: KMP119002100 | T47: 2873 | U47: KMP219002100 | V47: 3841 | W47: KMP229002100 | X47: 5097 | Y47: KMP339002100 | Z47: 7375
A48: =A96 -> 2250 | B48: 45 | C48: KMP116002250 | D48: 2232 | E48: KMP216002250 | F48: 3035 | G48: KMP226002250 | H48: 4122 | I48: KMP336002250 | J48: 5976 | K48: KMP117502250 | L48: 2671 | M48: KMP217502250 | N48: 3589 | O48: KMP227502250 | P48: 4838 | Q48: KMP337502250 | R48: 7018 | S48: KMP119002250 | T48: 3078 | U48: KMP219002250 | V48: 4115 | W48: KMP229002250 | X48: 5461 | Y48: KMP339002250 | Z48: 7902
A49: =A97 -> 2400 | B49: 48 | C49: KMP116002400 | D49: 2381 | E49: KMP216002400 | F49: 3238 | G49: KMP226002400 | H49: 4397 | I49: KMP336002400 | J49: 6374 | K49: KMP117502400 | L49: 2849 | M49: KMP217502400 | N49: 3828 | O49: KMP227502400 | P49: 5160 | Q49: KMP337502400 | R49: 7486 | S49: KMP119002400 | T49: 3283 | U49: KMP219002400 | V49: 4390 | W49: KMP229002400 | X49: 5825 | Y49: KMP339002400 | Z49: 8429
A50: =A98 -> 2550 | B50: 51 | C50: KMP116002550 | D50: 2530 | E50: KMP216002550 | F50: 3440 | G50: KMP226002550 | H50: 4672 | I50: KMP336002550 | J50: 6773 | K50: KMP117502550 | L50: 3027 | M50: KMP217502550 | N50: 4067 | O50: KMP227502550 | P50: 5483 | Q50: KMP337502550 | R50: 7953 | S50: KMP119002550 | T50: 3488 | U50: KMP219002550 | V50: 4664 | W50: KMP229002550 | X50: 6189 | Y50: KMP339002550 | Z50: 8956
A51: =A99 -> 2700 | B51: 54 | C51: KMP116002700 | D51: 2678 | E51: KMP216002700 | F51: 3642 | G51: KMP226002700 | H51: 4946 | I51: KMP336002700 | J51: 7171 | K51: KMP117502700 | L51: 3205 | M51: KMP217502700 | N51: 4307 | O51: KMP227502700 | P51: 5805 | Q51: KMP337502700 | R51: 8421 | S51: KMP119002700 | T51: 3694 | U51: KMP219002700 | V51: 4938 | W51: KMP229002700 | X51: 6553 | Y51: KMP339002700 | Z51: 9482
A52: =A100 -> 3000 | B52: 60 | C52: KMP116003000 | D52: 2976 | E52: KMP216003000 | F52: 4047 | G52: KMP226003000 | H52: 5496 | I52: KMP336003000 | J52: 7968 | K52: KMP117503000 | L52: 3561 | M52: KMP217503000 | N52: 4785 | O52: KMP227503000 | P52: 6450 | Q52: KMP337503000 | R52: 9357 | S52: KMP119003000 | T52: 4104 | U52: KMP219003000 | V52: 5487 | W52: KMP229003000 | X52: 7281 | Y52: KMP339003000 | Z52: 10536
A56: Tableau de référence
A58: PENTE : | C58: 1.3498 | E58: 1.3668 | G58: 1.3845 | I58: 1.3768 | K58: 1.3451 | M58: 1.362 | O58: 1.3757 | Q58: 1.3651 | S58: 1.3404 | U58: 1.3572 | W58: 1.3669 | Y58: 1.3533
A59: Hauteur | C59: 300 | K59: 400 | S59: 500
A60: Type | C60: KMP11 | E60: KMP21 | G60: KMP22 | I60: KMP33 | K60: KMP11 | M60: KMP21 | O60: KMP22 | Q60: KMP33 | S60: KMP11 | U60: KMP21 | W60: KMP22 | Y60: KMP33
A61: Longueur (mm) | B61: Nombre éléments | C61: Modèle | D61: Watt Dt 50°C | E61: Modèle | F61: Watt Dt 50°C | G61: Modèle | H61: Watt Dt 50°C | I61: Modèle | J61: Watt Dt 50°C | K61: Modèle | L61: Watt Dt 50°C | M61: Modèle | N61: Watt Dt 50°C | O61: Modèle | P61: Watt Dt 50°C | Q61: Modèle | R61: Watt Dt 50°C | S61: Modèle | T61: Watt Dt 50°C | U61: Modèle | V61: Watt Dt 50°C | W61: Modèle | X61: Watt Dt 50°C | Y61: Modèle | Z61: Watt Dt 50°C
A62: 450 | B62: =A62/50 -> 9 | C62: =IF(D62=""," - ",IF(LEN($A62)=3,C$60&$C$59&"0"&$A62,C$60&$C$59&$A62)) -> KMP113000450 | D62: 248 | E62: =IF(F62=""," - ",IF(LEN($A62)=3,E$60&$C$59&"0"&$A62,E$60&$C$59&$A62)) -> KMP213000450 | F62: 361 | G62: =IF(H62=""," - ",IF(LEN($A62)=3,G$60&$C$59&"0"&$A62,G$60&$C$59&$A62)) -> KMP223000450 | H62: 474 | I62: =IF(J62=""," - ",IF(LEN($A62)=3,I$60&$C$59&"0"&$A62,I$60&$C$59&$A62)) -> KMP333000450 | J62: 672 | K62: =IF(L62=""," - ",IF(LEN($A62)=3,K$60&$K$59&"0"&$A62,K$60&$K$59&$A62)) -> KMP114000450 | L62: 318 | M62: =IF(N62=""," - ",IF(LEN($A62)=3,M$60&$K$59&"0"&$A62,M$60&$K$59&$A62)) -> KMP214000450 | N62: 448 | O62: =IF(P62=""," - ",IF(LEN($A62)=3,O$60&$K$59&"0"&$A62,O$60&$K$59&$A62)) -> KMP224000450 | P62: 601 | Q62: =IF(R62=""," - ",IF(LEN($A62)=3,Q$60&$K$59&"0"&$A62,Q$60&$K$59&$A62)) -> KMP334000450 | R62: 863 | S62: =IF(T62=""," - ",IF(LEN($A62)=3,S$60&$S$59&"0"&$A62,S$60&$S$59&$A62)) -> KMP115000450 | T62: 384 | U62: =IF(V62=""," - ",IF(LEN($A62)=3,U$60&$S$59&"0"&$A62,U$60&$S$59&$A62)) -> KMP215000450 | V62: 530 | W62: =IF(X62=""," - ",IF(LEN($A62)=3,W$60&$S$59&"0"&$A62,W$60&$S$59&$A62)) -> KMP225000450 | X62: 718 | Y62: =IF(Z62=""," - ",IF(LEN($A62)=3,Y$60&$S$59&"0"&$A62,Y$60&$S$59&$A62)) -> KMP335000450 | Z62: 1037
A63: 600 | B63: =A63/50 -> 12 | C63: KMP113000600 | D63: 331 | E63: KMP213000600 | F63: 481 | G63: KMP223000600 | H63: 632 | I63: KMP333000600 | J63: 896 | K63: KMP114000600 | L63: 424 | M63: KMP214000600 | N63: 598 | O63: KMP224000600 | P63: 802 | Q63: KMP334000600 | R63: 1151 | S63: KMP115000600 | T63: 512 | U63: KMP215000600 | V63: 706 | W63: KMP225000600 | X63: 957 | Y63: KMP335000600 | Z63: 1383
A64: 750 | B64: 15 | C64: KMP113000750 | D64: 413 | E64: KMP213000750 | F64: 602 | G64: KMP223000750 | H64: 790 | I64: KMP333000750 | J64: 1121 | K64: KMP114000750 | L64: 530 | M64: KMP214000750 | N64: 747 | O64: KMP224000750 | P64: 1002 | Q64: KMP334000750 | R64: 1439 | S64: KMP115000750 | T64: 640 | U64: KMP215000750 | V64: 883 | W64: KMP225000750 | X64: 1196 | Y64: KMP335000750 | Z64: 1729
A65: 900 | B65: 18 | C65: KMP113000900 | D65: 496 | E65: KMP213000900 | F65: 722 | G65: KMP223000900 | H65: 948 | I65: KMP333000900 | J65: 1345 | K65: KMP114000900 | L65: 635 | M65: KMP214000900 | N65: 896 | O65: KMP224000900 | P65: 1202 | Q65: KMP334000900 | R65: 1726 | S65: KMP115000900 | T65: 768 | U65: KMP215000900 | V65: 1059 | W65: KMP225000900 | X65: 1436 | Y65: KMP335000900 | Z65: 2075
A66: 1050 | B66: 21 | C66: KMP113001050 | D66: 579 | E66: KMP213001050 | F66: 842 | G66: KMP223001050 | H66: 1106 | I66: KMP333001050 | J66: 1569 | K66: KMP114001050 | L66: 741 | M66: KMP214001050 | N66: 1046 | O66: KMP224001050 | P66: 1403 | Q66: KMP334001050 | R66: 2014 | S66: KMP115001050 | T66: 896 | U66: KMP215001050 | V66: 1236 | W66: KMP225001050 | X66: 1675 | Y66: KMP335001050 | Z66: 2420
A67: 1200 | B67: 24 | C67: KMP113001200 | D67: 661 | E67: KMP213001200 | F67: 962 | G67: KMP223001200 | H67: 1264 | I67: KMP333001200 | J67: 1793 | K67: KMP114001200 | L67: 847 | M67: KMP214001200 | N67: 1195 | O67: KMP224001200 | P67: 1603 | Q67: KMP334001200 | R67: 2302 | S67: KMP115001200 | T67: 1024 | U67: KMP215001200 | V67: 1412 | W67: KMP225001200 | X67: 1914 | Y67: KMP335001200 | Z67: 2766
A68: 1350 | B68: 27 | C68: KMP113001350 | D68: 744 | E68: KMP213001350 | F68: 1083 | G68: KMP223001350 | H68: 1422 | I68: KMP333001350 | J68: 2017 | K68: KMP114001350 | L68: 953 | M68: KMP214001350 | N68: 1345 | O68: KMP224001350 | P68: 1804 | Q68: KMP334001350 | R68: 2589 | S68: KMP115001350 | T68: 1152 | U68: KMP215001350 | V68: 1589 | W68: KMP225001350 | X68: 2153 | Y68: KMP335001350 | Z68: 3112
A69: 1500 | B69: 30 | C69: KMP113001500 | D69: 827 | E69: KMP213001500 | F69: 1203 | G69: KMP223001500 | H69: 1580 | I69: KMP333001500 | J69: 2241 | K69: KMP114001500 | L69: 1059 | M69: KMP214001500 | N69: 1494 | O69: KMP224001500 | P69: 2004 | Q69: KMP334001500 | R69: 2877 | S69: KMP115001500 | T69: 1280 | U69: KMP215001500 | V69: 1766 | W69: KMP225001500 | X69: 2393 | Y69: KMP335001500 | Z69: 3458
A70: 1650 | B70: 33 | C70: KMP113001650 | D70: 909 | E70: KMP213001650 | F70: 1323 | G70: KMP223001650 | H70: 1737 | I70: KMP333001650 | J70: 2465 | K70: KMP114001650 | L70: 1165 | M70: KMP214001650 | N70: 1643 | O70: KMP224001650 | P70: 2204 | Q70: KMP334001650 | R70: 3165 | S70: KMP115001650 | T70: 1407 | U70: KMP215001650 | V70: 1942 | W70: KMP225001650 | X70: 2632 | Y70: KMP335001650 | Z70: 3803
A71: 1800 | B71: 36 | C71: KMP113001800 | D71: 992 | E71: KMP213001800 | F71: 1444 | G71: KMP223001800 | H71: 1895 | I71: KMP333001800 | J71: 2689 | K71: KMP114001800 | L71: 1271 | M71: KMP214001800 | N71: 1793 | O71: KMP224001800 | P71: 2405 | Q71: KMP334001800 | R71: 3452 | S71: KMP115001800 | T71: 1535 | U71: KMP215001800 | V71: 2119 | W71: KMP225001800 | X71: 2871 | Y71: KMP335001800 | Z71: 4149
A72: 1950 | B72: 39 | C72: KMP113001950 | D72: 1074 | E72: KMP213001950 | F72: 1564 | G72: KMP223001950 | H72: 2053 | I72: KMP333001950 | J72: 2913 | K72: KMP114001950 | L72: 1377 | M72: KMP214001950 | N72: 1942 | O72: KMP224001950 | P72: 2605 | Q72: KMP334001950 | R72: 3740 | S72: KMP115001950 | T72: 1663 | U72: KMP215001950 | V72: 2295 | W72: KMP225001950 | X72: 3110 | Y72: KMP335001950 | Z72: 4495
A73: 2100 | B73: 42 | C73: KMP113002100 | D73: 1157 | E73: KMP213002100 | F73: 1684 | G73: KMP223002100 | H73: 2211 | I73: KMP333002100 | J73: 3137 | K73: KMP114002100 | L73: 1483 | M73: KMP214002100 | N73: 2092 | O73: KMP224002100 | P73: 2806 | Q73: KMP334002100 | R73: 4028 | S73: KMP115002100 | T73: 1791 | U73: KMP215002100 | V73: 2472 | W73: KMP225002100 | X73: 3350 | Y73: KMP335002100 | Z73: 4841
A74: 2250 | B74: 45 | C74: KMP113002250 | D74: 1240 | E74: KMP213002250 | F74: 1805 | G74: KMP223002250 | H74: 2369 | I74: KMP333002250 | J74: 3362 | K74: KMP114002250 | L74: 1589 | M74: KMP214002250 | N74: 2241 | O74: KMP224002250 | P74: 3006 | Q74: KMP334002250 | R74: 4316 | S74: KMP115002250 | T74: 1919 | U74: KMP215002250 | V74: 2648 | W74: KMP225002250 | X74: 3589 | Y74: KMP335002250 | Z74: 5186
A75: 2400 | B75: 48 | C75: KMP113002400 | D75: 1322 | E75: KMP213002400 | F75: 1925 | G75: KMP223002400 | H75: 2527 | I75: KMP333002400 | J75: 3586 | K75: KMP114002400 | L75: 1694 | M75: KMP214002400 | N75: 2390 | O75: KMP224002400 | P75: 3206 | Q75: KMP334002400 | R75: 4603 | S75: KMP115002400 | T75: 2047 | U75: KMP215002400 | V75: 2825 | W75: KMP225002400 | X75: 3828 | Y75: KMP335002400 | Z75: 5532
A76: 2550 | B76: 51 | C76: KMP113002550 | D76: 1405 | E76: KMP213002550 | F76: 2045 | G76: KMP223002550 | H76: 2685 | I76: KMP333002550 | J76: 3810 | K76: KMP114002550 | L76: 1800 | M76: KMP214002550 | N76: 2540 | O76: KMP224002550 | P76: 3407 | Q76: KMP334002550 | R76: 4891 | S76: KMP115002550 | T76: 2175 | U76: KMP215002550 | V76: 3001 | W76: KMP225002550 | X76: 4067 | Y76: KMP335002550 | Z76: 5878
A77: 2700 | B77: 54 | C77: KMP113002700 | D77: 1488 | E77: KMP213002700 | F77: 2165 | G77: KMP223002700 | H77: 2843 | I77: KMP333002700 | J77: 4034 | K77: KMP114002700 | L77: 1906 | M77: KMP214002700 | N77: 2689 | O77: KMP224002700 | P77: 3607 | Q77: KMP334002700 | R77: 5179 | S77: KMP115002700 | T77: 2303 | U77: KMP215002700 | V77: 3178 | W77: KMP225002700 | X77: 4307 | Y77: KMP335002700 | Z77: 6224
A78: 3000 | B78: 60 | C78: KMP113003000 | D78: 1653 | E78: KMP213003000 | F78: 2406 | G78: KMP223003000 | H78: 3159 | I78: KMP333003000 | J78: 4482 | K78: KMP114003000 | L78: 2118 | M78: KMP214003000 | N78: 2988 | O78: KMP224003000 | P78: 4008 | Q78: KMP334003000 | R78: 5754 | S78: KMP115003000 | T78: 2559 | U78: KMP215003000 | V78: 3531 | W78: KMP225003000 | X78: 4785 | Y78: KMP335003000 | Z78: 6915
A80: PENTE : | C80: 1.3357 | E80: 1.3523 | G80: 1.3581 | I80: 1.3415 | K80: 1.3287 | M80: 1.3451 | O80: 1.3449 | Q80: 1.3238 | S80: 1.3217 | U80: 1.3379 | W80: 1.3316 | Y80: 1.3061 | AE80: 1.354
A81: Hauteur | C81: 600 | K81: 750 | S81: 900
A82: Type | C82: KMP11 | E82: KMP21 | G82: KMP22 | I82: KMP33 | K82: KMP11 | M82: KMP21 | O82: KMP22 | Q82: KMP33 | S82: KMP11 | U82: KMP21 | W82: KMP22 | Y82: KMP33
A83: Longueur (mm) | B83: Nombre éléments | C83: Modèle | D83: Watt Dt 50°C | E83: Modèle | F83: Watt Dt 50°C | G83: Modèle | H83: Watt Dt 50°C | I83: Modèle | J83: Watt Dt 50°C | K83: Modèle | L83: Watt Dt 50°C | M83: Modèle | N83: Watt Dt 50°C | O83: Modèle | P83: Watt Dt 50°C | Q83: Modèle | R83: Watt Dt 50°C | S83: Modèle | T83: Watt Dt 50°C | U83: Modèle | V83: Watt Dt 50°C | W83: Modèle | X83: Watt Dt 50°C | Y83: Modèle | Z83: Watt Dt 50°C
A84: 450 | B84: =A84/50 -> 9 | C84: =IF(D84=""," - ",IF(LEN($A84)=3,C$82&$C$81&"0"&$A84,C$82&$C$81&$A84)) -> KMP116000450 | D84: 446 | E84: =IF(F84=""," - ",IF(LEN($A84)=3,E$82&$C$81&"0"&$A84,E$82&$C$81&$A84)) -> KMP216000450 | F84: 607 | G84: =IF(H84=""," - ",IF(LEN($A84)=3,G$82&$C$81&"0"&$A84,G$82&$C$81&$A84)) -> KMP226000450 | H84: 824 | I84: =IF(J84=""," - ",IF(LEN($A84)=3,I$82&$C$81&"0"&$A84,I$82&$C$81&$A84)) -> KMP336000450 | J84: 1195 | K84: =IF(L84=""," - ",IF(LEN($A84)=3,K$82&$K$81&"0"&$A84,K$82&$K$81&$A84)) -> KMP117500450 | L84: 534 | M84: =IF(N84=""," - ",IF(LEN($A84)=3,M$82&$K$81&"0"&$A84,M$82&$K$81&$A84)) -> KMP217500450 | N84: 718 | O84: =IF(P84=""," - ",IF(LEN($A84)=3,O$82&$K$81&"0"&$A84,O$82&$K$81&$A84)) -> KMP227500450 | P84: 968 | Q84: =IF(R84=""," - ",IF(LEN($A84)=3,Q$82&$K$81&"0"&$A84,Q$82&$K$81&$A84)) -> KMP337500450 | R84: 1404 | S84: =IF(T84=""," - ",IF(LEN($A84)=3,S$82&$S$81&"0"&$A84,S$82&$S$81&$A84)) -> KMP119000450 | T84: 616 | U84: =IF(V84=""," - ",IF(LEN($A84)=3,U$82&$S$81&"0"&$A84,U$82&$S$81&$A84)) -> KMP219000450 | V84: 823 | W84: =IF(X84=""," - ",IF(LEN($A84)=3,W$82&$S$81&"0"&$A84,W$82&$S$81&$A84)) -> KMP229000450 | X84: 1092 | Y84: =IF(Z84=""," - ",IF(LEN($A84)=3,Y$82&$S$81&"0"&$A84,Y$82&$S$81&$A84)) -> KMP339000450 | Z84: 1580
A85: 600 | B85: =A85/50 -> 12 | C85: KMP116000600 | D85: 595 | E85: KMP216000600 | F85: 809 | G85: KMP226000600 | H85: 1099 | I85: KMP336000600 | J85: 1594 | K85: KMP117500600 | L85: 712 | M85: KMP217500600 | N85: 957 | O85: KMP227500600 | P85: 1290 | Q85: KMP337500600 | R85: 1871 | S85: KMP119000600 | T85: 821 | U85: KMP219000600 | V85: 1097 | W85: KMP229000600 | X85: 1456 | Y85: KMP339000600 | Z85: 2107
A86: 750 | B86: 15 | C86: KMP116000750 | D86: 744 | E86: KMP216000750 | F86: 1012 | G86: KMP226000750 | H86: 1374 | I86: KMP336000750 | J86: 1992 | K86: KMP117500750 | L86: 890 | M86: KMP217500750 | N86: 1196 | O86: KMP227500750 | P86: 1613 | Q86: KMP337500750 | R86: 2339 | S86: KMP119000750 | T86: 1026 | U86: KMP219000750 | V86: 1372 | W86: KMP229000750 | X86: 1820 | Y86: KMP339000750 | Z86: 2634
A87: 900 | B87: 18 | C87: KMP116000900 | D87: 893 | E87: KMP216000900 | F87: 1214 | G87: KMP226000900 | H87: 1649 | I87: KMP336000900 | J87: 2390 | K87: KMP117500900 | L87: 1068 | M87: KMP217500900 | N87: 1436 | O87: KMP227500900 | P87: 1935 | Q87: KMP337500900 | R87: 2807 | S87: KMP119000900 | T87: 1231 | U87: KMP219000900 | V87: 1646 | W87: KMP229000900 | X87: 2184 | Y87: KMP339000900 | Z87: 3161
A88: 1050 | B88: 21 | C88: KMP116001050 | D88: 1042 | E88: KMP216001050 | F88: 1416 | G88: KMP226001050 | H88: 1924 | I88: KMP336001050 | J88: 2789 | K88: KMP117501050 | L88: 1246 | M88: KMP217501050 | N88: 1675 | O88: KMP227501050 | P88: 2258 | Q88: KMP337501050 | R88: 3275 | S88: KMP119001050 | T88: 1436 | U88: KMP219001050 | V88: 1920 | W88: KMP229001050 | X88: 2548 | Y88: KMP339001050 | Z88: 3688
A89: 1200 | B89: 24 | C89: KMP116001200 | D89: 1190 | E89: KMP216001200 | F89: 1619 | G89: KMP226001200 | H89: 2198 | I89: KMP336001200 | J89: 3187 | K89: KMP117501200 | L89: 1424 | M89: KMP217501200 | N89: 1914 | O89: KMP227501200 | P89: 2580 | Q89: KMP337501200 | R89: 3743 | S89: KMP119001200 | T89: 1642 | U89: KMP219001200 | V89: 2195 | W89: KMP229001200 | X89: 2912 | Y89: KMP339001200 | Z89: 4214
A90: 1350 | B90: 27 | C90: KMP116001350 | D90: 1339 | E90: KMP216001350 | F90: 1821 | G90: KMP226001350 | H90: 2473 | I90: KMP336001350 | J90: 3586 | K90: KMP117501350 | L90: 1602 | M90: KMP217501350 | N90: 2153 | O90: KMP227501350 | P90: 2903 | Q90: KMP337501350 | R90: 4211 | S90: KMP119001350 | T90: 1847 | U90: KMP219001350 | V90: 2469 | W90: KMP229001350 | X90: 3276 | Y90: KMP339001350 | Z90: 4741
A91: 1500 | B91: 30 | C91: KMP116001500 | D91: 1488 | E91: KMP216001500 | F91: 2024 | G91: KMP226001500 | H91: 2748 | I91: KMP336001500 | J91: 3984 | K91: KMP117501500 | L91: 1781 | M91: KMP217501500 | N91: 2393 | O91: KMP227501500 | P91: 3225 | Q91: KMP337501500 | R91: 4679 | S91: KMP119001500 | T91: 2052 | U91: KMP219001500 | V91: 2744 | W91: KMP229001500 | X91: 3641 | Y91: KMP339001500 | Z91: 5268
A92: 1650 | B92: 33 | C92: KMP116001650 | D92: 1637 | E92: KMP216001650 | F92: 2226 | G92: KMP226001650 | H92: 3023 | I92: KMP336001650 | J92: 4382 | K92: KMP117501650 | L92: 1959 | M92: KMP217501650 | N92: 2632 | O92: KMP227501650 | P92: 3548 | Q92: KMP337501650 | R92: 5146 | S92: KMP119001650 | T92: 2257 | U92: KMP219001650 | V92: 3018 | W92: KMP229001650 | X92: 4005 | Y92: KMP339001650 | Z92: 5795
A93: 1800 | B93: 36 | C93: KMP116001800 | D93: 1786 | E93: KMP216001800 | F93: 2428 | G93: KMP226001800 | H93: 3298 | I93: KMP336001800 | J93: 4781 | K93: KMP117501800 | L93: 2137 | M93: KMP217501800 | N93: 2871 | O93: KMP227501800 | P93: 3870 | Q93: KMP337501800 | R93: 5614 | S93: KMP119001800 | T93: 2462 | U93: KMP219001800 | V93: 3292 | W93: KMP229001800 | X93: 4369 | Y93: KMP339001800 | Z93: 6322
A94: 1950 | B94: 39 | C94: KMP116001950 | D94: 1934 | E94: KMP216001950 | F94: 2631 | G94: KMP226001950 | H94: 3572 | I94: KMP336001950 | J94: 5179 | K94: KMP117501950 | L94: 2315 | M94: KMP217501950 | N94: 3110 | O94: KMP227501950 | P94: 4193 | Q94: KMP337501950 | R94: 6082 | S94: KMP119001950 | T94: 2668 | U94: KMP219001950 | V94: 3567 | W94: KMP229001950 | X94: 4733 | Y94: KMP339001950 | Z94: 6848
A95: 2100 | B95: 42 | C95: KMP116002100 | D95: 2083 | E95: KMP216002100 | F95: 2833 | G95: KMP226002100 | H95: 3847 | I95: KMP336002100 | J95: 5578 | K95: KMP117502100 | L95: 2493 | M95: KMP217502100 | N95: 3350 | O95: KMP227502100 | P95: 4515 | Q95: KMP337502100 | R95: 6550 | S95: KMP119002100 | T95: 2873 | U95: KMP219002100 | V95: 3841 | W95: KMP229002100 | X95: 5097 | Y95: KMP339002100 | Z95: 7375
A96: 2250 | B96: 45 | C96: KMP116002250 | D96: 2232 | E96: KMP216002250 | F96: 3035 | G96: KMP226002250 | H96: 4122 | I96: KMP336002250 | J96: 5976 | K96: KMP117502250 | L96: 2671 | M96: KMP217502250 | N96: 3589 | O96: KMP227502250 | P96: 4838 | Q96: KMP337502250 | R96: 7018 | S96: KMP119002250 | T96: 3078 | U96: KMP219002250 | V96: 4115 | W96: KMP229002250 | X96: 5461 | Y96: KMP339002250 | Z96: 7902
A97: 2400 | B97: 48 | C97: KMP116002400 | D97: 2381 | E97: KMP216002400 | F97: 3238 | G97: KMP226002400 | H97: 4397 | I97: KMP336002400 | J97: 6374 | K97: KMP117502400 | L97: 2849 | M97: KMP217502400 | N97: 3828 | O97: KMP227502400 | P97: 5160 | Q97: KMP337502400 | R97: 7486 | S97: KMP119002400 | T97: 3283 | U97: KMP219002400 | V97: 4390 | W97: KMP229002400 | X97: 5825 | Y97: KMP339002400 | Z97: 8429
A98: 2550 | B98: 51 | C98: KMP116002550 | D98: 2530 | E98: KMP216002550 | F98: 3440 | G98: KMP226002550 | H98: 4672 | I98: KMP336002550 | J98: 6773 | K98: KMP117502550 | L98: 3027 | M98: KMP217502550 | N98: 4067 | O98: KMP227502550 | P98: 5483 | Q98: KMP337502550 | R98: 7953 | S98: KMP119002550 | T98: 3488 | U98: KMP219002550 | V98: 4664 | W98: KMP229002550 | X98: 6189 | Y98: KMP339002550 | Z98: 8956
A99: 2700 | B99: 54 | C99: KMP116002700 | D99: 2678 | E99: KMP216002700 | F99: 3642 | G99: KMP226002700 | H99: 4946 | I99: KMP336002700 | J99: 7171 | K99: KMP117502700 | L99: 3205 | M99: KMP217502700 | N99: 4307 | O99: KMP227502700 | P99: 5805 | Q99: KMP337502700 | R99: 8421 | S99: KMP119002700 | T99: 3694 | U99: KMP219002700 | V99: 4938 | W99: KMP229002700 | X99: 6553 | Y99: KMP339002700 | Z99: 9482
A100: 3000 | B100: 60 | C100: KMP116003000 | D100: 2976 | E100: KMP216003000 | F100: 4047 | G100: KMP226003000 | H100: 5496 | I100: KMP336003000 | J100: 7968 | K100: KMP117503000 | L100: 3561 | M100: KMP217503000 | N100: 4785 | O100: KMP227503000 | P100: 6450 | Q100: KMP337503000 | R100: 9357 | S100: KMP119003000 | T100: 4104 | U100: KMP219003000 | V100: 5487 | W100: KMP229003000 | X100: 7281 | Y100: KMP339003000 | Z100: 10536

Sheet E-FLOW
A1: Programme de calcul de la puissance thermique: E-FLOW
A3: Te | B3: 75 | C3: <= Entrez la température à l'entrée en C°
A4: Ts | B4: 65 | C4: <= Entrez la température à la sortie en C°
A5: Ti | B5: 20 | C5: <= Entrez la température ambiante en C°
A6: Rapport | B6: =(B4-B5)/(B3-B5) -> 0.8181818182
A7: Delta T | B7: =((B3+B4)/2)-B5 -> 50
A8: Delta T2 | B8: =(B3-B4)/LN((B3-B5)/(B4-B5)) -> 49.83288655 | C8: Si Rapport < 0,7
A11: Hauteur | C11: =C59 -> 300 | K11: =K59 -> 400 | S11: =S59 -> 500
A12: Type | C12: =C60 -> EIN11 | E12: =E60 -> EIN21 | G12: =G60 -> EIN22 | I12: =I60 -> EIN33 | K12: =K60 -> EIN11 | M12: =M60 -> EIN21 | O12: =O60 -> EIN22 | Q12: =Q60 -> EIN33 | S12: =S60 -> EIN11 | U12: =U60 -> EIN21 | W12: =W60 -> EIN22 | Y12: =Y60 -> EIN33
A13: Longueur (mm) | B13: Nombre éléments | C13: Modèle | D13: Puissance (watts) | E13: Modèle | F13: Puissance (watts) | G13: Modèle | H13: Puissance (watts) | I13: Modèle | J13: Puissance (watts) | K13: Modèle | L13: Puissance (watts) | M13: Modèle | N13: Puissance (watts) | O13: Modèle | P13: Puissance (watts) | Q13: Modèle | R13: Puissance (watts) | S13: Modèle | T13: Puissance (watts) | U13: Modèle | V13: Puissance (watts) | W13: Modèle | X13: Puissance (watts) | Y13: Modèle | Z13: Puissance (watts)
A14: =A62 -> 450 | B14: =B62 -> 9 | C14: =C62 -> EIN113000450 | D14: =IF(D62=""," - ",IF($B$6<0.7,D62*POWER($B$8/50,C$58),D62*POWER($B$7/50,C$58))) -> 248 | E14: =E62 -> EIN213000450 | F14: =IF(F62=""," - ",IF($B$6<0.7,F62*POWER($B$8/50,E$58),F62*POWER($B$7/50,E$58))) -> 361 | G14: =G62 -> EIN223000450 | H14: =IF(H62=""," - ",IF($B$6<0.7,H62*POWER($B$8/50,G$58),H62*POWER($B$7/50,G$58))) -> 474 | I14: =I62 -> EIN333000450 | J14: =IF(J62=""," - ",IF($B$6<0.7,J62*POWER($B$8/50,I$58),J62*POWER($B$7/50,I$58))) -> 672 | K14: =K62 -> EIN114000450 | L14: =IF(L62=""," - ",IF($B$6<0.7,L62*POWER($B$8/50,K$58),L62*POWER($B$7/50,K$58))) -> 318 | M14: =M62 -> EIN214000450 | N14: =IF(N62=""," - ",IF($B$6<0.7,N62*POWER($B$8/50,M$58),N62*POWER($B$7/50,M$58))) -> 448 | O14: =O62 -> EIN224000450 | P14: =IF(P62=""," - ",IF($B$6<0.7,P62*POWER($B$8/50,O$58),P62*POWER($B$7/50,O$58))) -> 601 | Q14: =Q62 -> EIN334000450 | R14: =IF(R62=""," - ",IF($B$6<0.7,R62*POWER($B$8/50,Q$58),R62*POWER($B$7/50,Q$58))) -> 863 | S14: =S62 -> EIN115000450 | T14: =IF(T62=""," - ",IF($B$6<0.7,T62*POWER($B$8/50,S$58),T62*POWER($B$7/50,S$58))) -> 384 | U14: =U62 -> EIN215000450 | V14: =IF(V62=""," - ",IF($B$6<0.7,V62*POWER($B$8/50,U$58),V62*POWER($B$7/50,U$58))) -> 530 | W14: =W62 -> EIN225000450 | X14: =IF(X62=""," - ",IF($B$6<0.7,X62*POWER($B$8/50,W$58),X62*POWER($B$7/50,W$58))) -> 718 | Y14: =Y62 -> EIN335000450 | Z14: =IF(Z62=""," - ",IF($B$6<0.7,Z62*POWER($B$8/50,Y$58),Z62*POWER($B$7/50,Y$58))) -> 1037 | AN14: ,
A15: =A63 -> 600 | B15: 12 | C15: EIN113000600 | D15: =IF(D63=""," - ",IF($B$6<0.7,D63*POWER($B$8/50,C$58),D63*POWER($B$7/50,C$58))) -> 331 | E15: =E63 -> EIN213000600 | F15: =IF(F63=""," - ",IF($B$6<0.7,F63*POWER($B$8/50,E$58),F63*POWER($B$7/50,E$58))) -> 481 | G15: =G63 -> EIN223000600 | H15: =IF(H63=""," - ",IF($B$6<0.7,H63*POWER($B$8/50,G$58),H63*POWER($B$7/50,G$58))) -> 632 | I15: =I63 -> EIN333000600 | J15: =IF(J63=""," - ",IF($B$6<0.7,J63*POWER($B$8/50,I$58),J63*POWER($B$7/50,I$58))) -> 896 | K15: =K63 -> EIN114000600 | L15: =IF(L63=""," - ",IF($B$6<0.7,L63*POWER($B$8/50,K$58),L63*POWER($B$7/50,K$58))) -> 424 | M15: =M63 -> EIN214000600 | N15: =IF(N63=""," - ",IF($B$6<0.7,N63*POWER($B$8/50,M$58),N63*POWER($B$7/50,M$58))) -> 598 | O15: =O63 -> EIN224000600 | P15: =IF(P63=""," - ",IF($B$6<0.7,P63*POWER($B$8/50,O$58),P63*POWER($B$7/50,O$58))) -> 802 | Q15: =Q63 -> EIN334000600 | R15: =IF(R63=""," - ",IF($B$6<0.7,R63*POWER($B$8/50,Q$58),R63*POWER($B$7/50,Q$58))) -> 1151 | S15: =S63 -> EIN115000600 | T15: =IF(T63=""," - ",IF($B$6<0.7,T63*POWER($B$8/50,S$58),T63*POWER($B$7/50,S$58))) -> 512 | U15: =U63 -> EIN215000600 | V15: =IF(V63=""," - ",IF($B$6<0.7,V63*POWER($B$8/50,U$58),V63*POWER($B$7/50,U$58))) -> 706 | W15: =W63 -> EIN225000600 | X15: =IF(X63=""," - ",IF($B$6<0.7,X63*POWER($B$8/50,W$58),X63*POWER($B$7/50,W$58))) -> 957 | Y15: =Y63 -> EIN335000600 | Z15: =IF(Z63=""," - ",IF($B$6<0.7,Z63*POWER($B$8/50,Y$58),Z63*POWER($B$7/50,Y$58))) -> 1383
A16: 750 | B16: 15 | C16: EIN113000750 | D16: 413 | E16: EIN213000750 | F16: 602 | G16: EIN223000750 | H16: 790 | I16: EIN333000750 | J16: 1121 | K16: EIN114000750 | L16: 530 | M16: EIN214000750 | N16: 747 | O16: EIN224000750 | P16: 1002 | Q16: EIN334000750 | R16: 1439 | S16: EIN115000750 | T16: 640 | U16: EIN215000750 | V16: 883 | W16: EIN225000750 | X16: 1196 | Y16: EIN335000750 | Z16: 1729
A17: 900 | B17: 18 | C17: EIN113000900 | D17: 496 | E17: EIN213000900 | F17: 722 | G17: EIN223000900 | H17: 948 | I17: EIN333000900 | J17: 1345 | K17: EIN114000900 | L17: 635 | M17: EIN214000900 | N17: 896 | O17: EIN224000900 | P17: 1202 | Q17: EIN334000900 | R17: 1726 | S17: EIN115000900 | T17: 768 | U17: EIN215000900 | V17: 1059 | W17: EIN225000900 | X17: 1436 | Y17: EIN335000900 | Z17: 2075
A18: 1050 | B18: 21 | C18: EIN113001050 | D18: 579 | E18: EIN213001050 | F18: 842 | G18: EIN223001050 | H18: 1106 | I18: EIN333001050 | J18: 1569 | K18: EIN114001050 | L18: 741 | M18: EIN214001050 | N18: 1046 | O18: EIN224001050 | P18: 1403 | Q18: EIN334001050 | R18: 2014 | S18: EIN115001050 | T18: 896 | U18: EIN215001050 | V18: 1236 | W18: EIN225001050 | X18: 1675 | Y18: EIN335001050 | Z18: 2420
A19: 1200 | B19: 24 | C19: EIN113001200 | D19: 661 | E19: EIN213001200 | F19: 962 | G19: EIN223001200 | H19: 1264 | I19: EIN333001200 | J19: 1793 | K19: EIN114001200 | L19: 847 | M19: EIN214001200 | N19: 1195 | O19: EIN224001200 | P19: 1603 | Q19: EIN334001200 | R19: 2302 | S19: EIN115001200 | T19: 1024 | U19: EIN215001200 | V19: 1412 | W19: EIN225001200 | X19: 1914 | Y19: EIN335001200 | Z19: 2766
A20: 1350 | B20: 27 | C20: EIN113001350 | D20: 744 | E20: EIN213001350 | F20: 1083 | G20: EIN223001350 | H20: 1422 | I20: EIN333001350 | J20: 2017 | K20: EIN114001350 | L20: 953 | M20: EIN214001350 | N20: 1345 | O20: EIN224001350 | P20: 1804 | Q20: EIN334001350 | R20: 2589 | S20: EIN115001350 | T20: 1152 | U20: EIN215001350 | V20: 1589 | W20: EIN225001350 | X20: 2153 | Y20: EIN335001350 | Z20: 3112
A21: 1500 | B21: 30 | C21: EIN113001500 | D21: 827 | E21: EIN213001500 | F21: 1203 | G21: EIN223001500 | H21: 1580 | I21: EIN333001500 | J21: 2241 | K21: EIN114001500 | L21: 1059 | M21: EIN214001500 | N21: 1494 | O21: EIN224001500 | P21: 2004 | Q21: EIN334001500 | R21: 2877 | S21: EIN115001500 | T21: 1280 | U21: EIN215001500 | V21: 1766 | W21: EIN225001500 | X21: 2393 | Y21: EIN335001500 | Z21: 3458
A22: 1650 | B22: 33 | C22: EIN113001650 | D22: 909 | E22: EIN213001650 | F22: 1323 | G22: EIN223001650 | H22: 1737 | I22: EIN333001650 | J22: 2465 | K22: EIN114001650 | L22: 1165 | M22: EIN214001650 | N22: 1643 | O22: EIN224001650 | P22: 2204 | Q22: EIN334001650 | R22: 3165 | S22: EIN115001650 | T22: 1407 | U22: EIN215001650 | V22: 1942 | W22: EIN225001650 | X22: 2632 | Y22: EIN335001650 | Z22: 3803
A23: 1800 | B23: 36 | C23: EIN113001800 | D23: 992 | E23: EIN213001800 | F23: 1444 | G23: EIN223001800 | H23: 1895 | I23: EIN333001800 | J23: 2689 | K23: EIN114001800 | L23: 1271 | M23: EIN214001800 | N23: 1793 | O23: EIN224001800 | P23: 2405 | Q23: EIN334001800 | R23: 3452 | S23: EIN115001800 | T23: 1535 | U23: EIN215001800 | V23: 2119 | W23: EIN225001800 | X23: 2871 | Y23: EIN335001800 | Z23: 4149
A24: 1950 | B24: 39 | C24: - | D24: - | E24: EIN213001950 | F24: 1564 | G24: EIN223001950 | H24: 2053 | I24: EIN333001950 | J24: 2913 | K24: - | L24: - | M24: EIN214001950 | N24: 1942 | O24: EIN224001950 | P24: 2605 | Q24: EIN334001950 | R24: 3740 | S24: - | T24: - | U24: EIN215001950 | V24: 2295 | W24: EIN225001950 | X24: 3110 | Y24: EIN335001950 | Z24: 4495
A25: 2100 | B25: 42 | C25: - | D25: - | E25: EIN213002100 | F25: 1684 | G25: EIN223002100 | H25: 2211 | I25: EIN333002100 | J25: 3137 | K25: - | L25: - | M25: EIN214002100 | N25: 2092 | O25: EIN224002100 | P25: 2806 | Q25: EIN334002100 | R25: 4028 | S25: - | T25: - | U25: EIN215002100 | V25: 2472 | W25: EIN225002100 | X25: 3350 | Y25: EIN335002100 | Z25: 4841
A26: 2250 | B26: 45 | C26: - | D26: - | E26: EIN213002250 | F26: 1805 | G26: EIN223002250 | H26: 2369 | I26: EIN333002250 | J26: 3362 | K26: - | L26: - | M26: EIN214002250 | N26: 2241 | O26: EIN224002250 | P26: 3006 | Q26: EIN334002250 | R26: 4316 | S26: - | T26: - | U26: EIN215002250 | V26: 2648 | W26: EIN225002250 | X26: 3589 | Y26: EIN335002250 | Z26: 5186
A27: 2400 | B27: 48 | C27: - | D27: - | E27: EIN213002400 | F27: 1925 | G27: EIN223002400 | H27: 2527 | I27: EIN333002400 | J27: 3586 | K27: - | L27: - | M27: EIN214002400 | N27: 2390 | O27: EIN224002400 | P27: 3206 | Q27: EIN334002400 | R27: 4603 | S27: - | T27: - | U27: EIN215002400 | V27: 2825 | W27: EIN225002400 | X27: 3828 | Y27: EIN335002400 | Z27: 5532
A28: 2550 | B28: 51 | C28: - | D28: - | E28: EIN213002550 | F28: 2045 | G28: EIN223002550 | H28: 2685 | I28: EIN333002550 | J28: 3810 | K28: - | L28: - | M28: EIN214002550 | N28: 2540 | O28: EIN224002550 | P28: 3407 | Q28: EIN334002550 | R28: 4891 | S28: - | T28: - | U28: EIN215002550 | V28: 3001 | W28: EIN225002550 | X28: 4067 | Y28: EIN335002550 | Z28: 5878
A29: 2700 | B29: 54 | C29: - | D29: - | E29: EIN213002700 | F29: 2165 | G29: EIN223002700 | H29: 2843 | I29: EIN333002700 | J29: 4034 | K29: - | L29: - | M29: EIN214002700 | N29: 2689 | O29: EIN224002700 | P29: 3607 | Q29: EIN334002700 | R29: 5179 | S29: - | T29: - | U29: EIN215002700 | V29: 3178 | W29: EIN225002700 | X29: 4307 | Y29: EIN335002700 | Z29: 6224
A30: 3000 | B30: 60 | C30: - | D30: - | E30: EIN213003000 | F30: 2406 | G30: EIN223003000 | H30: 3159 | I30: EIN333003000 | J30: 4482 | K30: - | L30: - | M30: EIN214003000 | N30: 2988 | O30: EIN224003000 | P30: 4008 | Q30: EIN334003000 | R30: 5754 | S30: - | T30: - | U30: EIN215003000 | V30: 3531 | W30: EIN225003000 | X30: 4785 | Y30: EIN335003000 | Z30: 6915
A33: Hauteur | C33: =C81 -> 600 | K33: =K81 -> 750 | S33: =S81 -> 900
A34: Type | C34: =C82 -> EIN11 | E34: =E82 -> EIN21 | G34: =G82 -> EIN22 | I34: =I82 -> EIN33 | K34: =K82 -> EIN11 | M34: =M82 -> EIN21 | O34: =O82 -> EIN22 | Q34: =Q82 -> EIN33 | S34: =S82 -> EIN11 | U34: =U82 -> EIN21 | W34: =W82 -> EIN22 | Y34: =Y82 -> EIN33
A35: Longueur (mm) | B35: Nombre éléments | C35: Modèle | D35: Puissance (watts) | E35: Modèle | F35: Puissance (watts) | G35: Modèle | H35: Puissance (watts) | I35: Modèle | J35: Puissance (watts) | K35: Modèle | L35: Puissance (watts) | M35: Modèle | N35: Puissance (watts) | O35: Modèle | P35: Puissance (watts) | Q35: Modèle | R35: Puissance (watts) | S35: Modèle | T35: Puissance (watts) | U35: Modèle | V35: Puissance (watts) | W35: Modèle | X35: Puissance (watts) | Y35: Modèle | Z35: Puissance (watts)
A36: =A84 -> 450 | B36: =B84 -> 9 | C36: =C84 -> EIN116000450 | D36: =IF(D84=""," - ",IF($B$6<0.7,D84*POWER($B$8/50,C$80),D84*POWER($B$7/50,C$80))) -> 446 | E36: =E84 -> EIN216000450 | F36: =IF(F84=""," - ",IF($B$6<0.7,F84*POWER($B$8/50,E$80),F84*POWER($B$7/50,E$80))) -> 607 | G36: =G84 -> EIN226000450 | H36: =IF(H84=""," - ",IF($B$6<0.7,H84*POWER($B$8/50,G$80),H84*POWER($B$7/50,G$80))) -> 824 | I36: =I84 -> EIN336000450 | J36: =IF(J84=""," - ",IF($B$6<0.7,J84*POWER($B$8/50,I$80),J84*POWER($B$7/50,I$80))) -> 1195 | K36: =K84 -> EIN117500450 | L36: =IF(L84=""," - ",IF($B$6<0.7,L84*POWER($B$8/50,K$80),L84*POWER($B$7/50,K$80))) -> 534 | M36: =M84 -> EIN217500450 | N36: =IF(N84=""," - ",IF($B$6<0.7,N84*POWER($B$8/50,M$80),N84*POWER($B$7/50,M$80))) -> 718 | O36: =O84 -> EIN227500450 | P36: =IF(P84=""," - ",IF($B$6<0.7,P84*POWER($B$8/50,O$80),P84*POWER($B$7/50,O$80))) -> 968 | Q36: =Q84 -> EIN337500450 | R36: =IF(R84=""," - ",IF($B$6<0.7,R84*POWER($B$8/50,Q$80),R84*POWER($B$7/50,Q$80))) -> 1404 | S36: =S84 -> EIN119000450 | T36: =IF(T84=""," - ",IF($B$6<0.7,T84*POWER($B$8/50,S$80),T84*POWER($B$7/50,S$80))) -> 616 | U36: =U84 -> EIN219000450 | V36: =IF(V84=""," - ",IF($B$6<0.7,V84*POWER($B$8/50,U$80),V84*POWER($B$7/50,U$80))) -> 823 | W36: =W84 -> EIN229000450 | X36: =IF(X84=""," - ",IF($B$6<0.7,X84*POWER($B$8/50,W$80),X84*POWER($B$7/50,W$80))) -> 1092 | Y36: =Y84 -> EIN339000450 | Z36: =IF(Z84=""," - ",IF($B$6<0.7,Z84*POWER($B$8/50,Y$80),Z84*POWER($B$7/50,Y$80))) -> 1580
A37: =A85 -> 600 | B37: 12 | C37: =C85 -> EIN116000600 | D37: =IF(D85=""," - ",IF($B$6<0.7,D85*POWER($B$8/50,C$80),D85*POWER($B$7/50,C$80))) -> 595 | E37: EIN216000600 | F37: =IF(F85=""," - ",IF($B$6<0.7,F85*POWER($B$8/50,E$80),F85*POWER($B$7/50,E$80))) -> 809 | G37: EIN226000600 | H37: =IF(H85=""," - ",IF($B$6<0.7,H85*POWER($B$8/50,G$80),H85*POWER($B$7/50,G$80))) -> 1099 | I37: EIN336000600 | J37: =IF(J85=""," - ",IF($B$6<0.7,J85*POWER($B$8/50,I$80),J85*POWER($B$7/50,I$80))) -> 1594 | K37: EIN117500600 | L37: =IF(L85=""," - ",IF($B$6<0.7,L85*POWER($B$8/50,K$80),L85*POWER($B$7/50,K$80))) -> 712 | M37: EIN217500600 | N37: =IF(N85=""," - ",IF($B$6<0.7,N85*POWER($B$8/50,M$80),N85*POWER($B$7/50,M$80))) -> 957 | O37: EIN227500600 | P37: =IF(P85=""," - ",IF($B$6<0.7,P85*POWER($B$8/50,O$80),P85*POWER($B$7/50,O$80))) -> 1290 | Q37: EIN337500600 | R37: =IF(R85=""," - ",IF($B$6<0.7,R85*POWER($B$8/50,Q$80),R85*POWER($B$7/50,Q$80))) -> 1871 | S37: EIN119000600 | T37: =IF(T85=""," - ",IF($B$6<0.7,T85*POWER($B$8/50,S$80),T85*POWER($B$7/50,S$80))) -> 821 | U37: EIN219000600 | V37: =IF(V85=""," - ",IF($B$6<0.7,V85*POWER($B$8/50,U$80),V85*POWER($B$7/50,U$80))) -> 1097 | W37: EIN229000600 | X37: =IF(X85=""," - ",IF($B$6<0.7,X85*POWER($B$8/50,W$80),X85*POWER($B$7/50,W$80))) -> 1456 | Y37: EIN339000600 | Z37: =IF(Z85=""," - ",IF($B$6<0.7,Z85*POWER($B$8/50,Y$80),Z85*POWER($B$7/50,Y$80))) -> 2107
A38: 750 | B38: 15 | C38: EIN116000750 | D38: 744 | E38: EIN216000750 | F38: 1012 | G38: EIN226000750 | H38: 1374 | I38: EIN336000750 | J38: 1992 | K38: EIN117500750 | L38: 890 | M38: EIN217500750 | N38: 1196 | O38: EIN227500750 | P38: 1613 | Q38: EIN337500750 | R38: 2339 | S38: EIN119000750 | T38: 1026 | U38: EIN219000750 | V38: 1372 | W38: EIN229000750 | X38: 1820 | Y38: EIN339000750 | Z38: 2634
A39: 900 | B39: 18 | C39: EIN116000900 | D39: 893 | E39: EIN216000900 | F39: 1214 | G39: EIN226000900 | H39: 1649 | I39: EIN336000900 | J39: 2390 | K39: EIN117500900 | L39: 1068 | M39: EIN217500900 | N39: 1436 | O39: EIN227500900 | P39: 1935 | Q39: EIN337500900 | R39: 2807 | S39: EIN119000900 | T39: 1231 | U39: EIN219000900 | V39: 1646 | W39: EIN229000900 | X39: 2184 | Y39: EIN339000900 | Z39: 3161
A40: 1050 | B40: 21 | C40: EIN116001050 | D40: 1042 | E40: EIN216001050 | F40: 1416 | G40: EIN226001050 | H40: 1924 | I40: EIN336001050 | J40: 2789 | K40: EIN117501050 | L40: 1246 | M40: EIN217501050 | N40: 1675 | O40: EIN227501050 | P40: 2258 | Q40: EIN337501050 | R40: 3275 | S40: EIN119001050 | T40: 1436 | U40: EIN219001050 | V40: 1920 | W40: EIN229001050 | X40: 2548 | Y40: EIN339001050 | Z40: 3688
A41: 1200 | B41: 24 | C41: EIN116001200 | D41: 1190 | E41: EIN216001200 | F41: 1619 | G41: EIN226001200 | H41: 2198 | I41: EIN336001200 | J41: 3187 | K41: EIN117501200 | L41: 1424 | M41: EIN217501200 | N41: 1914 | O41: EIN227501200 | P41: 2580 | Q41: EIN337501200 | R41: 3743 | S41: EIN119001200 | T41: 1642 | U41: EIN219001200 | V41: 2195 | W41: EIN229001200 | X41: 2912 | Y41: EIN339001200 | Z41: 4214
A42: 1350 | B42: 27 | C42: EIN116001350 | D42: 1339 | E42: EIN216001350 | F42: 1821 | G42: EIN226001350 | H42: 2473 | I42: EIN336001350 | J42: 3586 | K42: EIN117501350 | L42: 1602 | M42: EIN217501350 | N42: 2153 | O42: EIN227501350 | P42: 2903 | Q42: EIN337501350 | R42: 4211 | S42: EIN119001350 | T42: 1847 | U42: EIN219001350 | V42: 2469 | W42: EIN229001350 | X42: 3276 | Y42: EIN339001350 | Z42: 4741
A43: 1500 | B43: 30 | C43: EIN116001500 | D43: 1488 | E43: EIN216001500 | F43: 2024 | G43: EIN226001500 | H43: 2748 | I43: EIN336001500 | J43: 3984 | K43: EIN117501500 | L43: 1781 | M43: EIN217501500 | N43: 2393 | O43: EIN227501500 | P43: 3225 | Q43: EIN337501500 | R43: 4679 | S43: EIN119001500 | T43: 2052 | U43: EIN219001500 | V43: 2744 | W43: EIN229001500 | X43: 3641 | Y43: EIN339001500 | Z43: 5268
A44: 1650 | B44: 33 | C44: EIN116001650 | D44: 1637 | E44: EIN216001650 | F44: 2226 | G44: EIN226001650 | H44: 3023 | I44: EIN336001650 | J44: 4382 | K44: EIN117501650 | L44: 1959 | M44: EIN217501650 | N44: 2632 | O44: EIN227501650 | P44: 3548 | Q44: EIN337501650 | R44: 5146 | S44: EIN119001650 | T44: 2257 | U44: EIN219001650 | V44: 3018 | W44: EIN229001650 | X44: 4005 | Y44: EIN339001650 | Z44: 5795
A45: 1800 | B45: 36 | C45: EIN116001800 | D45: 1786 | E45: EIN216001800 | F45: 2428 | G45: EIN226001800 | H45: 3298 | I45: EIN336001800 | J45: 4781 | K45: EIN117501800 | L45: 2137 | M45: EIN217501800 | N45: 2871 | O45: EIN227501800 | P45: 3870 | Q45: EIN337501800 | R45: 5614 | S45: EIN119001800 | T45: 2462 | U45: EIN219001800 | V45: 3292 | W45: EIN229001800 | X45: 4369 | Y45: EIN339001800 | Z45: 6322
A46: 1950 | B46: 39 | C46: - | D46: - | E46: EIN216001950 | F46: 2631 | G46: EIN226001950 | H46: 3572 | I46: EIN336001950 | J46: 5179 | K46: - | L46: - | M46: EIN217501950 | N46: 3110 | O46: EIN227501950 | P46: 4193 | Q46: EIN337501950 | R46: 6082 | S46: - | T46: - | U46: EIN219001950 | V46: 3567 | W46: EIN229001950 | X46: 4733 | Y46: EIN339001950 | Z46: 6848
A47: 2100 | B47: 42 | C47: - | D47: - | E47: EIN216002100 | F47: 2833 | G47: EIN226002100 | H47: 3847 | I47: EIN336002100 | J47: 5578 | K47: - | L47: - | M47: EIN217502100 | N47: 3350 | O47: EIN227502100 | P47: 4515 | Q47: EIN337502100 | R47: 6550 | S47: - | T47: - | U47: EIN219002100 | V47: 3841 | W47: EIN229002100 | X47: 5097 | Y47: - | Z47: -
A48: 2250 | B48: 45 | C48: - | D48: - | E48: EIN216002250 | F48: 3035 | G48: EIN226002250 | H48: 4122 | I48: EIN336002250 | J48: 5976 | K48: - | L48: - | M48: EIN217502250 | N48: 3589 | O48: EIN227502250 | P48: 4838 | Q48: EIN337502250 | R48: 7018 | S48: - | T48: - | U48: EIN219002250 | V48: 4115 | W48: EIN229002250 | X48: 5461 | Y48: - | Z48: -
A49: 2400 | B49: 48 | C49: - | D49: - | E49: EIN216002400 | F49: 3238 | G49: EIN226002400 | H49: 4397 | I49: EIN336002400 | J49: 6374 | K49: - | L49: - | M49: EIN217502400 | N49: 3828 | O49: EIN227502400 | P49: 5160 | Q49: EIN337502400 | R49: 7486 | S49: - | T49: - | U49: EIN219002400 | V49: 4390 | W49: EIN229002400 | X49: 5825 | Y49: - | Z49: -
A50: 2550 | B50: 51 | C50: - | D50: - | E50: EIN216002550 | F50: 3440 | G50: EIN226002550 | H50: 4672 | I50: EIN336002550 | J50: 6773 | K50: - | L50: - | M50: EIN217502550 | N50: 4067 | O50: EIN227502550 | P50: 5483 | Q50: EIN337502550 | R50: 7953 | S50: - | T50: - | U50: EIN219002550 | V50: 4664 | W50: EIN229002550 | X50: 6189 | Y50: - | Z50: -
A51: 2700 | B51: 54 | C51: - | D51: - | E51: EIN216002700 | F51: 3642 | G51: EIN226002700 | H51: 4946 | I51: EIN336002700 | J51: 7171 | K51: - | L51: - | M51: EIN217502700 | N51: 4307 | O51: EIN227502700 | P51: 5805 | Q51: EIN337502700 | R51: 8421 | S51: - | T51: - | U51: EIN219002700 | V51: 4938 | W51: EIN229002700 | X51: 6553 | Y51: - | Z51: -
A52: 3000 | B52: 60 | C52: - | D52: - | E52: EIN216003000 | F52: 4047 | G52: EIN226003000 | H52: 5496 | I52: EIN336003000 | J52: 7968 | K52: - | L52: - | M52: EIN217503000 | N52: 4785 | O52: EIN227503000 | P52: 6450 | Q52: EIN337503000 | R52: 9357 | S52: - | T52: - | U52: EIN219003000 | V52: 5487 | W52: EIN229003000 | X52: 7281 | Y52: - | Z52: -
A56: Tableau de référence
A58: PENTE : | C58: 1.3498 | E58: 1.3668 | G58: 1.3845 | I58: 1.3768 | K58: 1.3451 | M58: 1.362 | O58: 1.3757 | Q58: 1.3651 | S58: 1.3404 | U58: 1.3572 | W58: 1.3669 | Y58: 1.3533
A59: Hauteur | C59: 300 | K59: 400 | S59: 500
A60: Type | C60: EIN11 | E60: EIN21 | G60: EIN22 | I60: EIN33 | K60: EIN11 | M60: EIN21 | O60: EIN22 | Q60: EIN33 | S60: EIN11 | U60: EIN21 | W60: EIN22 | Y60: EIN33
A61: Longueur (mm) | B61: Nombre éléments | C61: Modèle | D61: Watt Dt 50°C | E61: Modèle | F61: Watt Dt 50°C | G61: Modèle | H61: Watt Dt 50°C | I61: Modèle | J61: Watt Dt 50°C | K61: Modèle | L61: Watt Dt 50°C | M61: Modèle | N61: Watt Dt 50°C | O61: Modèle | P61: Watt Dt 50°C | Q61: Modèle | R61: Watt Dt 50°C | S61: Modèle | T61: Watt Dt 50°C | U61: Modèle | V61: Watt Dt 50°C | W61: Modèle | X61: Watt Dt 50°C | Y61: Modèle | Z61: Watt Dt 50°C
A62: 450 | B62: =A62/50 -> 9 | C62: =IF(D62=""," - ",IF(LEN($A62)=3,C$60&$C$59&"0"&$A62,C$60&$C$59&$A62)) -> EIN113000450 | D62: 248 | E62: =IF(F62=""," - ",IF(LEN($A62)=3,E$60&$C$59&"0"&$A62,E$60&$C$59&$A62)) -> EIN213000450 | F62: 361 | G62: =IF(H62=""," - ",IF(LEN($A62)=3,G$60&$C$59&"0"&$A62,G$60&$C$59&$A62)) -> EIN223000450 | H62: 474 | I62: =IF(J62=""," - ",IF(LEN($A62)=3,I$60&$C$59&"0"&$A62,I$60&$C$59&$A62)) -> EIN333000450 | J62: 672 | K62: =IF(L62=""," - ",IF(LEN($A62)=3,K$60&$K$59&"0"&$A62,K$60&$K$59&$A62)) -> EIN114000450 | L62: 318 | M62: =IF(N62=""," - ",IF(LEN($A62)=3,M$60&$K$59&"0"&$A62,M$60&$K$59&$A62)) -> EIN214000450 | N62: 448 | O62: =IF(P62=""," - ",IF(LEN($A62)=3,O$60&$K$59&"0"&$A62,O$60&$K$59&$A62)) -> EIN224000450 | P62: 601 | Q62: =IF(R62=""," - ",IF(LEN($A62)=3,Q$60&$K$59&"0"&$A62,Q$60&$K$59&$A62)) -> EIN334000450 | R62: 863 | S62: =IF(T62=""," - ",IF(LEN($A62)=3,S$60&$S$59&"0"&$A62,S$60&$S$59&$A62)) -> EIN115000450 | T62: 384 | U62: =IF(V62=""," - ",IF(LEN($A62)=3,U$60&$S$59&"0"&$A62,U$60&$S$59&$A62)) -> EIN215000450 | V62: 530 | W62: =IF(X62=""," - ",IF(LEN($A62)=3,W$60&$S$59&"0"&$A62,W$60&$S$59&$A62)) -> EIN225000450 | X62: 718 | Y62: =IF(Z62=""," - ",IF(LEN($A62)=3,Y$60&$S$59&"0"&$A62,Y$60&$S$59&$A62)) -> EIN335000450 | Z62: 1037
A63: 600 | B63: =A63/50 -> 12 | C63: EIN113000600 | D63: 331 | E63: EIN213000600 | F63: 481 | G63: EIN223000600 | H63: 632 | I63: EIN333000600 | J63: 896 | K63: EIN114000600 | L63: 424 | M63: EIN214000600 | N63: 598 | O63: EIN224000600 | P63: 802 | Q63: EIN334000600 | R63: 1151 | S63: =IF(T63=""," - ",IF(LEN($A63)=3,S$60&$S$59&"0"&$A63,S$60&$S$59&$A63)) -> EIN115000600 | T63: 512 | U63: EIN215000600 | V63: 706 | W63: EIN225000600 | X63: 957 | Y63: EIN335000600 | Z63: 1383
A64: 750 | B64: 15 | C64: EIN113000750 | D64: 413 | E64: EIN213000750 | F64: 602 | G64: EIN223000750 | H64: 790 | I64: EIN333000750 | J64: 1121 | K64: EIN114000750 | L64: 530 | M64: EIN214000750 | N64: 747 | O64: EIN224000750 | P64: 1002 | Q64: EIN334000750 | R64: 1439 | S64: EIN115000750 | T64: 640 | U64: EIN215000750 | V64: 883 | W64: EIN225000750 | X64: 1196 | Y64: EIN335000750 | Z64: 1729
A65: 900 | B65: 18 | C65: EIN113000900 | D65: 496 | E65: EIN213000900 | F65: 722 | G65: EIN223000900 | H65: 948 | I65: EIN333000900 | J65: 1345 | K65: EIN114000900 | L65: 635 | M65: EIN214000900 | N65: 896 | O65: EIN224000900 | P65: 1202 | Q65: EIN334000900 | R65: 1726 | S65: EIN115000900 | T65: 768 | U65: EIN215000900 | V65: 1059 | W65: EIN225000900 | X65: 1436 | Y65: EIN335000900 | Z65: 2075
A66: 1050 | B66: 21 | C66: EIN113001050 | D66: 579 | E66: EIN213001050 | F66: 842 | G66: EIN223001050 | H66: 1106 | I66: EIN333001050 | J66: 1569 | K66: EIN114001050 | L66: 741 | M66: EIN214001050 | N66: 1046 | O66: EIN224001050 | P66: 1403 | Q66: EIN334001050 | R66: 2014 | S66: EIN115001050 | T66: 896 | U66: EIN215001050 | V66: 1236 | W66: EIN225001050 | X66: 1675 | Y66: EIN335001050 | Z66: 2420
A67: 1200 | B67: 24 | C67: EIN113001200 | D67: 661 | E67: EIN213001200 | F67: 962 | G67: EIN223001200 | H67: 1264 | I67: EIN333001200 | J67: 1793 | K67: EIN114001200 | L67: 847 | M67: EIN214001200 | N67: 1195 | O67: EIN224001200 | P67: 1603 | Q67: EIN334001200 | R67: 2302 | S67: EIN115001200 | T67: 1024 | U67: EIN215001200 | V67: 1412 | W67: EIN225001200 | X67: 1914 | Y67: EIN335001200 | Z67: 2766
A68: 1350 | B68: 27 | C68: EIN113001350 | D68: 744 | E68: EIN213001350 | F68: 1083 | G68: EIN223001350 | H68: 1422 | I68: EIN333001350 | J68: 2017 | K68: EIN114001350 | L68: 953 | M68: EIN214001350 | N68: 1345 | O68: EIN224001350 | P68: 1804 | Q68: EIN334001350 | R68: 2589 | S68: EIN115001350 | T68: 1152 | U68: EIN215001350 | V68: 1589 | W68: EIN225001350 | X68: 2153 | Y68: EIN335001350 | Z68: 3112
A69: 1500 | B69: 30 | C69: EIN113001500 | D69: 827 | E69: EIN213001500 | F69: 1203 | G69: EIN223001500 | H69: 1580 | I69: EIN333001500 | J69: 2241 | K69: EIN114001500 | L69: 1059 | M69: EIN214001500 | N69: 1494 | O69: EIN224001500 | P69: 2004 | Q69: EIN334001500 | R69: 2877 | S69: EIN115001500 | T69: 1280 | U69: EIN215001500 | V69: 1766 | W69: EIN225001500 | X69: 2393 | Y69: EIN335001500 | Z69: 3458
A70: 1650 | B70: 33 | C70: EIN113001650 | D70: 909 | E70: EIN213001650 | F70: 1323 | G70: EIN223001650 | H70: 1737 | I70: EIN333001650 | J70: 2465 | K70: EIN114001650 | L70: 1165 | M70: EIN214001650 | N70: 1643 | O70: EIN224001650 | P70: 2204 | Q70: EIN334001650 | R70: 3165 | S70: EIN115001650 | T70: 1407 | U70: EIN215001650 | V70: 1942 | W70: EIN225001650 | X70: 2632 | Y70: EIN335001650 | Z70: 3803
A71: 1800 | B71: 36 | C71: EIN113001800 | D71: 992 | E71: EIN213001800 | F71: 1444 | G71: EIN223001800 | H71: 1895 | I71: EIN333001800 | J71: 2689 | K71: EIN114001800 | L71: 1271 | M71: EIN214001800 | N71: 1793 | O71: EIN224001800 | P71: 2405 | Q71: EIN334001800 | R71: 3452 | S71: EIN115001800 | T71: 1535 | U71: EIN215001800 | V71: 2119 | W71: EIN225001800 | X71: 2871 | Y71: EIN335001800 | Z71: 4149
A72: 1950 | B72: 39 | C72: - | E72: EIN213001950 | F72: 1564 | G72: EIN223001950 | H72: 2053 | I72: EIN333001950 | J72: 2913 | K72: - | M72: EIN214001950 | N72: 1942 | O72: EIN224001950 | P72: 2605 | Q72: EIN334001950 | R72: 3740 | S72: - | U72: EIN215001950 | V72: 2295 | W72: EIN225001950 | X72: 3110 | Y72: EIN335001950 | Z72: 4495
A73: 2100 | B73: 42 | C73: - | E73: EIN213002100 | F73: 1684 | G73: EIN223002100 | H73: 2211 | I73: EIN333002100 | J73: 3137 | K73: - | M73: EIN214002100 | N73: 2092 | O73: EIN224002100 | P73: 2806 | Q73: EIN334002100 | R73: 4028 | S73: - | U73: EIN215002100 | V73: 2472 | W73: EIN225002100 | X73: 3350 | Y73: EIN335002100 | Z73: 4841
A74: 2250 | B74: 45 | C74: - | E74: EIN213002250 | F74: 1805 | G74: EIN223002250 | H74: 2369 | I74: EIN333002250 | J74: 3362 | K74: - | M74: EIN214002250 | N74: 2241 | O74: EIN224002250 | P74: 3006 | Q74: EIN334002250 | R74: 4316 | S74: - | U74: EIN215002250 | V74: 2648 | W74: EIN225002250 | X74: 3589 | Y74: EIN335002250 | Z74: 5186
A75: 2400 | B75: 48 | C75: - | E75: EIN213002400 | F75: 1925 | G75: EIN223002400 | H75: 2527 | I75: EIN333002400 | J75: 3586 | K75: - | M75: EIN214002400 | N75: 2390 | O75: EIN224002400 | P75: 3206 | Q75: EIN334002400 | R75: 4603 | S75: - | U75: EIN215002400 | V75: 2825 | W75: EIN225002400 | X75: 3828 | Y75: EIN335002400 | Z75: 5532
A76: 2550 | B76: 51 | C76: - | E76: EIN213002550 | F76: 2045 | G76: EIN223002550 | H76: 2685 | I76: EIN333002550 | J76: 3810 | K76: - | M76: EIN214002550 | N76: 2540 | O76: EIN224002550 | P76: 3407 | Q76: EIN334002550 | R76: 4891 | S76: - | U76: EIN215002550 | V76: 3001 | W76: EIN225002550 | X76: 4067 | Y76: EIN335002550 | Z76: 5878
A77: 2700 | B77: 54 | C77: - | E77: EIN213002700 | F77: 2165 | G77: EIN223002700 | H77: 2843 | I77: EIN333002700 | J77: 4034 | K77: - | M77: EIN214002700 | N77: 2689 | O77: EIN224002700 | P77: 3607 | Q77: EIN334002700 | R77: 5179 | S77: - | U77: EIN215002700 | V77: 3178 | W77: EIN225002700 | X77: 4307 | Y77: EIN335002700 | Z77: 6224
A78: 3000 | B78: 60 | C78: - | E78: EIN213003000 | F78: 2406 | G78: EIN223003000 | H78: 3159 | I78: EIN333003000 | J78: 4482 | K78: - | M78: EIN214003000 | N78: 2988 | O78: EIN224003000 | P78: 4008 | Q78: EIN334003000 | R78: 5754 | S78: - | U78: EIN215003000 | V78: 3531 | W78: EIN225003000 | X78: 4785 | Y78: EIN335003000 | Z78: 6915
A80: PENTE : | C80: 1.3357 | E80: 1.3523 | G80: 1.3581 | I80: 1.3415 | K80: 1.3287 | M80: 1.3451 | O80: 1.3449 | Q80: 1.3238 | S80: 1.3217 | U80: 1.3379 | W80: 1.3316 | Y80: 1.3061 | AR80: 1.354
A81: Hauteur | C81: 600 | K81: 750 | S81: 900
A82: Type | C82: EIN11 | E82: EIN21 | G82: EIN22 | I82: EIN33 | K82: EIN11 | M82: EIN21 | O82: EIN22 | Q82: EIN33 | S82: EIN11 | U82: EIN21 | W82: EIN22 | Y82: EIN33
A83: Longueur (mm) | B83: Nombre éléments | C83: Modèle | D83: Watt Dt 50°C | E83: Modèle | F83: Watt Dt 50°C | G83: Modèle | H83: Watt Dt 50°C | I83: Modèle | J83: Watt Dt 50°C | K83: Modèle | L83: Watt Dt 50°C | M83: Modèle | N83: Watt Dt 50°C | O83: Modèle | P83: Watt Dt 50°C | Q83: Modèle | R83: Watt Dt 50°C | S83: Modèle | T83: Watt Dt 50°C | U83: Modèle | V83: Watt Dt 50°C | W83: Modèle | X83: Watt Dt 50°C | Y83: Modèle | Z83: Watt Dt 50°C
A84: 450 | B84: =A84/50 -> 9 | C84: =IF(D84=""," - ",IF(LEN($A62)=3,C$82&$C$81&"0"&$A62,C$82&$C$81&$A62)) -> EIN116000450 | D84: 446 | E84: =IF(F84=""," - ",IF(LEN($A62)=3,E$82&$C$81&"0"&$A62,E$82&$C$81&$A62)) -> EIN216000450 | F84: 607 | G84: =IF(H84=""," - ",IF(LEN($A62)=3,G$82&$C$81&"0"&$A62,G$82&$C$81&$A62)) -> EIN226000450 | H84: 824 | I84: =IF(J84=""," - ",IF(LEN($A62)=3,I$82&$C$81&"0"&$A62,I$82&$C$81&$A62)) -> EIN336000450 | J84: 1195 | K84: =IF(L84=""," - ",IF(LEN($A84)=3,K$82&$K$81&"0"&$A84,K$82&$K$81&$A84)) -> EIN117500450 | L84: 534 | M84: =IF(N84=""," - ",IF(LEN($A84)=3,M$82&$K$81&"0"&$A84,M$82&$K$81&$A84)) -> EIN217500450 | N84: 718 | O84: =IF(P84=""," - ",IF(LEN($A84)=3,O$82&$K$81&"0"&$A84,O$82&$K$81&$A84)) -> EIN227500450 | P84: 968 | Q84: =IF(R84=""," - ",IF(LEN($A84)=3,Q$82&$K$81&"0"&$A84,Q$82&$K$81&$A84)) -> EIN337500450 | R84: 1404 | S84: =IF(T84=""," - ",IF(LEN($A84)=3,S$82&$S$81&"0"&$A84,S$82&$S$81&$A84)) -> EIN119000450 | T84: 616 | U84: =IF(V84=""," - ",IF(LEN($A84)=3,U$82&$S$81&"0"&$A84,U$82&$S$81&$A84)) -> EIN219000450 | V84: 823 | W84: =IF(X84=""," - ",IF(LEN($A84)=3,W$82&$S$81&"0"&$A84,W$82&$S$81&$A84)) -> EIN229000450 | X84: 1092 | Y84: =IF(Z84=""," - ",IF(LEN($A84)=3,Y$82&$S$81&"0"&$A84,Y$82&$S$81&$A84)) -> EIN339000450 | Z84: 1580
A85: 600 | B85: =A85/50 -> 12 | C85: EIN116000600 | D85: 595 | E85: EIN216000600 | F85: 809 | G85: EIN226000600 | H85: 1099 | I85: EIN336000600 | J85: 1594 | K85: EIN117500600 | L85: 712 | M85: EIN217500600 | N85: 957 | O85: EIN227500600 | P85: 1290 | Q85: EIN337500600 | R85: 1871 | S85: EIN119000600 | T85: 821 | U85: EIN219000600 | V85: 1097 | W85: EIN229000600 | X85: 1456 | Y85: EIN339000600 | Z85: 2107
A86: 750 | B86: 15 | C86: EIN116000750 | D86: 744 | E86: EIN216000750 | F86: 1012 | G86: EIN226000750 | H86: 1374 | I86: EIN336000750 | J86: 1992 | K86: EIN117500750 | L86: 890 | M86: EIN217500750 | N86: 1196 | O86: EIN227500750 | P86: 1613 | Q86: EIN337500750 | R86: 2339 | S86: EIN119000750 | T86: 1026 | U86: EIN219000750 | V86: 1372 | W86: EIN229000750 | X86: 1820 | Y86: EIN339000750 | Z86: 2634
A87: 900 | B87: 18 | C87: EIN116000900 | D87: 893 | E87: EIN216000900 | F87: 1214 | G87: EIN226000900 | H87: 1649 | I87: EIN336000900 | J87: 2390 | K87: EIN117500900 | L87: 1068 | M87: EIN217500900 | N87: 1436 | O87: EIN227500900 | P87: 1935 | Q87: EIN337500900 | R87: 2807 | S87: EIN119000900 | T87: 1231 | U87: EIN219000900 | V87: 1646 | W87: EIN229000900 | X87: 2184 | Y87: EIN339000900 | Z87: 3161
A88: 1050 | B88: 21 | C88: EIN116001050 | D88: 1042 | E88: EIN216001050 | F88: 1416 | G88: EIN226001050 | H88: 1924 | I88: EIN336001050 | J88: 2789 | K88: EIN117501050 | L88: 1246 | M88: EIN217501050 | N88: 1675 | O88: EIN227501050 | P88: 2258 | Q88: EIN337501050 | R88: 3275 | S88: EIN119001050 | T88: 1436 | U88: EIN219001050 | V88: 1920 | W88: EIN229001050 | X88: 2548 | Y88: EIN339001050 | Z88: 3688
A89: 1200 | B89: 24 | C89: EIN116001200 | D89: 1190 | E89: EIN216001200 | F89: 1619 | G89: EIN226001200 | H89: 2198 | I89: EIN336001200 | J89: 3187 | K89: EIN117501200 | L89: 1424 | M89: EIN217501200 | N89: 1914 | O89: EIN227501200 | P89: 2580 | Q89: EIN337501200 | R89: 3743 | S89: EIN119001200 | T89: 1642 | U89: EIN219001200 | V89: 2195 | W89: EIN229001200 | X89: 2912 | Y89: EIN339001200 | Z89: 4214
A90: 1350 | B90: 27 | C90: EIN116001350 | D90: 1339 | E90: EIN216001350 | F90: 1821 | G90: EIN226001350 | H90: 2473 | I90: EIN336001350 | J90: 3586 | K90: EIN117501350 | L90: 1602 | M90: EIN217501350 | N90: 2153 | O90: EIN227501350 | P90: 2903 | Q90: EIN337501350 | R90: 4211 | S90: EIN119001350 | T90: 1847 | U90: EIN219001350 | V90: 2469 | W90: EIN229001350 | X90: 3276 | Y90: EIN339001350 | Z90: 4741
A91: 1500 | B91: 30 | C91: EIN116001500 | D91: 1488 | E91: EIN216001500 | F91: 2024 | G91: EIN226001500 | H91: 2748 | I91: EIN336001500 | J91: 3984 | K91: EIN117501500 | L91: 1781 | M91: EIN217501500 | N91: 2393 | O91: EIN227501500 | P91: 3225 | Q91: EIN337501500 | R91: 4679 | S91: EIN119001500 | T91: 2052 | U91: EIN219001500 | V91: 2744 | W91: EIN229001500 | X91: 3641 | Y91: EIN339001500 | Z91: 5268
A92: 1650 | B92: 33 | C92: EIN116001650 | D92: 1637 | E92: EIN216001650 | F92: 2226 | G92: EIN226001650 | H92: 3023 | I92: EIN336001650 | J92: 4382 | K92: EIN117501650 | L92: 1959 | M92: EIN217501650 | N92: 2632 | O92: EIN227501650 | P92: 3548 | Q92: EIN337501650 | R92: 5146 | S92: EIN119001650 | T92: 2257 | U92: EIN219001650 | V92: 3018 | W92: EIN229001650 | X92: 4005 | Y92: EIN339001650 | Z92: 5795
A93: 1800 | B93: 36 | C93: EIN116001800 | D93: 1786 | E93: EIN216001800 | F93: 2428 | G93: EIN226001800 | H93: 3298 | I93: EIN336001800 | J93: 4781 | K93: EIN117501800 | L93: 2137 | M93: EIN217501800 | N93: 2871 | O93: EIN227501800 | P93: 3870 | Q93: EIN337501800 | R93: 5614 | S93: EIN119001800 | T93: 2462 | U93: EIN219001800 | V93: 3292 | W93: EIN229001800 | X93: 4369 | Y93: EIN339001800 | Z93: 6322
A94: 1950 | B94: 39 | C94: - | E94: EIN216001950 | F94: 2631 | G94: EIN226001950 | H94: 3572 | I94: EIN336001950 | J94: 5179 | K94: - | M94: EIN217501950 | N94: 3110 | O94: EIN227501950 | P94: 4193 | Q94: EIN337501950 | R94: 6082 | S94: - | U94: EIN219001950 | V94: 3567 | W94: EIN229001950 | X94: 4733 | Y94: EIN339001950 | Z94: 6848
A95: 2100 | B95: 42 | C95: - | E95: EIN216002100 | F95: 2833 | G95: EIN226002100 | H95: 3847 | I95: EIN336002100 | J95: 5578 | K95: - | M95: EIN217502100 | N95: 3350 | O95: EIN227502100 | P95: 4515 | Q95: EIN337502100 | R95: 6550 | S95: - | U95: EIN219002100 | V95: 3841 | W95: EIN229002100 | X95: 5097 | Y95: -
A96: 2250 | B96: 45 | C96: - | E96: EIN216002250 | F96: 3035 | G96: EIN226002250 | H96: 4122 | I96: EIN336002250 | J96: 5976 | K96: - | M96: EIN217502250 | N96: 3589 | O96: EIN227502250 | P96: 4838 | Q96: EIN337502250 | R96: 7018 | S96: - | U96: EIN219002250 | V96: 4115 | W96: EIN229002250 | X96: 5461 | Y96: -
A97: 2400 | B97: 48 | C97: - | E97: EIN216002400 | F97: 3238 | G97: EIN226002400 | H97: 4397 | I97: EIN336002400 | J97: 6374 | K97: - | M97: EIN217502400 | N97: 3828 | O97: EIN227502400 | P97: 5160 | Q97: EIN337502400 | R97: 7486 | S97: - | U97: EIN219002400 | V97: 4390 | W97: EIN229002400 | X97: 5825 | Y97: -
A98: 2550 | B98: 51 | C98: - | E98: EIN216002550 | F98: 3440 | G98: EIN226002550 | H98: 4672 | I98: EIN336002550 | J98: 6773 | K98: - | M98: EIN217502550 | N98: 4067 | O98: EIN227502550 | P98: 5483 | Q98: EIN337502550 | R98: 7953 | S98: - | U98: EIN219002550 | V98: 4664 | W98: EIN229002550 | X98: 6189 | Y98: -
A99: 2700 | B99: 54 | C99: - | E99: EIN216002700 | F99: 3642 | G99: EIN226002700 | H99: 4946 | I99: EIN336002700 | J99: 7171 | K99: - | M99: EIN217502700 | N99: 4307 | O99: EIN227502700 | P99: 5805 | Q99: EIN337502700 | R99: 8421 | S99: - | U99: EIN219002700 | V99: 4938 | W99: EIN229002700 | X99: 6553 | Y99: -
A100: 3000 | B100: 60 | C100: - | E100: EIN216003000 | F100: 4047 | G100: EIN226003000 | H100: 5496 | I100: EIN336003000 | J100: 7968 | K100: - | M100: EIN217503000 | N100: 4785 | O100: EIN227503000 | P100: 6450 | Q100: EIN337503000 | R100: 9357 | S100: - | U100: EIN219003000 | V100: 5487 | W100: EIN229003000 | X100: 7281 | Y100: -

Sheet E-FLOW PARADA
A1: Programme de calcul de la puissance thermique: E-FLOW PARADA
A3: Te | B3: 75 | C3: <= Entrez la température à l'entrée en C°
A4: Ts | B4: 65 | C4: <= Entrez la température à la sortie en C°
A5: Ti | B5: 20 | C5: <= Entrez la température ambiante en C°
A6: Rapport | B6: =(B4-B5)/(B3-B5) -> 0.8181818182
A7: Delta T | B7: =((B3+B4)/2)-B5 -> 50
A8: Delta T2 | B8: =(B3-B4)/LN((B3-B5)/(B4-B5)) -> 49.83288655 | C8: Si Rapport < 0,7
A11: Hauteur | C11: =C59 -> 300 | K11: =K59 -> 400 | S11: =S59 -> 500
A12: Type | C12: =C60 -> EPA11 | E12: =E60 -> EPA21 | G12: =G60 -> EPA22 | I12: =I60 -> EPA33 | K12: =K60 -> EPA11 | M12: =M60 -> EPA21 | O12: =O60 -> EPA22 | Q12: =Q60 -> EPA33 | S12: =S60 -> EPA11 | U12: =U60 -> EPA21 | W12: =W60 -> EPA22 | Y12: =Y60 -> EPA33
A13: Longueur (mm) | B13: Nombre éléments | C13: Modèle | D13: Puissance (watts) | E13: Modèle | F13: Puissance (watts) | G13: Modèle | H13: Puissance (watts) | I13: Modèle | J13: Puissance (watts) | K13: Modèle | L13: Puissance (watts) | M13: Modèle | N13: Puissance (watts) | O13: Modèle | P13: Puissance (watts) | Q13: Modèle | R13: Puissance (watts) | S13: Modèle | T13: Puissance (watts) | U13: Modèle | V13: Puissance (watts) | W13: Modèle | X13: Puissance (watts) | Y13: Modèle | Z13: Puissance (watts)
A14: =A62 -> 450 | B14: =B62 -> 9 | C14: =C62 -> EPA113000450 | D14: =IF(D62=""," - ",IF($B$6<0.7,D62*POWER($B$8/50,C$58),D62*POWER($B$7/50,C$58))) -> 242 | E14: =E62 -> EPA213000450 | F14: =IF(F62=""," - ",IF($B$6<0.7,F62*POWER($B$8/50,E$58),F62*POWER($B$7/50,E$58))) -> 339 | G14: =G62 -> EPA223000450 | H14: =IF(H62=""," - ",IF($B$6<0.7,H62*POWER($B$8/50,G$58),H62*POWER($B$7/50,G$58))) -> 456 | I14: =I62 -> EPA333000450 | J14: =IF(J62=""," - ",IF($B$6<0.7,J62*POWER($B$8/50,I$58),J62*POWER($B$7/50,I$58))) -> 638 | K14: =K62 -> EPA114000450 | L14: =IF(L62=""," - ",IF($B$6<0.7,L62*POWER($B$8/50,K$58),L62*POWER($B$7/50,K$58))) -> 306 | M14: =M62 -> EPA214000450 | N14: =IF(N62=""," - ",IF($B$6<0.7,N62*POWER($B$8/50,M$58),N62*POWER($B$7/50,M$58))) -> 421 | O14: =O62 -> EPA224000450 | P14: =IF(P62=""," - ",IF($B$6<0.7,P62*POWER($B$8/50,O$58),P62*POWER($B$7/50,O$58))) -> 569 | Q14: =Q62 -> EPA334000450 | R14: =IF(R62=""," - ",IF($B$6<0.7,R62*POWER($B$8/50,Q$58),R62*POWER($B$7/50,Q$58))) -> 809 | S14: =S62 -> EPA115000450 | T14: =IF(T62=""," - ",IF($B$6<0.7,T62*POWER($B$8/50,S$58),T62*POWER($B$7/50,S$58))) -> 366 | U14: =U62 -> EPA215000450 | V14: =IF(V62=""," - ",IF($B$6<0.7,V62*POWER($B$8/50,U$58),V62*POWER($B$7/50,U$58))) -> 498 | W14: =W62 -> EPA225000450 | X14: =IF(X62=""," - ",IF($B$6<0.7,X62*POWER($B$8/50,W$58),X62*POWER($B$7/50,W$58))) -> 675 | Y14: =Y62 -> EPA335000450 | Z14: =IF(Z62=""," - ",IF($B$6<0.7,Z62*POWER($B$8/50,Y$58),Z62*POWER($B$7/50,Y$58))) -> 970 | AN14: ,
A15: =A63 -> 600 | B15: 12 | C15: EPA113000600 | D15: =IF(D63=""," - ",IF($B$6<0.7,D63*POWER($B$8/50,C$58),D63*POWER($B$7/50,C$58))) -> 323 | E15: =E63 -> EPA213000600 | F15: =IF(F63=""," - ",IF($B$6<0.7,F63*POWER($B$8/50,E$58),F63*POWER($B$7/50,E$58))) -> 453 | G15: =G63 -> EPA223000600 | H15: =IF(H63=""," - ",IF($B$6<0.7,H63*POWER($B$8/50,G$58),H63*POWER($B$7/50,G$58))) -> 608 | I15: =I63 -> EPA333000600 | J15: =IF(J63=""," - ",IF($B$6<0.7,J63*POWER($B$8/50,I$58),J63*POWER($B$7/50,I$58))) -> 850 | K15: =K63 -> EPA114000600 | L15: =IF(L63=""," - ",IF($B$6<0.7,L63*POWER($B$8/50,K$58),L63*POWER($B$7/50,K$58))) -> 408 | M15: =M63 -> EPA214000600 | N15: =IF(N63=""," - ",IF($B$6<0.7,N63*POWER($B$8/50,M$58),N63*POWER($B$7/50,M$58))) -> 561 | O15: =O63 -> EPA224000600 | P15: =IF(P63=""," - ",IF($B$6<0.7,P63*POWER($B$8/50,O$58),P63*POWER($B$7/50,O$58))) -> 759 | Q15: =Q63 -> EPA334000600 | R15: =IF(R63=""," - ",IF($B$6<0.7,R63*POWER($B$8/50,Q$58),R63*POWER($B$7/50,Q$58))) -> 1079 | S15: =S63 -> EPA115000600 | T15: =IF(T63=""," - ",IF($B$6<0.7,T63*POWER($B$8/50,S$58),T63*POWER($B$7/50,S$58))) -> 489 | U15: =U63 -> EPA215000600 | V15: =IF(V63=""," - ",IF($B$6<0.7,V63*POWER($B$8/50,U$58),V63*POWER($B$7/50,U$58))) -> 664 | W15: =W63 -> EPA225000600 | X15: =IF(X63=""," - ",IF($B$6<0.7,X63*POWER($B$8/50,W$58),X63*POWER($B$7/50,W$58))) -> 900 | Y15: =Y63 -> EPA335000600 | Z15: =IF(Z63=""," - ",IF($B$6<0.7,Z63*POWER($B$8/50,Y$58),Z63*POWER($B$7/50,Y$58))) -> 1293
A16: 750 | B16: 15 | C16: EPA113000750 | D16: 404 | E16: EPA213000750 | F16: 566 | G16: EPA223000750 | H16: 759 | I16: EPA333000750 | J16: 1063 | K16: EPA114000750 | L16: 510 | M16: EPA214000750 | N16: 702 | O16: EPA224000750 | P16: 949 | Q16: EPA334000750 | R16: 1349 | S16: EPA115000750 | T16: 611 | U16: EPA215000750 | V16: 830 | W16: EPA225000750 | X16: 1124 | Y16: EPA335000750 | Z16: 1616
A17: 900 | B17: 18 | C17: EPA113000900 | D17: 485 | E17: EPA213000900 | F17: 679 | G17: EPA223000900 | H17: 911 | I17: EPA333000900 | J17: 1275 | K17: EPA114000900 | L17: 612 | M17: EPA214000900 | N17: 842 | O17: EPA224000900 | P17: 1139 | Q17: EPA334000900 | R17: 1619 | S17: EPA115000900 | T17: 733 | U17: EPA215000900 | V17: 996 | W17: EPA225000900 | X17: 1349 | Y17: EPA335000900 | Z17: 1939
A18: 1050 | B18: 21 | C18: EPA113001050 | D18: 565 | E18: EPA213001050 | F18: 792 | G18: EPA223001050 | H18: 1063 | I18: EPA333001050 | J18: 1488 | K18: EPA114001050 | L18: 714 | M18: EPA214001050 | N18: 983 | O18: EPA224001050 | P18: 1328 | Q18: EPA334001050 | R18: 1889 | S18: EPA115001050 | T18: 855 | U18: EPA215001050 | V18: 1162 | W18: EPA225001050 | X18: 1574 | Y18: EPA335001050 | Z18: 2262
A19: 1200 | B19: 24 | C19: EPA113001200 | D19: 646 | E19: EPA213001200 | F19: 905 | G19: EPA223001200 | H19: 1215 | I19: EPA333001200 | J19: 1701 | K19: EPA114001200 | L19: 816 | M19: EPA214001200 | N19: 1123 | O19: EPA224001200 | P19: 1518 | Q19: EPA334001200 | R19: 2158 | S19: EPA115001200 | T19: 977 | U19: EPA215001200 | V19: 1328 | W19: EPA225001200 | X19: 1799 | Y19: EPA335001200 | Z19: 2586
A20: 1350 | B20: 27 | C20: EPA113001350 | D20: 727 | E20: EPA213001350 | F20: 1018 | G20: EPA223001350 | H20: 1367 | I20: EPA333001350 | J20: 1913 | K20: EPA114001350 | L20: 918 | M20: EPA214001350 | N20: 1263 | O20: EPA224001350 | P20: 1708 | Q20: EPA334001350 | R20: 2428 | S20: EPA115001350 | T20: 1099 | U20: EPA215001350 | V20: 1494 | W20: EPA225001350 | X20: 2024 | Y20: EPA335001350 | Z20: 2909
A21: 1500 | B21: 30 | C21: EPA113001500 | D21: 808 | E21: EPA213001500 | F21: 1132 | G21: EPA223001500 | H21: 1519 | I21: EPA333001500 | J21: 2126 | K21: EPA114001500 | L21: 1020 | M21: EPA214001500 | N21: 1404 | O21: EPA224001500 | P21: 1898 | Q21: EPA334001500 | R21: 2698 | S21: EPA115001500 | T21: 1221 | U21: EPA215001500 | V21: 1660 | W21: EPA225001500 | X21: 2249 | Y21: EPA335001500 | Z21: 3232
A22: 1650 | B22: 33 | C22: EPA113001650 | D22: 888 | E22: EPA213001650 | F22: 1245 | G22: EPA223001650 | H22: 1671 | I22: EPA333001650 | J22: 2338 | K22: EPA114001650 | L22: 1122 | M22: EPA214001650 | N22: 1544 | O22: EPA224001650 | P22: 2087 | Q22: EPA334001650 | R22: 2968 | S22: EPA115001650 | T22: 1343 | U22: EPA215001650 | V22: 1826 | W22: EPA225001650 | X22: 2474 | Y22: EPA335001650 | Z22: 3555
A23: 1800 | B23: 36 | C23: - | D23: - | E23: EPA213001800 | F23: 1358 | G23: EPA223001800 | H23: 1823 | I23: EPA333001800 | J23: 2551 | K23: - | L23: - | M23: EPA214001800 | N23: 1684 | O23: EPA224001800 | P23: 2277 | Q23: EPA334001800 | R23: 3237 | S23: - | T23: - | U23: EPA215001800 | V23: 1992 | W23: EPA225001800 | X23: 2699 | Y23: EPA335001800 | Z23: 3878
A24: 1950 | B24: 39 | C24: - | D24: - | E24: EPA213001950 | F24: 1471 | G24: EPA223001950 | H24: 1975 | I24: EPA333001950 | J24: 2764 | K24: - | L24: - | M24: EPA214001950 | N24: 1825 | O24: EPA224001950 | P24: 2467 | Q24: EPA334001950 | R24: 3507 | S24: - | T24: - | U24: EPA215001950 | V24: 2158 | W24: EPA225001950 | X24: 2923 | Y24: EPA335001950 | Z24: 4201
A25: 2100 | B25: 42 | C25: - | D25: - | E25: EPA213002100 | F25: 1584 | G25: EPA223002100 | H25: 2126 | I25: EPA333002100 | J25: 2976 | K25: - | L25: - | M25: EPA214002100 | N25: 1965 | O25: EPA224002100 | P25: 2657 | Q25: EPA334002100 | R25: 3777 | S25: - | T25: - | U25: EPA215002100 | V25: 2324 | W25: EPA225002100 | X25: 3148 | Y25: EPA335002100 | Z25: 4525
A26: 2250 | B26: 45 | C26: - | D26: - | E26: EPA213002250 | F26: 1697 | G26: EPA223002250 | H26: 2278 | I26: EPA333002250 | J26: 3189 | K26: - | L26: - | M26: EPA214002250 | N26: 2106 | O26: EPA224002250 | P26: 2846 | Q26: EPA334002250 | R26: 4047 | S26: - | T26: - | U26: EPA215002250 | V26: 2490 | W26: EPA225002250 | X26: 3373 | Y26: EPA335002250 | Z26: 4848
A27: 2400 | B27: 48 | C27: - | D27: - | E27: EPA213002400 | F27: 1811 | G27: EPA223002400 | H27: 2430 | I27: EPA333002400 | J27: 3401 | K27: - | L27: - | M27: EPA214002400 | N27: 2246 | O27: EPA224002400 | P27: 3036 | Q27: EPA334002400 | R27: 4317 | S27: - | T27: - | U27: EPA215002400 | V27: 2656 | W27: EPA225002400 | X27: 3598 | Y27: EPA335002400 | Z27: 5171
A28: 2550 | B28: 51 | C28: - | D28: - | E28: EPA213002550 | F28: 1924 | G28: EPA223002550 | H28: 2582 | I28: EPA333002550 | J28: 3614 | K28: - | L28: - | M28: EPA214002550 | N28: 2386 | O28: EPA224002550 | P28: 3226 | Q28: EPA334002550 | R28: 4586 | S28: - | T28: - | U28: EPA215002550 | V28: 2822 | W28: EPA225002550 | X28: 3823 | Y28: EPA335002550 | Z28: 5494
A29: 2700 | B29: 54 | C29: - | D29: - | E29: EPA213002700 | F29: 2037 | G29: EPA223002700 | H29: 2734 | I29: EPA333002700 | J29: 3826 | K29: - | L29: - | M29: EPA214002700 | N29: 2527 | O29: EPA224002700 | P29: 3416 | Q29: EPA334002700 | R29: 4856 | S29: - | T29: - | U29: EPA215002700 | V29: 2988 | W29: EPA225002700 | X29: 4048 | Y29: EPA335002700 | Z29: 5817
A30: 3000 | B30: 60 | C30: - | D30: - | E30: EPA213003000 | F30: 2263 | G30: EPA223003000 | H30: 3038 | I30: EPA333003000 | J30: 4252 | K30: - | L30: - | M30: EPA214003000 | N30: 2807 | O30: EPA224003000 | P30: 3795 | Q30: EPA334003000 | R30: 5396 | S30: - | T30: - | U30: EPA215003000 | V30: 3320 | W30: EPA225003000 | X30: 4498 | Y30: EPA335003000 | Z30: 6464
A33: Hauteur | C33: =C81 -> 600 | K33: =K81 -> 750 | S33: =S81 -> 900
A34: Type | C34: =C82 -> EPA11 | E34: =E82 -> EPA21 | G34: =G82 -> EPA22 | I34: =I82 -> EPA33 | K34: =K82 -> EPA11 | M34: =M82 -> EPA21 | O34: =O82 -> EPA22 | Q34: =Q82 -> EPA33 | S34: =S82 -> EPA11 | U34: =U82 -> EPA21 | W34: =W82 -> EPA22 | Y34: =Y82 -> EPA33
A35: Longueur (mm) | B35: Nombre éléments | C35: Modèle | D35: Puissance (watts) | E35: Modèle | F35: Puissance (watts) | G35: Modèle | H35: Puissance (watts) | I35: Modèle | J35: Puissance (watts) | K35: Modèle | L35: Puissance (watts) | M35: Modèle | N35: Puissance (watts) | O35: Modèle | P35: Puissance (watts) | Q35: Modèle | R35: Puissance (watts) | S35: Modèle | T35: Puissance (watts) | U35: Modèle | V35: Puissance (watts) | W35: Modèle | X35: Puissance (watts) | Y35: Modèle | Z35: Puissance (watts)
A36: =A84 -> 450 | B36: =B84 -> 9 | C36: =C84 -> EPA116000450 | D36: =IF(D84=""," - ",IF($B$6<0.7,D84*POWER($B$8/50,C$80),D84*POWER($B$7/50,C$80))) -> 424 | E36: =E84 -> EPA216000450 | F36: =IF(F84=""," - ",IF($B$6<0.7,F84*POWER($B$8/50,E$80),F84*POWER($B$7/50,E$80))) -> 571 | G36: =G84 -> EPA226000450 | H36: =IF(H84=""," - ",IF($B$6<0.7,H84*POWER($B$8/50,G$80),H84*POWER($B$7/50,G$80))) -> 773 | I36: =I84 -> EPA336000450 | J36: =IF(J84=""," - ",IF($B$6<0.7,J84*POWER($B$8/50,I$80),J84*POWER($B$7/50,I$80))) -> 1120 | K36: =K84 -> EPA117500450 | L36: =IF(L84=""," - ",IF($B$6<0.7,L84*POWER($B$8/50,K$80),L84*POWER($B$7/50,K$80))) -> 506 | M36: =M84 -> EPA217500450 | N36: =IF(N84=""," - ",IF($B$6<0.7,N84*POWER($B$8/50,M$80),N84*POWER($B$7/50,M$80))) -> 676 | O36: =O84 -> EPA227500450 | P36: =IF(P84=""," - ",IF($B$6<0.7,P84*POWER($B$8/50,O$80),P84*POWER($B$7/50,O$80))) -> 911 | Q36: =Q84 -> EPA337500450 | R36: =IF(R84=""," - ",IF($B$6<0.7,R84*POWER($B$8/50,Q$80),R84*POWER($B$7/50,Q$80))) -> 1329 | S36: =S84 -> EPA119000450 | T36: =IF(T84=""," - ",IF($B$6<0.7,T84*POWER($B$8/50,S$80),T84*POWER($B$7/50,S$80))) -> 584 | U36: =U84 -> EPA219000450 | V36: =IF(V84=""," - ",IF($B$6<0.7,V84*POWER($B$8/50,U$80),V84*POWER($B$7/50,U$80))) -> 776 | W36: =W84 -> EPA229000450 | X36: =IF(X84=""," - ",IF($B$6<0.7,X84*POWER($B$8/50,W$80),X84*POWER($B$7/50,W$80))) -> 1037 | Y36: =Y84 -> EPA339000450 | Z36: =IF(Z84=""," - ",IF($B$6<0.7,Z84*POWER($B$8/50,Y$80),Z84*POWER($B$7/50,Y$80))) -> 1521
A37: =A85 -> 600 | B37: 12 | C37: =C85 -> EPA116000600 | D37: =IF(D85=""," - ",IF($B$6<0.7,D85*POWER($B$8/50,C$80),D85*POWER($B$7/50,C$80))) -> 565 | E37: EPA216000600 | F37: =IF(F85=""," - ",IF($B$6<0.7,F85*POWER($B$8/50,E$80),F85*POWER($B$7/50,E$80))) -> 762 | G37: EPA226000600 | H37: =IF(H85=""," - ",IF($B$6<0.7,H85*POWER($B$8/50,G$80),H85*POWER($B$7/50,G$80))) -> 1031 | I37: EPA336000600 | J37: =IF(J85=""," - ",IF($B$6<0.7,J85*POWER($B$8/50,I$80),J85*POWER($B$7/50,I$80))) -> 1493 | K37: EPA117500600 | L37: =IF(L85=""," - ",IF($B$6<0.7,L85*POWER($B$8/50,K$80),L85*POWER($B$7/50,K$80))) -> 675 | M37: EPA217500600 | N37: =IF(N85=""," - ",IF($B$6<0.7,N85*POWER($B$8/50,M$80),N85*POWER($B$7/50,M$80))) -> 901 | O37: EPA227500600 | P37: =IF(P85=""," - ",IF($B$6<0.7,P85*POWER($B$8/50,O$80),P85*POWER($B$7/50,O$80))) -> 1214 | Q37: EPA337500600 | R37: =IF(R85=""," - ",IF($B$6<0.7,R85*POWER($B$8/50,Q$80),R85*POWER($B$7/50,Q$80))) -> 1772 | S37: EPA119000600 | T37: =IF(T85=""," - ",IF($B$6<0.7,T85*POWER($B$8/50,S$80),T85*POWER($B$7/50,S$80))) -> 779 | U37: EPA219000600 | V37: =IF(V85=""," - ",IF($B$6<0.7,V85*POWER($B$8/50,U$80),V85*POWER($B$7/50,U$80))) -> 1034 | W37: EPA229000600 | X37: =IF(X85=""," - ",IF($B$6<0.7,X85*POWER($B$8/50,W$80),X85*POWER($B$7/50,W$80))) -> 1383 | Y37: EPA339000600 | Z37: =IF(Z85=""," - ",IF($B$6<0.7,Z85*POWER($B$8/50,Y$80),Z85*POWER($B$7/50,Y$80))) -> 2028
A38: 750 | B38: 15 | C38: EPA116000750 | D38: 707 | E38: EPA216000750 | F38: 952 | G38: EPA226000750 | H38: 1289 | I38: EPA336000750 | J38: 1867 | K38: EPA117500750 | L38: 844 | M38: EPA217500750 | N38: 1127 | O38: EPA227500750 | P38: 1518 | Q38: EPA337500750 | R38: 2215 | S38: EPA119000750 | T38: 974 | U38: EPA219000750 | V38: 1293 | W38: EPA229000750 | X38: 1729 | Y38: EPA339000750 | Z38: 2535
A39: 900 | B39: 18 | C39: EPA116000900 | D39: 848 | E39: EPA216000900 | F39: 1142 | G39: EPA226000900 | H39: 1547 | I39: EPA336000900 | J39: 2240 | K39: EPA117500900 | L39: 1013 | M39: EPA217500900 | N39: 1352 | O39: EPA227500900 | P39: 1822 | Q39: EPA337500900 | R39: 2658 | S39: EPA119000900 | T39: 1168 | U39: EPA219000900 | V39: 1552 | W39: EPA229000900 | X39: 2075 | Y39: EPA339000900 | Z39: 3041
A40: 1050 | B40: 21 | C40: EPA116001050 | D40: 990 | E40: EPA216001050 | F40: 1333 | G40: EPA226001050 | H40: 1804 | I40: EPA336001050 | J40: 2613 | K40: EPA117501050 | L40: 1181 | M40: EPA217501050 | N40: 1577 | O40: EPA227501050 | P40: 2125 | Q40: EPA337501050 | R40: 3101 | S40: EPA119001050 | T40: 1363 | U40: EPA219001050 | V40: 1810 | W40: EPA229001050 | X40: 2421 | Y40: EPA339001050 | Z40: 3548
A41: 1200 | B41: 24 | C41: EPA116001200 | D41: 1131 | E41: EPA216001200 | F41: 1523 | G41: EPA226001200 | H41: 2062 | I41: EPA336001200 | J41: 2987 | K41: EPA117501200 | L41: 1350 | M41: EPA217501200 | N41: 1802 | O41: EPA227501200 | P41: 2429 | Q41: EPA337501200 | R41: 3544 | S41: EPA119001200 | T41: 1558 | U41: EPA219001200 | V41: 2069 | W41: EPA229001200 | X41: 2766 | Y41: EPA339001200 | Z41: 4055
A42: 1350 | B42: 27 | C42: EPA116001350 | D42: 1272 | E42: EPA216001350 | F42: 1713 | G42: EPA226001350 | H42: 2320 | I42: EPA336001350 | J42: 3360 | K42: EPA117501350 | L42: 1519 | M42: EPA217501350 | N42: 2028 | O42: EPA227501350 | P42: 2732 | Q42: EPA337501350 | R42: 3987 | S42: EPA119001350 | T42: 1753 | U42: EPA219001350 | V42: 2327 | W42: EPA229001350 | X42: 3112 | Y42: EPA339001350 | Z42: 4562
A43: 1500 | B43: 30 | C43: EPA116001500 | D43: 1414 | E43: EPA216001500 | F43: 1904 | G43: EPA226001500 | H43: 2578 | I43: EPA336001500 | J43: 3733 | K43: EPA117501500 | L43: 1688 | M43: EPA217501500 | N43: 2253 | O43: EPA227501500 | P43: 3036 | Q43: EPA337501500 | R43: 4430 | S43: EPA119001500 | T43: 1947 | U43: EPA219001500 | V43: 2586 | W43: EPA229001500 | X43: 3458 | Y43: EPA339001500 | Z43: 5069
A44: 1650 | B44: 33 | C44: EPA116001650 | D44: 1555 | E44: EPA216001650 | F44: 2094 | G44: EPA226001650 | H44: 2835 | I44: EPA336001650 | J44: 4107 | K44: EPA117501650 | L44: 1856 | M44: EPA217501650 | N44: 2478 | O44: EPA227501650 | P44: 3340 | Q44: EPA337501650 | R44: 4873 | S44: EPA119001650 | T44: 2142 | U44: EPA219001650 | V44: 2845 | W44: EPA229001650 | X44: 3804 | Y44: EPA339001650 | Z44: 5576
A45: 1800 | B45: 36 | C45: - | D45: - | E45: EPA216001800 | F45: 2285 | G45: EPA226001800 | H45: 3093 | I45: EPA336001800 | J45: 4480 | K45: - | L45: - | M45: EPA217501800 | N45: 2704 | O45: EPA227501800 | P45: 3643 | Q45: EPA337501800 | R45: 5316 | S45: - | T45: - | U45: EPA219001800 | V45: 3103 | W45: EPA229001800 | X45: 4150 | Y45: EPA339001800 | Z45: 6083
A46: 1950 | B46: 39 | C46: - | D46: - | E46: EPA216001950 | F46: 2475 | G46: EPA226001950 | H46: 3351 | I46: EPA336001950 | J46: 4853 | K46: - | L46: - | M46: EPA217501950 | N46: 2929 | O46: EPA227501950 | P46: 3947 | Q46: EPA337501950 | R46: 5759 | S46: - | T46: - | U46: EPA219001950 | V46: 3362 | W46: EPA229001950 | X46: 4496 | Y46: EPA339001950 | Z46: 6590
A47: 2100 | B47: 42 | C47: - | D47: - | E47: EPA216002100 | F47: 2665 | G47: EPA226002100 | H47: 3609 | I47: EPA336002100 | J47: 5226 | K47: - | L47: - | M47: EPA217502100 | N47: 3154 | O47: EPA227502100 | P47: 4250 | Q47: EPA337502100 | R47: 6202 | S47: - | T47: - | U47: EPA219002100 | V47: 3620 | W47: EPA229002100 | X47: 4841 | Y47: EPA339002100 | Z47: 7097
A48: 2250 | B48: 45 | C48: - | D48: - | E48: EPA216002250 | F48: 2856 | G48: EPA226002250 | H48: 3866 | I48: EPA336002250 | J48: 5600 | K48: - | L48: - | M48: EPA217502250 | N48: 3380 | O48: EPA227502250 | P48: 4554 | Q48: EPA337502250 | R48: 6645 | S48: - | T48: - | U48: EPA219002250 | V48: 3879 | W48: EPA229002250 | X48: 5187 | Y48: EPA339002250 | Z48: 7604
A49: 2400 | B49: 48 | C49: - | D49: - | E49: EPA216002400 | F49: 3046 | G49: EPA226002400 | H49: 4124 | I49: EPA336002400 | J49: 5973 | K49: - | L49: - | M49: EPA217502400 | N49: 3605 | O49: EPA227502400 | P49: 4858 | Q49: EPA337502400 | R49: 7088 | S49: - | T49: - | U49: EPA219002400 | V49: 4138 | W49: EPA229002400 | X49: 5533 | Y49: EPA339002400 | Z49: 8111
A50: 2550 | B50: 51 | C50: - | D50: - | E50: EPA216002550 | F50: 3236 | G50: EPA226002550 | H50: 4382 | I50: EPA336002550 | J50: 6346 | K50: - | L50: - | M50: EPA217502550 | N50: 3830 | O50: EPA227502550 | P50: 5161 | Q50: EPA337502550 | R50: 7531 | S50: - | T50: - | U50: EPA219002550 | V50: 4396 | W50: EPA229002550 | X50: 5879 | Y50: EPA339002550 | Z50: 8617
A51: 2700 | B51: 54 | C51: - | D51: - | E51: EPA216002700 | F51: 3427 | G51: EPA226002700 | H51: 4640 | I51: EPA336002700 | J51: 6720 | K51: - | L51: - | M51: EPA217502700 | N51: 4055 | O51: EPA227502700 | P51: 5465 | Q51: EPA337502700 | R51: 7974 | S51: - | T51: - | U51: EPA219002700 | V51: 4655 | W51: EPA229002700 | X51: 6225 | Y51: EPA339002700 | Z51: 9124
A52: 3000 | B52: 60 | C52: - | D52: - | E52: EPA216003000 | F52: 3808 | G52: EPA226003000 | H52: 5155 | I52: EPA336003000 | J52: 7466 | K52: - | L52: - | M52: EPA217503000 | N52: 4506 | O52: EPA227503000 | P52: 6072 | Q52: EPA337503000 | R52: 8860 | S52: - | T52: - | U52: EPA219003000 | V52: 5172 | W52: EPA229003000 | X52: 6916 | Y52: EPA339003000 | Z52: 10138
A56: Tableau de référence
A58: PENTE : | C58: 1.3436 | E58: 1.3096 | G58: 1.3154 | I58: 1.3144 | K58: 1.3382 | M58: 1.3209 | O58: 1.3208 | Q58: 1.3224 | S58: 1.3329 | U58: 1.3322 | W58: 1.3261 | Y58: 1.3323
A59: Hauteur | C59: 300 | K59: 400 | S59: 500
A60: Type | C60: EPA11 | E60: EPA21 | G60: EPA22 | I60: EPA33 | K60: EPA11 | M60: EPA21 | O60: EPA22 | Q60: EPA33 | S60: EPA11 | U60: EPA21 | W60: EPA22 | Y60: EPA33
A61: Longueur (mm) | B61: Nombre éléments | C61: Modèle | D61: Watt Dt 50°C | E61: Modèle | F61: Watt Dt 50°C | G61: Modèle | H61: Watt Dt 50°C | I61: Modèle | J61: Watt Dt 50°C | K61: Modèle | L61: Watt Dt 50°C | M61: Modèle | N61: Watt Dt 50°C | O61: Modèle | P61: Watt Dt 50°C | Q61: Modèle | R61: Watt Dt 50°C | S61: Modèle | T61: Watt Dt 50°C | U61: Modèle | V61: Watt Dt 50°C | W61: Modèle | X61: Watt Dt 50°C | Y61: Modèle | Z61: Watt Dt 50°C
A62: 450 | B62: =A62/50 -> 9 | C62: =IF(D62=""," - ",IF(LEN($A62)=3,C$60&$C$59&"0"&$A62,C$60&$C$59&$A62)) -> EPA113000450 | D62: 242 | E62: =IF(F62=""," - ",IF(LEN($A62)=3,E$60&$C$59&"0"&$A62,E$60&$C$59&$A62)) -> EPA213000450 | F62: 339 | G62: =IF(H62=""," - ",IF(LEN($A62)=3,G$60&$C$59&"0"&$A62,G$60&$C$59&$A62)) -> EPA223000450 | H62: 456 | I62: =IF(J62=""," - ",IF(LEN($A62)=3,I$60&$C$59&"0"&$A62,I$60&$C$59&$A62)) -> EPA333000450 | J62: 638 | K62: =IF(L62=""," - ",IF(LEN($A62)=3,K$60&$K$59&"0"&$A62,K$60&$K$59&$A62)) -> EPA114000450 | L62: 306 | M62: =IF(N62=""," - ",IF(LEN($A62)=3,M$60&$K$59&"0"&$A62,M$60&$K$59&$A62)) -> EPA214000450 | N62: 421 | O62: =IF(P62=""," - ",IF(LEN($A62)=3,O$60&$K$59&"0"&$A62,O$60&$K$59&$A62)) -> EPA224000450 | P62: 569 | Q62: =IF(R62=""," - ",IF(LEN($A62)=3,Q$60&$K$59&"0"&$A62,Q$60&$K$59&$A62)) -> EPA334000450 | R62: 809 | S62: =IF(T62=""," - ",IF(LEN($A62)=3,S$60&$S$59&"0"&$A62,S$60&$S$59&$A62)) -> EPA115000450 | T62: 366 | U62: =IF(V62=""," - ",IF(LEN($A62)=3,U$60&$S$59&"0"&$A62,U$60&$S$59&$A62)) -> EPA215000450 | V62: 498 | W62: =IF(X62=""," - ",IF(LEN($A62)=3,W$60&$S$59&"0"&$A62,W$60&$S$59&$A62)) -> EPA225000450 | X62: 675 | Y62: =IF(Z62=""," - ",IF(LEN($A62)=3,Y$60&$S$59&"0"&$A62,Y$60&$S$59&$A62)) -> EPA335000450 | Z62: 970
A63: 600 | B63: =A63/50 -> 12 | C63: EPA113000600 | D63: 323 | E63: EPA213000600 | F63: 453 | G63: EPA223000600 | H63: 608 | I63: EPA333000600 | J63: 850 | K63: EPA114000600 | L63: 408 | M63: EPA214000600 | N63: 561 | O63: EPA224000600 | P63: 759 | Q63: EPA334000600 | R63: 1079 | S63: =IF(T63=""," - ",IF(LEN($A63)=3,S$60&$S$59&"0"&$A63,S$60&$S$59&$A63)) -> EPA115000600 | T63: 489 | U63: EPA215000600 | V63: 664 | W63: EPA225000600 | X63: 900 | Y63: EPA335000600 | Z63: 1293
A64: 750 | B64: 15 | C64: EPA113000750 | D64: 404 | E64: EPA213000750 | F64: 566 | G64: EPA223000750 | H64: 759 | I64: EPA333000750 | J64: 1063 | K64: EPA114000750 | L64: 510 | M64: EPA214000750 | N64: 702 | O64: EPA224000750 | P64: 949 | Q64: EPA334000750 | R64: 1349 | S64: EPA115000750 | T64: 611 | U64: EPA215000750 | V64: 830 | W64: EPA225000750 | X64: 1124 | Y64: EPA335000750 | Z64: 1616
A65: 900 | B65: 18 | C65: EPA113000900 | D65: 485 | E65: EPA213000900 | F65: 679 | G65: EPA223000900 | H65: 911 | I65: EPA333000900 | J65: 1275 | K65: EPA114000900 | L65: 612 | M65: EPA214000900 | N65: 842 | O65: EPA224000900 | P65: 1139 | Q65: EPA334000900 | R65: 1619 | S65: EPA115000900 | T65: 733 | U65: EPA215000900 | V65: 996 | W65: EPA225000900 | X65: 1349 | Y65: EPA335000900 | Z65: 1939
A66: 1050 | B66: 21 | C66: EPA113001050 | D66: 565 | E66: EPA213001050 | F66: 792 | G66: EPA223001050 | H66: 1063 | I66: EPA333001050 | J66: 1488 | K66: EPA114001050 | L66: 714 | M66: EPA214001050 | N66: 983 | O66: EPA224001050 | P66: 1328 | Q66: EPA334001050 | R66: 1889 | S66: EPA115001050 | T66: 855 | U66: EPA215001050 | V66: 1162 | W66: EPA225001050 | X66: 1574 | Y66: EPA335001050 | Z66: 2262
A67: 1200 | B67: 24 | C67: EPA113001200 | D67: 646 | E67: EPA213001200 | F67: 905 | G67: EPA223001200 | H67: 1215 | I67: EPA333001200 | J67: 1701 | K67: EPA114001200 | L67: 816 | M67: EPA214001200 | N67: 1123 | O67: EPA224001200 | P67: 1518 | Q67: EPA334001200 | R67: 2158 | S67: EPA115001200 | T67: 977 | U67: EPA215001200 | V67: 1328 | W67: EPA225001200 | X67: 1799 | Y67: EPA335001200 | Z67: 2586
A68: 1350 | B68: 27 | C68: EPA113001350 | D68: 727 | E68: EPA213001350 | F68: 1018 | G68: EPA223001350 | H68: 1367 | I68: EPA333001350 | J68: 1913 | K68: EPA114001350 | L68: 918 | M68: EPA214001350 | N68: 1263 | O68: EPA224001350 | P68: 1708 | Q68: EPA334001350 | R68: 2428 | S68: EPA115001350 | T68: 1099 | U68: EPA215001350 | V68: 1494 | W68: EPA225001350 | X68: 2024 | Y68: EPA335001350 | Z68: 2909
A69: 1500 | B69: 30 | C69: EPA113001500 | D69: 808 | E69: EPA213001500 | F69: 1132 | G69: EPA223001500 | H69: 1519 | I69: EPA333001500 | J69: 2126 | K69: EPA114001500 | L69: 1020 | M69: EPA214001500 | N69: 1404 | O69: EPA224001500 | P69: 1898 | Q69: EPA334001500 | R69: 2698 | S69: EPA115001500 | T69: 1221 | U69: EPA215001500 | V69: 1660 | W69: EPA225001500 | X69: 2249 | Y69: EPA335001500 | Z69: 3232
A70: 1650 | B70: 33 | C70: EPA113001650 | D70: 888 | E70: EPA213001650 | F70: 1245 | G70: EPA223001650 | H70: 1671 | I70: EPA333001650 | J70: 2338 | K70: EPA114001650 | L70: 1122 | M70: EPA214001650 | N70: 1544 | O70: EPA224001650 | P70: 2087 | Q70: EPA334001650 | R70: 2968 | S70: EPA115001650 | T70: 1343 | U70: EPA215001650 | V70: 1826 | W70: EPA225001650 | X70: 2474 | Y70: EPA335001650 | Z70: 3555
A71: 1800 | B71: 36 | C71: - | E71: EPA213001800 | F71: 1358 | G71: EPA223001800 | H71: 1823 | I71: EPA333001800 | J71: 2551 | K71: - | M71: EPA214001800 | N71: 1684 | O71: EPA224001800 | P71: 2277 | Q71: EPA334001800 | R71: 3237 | S71: - | U71: EPA215001800 | V71: 1992 | W71: EPA225001800 | X71: 2699 | Y71: EPA335001800 | Z71: 3878
A72: 1950 | B72: 39 | C72: - | E72: EPA213001950 | F72: 1471 | G72: EPA223001950 | H72: 1975 | I72: EPA333001950 | J72: 2764 | K72: - | M72: EPA214001950 | N72: 1825 | O72: EPA224001950 | P72: 2467 | Q72: EPA334001950 | R72: 3507 | S72: - | U72: EPA215001950 | V72: 2158 | W72: EPA225001950 | X72: 2923 | Y72: EPA335001950 | Z72: 4201
A73: 2100 | B73: 42 | C73: - | E73: EPA213002100 | F73: 1584 | G73: EPA223002100 | H73: 2126 | I73: EPA333002100 | J73: 2976 | K73: - | M73: EPA214002100 | N73: 1965 | O73: EPA224002100 | P73: 2657 | Q73: EPA334002100 | R73: 3777 | S73: - | U73: EPA215002100 | V73: 2324 | W73: EPA225002100 | X73: 3148 | Y73: EPA335002100 | Z73: 4525
A74: 2250 | B74: 45 | C74: - | E74: EPA213002250 | F74: 1697 | G74: EPA223002250 | H74: 2278 | I74: EPA333002250 | J74: 3189 | K74: - | M74: EPA214002250 | N74: 2106 | O74: EPA224002250 | P74: 2846 | Q74: EPA334002250 | R74: 4047 | S74: - | U74: EPA215002250 | V74: 2490 | W74: EPA225002250 | X74: 3373 | Y74: EPA335002250 | Z74: 4848
A75: 2400 | B75: 48 | C75: - | E75: EPA213002400 | F75: 1811 | G75: EPA223002400 | H75: 2430 | I75: EPA333002400 | J75: 3401 | K75: - | M75: EPA214002400 | N75: 2246 | O75: EPA224002400 | P75: 3036 | Q75: EPA334002400 | R75: 4317 | S75: - | U75: EPA215002400 | V75: 2656 | W75: EPA225002400 | X75: 3598 | Y75: EPA335002400 | Z75: 5171
A76: 2550 | B76: 51 | C76: - | E76: EPA213002550 | F76: 1924 | G76: EPA223002550 | H76: 2582 | I76: EPA333002550 | J76: 3614 | K76: - | M76: EPA214002550 | N76: 2386 | O76: EPA224002550 | P76: 3226 | Q76: EPA334002550 | R76: 4586 | S76: - | U76: EPA215002550 | V76: 2822 | W76: EPA225002550 | X76: 3823 | Y76: EPA335002550 | Z76: 5494
A77: 2700 | B77: 54 | C77: - | E77: EPA213002700 | F77: 2037 | G77: EPA223002700 | H77: 2734 | I77: EPA333002700 | J77: 3826 | K77: - | M77: EPA214002700 | N77: 2527 | O77: EPA224002700 | P77: 3416 | Q77: EPA334002700 | R77: 4856 | S77: - | U77: EPA215002700 | V77: 2988 | W77: EPA225002700 | X77: 4048 | Y77: EPA335002700 | Z77: 5817
A78: 3000 | B78: 60 | C78: - | E78: EPA213003000 | F78: 2263 | G78: EPA223003000 | H78: 3038 | I78: EPA333003000 | J78: 4252 | K78: - | M78: EPA214003000 | N78: 2807 | O78: EPA224003000 | P78: 3795 | Q78: EPA334003000 | R78: 5396 | S78: - | U78: EPA215003000 | V78: 3320 | W78: EPA225003000 | X78: 4498 | Y78: EPA335003000 | Z78: 6464
A80: PENTE : | C80: 1.3275 | E80: 1.3435 | G80: 1.3315 | I80: 1.3413 | K80: 1.3224 | M80: 1.3584 | O80: 1.3497 | Q80: 1.3596 | S80: 1.3172 | U80: 1.3732 | W80: 1.3678 | Y80: 1.3779 | AR80: 1.354
A81: Hauteur | C81: 600 | K81: 750 | S81: 900
A82: Type | C82: EPA11 | E82: EPA21 | G82: EPA22 | I82: EPA33 | K82: EPA11 | M82: EPA21 | O82: EPA22 | Q82: EPA33 | S82: EPA11 | U82: EPA21 | W82: EPA22 | Y82: EPA33
A83: Longueur (mm) | B83: Nombre éléments | C83: Modèle | D83: Watt Dt 50°C | E83: Modèle | F83: Watt Dt 50°C | G83: Modèle | H83: Watt Dt 50°C | I83: Modèle | J83: Watt Dt 50°C | K83: Modèle | L83: Watt Dt 50°C | M83: Modèle | N83: Watt Dt 50°C | O83: Modèle | P83: Watt Dt 50°C | Q83: Modèle | R83: Watt Dt 50°C | S83: Modèle | U83: Modèle | V83: Watt Dt 50°C | W83: Modèle | X83: Watt Dt 50°C | Y83: Modèle | Z83: Watt Dt 50°C
A84: 450 | B84: =A84/50 -> 9 | C84: =IF(D84=""," - ",IF(LEN($A62)=3,C$82&$C$81&"0"&$A62,C$82&$C$81&$A62)) -> EPA116000450 | D84: 424 | E84: =IF(F84=""," - ",IF(LEN($A62)=3,E$82&$C$81&"0"&$A62,E$82&$C$81&$A62)) -> EPA216000450 | F84: 571 | G84: =IF(H84=""," - ",IF(LEN($A62)=3,G$82&$C$81&"0"&$A62,G$82&$C$81&$A62)) -> EPA226000450 | H84: 773 | I84: =IF(J84=""," - ",IF(LEN($A62)=3,I$82&$C$81&"0"&$A62,I$82&$C$81&$A62)) -> EPA336000450 | J84: 1120 | K84: =IF(L84=""," - ",IF(LEN($A84)=3,K$82&$K$81&"0"&$A84,K$82&$K$81&$A84)) -> EPA117500450 | L84: 506 | M84: =IF(N84=""," - ",IF(LEN($A84)=3,M$82&$K$81&"0"&$A84,M$82&$K$81&$A84)) -> EPA217500450 | N84: 676 | O84: =IF(P84=""," - ",IF(LEN($A84)=3,O$82&$K$81&"0"&$A84,O$82&$K$81&$A84)) -> EPA227500450 | P84: 911 | Q84: =IF(R84=""," - ",IF(LEN($A84)=3,Q$82&$K$81&"0"&$A84,Q$82&$K$81&$A84)) -> EPA337500450 | R84: 1329 | S84: =IF(T84=""," - ",IF(LEN($A84)=3,S$82&$S$81&"0"&$A84,S$82&$S$81&$A84)) -> EPA119000450 | T84: 584 | U84: =IF(V84=""," - ",IF(LEN($A84)=3,U$82&$S$81&"0"&$A84,U$82&$S$81&$A84)) -> EPA219000450 | V84: 776 | W84: =IF(X84=""," - ",IF(LEN($A84)=3,W$82&$S$81&"0"&$A84,W$82&$S$81&$A84)) -> EPA229000450 | X84: 1037 | Y84: =IF(Z84=""," - ",IF(LEN($A84)=3,Y$82&$S$81&"0"&$A84,Y$82&$S$81&$A84)) -> EPA339000450 | Z84: 1521
A85: 600 | B85: =A85/50 -> 12 | C85: EPA116000600 | D85: 565 | E85: EPA216000600 | F85: 762 | G85: EPA226000600 | H85: 1031 | I85: EPA336000600 | J85: 1493 | K85: EPA117500600 | L85: 675 | M85: EPA217500600 | N85: 901 | O85: EPA227500600 | P85: 1214 | Q85: EPA337500600 | R85: 1772 | S85: EPA119000600 | T85: 779 | U85: EPA219000600 | V85: 1034 | W85: EPA229000600 | X85: 1383 | Y85: EPA339000600 | Z85: 2028
A86: 750 | B86: 15 | C86: EPA116000750 | D86: 707 | E86: EPA216000750 | F86: 952 | G86: EPA226000750 | H86: 1289 | I86: EPA336000750 | J86: 1867 | K86: EPA117500750 | L86: 844 | M86: EPA217500750 | N86: 1127 | O86: EPA227500750 | P86: 1518 | Q86: EPA337500750 | R86: 2215 | S86: EPA119000750 | T86: 974 | U86: EPA219000750 | V86: 1293 | W86: EPA229000750 | X86: 1729 | Y86: EPA339000750 | Z86: 2535
A87: 900 | B87: 18 | C87: EPA116000900 | D87: 848 | E87: EPA216000900 | F87: 1142 | G87: EPA226000900 | H87: 1547 | I87: EPA336000900 | J87: 2240 | K87: EPA117500900 | L87: 1013 | M87: EPA217500900 | N87: 1352 | O87: EPA227500900 | P87: 1822 | Q87: EPA337500900 | R87: 2658 | S87: EPA119000900 | T87: 1168 | U87: EPA219000900 | V87: 1552 | W87: EPA229000900 | X87: 2075 | Y87: EPA339000900 | Z87: 3041
A88: 1050 | B88: 21 | C88: EPA116001050 | D88: 990 | E88: EPA216001050 | F88: 1333 | G88: EPA226001050 | H88: 1804 | I88: EPA336001050 | J88: 2613 | K88: EPA117501050 | L88: 1181 | M88: EPA217501050 | N88: 1577 | O88: EPA227501050 | P88: 2125 | Q88: EPA337501050 | R88: 3101 | S88: EPA119001050 | T88: 1363 | U88: EPA219001050 | V88: 1810 | W88: EPA229001050 | X88: 2421 | Y88: EPA339001050 | Z88: 3548
A89: 1200 | B89: 24 | C89: EPA116001200 | D89: 1131 | E89: EPA216001200 | F89: 1523 | G89: EPA226001200 | H89: 2062 | I89: EPA336001200 | J89: 2987 | K89: EPA117501200 | L89: 1350 | M89: EPA217501200 | N89: 1802 | O89: EPA227501200 | P89: 2429 | Q89: EPA337501200 | R89: 3544 | S89: EPA119001200 | T89: 1558 | U89: EPA219001200 | V89: 2069 | W89: EPA229001200 | X89: 2766 | Y89: EPA339001200 | Z89: 4055
A90: 1350 | B90: 27 | C90: EPA116001350 | D90: 1272 | E90: EPA216001350 | F90: 1713 | G90: EPA226001350 | H90: 2320 | I90: EPA336001350 | J90: 3360 | K90: EPA117501350 | L90: 1519 | M90: EPA217501350 | N90: 2028 | O90: EPA227501350 | P90: 2732 | Q90: EPA337501350 | R90: 3987 | S90: EPA119001350 | T90: 1753 | U90: EPA219001350 | V90: 2327 | W90: EPA229001350 | X90: 3112 | Y90: EPA339001350 | Z90: 4562
A91: 1500 | B91: 30 | C91: EPA116001500 | D91: 1414 | E91: EPA216001500 | F91: 1904 | G91: EPA226001500 | H91: 2578 | I91: EPA336001500 | J91: 3733 | K91: EPA117501500 | L91: 1688 | M91: EPA217501500 | N91: 2253 | O91: EPA227501500 | P91: 3036 | Q91: EPA337501500 | R91: 4430 | S91: EPA119001500 | T91: 1947 | U91: EPA219001500 | V91: 2586 | W91: EPA229001500 | X91: 3458 | Y91: EPA339001500 | Z91: 5069
A92: 1650 | B92: 33 | C92: EPA116001650 | D92: 1555 | E92: EPA216001650 | F92: 2094 | G92: EPA226001650 | H92: 2835 | I92: EPA336001650 | J92: 4107 | K92: EPA117501650 | L92: 1856 | M92: EPA217501650 | N92: 2478 | O92: EPA227501650 | P92: 3340 | Q92: EPA337501650 | R92: 4873 | S92: EPA119001650 | T92: 2142 | U92: EPA219001650 | V92: 2845 | W92: EPA229001650 | X92: 3804 | Y92: EPA339001650 | Z92: 5576
A93: 1800 | B93: 36 | C93: - | E93: EPA216001800 | F93: 2285 | G93: EPA226001800 | H93: 3093 | I93: EPA336001800 | J93: 4480 | K93: - | M93: EPA217501800 | N93: 2704 | O93: EPA227501800 | P93: 3643 | Q93: EPA337501800 | R93: 5316 | S93: - | U93: EPA219001800 | V93: 3103 | W93: EPA229001800 | X93: 4150 | Y93: EPA339001800 | Z93: 6083
A94: 1950 | B94: 39 | C94: - | E94: EPA216001950 | F94: 2475 | G94: EPA226001950 | H94: 3351 | I94: EPA336001950 | J94: 4853 | K94: - | M94: EPA217501950 | N94: 2929 | O94: EPA227501950 | P94: 3947 | Q94: EPA337501950 | R94: 5759 | S94: - | U94: EPA219001950 | V94: 3362 | W94: EPA229001950 | X94: 4496 | Y94: EPA339001950 | Z94: 6590
A95: 2100 | B95: 42 | C95: - | E95: EPA216002100 | F95: 2665 | G95: EPA226002100 | H95: 3609 | I95: EPA336002100 | J95: 5226 | K95: - | M95: EPA217502100 | N95: 3154 | O95: EPA227502100 | P95: 4250 | Q95: EPA337502100 | R95: 6202 | S95: - | U95: EPA219002100 | V95: 3620 | W95: EPA229002100 | X95: 4841 | Y95: EPA339002100 | Z95: 7097
A96: 2250 | B96: 45 | C96: - | E96: EPA216002250 | F96: 2856 | G96: EPA226002250 | H96: 3866 | I96: EPA336002250 | J96: 5600 | K96: - | M96: EPA217502250 | N96: 3380 | O96: EPA227502250 | P96: 4554 | Q96: EPA337502250 | R96: 6645 | S96: - | U96: EPA219002250 | V96: 3879 | W96: EPA229002250 | X96: 5187 | Y96: EPA339002250 | Z96: 7604
A97: 2400 | B97: 48 | C97: - | E97: EPA216002400 | F97: 3046 | G97: EPA226002400 | H97: 4124 | I97: EPA336002400 | J97: 5973 | K97: - | M97: EPA217502400 | N97: 3605 | O97: EPA227502400 | P97: 4858 | Q97: EPA337502400 | R97: 7088 | S97: - | U97: EPA219002400 | V97: 4138 | W97: EPA229002400 | X97: 5533 | Y97: EPA339002400 | Z97: 8111
A98: 2550 | B98: 51 | C98: - | E98: EPA216002550 | F98: 3236 | G98: EPA226002550 | H98: 4382 | I98: EPA336002550 | J98: 6346 | K98: - | M98: EPA217502550 | N98: 3830 | O98: EPA227502550 | P98: 5161 | Q98: EPA337502550 | R98: 7531 | S98: - | U98: EPA219002550 | V98: 4396 | W98: EPA229002550 | X98: 5879 | Y98: EPA339002550 | Z98: 8617
A99: 2700 | B99: 54 | C99: - | E99: EPA216002700 | F99: 3427 | G99: EPA226002700 | H99: 4640 | I99: EPA336002700 | J99: 6720 | K99: - | M99: EPA217502700 | N99: 4055 | O99: EPA227502700 | P99: 5465 | Q99: EPA337502700 | R99: 7974 | S99: - | U99: EPA219002700 | V99: 4655 | W99: EPA229002700 | X99: 6225 | Y99: EPA339002700 | Z99: 9124
A100: 3000 | B100: 60 | C100: - | E100: EPA216003000 | F100: 3808 | G100: EPA226003000 | H100: 5155 | I100: EPA336003000 | J100: 7466 | K100: - | M100: EPA217503000 | N100: 4506 | O100: EPA227503000 | P100: 6072 | Q100: EPA337503000 | R100: 8860 | S100: - | U100: EPA219003000 | V100: 5172 | W100: EPA229003000 | X100: 6916 | Y100: EPA339003000 | Z100: 10138

Sheet E-FLOW RAMO
A1: Programme de calcul de la puissance thermique: E-FLOW RAMO
A3: Te | B3: 75 | C3: <= Entrez la température à l'entrée en C°
A4: Ts | B4: 65 | C4: <= Entrez la température à la sortie en C°
A5: Ti | B5: 20 | C5: <= Entrez la température ambiante en C°
A6: Rapport | B6: =(B4-B5)/(B3-B5) -> 0.8181818182
A7: Delta T | B7: =((B3+B4)/2)-B5 -> 50
A8: Delta T2 | B8: =(B3-B4)/LN((B3-B5)/(B4-B5)) -> 49.83288655 | C8: Si Rapport < 0,7
A11: Hauteur | C11: =C58 -> 300 | K11: =K58 -> 400 | S11: =S58 -> 500
A12: Type | C12: =C59 -> ERA11 | E12: =E59 -> ERA21 | G12: =G59 -> ERA22 | I12: =I59 -> ERA33 | K12: =K59 -> ERA11 | M12: =M59 -> ERA21 | O12: =O59 -> ERA22 | Q12: =Q59 -> ERA33 | S12: =S59 -> ERA11 | U12: =U59 -> ERA21 | W12: =W59 -> ERA22 | Y12: =Y59 -> ERA33
A13: Longueur (mm) | B13: Nombre éléments | C13: Modèle | D13: Puissance (watts) | E13: Modèle | F13: Puissance (watts) | G13: Modèle | H13: Puissance (watts) | I13: Modèle | J13: Puissance (watts) | K13: Modèle | L13: Puissance (watts) | M13: Modèle | N13: Puissance (watts) | O13: Modèle | P13: Puissance (watts) | Q13: Modèle | R13: Puissance (watts) | S13: Modèle | T13: Puissance (watts) | U13: Modèle | V13: Puissance (watts) | W13: Modèle | X13: Puissance (watts) | Y13: Modèle | Z13: Puissance (watts)
A14: =A61 -> 450 | B14: =B61 -> 9 | C14: =C61 -> ERA113000450 | D14: =IF(D61=""," - ",IF($B$6<0.7,D61*POWER($B$8/50,C$57),D61*POWER($B$7/50,C$57))) -> 242 | E14: =E61 -> ERA213000450 | F14: =IF(F61=""," - ",IF($B$6<0.7,F61*POWER($B$8/50,E$57),F61*POWER($B$7/50,E$57))) -> 339 | G14: =G61 -> ERA223000450 | H14: =IF(H61=""," - ",IF($B$6<0.7,H61*POWER($B$8/50,G$57),H61*POWER($B$7/50,G$57))) -> 456 | I14: =I61 -> ERA333000450 | J14: =IF(J61=""," - ",IF($B$6<0.7,J61*POWER($B$8/50,I$57),J61*POWER($B$7/50,I$57))) -> 638 | K14: =K61 -> ERA114000450 | L14: =IF(L61=""," - ",IF($B$6<0.7,L61*POWER($B$8/50,K$57),L61*POWER($B$7/50,K$57))) -> 306 | M14: =M61 -> ERA214000450 | N14: =IF(N61=""," - ",IF($B$6<0.7,N61*POWER($B$8/50,M$57),N61*POWER($B$7/50,M$57))) -> 421 | O14: =O61 -> ERA224000450 | P14: =IF(P61=""," - ",IF($B$6<0.7,P61*POWER($B$8/50,O$57),P61*POWER($B$7/50,O$57))) -> 569 | Q14: =Q61 -> ERA334000450 | R14: =IF(R61=""," - ",IF($B$6<0.7,R61*POWER($B$8/50,Q$57),R61*POWER($B$7/50,Q$57))) -> 809 | S14: =S61 -> ERA115000450 | T14: =IF(T61=""," - ",IF($B$6<0.7,T61*POWER($B$8/50,S$57),T61*POWER($B$7/50,S$57))) -> 366 | U14: =U61 -> ERA215000450 | V14: =IF(V61=""," - ",IF($B$6<0.7,V61*POWER($B$8/50,U$57),V61*POWER($B$7/50,U$57))) -> 498 | W14: =W61 -> ERA225000450 | X14: =IF(X61=""," - ",IF($B$6<0.7,X61*POWER($B$8/50,W$57),X61*POWER($B$7/50,W$57))) -> 675 | Y14: =Y61 -> ERA335000450 | Z14: =IF(Z61=""," - ",IF($B$6<0.7,Z61*POWER($B$8/50,Y$57),Z61*POWER($B$7/50,Y$57))) -> 970 | AN14: ,
A15: =A62 -> 600 | B15: 12 | C15: ERA113000600 | D15: 323 | E15: =E62 -> ERA213000600 | F15: 453 | G15: =G62 -> ERA223000600 | H15: 608 | I15: =I62 -> ERA333000600 | J15: 850 | K15: =K62 -> ERA114000600 | L15: 408 | M15: =M62 -> ERA214000600 | N15: 561 | O15: =O62 -> ERA224000600 | P15: 759 | Q15: =Q62 -> ERA334000600 | R15: 1079 | S15: =S62 -> ERA115000600 | T15: 489 | U15: =U62 -> ERA215000600 | V15: 664 | W15: =W62 -> ERA225000600 | X15: 900 | Y15: =Y62 -> ERA335000600 | Z15: 1293
A16: 750 | B16: 15 | C16: ERA113000750 | D16: 404 | E16: ERA213000750 | F16: 566 | G16: ERA223000750 | H16: 759 | I16: ERA333000750 | J16: 1063 | K16: ERA114000750 | L16: 510 | M16: ERA214000750 | N16: 702 | O16: ERA224000750 | P16: 949 | Q16: ERA334000750 | R16: 1349 | S16: ERA115000750 | T16: 611 | U16: ERA215000750 | V16: 830 | W16: ERA225000750 | X16: 1124 | Y16: ERA335000750 | Z16: 1616
A17: 900 | B17: 18 | C17: ERA113000900 | D17: 485 | E17: ERA213000900 | F17: 679 | G17: ERA223000900 | H17: 911 | I17: ERA333000900 | J17: 1275 | K17: ERA114000900 | L17: 612 | M17: ERA214000900 | N17: 842 | O17: ERA224000900 | P17: 1139 | Q17: ERA334000900 | R17: 1619 | S17: ERA115000900 | T17: 733 | U17: ERA215000900 | V17: 996 | W17: ERA225000900 | X17: 1349 | Y17: ERA335000900 | Z17: 1939
A18: 1050 | B18: 21 | C18: ERA113001050 | D18: 565 | E18: ERA213001050 | F18: 792 | G18: ERA223001050 | H18: 1063 | I18: ERA333001050 | J18: 1488 | K18: ERA114001050 | L18: 714 | M18: ERA214001050 | N18: 983 | O18: ERA224001050 | P18: 1328 | Q18: ERA334001050 | R18: 1889 | S18: ERA115001050 | T18: 855 | U18: ERA215001050 | V18: 1162 | W18: ERA225001050 | X18: 1574 | Y18: ERA335001050 | Z18: 2262
A19: 1200 | B19: 24 | C19: ERA113001200 | D19: 646 | E19: ERA213001200 | F19: 905 | G19: ERA223001200 | H19: 1215 | I19: ERA333001200 | J19: 1701 | K19: ERA114001200 | L19: 816 | M19: ERA214001200 | N19: 1123 | O19: ERA224001200 | P19: 1518 | Q19: ERA334001200 | R19: 2158 | S19: ERA115001200 | T19: 977 | U19: ERA215001200 | V19: 1328 | W19: ERA225001200 | X19: 1799 | Y19: ERA335001200 | Z19: 2586
A20: 1350 | B20: 27 | C20: ERA113001350 | D20: 727 | E20: ERA213001350 | F20: 1018 | G20: ERA223001350 | H20: 1367 | I20: ERA333001350 | J20: 1913 | K20: ERA114001350 | L20: 918 | M20: ERA214001350 | N20: 1263 | O20: ERA224001350 | P20: 1708 | Q20: ERA334001350 | R20: 2428 | S20: ERA115001350 | T20: 1099 | U20: ERA215001350 | V20: 1494 | W20: ERA225001350 | X20: 2024 | Y20: ERA335001350 | Z20: 2909
A21: 1500 | B21: 30 | C21: ERA113001500 | D21: 808 | E21: ERA213001500 | F21: 1132 | G21: ERA223001500 | H21: 1519 | I21: ERA333001500 | J21: 2126 | K21: ERA114001500 | L21: 1020 | M21: ERA214001500 | N21: 1404 | O21: ERA224001500 | P21: 1898 | Q21: ERA334001500 | R21: 2698 | S21: ERA115001500 | T21: 1221 | U21: ERA215001500 | V21: 1660 | W21: ERA225001500 | X21: 2249 | Y21: ERA335001500 | Z21: 3232
A22: 1650 | B22: 33 | C22: ERA113001650 | D22: 888 | E22: ERA213001650 | F22: 1245 | G22: ERA223001650 | H22: 1671 | I22: ERA333001650 | J22: 2338 | K22: ERA114001650 | L22: 1122 | M22: ERA214001650 | N22: 1544 | O22: ERA224001650 | P22: 2087 | Q22: ERA334001650 | R22: 2968 | S22: ERA115001650 | T22: 1343 | U22: ERA215001650 | V22: 1826 | W22: ERA225001650 | X22: 2474 | Y22: ERA335001650 | Z22: 3555
A23: 1800 | B23: 36 | C23: - | D23: - | E23: ERA213001800 | F23: 1358 | G23: ERA223001800 | H23: 1823 | I23: ERA333001800 | J23: 2551 | K23: - | L23: - | M23: ERA214001800 | N23: 1684 | O23: ERA224001800 | P23: 2277 | Q23: ERA334001800 | R23: 3237 | S23: - | T23: - | U23: ERA215001800 | V23: 1992 | W23: ERA225001800 | X23: 2699 | Y23: ERA335001800 | Z23: 3878
A24: 1950 | B24: 39 | C24: - | D24: - | E24: ERA213001950 | F24: 1471 | G24: ERA223001950 | H24: 1975 | I24: ERA333001950 | J24: 2764 | K24: - | L24: - | M24: ERA214001950 | N24: 1825 | O24: ERA224001950 | P24: 2467 | Q24: ERA334001950 | R24: 3507 | S24: - | T24: - | U24: ERA215001950 | V24: 2158 | W24: ERA225001950 | X24: 2923 | Y24: ERA335001950 | Z24: 4201
A25: 2100 | B25: 42 | C25: - | D25: - | E25: ERA213002100 | F25: 1584 | G25: ERA223002100 | H25: 2126 | I25: ERA333002100 | J25: 2976 | K25: - | L25: - | M25: ERA214002100 | N25: 1965 | O25: ERA224002100 | P25: 2657 | Q25: ERA334002100 | R25: 3777 | S25: - | T25: - | U25: ERA215002100 | V25: 2324 | W25: ERA225002100 | X25: 3148 | Y25: ERA335002100 | Z25: 4525
A26: 2250 | B26: 45 | C26: - | D26: - | E26: ERA213002250 | F26: 1697 | G26: ERA223002250 | H26: 2278 | I26: ERA333002250 | J26: 3189 | K26: - | L26: - | M26: ERA214002250 | N26: 2106 | O26: ERA224002250 | P26: 2846 | Q26: ERA334002250 | R26: 4047 | S26: - | T26: - | U26: ERA215002250 | V26: 2490 | W26: ERA225002250 | X26: 3373 | Y26: ERA335002250 | Z26: 4848
A27: 2400 | B27: 48 | C27: - | D27: - | E27: ERA213002400 | F27: 1811 | G27: ERA223002400 | H27: 2430 | I27: ERA333002400 | J27: 3401 | K27: - | L27: - | M27: ERA214002400 | N27: 2246 | O27: ERA224002400 | P27: 3036 | Q27: ERA334002400 | R27: 4317 | S27: - | T27: - | U27: ERA215002400 | V27: 2656 | W27: ERA225002400 | X27: 3598 | Y27: ERA335002400 | Z27: 5171
A28: 2550 | B28: 51 | C28: - | D28: - | E28: ERA213002550 | F28: 1924 | G28: ERA223002550 | H28: 2582 | I28: ERA333002550 | J28: 3614 | K28: - | L28: - | M28: ERA214002550 | N28: 2386 | O28: ERA224002550 | P28: 3226 | Q28: ERA334002550 | R28: 4586 | S28: - | T28: - | U28: ERA215002550 | V28: 2822 | W28: ERA225002550 | X28: 3823 | Y28: ERA335002550 | Z28: 5494
A29: 2700 | B29: 54 | C29: - | D29: - | E29: ERA213002700 | F29: 2037 | G29: ERA223002700 | H29: 2734 | I29: ERA333002700 | J29: 3826 | K29: - | L29: - | M29: ERA214002700 | N29: 2527 | O29: ERA224002700 | P29: 3416 | Q29: ERA334002700 | R29: 4856 | S29: - | T29: - | U29: ERA215002700 | V29: 2988 | W29: ERA225002700 | X29: 4048 | Y29: ERA335002700 | Z29: 5817
A30: 3000 | B30: 60 | C30: - | D30: - | E30: ERA213003000 | F30: 2263 | G30: ERA223003000 | H30: 3038 | I30: ERA333003000 | J30: 4252 | K30: - | L30: - | M30: ERA214003000 | N30: 2807 | O30: ERA224003000 | P30: 3795 | Q30: ERA334003000 | R30: 5396 | S30: - | T30: - | U30: ERA215003000 | V30: 3320 | W30: ERA225003000 | X30: 4498 | Y30: ERA335003000 | Z30: 6464
A33: Hauteur | C33: =C80 -> 600 | K33: =K80 -> 750 | S33: =S80 -> 900
A34: Type | C34: =C81 -> ERA11 | E34: =E81 -> ERA21 | G34: =G81 -> ERA22 | I34: =I81 -> ERA33 | K34: =K81 -> ERA11 | M34: =M81 -> ERA21 | O34: =O81 -> ERA22 | Q34: =Q81 -> ERA33 | S34: =S81 -> ERA11 | U34: =U81 -> ERA21 | W34: =W81 -> ERA22 | Y34: =Y81 -> ERA33
A35: Longueur (mm) | B35: Nombre éléments | C35: Modèle | D35: Puissance (watts) | E35: Modèle | F35: Puissance (watts) | G35: Modèle | H35: Puissance (watts) | I35: Modèle | J35: Puissance (watts) | K35: Modèle | L35: Puissance (watts) | M35: Modèle | N35: Puissance (watts) | O35: Modèle | P35: Puissance (watts) | Q35: Modèle | R35: Puissance (watts) | S35: Modèle | T35: Puissance (watts) | U35: Modèle | V35: Puissance (watts) | W35: Modèle | X35: Puissance (watts) | Y35: Modèle | Z35: Puissance (watts)
A36: =A83 -> 450 | B36: =B83 -> 9 | C36: =C83 -> ERA116000450 | D36: =IF(D83=""," - ",IF($B$6<0.7,D83*POWER($B$8/50,C$79),D83*POWER($B$7/50,C$79))) -> 424 | E36: =E83 -> ERA216000450 | F36: =IF(F83=""," - ",IF($B$6<0.7,F83*POWER($B$8/50,E$79),F83*POWER($B$7/50,E$79))) -> 571 | G36: =G83 -> ERA226000450 | H36: =IF(H83=""," - ",IF($B$6<0.7,H83*POWER($B$8/50,G$79),H83*POWER($B$7/50,G$79))) -> 773 | I36: =I83 -> ERA336000450 | J36: =IF(J83=""," - ",IF($B$6<0.7,J83*POWER($B$8/50,I$79),J83*POWER($B$7/50,I$79))) -> 1120 | K36: =K83 -> ERA117500450 | L36: =IF(L83=""," - ",IF($B$6<0.7,L83*POWER($B$8/50,K$79),L83*POWER($B$7/50,K$79))) -> 506 | M36: =M83 -> ERA217500450 | N36: =IF(N83=""," - ",IF($B$6<0.7,N83*POWER($B$8/50,M$79),N83*POWER($B$7/50,M$79))) -> 676 | O36: =O83 -> ERA227500450 | P36: =IF(P83=""," - ",IF($B$6<0.7,P83*POWER($B$8/50,O$79),P83*POWER($B$7/50,O$79))) -> 911 | Q36: =Q83 -> ERA337500450 | R36: =IF(R83=""," - ",IF($B$6<0.7,R83*POWER($B$8/50,Q$79),R83*POWER($B$7/50,Q$79))) -> 1329 | S36: =S83 -> ERA119000450 | T36: =IF(T83=""," - ",IF($B$6<0.7,T83*POWER($B$8/50,S$79),T83*POWER($B$7/50,S$79))) -> 584 | U36: =U83 -> ERA219000450 | V36: =IF(V83=""," - ",IF($B$6<0.7,V83*POWER($B$8/50,U$79),V83*POWER($B$7/50,U$79))) -> 776 | W36: =W83 -> ERA229000450 | X36: =IF(X83=""," - ",IF($B$6<0.7,X83*POWER($B$8/50,W$79),X83*POWER($B$7/50,W$79))) -> 1037 | Y36: =Y83 -> ERA339000450 | Z36: =IF(Z83=""," - ",IF($B$6<0.7,Z83*POWER($B$8/50,Y$79),Z83*POWER($B$7/50,Y$79))) -> 1521
A37: =A84 -> 600 | B37: 12 | C37: ERA116000600 | D37: 565 | E37: ERA216000600 | F37: 762 | G37: ERA226000600 | H37: 1031 | I37: ERA336000600 | J37: 1493 | K37: ERA117500600 | L37: 675 | M37: ERA217500600 | N37: 901 | O37: ERA227500600 | P37: 1214 | Q37: ERA337500600 | R37: 1772 | S37: ERA119000600 | T37: 779 | U37: ERA219000600 | V37: 1034 | W37: ERA229000600 | X37: 1383 | Y37: ERA339000600 | Z37: 2028
A38: 750 | B38: 15 | C38: ERA116000750 | D38: 707 | E38: ERA216000750 | F38: 952 | G38: ERA226000750 | H38: 1289 | I38: ERA336000750 | J38: 1867 | K38: ERA117500750 | L38: 844 | M38: ERA217500750 | N38: 1127 | O38: ERA227500750 | P38: 1518 | Q38: ERA337500750 | R38: 2215 | S38: ERA119000750 | T38: 974 | U38: ERA219000750 | V38: 1293 | W38: ERA229000750 | X38: 1729 | Y38: ERA339000750 | Z38: 2535
A39: 900 | B39: 18 | C39: ERA116000900 | D39: 848 | E39: ERA216000900 | F39: 1142 | G39: ERA226000900 | H39: 1547 | I39: ERA336000900 | J39: 2240 | K39: ERA117500900 | L39: 1013 | M39: ERA217500900 | N39: 1352 | O39: ERA227500900 | P39: 1822 | Q39: ERA337500900 | R39: 2658 | S39: ERA119000900 | T39: 1168 | U39: ERA219000900 | V39: 1552 | W39: ERA229000900 | X39: 2075 | Y39: ERA339000900 | Z39: 3041
A40: 1050 | B40: 21 | C40: ERA116001050 | D40: 990 | E40: ERA216001050 | F40: 1333 | G40: ERA226001050 | H40: 1804 | I40: ERA336001050 | J40: 2613 | K40: ERA117501050 | L40: 1181 | M40: ERA217501050 | N40: 1577 | O40: ERA227501050 | P40: 2125 | Q40: ERA337501050 | R40: 3101 | S40: ERA119001050 | T40: 1363 | U40: ERA219001050 | V40: 1810 | W40: ERA229001050 | X40: 2421 | Y40: ERA339001050 | Z40: 3548
A41: 1200 | B41: 24 | C41: ERA116001200 | D41: 1131 | E41: ERA216001200 | F41: 1523 | G41: ERA226001200 | H41: 2062 | I41: ERA336001200 | J41: 2987 | K41: ERA117501200 | L41: 1350 | M41: ERA217501200 | N41: 1802 | O41: ERA227501200 | P41: 2429 | Q41: ERA337501200 | R41: 3544 | S41: ERA119001200 | T41: 1558 | U41: ERA219001200 | V41: 2069 | W41: ERA229001200 | X41: 2766 | Y41: ERA339001200 | Z41: 4055
A42: 1350 | B42: 27 | C42: ERA116001350 | D42: 1272 | E42: ERA216001350 | F42: 1713 | G42: ERA226001350 | H42: 2320 | I42: ERA336001350 | J42: 3360 | K42: ERA117501350 | L42: 1519 | M42: ERA217501350 | N42: 2028 | O42: ERA227501350 | P42: 2732 | Q42: ERA337501350 | R42: 3987 | S42: ERA119001350 | T42: 1753 | U42: ERA219001350 | V42: 2327 | W42: ERA229001350 | X42: 3112 | Y42: ERA339001350 | Z42: 4562
A43: 1500 | B43: 30 | C43: ERA116001500 | D43: 1414 | E43: ERA216001500 | F43: 1904 | G43: ERA226001500 | H43: 2578 | I43: ERA336001500 | J43: 3733 | K43: ERA117501500 | L43: 1688 | M43: ERA217501500 | N43: 2253 | O43: ERA227501500 | P43: 3036 | Q43: ERA337501500 | R43: 4430 | S43: ERA119001500 | T43: 1947 | U43: ERA219001500 | V43: 2586 | W43: ERA229001500 | X43: 3458 | Y43: ERA339001500 | Z43: 5069
A44: 1650 | B44: 33 | C44: ERA116001650 | D44: 1555 | E44: ERA216001650 | F44: 2094 | G44: ERA226001650 | H44: 2835 | I44: ERA336001650 | J44: 4107 | K44: ERA117501650 | L44: 1856 | M44: ERA217501650 | N44: 2478 | O44: ERA227501650 | P44: 3340 | Q44: ERA337501650 | R44: 4873 | S44: ERA119001650 | T44: 2142 | U44: ERA219001650 | V44: 2845 | W44: ERA229001650 | X44: 3804 | Y44: ERA339001650 | Z44: 5576
A45: 1800 | B45: 36 | C45: - | D45: - | E45: ERA216001800 | F45: 2285 | G45: ERA226001800 | H45: 3093 | I45: ERA336001800 | J45: 4480 | K45: - | L45: - | M45: ERA217501800 | N45: 2704 | O45: ERA227501800 | P45: 3643 | Q45: ERA337501800 | R45: 5316 | S45: - | T45: - | U45: ERA219001800 | V45: 3103 | W45: ERA229001800 | X45: 4150 | Y45: ERA339001800 | Z45: 6083
A46: 1950 | B46: 39 | C46: - | D46: - | E46: ERA216001950 | F46: 2475 | G46: ERA226001950 | H46: 3351 | I46: ERA336001950 | J46: 4853 | K46: - | L46: - | M46: ERA217501950 | N46: 2929 | O46: ERA227501950 | P46: 3947 | Q46: ERA337501950 | R46: 5759 | S46: - | T46: - | U46: ERA219001950 | V46: 3362 | W46: ERA229001950 | X46: 4496 | Y46: ERA339001950 | Z46: 6590
A47: 2100 | B47: 42 | C47: - | D47: - | E47: ERA216002100 | F47: 2665 | G47: ERA226002100 | H47: 3609 | I47: ERA336002100 | J47: 5226 | K47: - | L47: - | M47: ERA217502100 | N47: 3154 | O47: ERA227502100 | P47: 4250 | Q47: ERA337502100 | R47: 6202 | S47: - | T47: - | U47: ERA219002100 | V47: 3620 | W47: ERA229002100 | X47: 4841 | Y47: ERA339002100 | Z47: 7097
A48: 2250 | B48: 45 | C48: - | D48: - | E48: ERA216002250 | F48: 2856 | G48: ERA226002250 | H48: 3866 | I48: ERA336002250 | J48: 5600 | K48: - | L48: - | M48: ERA217502250 | N48: 3380 | O48: ERA227502250 | P48: 4554 | Q48: ERA337502250 | R48: 6645 | S48: - | T48: - | U48: ERA219002250 | V48: 3879 | W48: ERA229002250 | X48: 5187 | Y48: ERA339002250 | Z48: 7604
A49: 2400 | B49: 48 | C49: - | D49: - | E49: ERA216002400 | F49: 3046 | G49: ERA226002400 | H49: 4124 | I49: ERA336002400 | J49: 5973 | K49: - | L49: - | M49: ERA217502400 | N49: 3605 | O49: ERA227502400 | P49: 4858 | Q49: ERA337502400 | R49: 7088 | S49: - | T49: - | U49: ERA219002400 | V49: 4138 | W49: ERA229002400 | X49: 5533 | Y49: ERA339002400 | Z49: 8111
A50: 2550 | B50: 51 | C50: - | D50: - | E50: ERA216002550 | F50: 3236 | G50: ERA226002550 | H50: 4382 | I50: ERA336002550 | J50: 6346 | K50: - | L50: - | M50: ERA217502550 | N50: 3830 | O50: ERA227502550 | P50: 5161 | Q50: ERA337502550 | R50: 7531 | S50: - | T50: - | U50: ERA219002550 | V50: 4396 | W50: ERA229002550 | X50: 5879 | Y50: ERA339002550 | Z50: 8617
A51: 2700 | B51: 54 | C51: - | D51: - | E51: ERA216002700 | F51: 3427 | G51: ERA226002700 | H51: 4640 | I51: ERA336002700 | J51: 6720 | K51: - | L51: - | M51: ERA217502700 | N51: 4055 | O51: ERA227502700 | P51: 5465 | Q51: ERA337502700 | R51: 7974 | S51: - | T51: - | U51: ERA219002700 | V51: 4655 | W51: ERA229002700 | X51: 6225 | Y51: ERA339002700 | Z51: 9124
A52: 3000 | B52: 60 | C52: - | D52: - | E52: ERA216003000 | F52: 3808 | G52: ERA226003000 | H52: 5155 | I52: ERA336003000 | J52: 7466 | K52: - | L52: - | M52: ERA217503000 | N52: 4506 | O52: ERA227503000 | P52: 6072 | Q52: ERA337503000 | R52: 8860 | S52: - | T52: - | U52: ERA219003000 | V52: 5172 | W52: ERA229003000 | X52: 6916 | Y52: ERA339003000 | Z52: 10138
A55: Tableau de référence
A57: PENTE : | C57: 1.3436 | E57: 1.3096 | G57: 1.3154 | I57: 1.3144 | K57: 1.3382 | M57: 1.3209 | O57: 1.3208 | Q57: 1.3224 | S57: 1.3329 | U57: 1.3322 | W57: 1.3261 | Y57: 1.3323
A58: Hauteur | C58: 300 | K58: 400 | S58: 500
A59: Type | C59: ERA11 | E59: ERA21 | G59: ERA22 | I59: ERA33 | K59: ERA11 | M59: ERA21 | O59: ERA22 | Q59: ERA33 | S59: ERA11 | U59: ERA21 | W59: ERA22 | Y59: ERA33
A60: Longueur (mm) | B60: Nombre éléments | C60: Modèle | D60: Watt Dt 50°C | E60: Modèle | F60: Watt Dt 50°C | G60: Modèle | H60: Watt Dt 50°C | I60: Modèle | J60: Watt Dt 50°C | K60: Modèle | L60: Watt Dt 50°C | M60: Modèle | N60: Watt Dt 50°C | O60: Modèle | P60: Watt Dt 50°C | Q60: Modèle | R60: Watt Dt 50°C | S60: Modèle | T60: Watt Dt 50°C | U60: Modèle | V60: Watt Dt 50°C | W60: Modèle | X60: Watt Dt 50°C | Y60: Modèle | Z60: Watt Dt 50°C
A61: 450 | B61: =A61/50 -> 9 | C61: =IF(D61=""," - ",IF(LEN($A61)=3,C$59&$C$58&"0"&$A61,C$59&$C$58&$A61)) -> ERA113000450 | D61: 242 | E61: =IF(F61=""," - ",IF(LEN($A61)=3,E$59&$C$58&"0"&$A61,E$59&$C$58&$A61)) -> ERA213000450 | F61: 339 | G61: =IF(H61=""," - ",IF(LEN($A61)=3,G$59&$C$58&"0"&$A61,G$59&$C$58&$A61)) -> ERA223000450 | H61: 456 | I61: =IF(J61=""," - ",IF(LEN($A61)=3,I$59&$C$58&"0"&$A61,I$59&$C$58&$A61)) -> ERA333000450 | J61: 638 | K61: =IF(L61=""," - ",IF(LEN($A61)=3,K$59&$K$58&"0"&$A61,K$59&$K$58&$A61)) -> ERA114000450 | L61: 306 | M61: =IF(N61=""," - ",IF(LEN($A61)=3,M$59&$K$58&"0"&$A61,M$59&$K$58&$A61)) -> ERA214000450 | N61: 421 | O61: =IF(P61=""," - ",IF(LEN($A61)=3,O$59&$K$58&"0"&$A61,O$59&$K$58&$A61)) -> ERA224000450 | P61: 569 | Q61: =IF(R61=""," - ",IF(LEN($A61)=3,Q$59&$K$58&"0"&$A61,Q$59&$K$58&$A61)) -> ERA334000450 | R61: 809 | S61: =IF(T61=""," - ",IF(LEN($A61)=3,S$59&$S$58&"0"&$A61,S$59&$S$58&$A61)) -> ERA115000450 | T61: 366 | U61: =IF(V61=""," - ",IF(LEN($A61)=3,U$59&$S$58&"0"&$A61,U$59&$S$58&$A61)) -> ERA215000450 | V61: 498 | W61: =IF(X61=""," - ",IF(LEN($A61)=3,W$59&$S$58&"0"&$A61,W$59&$S$58&$A61)) -> ERA225000450 | X61: 675 | Y61: =IF(Z61=""," - ",IF(LEN($A61)=3,Y$59&$S$58&"0"&$A61,Y$59&$S$58&$A61)) -> ERA335000450 | Z61: 970
A62: 600 | B62: =A62/50 -> 12 | C62: ERA113000600 | D62: 323 | E62: ERA213000600 | F62: 453 | G62: ERA223000600 | H62: 608 | I62: ERA333000600 | J62: 850 | K62: ERA114000600 | L62: 408 | M62: ERA214000600 | N62: 561 | O62: ERA224000600 | P62: 759 | Q62: ERA334000600 | R62: 1079 | S62: =IF(T62=""," - ",IF(LEN($A62)=3,S$59&$S$58&"0"&$A62,S$59&$S$58&$A62)) -> ERA115000600 | T62: 489 | U62: ERA215000600 | V62: 664 | W62: ERA225000600 | X62: 900 | Y62: ERA335000600 | Z62: 1293
A63: 750 | B63: 15 | C63: ERA113000750 | D63: 404 | E63: ERA213000750 | F63: 566 | G63: ERA223000750 | H63: 759 | I63: ERA333000750 | J63: 1063 | K63: ERA114000750 | L63: 510 | M63: ERA214000750 | N63: 702 | O63: ERA224000750 | P63: 949 | Q63: ERA334000750 | R63: 1349 | S63: ERA115000750 | T63: 611 | U63: ERA215000750 | V63: 830 | W63: ERA225000750 | X63: 1124 | Y63: ERA335000750 | Z63: 1616
A64: 900 | B64: 18 | C64: ERA113000900 | D64: 485 | E64: ERA213000900 | F64: 679 | G64: ERA223000900 | H64: 911 | I64: ERA333000900 | J64: 1275 | K64: ERA114000900 | L64: 612 | M64: ERA214000900 | N64: 842 | O64: ERA224000900 | P64: 1139 | Q64: ERA334000900 | R64: 1619 | S64: ERA115000900 | T64: 733 | U64: ERA215000900 | V64: 996 | W64: ERA225000900 | X64: 1349 | Y64: ERA335000900 | Z64: 1939
A65: 1050 | B65: 21 | C65: ERA113001050 | D65: 565 | E65: ERA213001050 | F65: 792 | G65: ERA223001050 | H65: 1063 | I65: ERA333001050 | J65: 1488 | K65: ERA114001050 | L65: 714 | M65: ERA214001050 | N65: 983 | O65: ERA224001050 | P65: 1328 | Q65: ERA334001050 | R65: 1889 | S65: ERA115001050 | T65: 855 | U65: ERA215001050 | V65: 1162 | W65: ERA225001050 | X65: 1574 | Y65: ERA335001050 | Z65: 2262
A66: 1200 | B66: 24 | C66: ERA113001200 | D66: 646 | E66: ERA213001200 | F66: 905 | G66: ERA223001200 | H66: 1215 | I66: ERA333001200 | J66: 1701 | K66: ERA114001200 | L66: 816 | M66: ERA214001200 | N66: 1123 | O66: ERA224001200 | P66: 1518 | Q66: ERA334001200 | R66: 2158 | S66: ERA115001200 | T66: 977 | U66: ERA215001200 | V66: 1328 | W66: ERA225001200 | X66: 1799 | Y66: ERA335001200 | Z66: 2586
A67: 1350 | B67: 27 | C67: ERA113001350 | D67: 727 | E67: ERA213001350 | F67: 1018 | G67: ERA223001350 | H67: 1367 | I67: ERA333001350 | J67: 1913 | K67: ERA114001350 | L67: 918 | M67: ERA214001350 | N67: 1263 | O67: ERA224001350 | P67: 1708 | Q67: ERA334001350 | R67: 2428 | S67: ERA115001350 | T67: 1099 | U67: ERA215001350 | V67: 1494 | W67: ERA225001350 | X67: 2024 | Y67: ERA335001350 | Z67: 2909
A68: 1500 | B68: 30 | C68: ERA113001500 | D68: 808 | E68: ERA213001500 | F68: 1132 | G68: ERA223001500 | H68: 1519 | I68: ERA333001500 | J68: 2126 | K68: ERA114001500 | L68: 1020 | M68: ERA214001500 | N68: 1404 | O68: ERA224001500 | P68: 1898 | Q68: ERA334001500 | R68: 2698 | S68: ERA115001500 | T68: 1221 | U68: ERA215001500 | V68: 1660 | W68: ERA225001500 | X68: 2249 | Y68: ERA335001500 | Z68: 3232
A69: 1650 | B69: 33 | C69: ERA113001650 | D69: 888 | E69: ERA213001650 | F69: 1245 | G69: ERA223001650 | H69: 1671 | I69: ERA333001650 | J69: 2338 | K69: ERA114001650 | L69: 1122 | M69: ERA214001650 | N69: 1544 | O69: ERA224001650 | P69: 2087 | Q69: ERA334001650 | R69: 2968 | S69: ERA115001650 | T69: 1343 | U69: ERA215001650 | V69: 1826 | W69: ERA225001650 | X69: 2474 | Y69: ERA335001650 | Z69: 3555
A70: 1800 | B70: 36 | C70: - | E70: ERA213001800 | F70: 1358 | G70: ERA223001800 | H70: 1823 | I70: ERA333001800 | J70: 2551 | K70: - | M70: ERA214001800 | N70: 1684 | O70: ERA224001800 | P70: 2277 | Q70: ERA334001800 | R70: 3237 | S70: - | U70: ERA215001800 | V70: 1992 | W70: ERA225001800 | X70: 2699 | Y70: ERA335001800 | Z70: 3878
A71: 1950 | B71: 39 | C71: - | E71: ERA213001950 | F71: 1471 | G71: ERA223001950 | H71: 1975 | I71: ERA333001950 | J71: 2764 | K71: - | M71: ERA214001950 | N71: 1825 | O71: ERA224001950 | P71: 2467 | Q71: ERA334001950 | R71: 3507 | S71: - | U71: ERA215001950 | V71: 2158 | W71: ERA225001950 | X71: 2923 | Y71: ERA335001950 | Z71: 4201
A72: 2100 | B72: 42 | C72: - | E72: ERA213002100 | F72: 1584 | G72: ERA223002100 | H72: 2126 | I72: ERA333002100 | J72: 2976 | K72: - | M72: ERA214002100 | N72: 1965 | O72: ERA224002100 | P72: 2657 | Q72: ERA334002100 | R72: 3777 | S72: - | U72: ERA215002100 | V72: 2324 | W72: ERA225002100 | X72: 3148 | Y72: ERA335002100 | Z72: 4525
A73: 2250 | B73: 45 | C73: - | E73: ERA213002250 | F73: 1697 | G73: ERA223002250 | H73: 2278 | I73: ERA333002250 | J73: 3189 | K73: - | M73: ERA214002250 | N73: 2106 | O73: ERA224002250 | P73: 2846 | Q73: ERA334002250 | R73: 4047 | S73: - | U73: ERA215002250 | V73: 2490 | W73: ERA225002250 | X73: 3373 | Y73: ERA335002250 | Z73: 4848
A74: 2400 | B74: 48 | C74: - | E74: ERA213002400 | F74: 1811 | G74: ERA223002400 | H74: 2430 | I74: ERA333002400 | J74: 3401 | K74: - | M74: ERA214002400 | N74: 2246 | O74: ERA224002400 | P74: 3036 | Q74: ERA334002400 | R74: 4317 | S74: - | U74: ERA215002400 | V74: 2656 | W74: ERA225002400 | X74: 3598 | Y74: ERA335002400 | Z74: 5171
A75: 2550 | B75: 51 | C75: - | E75: ERA213002550 | F75: 1924 | G75: ERA223002550 | H75: 2582 | I75: ERA333002550 | J75: 3614 | K75: - | M75: ERA214002550 | N75: 2386 | O75: ERA224002550 | P75: 3226 | Q75: ERA334002550 | R75: 4586 | S75: - | U75: ERA215002550 | V75: 2822 | W75: ERA225002550 | X75: 3823 | Y75: ERA335002550 | Z75: 5494
A76: 2700 | B76: 54 | C76: - | E76: ERA213002700 | F76: 2037 | G76: ERA223002700 | H76: 2734 | I76: ERA333002700 | J76: 3826 | K76: - | M76: ERA214002700 | N76: 2527 | O76: ERA224002700 | P76: 3416 | Q76: ERA334002700 | R76: 4856 | S76: - | U76: ERA215002700 | V76: 2988 | W76: ERA225002700 | X76: 4048 | Y76: ERA335002700 | Z76: 5817
A77: 3000 | B77: 60 | C77: - | E77: ERA213003000 | F77: 2263 | G77: ERA223003000 | H77: 3038 | I77: ERA333003000 | J77: 4252 | K77: - | M77: ERA214003000 | N77: 2807 | O77: ERA224003000 | P77: 3795 | Q77: ERA334003000 | R77: 5396 | S77: - | U77: ERA215003000 | V77: 3320 | W77: ERA225003000 | X77: 4498 | Y77: ERA335003000 | Z77: 6464
A79: PENTE : | C79: 1.3275 | E79: 1.3435 | G79: 1.3315 | I79: 1.3413 | K79: 1.3224 | M79: 1.3584 | O79: 1.3497 | Q79: 1.3596 | S79: 1.3172 | U79: 1.3732 | W79: 1.3678 | Y79: 1.3779 | AR79: 1.354
A80: Hauteur | C80: 600 | K80: 750 | S80: 900
A81: Type | C81: ERA11 | E81: ERA21 | G81: ERA22 | I81: ERA33 | K81: ERA11 | M81: ERA21 | O81: ERA22 | Q81: ERA33 | S81: ERA11 | U81: ERA21 | W81: ERA22 | Y81: ERA33
A82: Longueur (mm) | B82: Nombre éléments | C82: Modèle | D82: Watt Dt 50°C | E82: Modèle | F82: Watt Dt 50°C | G82: Modèle | H82: Watt Dt 50°C | I82: Modèle | J82: Watt Dt 50°C | K82: Modèle | L82: Watt Dt 50°C | M82: Modèle | N82: Watt Dt 50°C | O82: Modèle | P82: Watt Dt 50°C | Q82: Modèle | R82: Watt Dt 50°C | S82: Modèle | U82: Modèle | V82: Watt Dt 50°C | W82: Modèle | X82: Watt Dt 50°C | Y82: Modèle | Z82: Watt Dt 50°C
A83: 450 | B83: =A83/50 -> 9 | C83: =IF(D83=""," - ",IF(LEN($A61)=3,C$81&$C$80&"0"&$A61,C$81&$C$80&$A61)) -> ERA116000450 | D83: 424 | E83: =IF(F83=""," - ",IF(LEN($A61)=3,E$81&$C$80&"0"&$A61,E$81&$C$80&$A61)) -> ERA216000450 | F83: 571 | G83: =IF(H83=""," - ",IF(LEN($A61)=3,G$81&$C$80&"0"&$A61,G$81&$C$80&$A61)) -> ERA226000450 | H83: 773 | I83: =IF(J83=""," - ",IF(LEN($A61)=3,I$81&$C$80&"0"&$A61,I$81&$C$80&$A61)) -> ERA336000450 | J83: 1120 | K83: =IF(L83=""," - ",IF(LEN($A83)=3,K$81&$K$80&"0"&$A83,K$81&$K$80&$A83)) -> ERA117500450 | L83: 506 | M83: =IF(N83=""," - ",IF(LEN($A83)=3,M$81&$K$80&"0"&$A83,M$81&$K$80&$A83)) -> ERA217500450 | N83: 676 | O83: =IF(P83=""," - ",IF(LEN($A83)=3,O$81&$K$80&"0"&$A83,O$81&$K$80&$A83)) -> ERA227500450 | P83: 911 | Q83: =IF(R83=""," - ",IF(LEN($A83)=3,Q$81&$K$80&"0"&$A83,Q$81&$K$80&$A83)) -> ERA337500450 | R83: 1329 | S83: =IF(T83=""," - ",IF(LEN($A83)=3,S$81&$S$80&"0"&$A83,S$81&$S$80&$A83)) -> ERA119000450 | T83: 584 | U83: =IF(V83=""," - ",IF(LEN($A83)=3,U$81&$S$80&"0"&$A83,U$81&$S$80&$A83)) -> ERA219000450 | V83: 776 | W83: =IF(X83=""," - ",IF(LEN($A83)=3,W$81&$S$80&"0"&$A83,W$81&$S$80&$A83)) -> ERA229000450 | X83: 1037 | Y83: =IF(Z83=""," - ",IF(LEN($A83)=3,Y$81&$S$80&"0"&$A83,Y$81&$S$80&$A83)) -> ERA339000450 | Z83: 1521
A84: 600 | B84: =A84/50 -> 12 | C84: ERA116000600 | D84: 565 | E84: ERA216000600 | F84: 762 | G84: ERA226000600 | H84: 1031 | I84: ERA336000600 | J84: 1493 | K84: ERA117500600 | L84: 675 | M84: ERA217500600 | N84: 901 | O84: ERA227500600 | P84: 1214 | Q84: ERA337500600 | R84: 1772 | S84: ERA119000600 | T84: 779 | U84: ERA219000600 | V84: 1034 | W84: ERA229000600 | X84: 1383 | Y84: ERA339000600 | Z84: 2028
A85: 750 | B85: 15 | C85: ERA116000750 | D85: 707 | E85: ERA216000750 | F85: 952 | G85: ERA226000750 | H85: 1289 | I85: ERA336000750 | J85: 1867 | K85: ERA117500750 | L85: 844 | M85: ERA217500750 | N85: 1127 | O85: ERA227500750 | P85: 1518 | Q85: ERA337500750 | R85: 2215 | S85: ERA119000750 | T85: 974 | U85: ERA219000750 | V85: 1293 | W85: ERA229000750 | X85: 1729 | Y85: ERA339000750 | Z85: 2535
A86: 900 | B86: 18 | C86: ERA116000900 | D86: 848 | E86: ERA216000900 | F86: 1142 | G86: ERA226000900 | H86: 1547 | I86: ERA336000900 | J86: 2240 | K86: ERA117500900 | L86: 1013 | M86: ERA217500900 | N86: 1352 | O86: ERA227500900 | P86: 1822 | Q86: ERA337500900 | R86: 2658 | S86: ERA119000900 | T86: 1168 | U86: ERA219000900 | V86: 1552 | W86: ERA229000900 | X86: 2075 | Y86: ERA339000900 | Z86: 3041
A87: 1050 | B87: 21 | C87: ERA116001050 | D87: 990 | E87: ERA216001050 | F87: 1333 | G87: ERA226001050 | H87: 1804 | I87: ERA336001050 | J87: 2613 | K87: ERA117501050 | L87: 1181 | M87: ERA217501050 | N87: 1577 | O87: ERA227501050 | P87: 2125 | Q87: ERA337501050 | R87: 3101 | S87: ERA119001050 | T87: 1363 | U87: ERA219001050 | V87: 1810 | W87: ERA229001050 | X87: 2421 | Y87: ERA339001050 | Z87: 3548
A88: 1200 | B88: 24 | C88: ERA116001200 | D88: 1131 | E88: ERA216001200 | F88: 1523 | G88: ERA226001200 | H88: 2062 | I88: ERA336001200 | J88: 2987 | K88: ERA117501200 | L88: 1350 | M88: ERA217501200 | N88: 1802 | O88: ERA227501200 | P88: 2429 | Q88: ERA337501200 | R88: 3544 | S88: ERA119001200 | T88: 1558 | U88: ERA219001200 | V88: 2069 | W88: ERA229001200 | X88: 2766 | Y88: ERA339001200 | Z88: 4055
A89: 1350 | B89: 27 | C89: ERA116001350 | D89: 1272 | E89: ERA216001350 | F89: 1713 | G89: ERA226001350 | H89: 2320 | I89: ERA336001350 | J89: 3360 | K89: ERA117501350 | L89: 1519 | M89: ERA217501350 | N89: 2028 | O89: ERA227501350 | P89: 2732 | Q89: ERA337501350 | R89: 3987 | S89: ERA119001350 | T89: 1753 | U89: ERA219001350 | V89: 2327 | W89: ERA229001350 | X89: 3112 | Y89: ERA339001350 | Z89: 4562
A90: 1500 | B90: 30 | C90: ERA116001500 | D90: 1414 | E90: ERA216001500 | F90: 1904 | G90: ERA226001500 | H90: 2578 | I90: ERA336001500 | J90: 3733 | K90: ERA117501500 | L90: 1688 | M90: ERA217501500 | N90: 2253 | O90: ERA227501500 | P90: 3036 | Q90: ERA337501500 | R90: 4430 | S90: ERA119001500 | T90: 1947 | U90: ERA219001500 | V90: 2586 | W90: ERA229001500 | X90: 3458 | Y90: ERA339001500 | Z90: 5069
A91: 1650 | B91: 33 | C91: ERA116001650 | D91: 1555 | E91: ERA216001650 | F91: 2094 | G91: ERA226001650 | H91: 2835 | I91: ERA336001650 | J91: 4107 | K91: ERA117501650 | L91: 1856 | M91: ERA217501650 | N91: 2478 | O91: ERA227501650 | P91: 3340 | Q91: ERA337501650 | R91: 4873 | S91: ERA119001650 | T91: 2142 | U91: ERA219001650 | V91: 2845 | W91: ERA229001650 | X91: 3804 | Y91: ERA339001650 | Z91: 5576
A92: 1800 | B92: 36 | C92: - | E92: ERA216001800 | F92: 2285 | G92: ERA226001800 | H92: 3093 | I92: ERA336001800 | J92: 4480 | K92: - | M92: ERA217501800 | N92: 2704 | O92: ERA227501800 | P92: 3643 | Q92: ERA337501800 | R92: 5316 | S92: - | U92: ERA219001800 | V92: 3103 | W92: ERA229001800 | X92: 4150 | Y92: ERA339001800 | Z92: 6083
A93: 1950 | B93: 39 | C93: - | E93: ERA216001950 | F93: 2475 | G93: ERA226001950 | H93: 3351 | I93: ERA336001950 | J93: 4853 | K93: - | M93: ERA217501950 | N93: 2929 | O93: ERA227501950 | P93: 3947 | Q93: ERA337501950 | R93: 5759 | S93: - | U93: ERA219001950 | V93: 3362 | W93: ERA229001950 | X93: 4496 | Y93: ERA339001950 | Z93: 6590
A94: 2100 | B94: 42 | C94: - | E94: ERA216002100 | F94: 2665 | G94: ERA226002100 | H94: 3609 | I94: ERA336002100 | J94: 5226 | K94: - | M94: ERA217502100 | N94: 3154 | O94: ERA227502100 | P94: 4250 | Q94: ERA337502100 | R94: 6202 | S94: - | U94: ERA219002100 | V94: 3620 | W94: ERA229002100 | X94: 4841 | Y94: ERA339002100 | Z94: 7097
A95: 2250 | B95: 45 | C95: - | E95: ERA216002250 | F95: 2856 | G95: ERA226002250 | H95: 3866 | I95: ERA336002250 | J95: 5600 | K95: - | M95: ERA217502250 | N95: 3380 | O95: ERA227502250 | P95: 4554 | Q95: ERA337502250 | R95: 6645 | S95: - | U95: ERA219002250 | V95: 3879 | W95: ERA229002250 | X95: 5187 | Y95: ERA339002250 | Z95: 7604
A96: 2400 | B96: 48 | C96: - | E96: ERA216002400 | F96: 3046 | G96: ERA226002400 | H96: 4124 | I96: ERA336002400 | J96: 5973 | K96: - | M96: ERA217502400 | N96: 3605 | O96: ERA227502400 | P96: 4858 | Q96: ERA337502400 | R96: 7088 | S96: - | U96: ERA219002400 | V96: 4138 | W96: ERA229002400 | X96: 5533 | Y96: ERA339002400 | Z96: 8111
A97: 2550 | B97: 51 | C97: - | E97: ERA216002550 | F97: 3236 | G97: ERA226002550 | H97: 4382 | I97: ERA336002550 | J97: 6346 | K97: - | M97: ERA217502550 | N97: 3830 | O97: ERA227502550 | P97: 5161 | Q97: ERA337502550 | R97: 7531 | S97: - | U97: ERA219002550 | V97: 4396 | W97: ERA229002550 | X97: 5879 | Y97: ERA339002550 | Z97: 8617
A98: 2700 | B98: 54 | C98: - | E98: ERA216002700 | F98: 3427 | G98: ERA226002700 | H98: 4640 | I98: ERA336002700 | J98: 6720 | K98: - | M98: ERA217502700 | N98: 4055 | O98: ERA227502700 | P98: 5465 | Q98: ERA337502700 | R98: 7974 | S98: - | U98: ERA219002700 | V98: 4655 | W98: ERA229002700 | X98: 6225 | Y98: ERA339002700 | Z98: 9124
A99: 3000 | B99: 60 | C99: - | E99: ERA216003000 | F99: 3808 | G99: ERA226003000 | H99: 5155 | I99: ERA336003000 | J99: 7466 | K99: - | M99: ERA217503000 | N99: 4506 | O99: ERA227503000 | P99: 6072 | Q99: ERA337503000 | R99: 8860 | S99: - | U99: ERA219003000 | V99: 5172 | W99: ERA229003000 | X99: 6916 | Y99: ERA339003000 | Z99: 10138

Sheet INTEGRA
A1: Programme de calcul de la puissance thermique: INTEGRA
A3: Te | B3: 75 | C3: <= Entrez la température à l'entrée en C°
A4: Ts | B4: 65 | C4: <= Entrez la température à la sortie en C°
A5: Ti | B5: 20 | C5: <= Entrez la température ambiante en C°
A6: Rapport | B6: =(B4-B5)/(B3-B5) -> 0.8181818182
A7: Delta T | B7: =((B3+B4)/2)-B5 -> 50
A8: Delta T2 | B8: =(B3-B4)/LN((B3-B5)/(B4-B5)) -> 49.83288655 | C8: Si Rapport < 0,7
A11: Hauteur | C11: =C59 -> 300 | K11: =K59 -> 400 | S11: =S59 -> 500
A12: Type | C12: =C60 -> INT11 | E12: =E60 -> INT21 | G12: =G60 -> INT22 | I12: =I60 -> INT33 | K12: =K60 -> INT11 | M12: =M60 -> INT21 | O12: =O60 -> INT22 | Q12: =Q60 -> INT33 | S12: =S60 -> INT11 | U12: =U60 -> INT21 | W12: =W60 -> INT22 | Y12: =Y60 -> INT33
A13: Longueur (mm) | B13: Nombre éléments | C13: Modèle | D13: Puissance (watts) | E13: Modèle | F13: Puissance (watts) | G13: Modèle | H13: Puissance (watts) | I13: Modèle | J13: Puissance (watts) | K13: Modèle | L13: Puissance (watts) | M13: Modèle | N13: Puissance (watts) | O13: Modèle | P13: Puissance (watts) | Q13: Modèle | R13: Puissance (watts) | S13: Modèle | T13: Puissance (watts) | U13: Modèle | V13: Puissance (watts) | W13: Modèle | X13: Puissance (watts) | Y13: Modèle | Z13: Puissance (watts)
A14: =A62 -> 450 | B14: =B62 -> 9 | C14: =C62 -> INT113000450 | D14: =IF(D62=""," - ",IF($B$6<0.7,D62*POWER($B$8/50,C$58),D62*POWER($B$7/50,C$58))) -> 248 | E14: =E62 -> INT213000450 | F14: =IF(F62=""," - ",IF($B$6<0.7,F62*POWER($B$8/50,E$58),F62*POWER($B$7/50,E$58))) -> 361 | G14: =G62 -> INT223000450 | H14: =IF(H62=""," - ",IF($B$6<0.7,H62*POWER($B$8/50,G$58),H62*POWER($B$7/50,G$58))) -> 474 | I14: =I62 -> INT333000450 | J14: =IF(J62=""," - ",IF($B$6<0.7,J62*POWER($B$8/50,I$58),J62*POWER($B$7/50,I$58))) -> 672 | K14: =K62 -> INT114000450 | L14: =IF(L62=""," - ",IF($B$6<0.7,L62*POWER($B$8/50,K$58),L62*POWER($B$7/50,K$58))) -> 318 | M14: =M62 -> INT214000450 | N14: =IF(N62=""," - ",IF($B$6<0.7,N62*POWER($B$8/50,M$58),N62*POWER($B$7/50,M$58))) -> 448 | O14: =O62 -> INT224000450 | P14: =IF(P62=""," - ",IF($B$6<0.7,P62*POWER($B$8/50,O$58),P62*POWER($B$7/50,O$58))) -> 601 | Q14: =Q62 -> INT334000450 | R14: =IF(R62=""," - ",IF($B$6<0.7,R62*POWER($B$8/50,Q$58),R62*POWER($B$7/50,Q$58))) -> 863 | S14: =S62 -> INT115000450 | T14: =IF(T62=""," - ",IF($B$6<0.7,T62*POWER($B$8/50,S$58),T62*POWER($B$7/50,S$58))) -> 384 | U14: =U62 -> INT215000450 | V14: =IF(V62=""," - ",IF($B$6<0.7,V62*POWER($B$8/50,U$58),V62*POWER($B$7/50,U$58))) -> 530 | W14: =W62 -> INT225000450 | X14: =IF(X62=""," - ",IF($B$6<0.7,X62*POWER($B$8/50,W$58),X62*POWER($B$7/50,W$58))) -> 718 | Y14: =Y62 -> INT335000450 | Z14: =IF(Z62=""," - ",IF($B$6<0.7,Z62*POWER($B$8/50,Y$58),Z62*POWER($B$7/50,Y$58))) -> 1037
A15: =A63 -> 600 | B15: 12 | C15: INT113000600 | D15: 331 | E15: =E63 -> INT213000600 | F15: 481 | G15: =G63 -> INT223000600 | H15: 632 | I15: =I63 -> INT333000600 | J15: 896 | K15: =K63 -> INT114000600 | L15: 424 | M15: =M63 -> INT214000600 | N15: 598 | O15: =O63 -> INT224000600 | P15: 802 | Q15: =Q63 -> INT334000600 | R15: 1151 | S15: INT115000600 | T15: 512 | U15: INT215000600 | V15: 706 | W15: INT225000600 | X15: 957 | Y15: INT335000600 | Z15: 1383
A16: 750 | B16: 15 | C16: INT113000750 | D16: 413 | E16: INT213000750 | F16: 602 | G16: INT223000750 | H16: 790 | I16: INT333000750 | J16: 1121 | K16: INT114000750 | L16: 530 | M16: INT214000750 | N16: 747 | O16: INT224000750 | P16: 1002 | Q16: INT334000750 | R16: 1439 | S16: INT115000750 | T16: 640 | U16: INT215000750 | V16: 883 | W16: INT225000750 | X16: 1196 | Y16: INT335000750 | Z16: 1729
A17: 900 | B17: 18 | C17: INT113000900 | D17: 496 | E17: INT213000900 | F17: 722 | G17: INT223000900 | H17: 948 | I17: INT333000900 | J17: 1345 | K17: INT114000900 | L17: 635 | M17: INT214000900 | N17: 896 | O17: INT224000900 | P17: 1202 | Q17: INT334000900 | R17: 1726 | S17: INT115000900 | T17: 768 | U17: INT215000900 | V17: 1059 | W17: INT225000900 | X17: 1436 | Y17: INT335000900 | Z17: 2075
A18: 1050 | B18: 21 | C18: INT113001050 | D18: 579 | E18: INT213001050 | F18: 842 | G18: INT223001050 | H18: 1106 | I18: INT333001050 | J18: 1569 | K18: INT114001050 | L18: 741 | M18: INT214001050 | N18: 1046 | O18: INT224001050 | P18: 1403 | Q18: INT334001050 | R18: 2014 | S18: INT115001050 | T18: 896 | U18: INT215001050 | V18: 1236 | W18: INT225001050 | X18: 1675 | Y18: INT335001050 | Z18: 2420
A19: 1200 | B19: 24 | C19: INT113001200 | D19: 661 | E19: INT213001200 | F19: 962 | G19: INT223001200 | H19: 1264 | I19: INT333001200 | J19: 1793 | K19: INT114001200 | L19: 847 | M19: INT214001200 | N19: 1195 | O19: INT224001200 | P19: 1603 | Q19: INT334001200 | R19: 2302 | S19: INT115001200 | T19: 1024 | U19: INT215001200 | V19: 1412 | W19: INT225001200 | X19: 1914 | Y19: INT335001200 | Z19: 2766
A20: 1350 | B20: 27 | C20: INT113001350 | D20: 744 | E20: INT213001350 | F20: 1083 | G20: INT223001350 | H20: 1422 | I20: INT333001350 | J20: 2017 | K20: INT114001350 | L20: 953 | M20: INT214001350 | N20: 1345 | O20: INT224001350 | P20: 1804 | Q20: INT334001350 | R20: 2589 | S20: INT115001350 | T20: 1152 | U20: INT215001350 | V20: 1589 | W20: INT225001350 | X20: 2153 | Y20: INT335001350 | Z20: 3112
A21: 1500 | B21: 30 | C21: INT113001500 | D21: 827 | E21: INT213001500 | F21: 1203 | G21: INT223001500 | H21: 1580 | I21: INT333001500 | J21: 2241 | K21: INT114001500 | L21: 1059 | M21: INT214001500 | N21: 1494 | O21: INT224001500 | P21: 2004 | Q21: INT334001500 | R21: 2877 | S21: INT115001500 | T21: 1280 | U21: INT215001500 | V21: 1766 | W21: INT225001500 | X21: 2393 | Y21: INT335001500 | Z21: 3458
A22: 1650 | B22: 33 | C22: INT113001650 | D22: 909 | E22: INT213001650 | F22: 1323 | G22: INT223001650 | H22: 1737 | I22: INT333001650 | J22: 2465 | K22: INT114001650 | L22: 1165 | M22: INT214001650 | N22: 1643 | O22: INT224001650 | P22: 2204 | Q22: INT334001650 | R22: 3165 | S22: INT115001650 | T22: 1407 | U22: INT215001650 | V22: 1942 | W22: INT225001650 | X22: 2632 | Y22: INT335001650 | Z22: 3803
A23: 1800 | B23: 36 | C23: INT113001800 | D23: 992 | E23: INT213001800 | F23: 1444 | G23: INT223001800 | H23: 1895 | I23: INT333001800 | J23: 2689 | K23: INT114001800 | L23: 1271 | M23: INT214001800 | N23: 1793 | O23: INT224001800 | P23: 2405 | Q23: INT334001800 | R23: 3452 | S23: INT115001800 | T23: 1535 | U23: INT215001800 | V23: 2119 | W23: INT225001800 | X23: 2871 | Y23: INT335001800 | Z23: 4149
A24: 1950 | B24: 39 | C24: INT113001950 | D24: 1074 | E24: INT213001950 | F24: 1564 | G24: INT223001950 | H24: 2053 | I24: INT333001950 | J24: 2913 | K24: INT114001950 | L24: 1377 | M24: INT214001950 | N24: 1942 | O24: INT224001950 | P24: 2605 | Q24: INT334001950 | R24: 3740 | S24: INT115001950 | T24: 1663 | U24: INT215001950 | V24: 2295 | W24: INT225001950 | X24: 3110 | Y24: INT335001950 | Z24: 4495
A25: 2100 | B25: 42 | C25: INT113002100 | D25: 1157 | E25: INT213002100 | F25: 1684 | G25: INT223002100 | H25: 2211 | I25: INT333002100 | J25: 3137 | K25: INT114002100 | L25: 1483 | M25: INT214002100 | N25: 2092 | O25: INT224002100 | P25: 2806 | Q25: INT334002100 | R25: 4028 | S25: INT115002100 | T25: 1791 | U25: INT215002100 | V25: 2472 | W25: INT225002100 | X25: 3350 | Y25: INT335002100 | Z25: 4841
A26: 2250 | B26: 45 | C26: INT113002250 | D26: 1240 | E26: INT213002250 | F26: 1805 | G26: INT223002250 | H26: 2369 | I26: INT333002250 | J26: 3362 | K26: INT114002250 | L26: 1589 | M26: INT214002250 | N26: 2241 | O26: INT224002250 | P26: 3006 | Q26: INT334002250 | R26: 4316 | S26: INT115002250 | T26: 1919 | U26: INT215002250 | V26: 2648 | W26: INT225002250 | X26: 3589 | Y26: INT335002250 | Z26: 5186
A27: 2400 | B27: 48 | C27: INT113002400 | D27: 1322 | E27: INT213002400 | F27: 1925 | G27: INT223002400 | H27: 2527 | I27: INT333002400 | J27: 3586 | K27: INT114002400 | L27: 1694 | M27: INT214002400 | N27: 2390 | O27: INT224002400 | P27: 3206 | Q27: INT334002400 | R27: 4603 | S27: INT115002400 | T27: 2047 | U27: INT215002400 | V27: 2825 | W27: INT225002400 | X27: 3828 | Y27: INT335002400 | Z27: 5532
A28: 2550 | B28: 51 | C28: INT113002550 | D28: 1405 | E28: INT213002550 | F28: 2045 | G28: INT223002550 | H28: 2685 | I28: INT333002550 | J28: 3810 | K28: INT114002550 | L28: 1800 | M28: INT214002550 | N28: 2540 | O28: INT224002550 | P28: 3407 | Q28: INT334002550 | R28: 4891 | S28: INT115002550 | T28: 2175 | U28: INT215002550 | V28: 3001 | W28: INT225002550 | X28: 4067 | Y28: INT335002550 | Z28: 5878
A29: 2700 | B29: 54 | C29: INT113002700 | D29: 1488 | E29: INT213002700 | F29: 2165 | G29: INT223002700 | H29: 2843 | I29: INT333002700 | J29: 4034 | K29: INT114002700 | L29: 1906 | M29: INT214002700 | N29: 2689 | O29: INT224002700 | P29: 3607 | Q29: INT334002700 | R29: 5179 | S29: INT115002700 | T29: 2303 | U29: INT215002700 | V29: 3178 | W29: INT225002700 | X29: 4307 | Y29: INT335002700 | Z29: 6224
A30: 3000 | B30: 60 | C30: INT113003000 | D30: 1653 | E30: INT213003000 | F30: 2406 | G30: INT223003000 | H30: 3159 | I30: INT333003000 | J30: 4482 | K30: INT114003000 | L30: 2118 | M30: INT214003000 | N30: 2988 | O30: INT224003000 | P30: 4008 | Q30: INT334003000 | R30: 5754 | S30: INT115003000 | T30: 2559 | U30: INT215003000 | V30: 3531 | W30: INT225003000 | X30: 4785 | Y30: INT335003000 | Z30: 6915
A33: Hauteur | C33: =C81 -> 600 | K33: =K81 -> 750 | S33: =S81 -> 900
A34: Type | C34: =C82 -> INT11 | E34: =E82 -> INT21 | G34: =G82 -> INT22 | I34: =I82 -> INT33 | K34: =K82 -> INT11 | M34: =M82 -> INT21 | O34: =O82 -> INT22 | Q34: =Q82 -> INT33 | S34: =S82 -> INT11 | U34: =U82 -> INT21 | W34: =W82 -> INT22 | Y34: =Y82 -> INT33
A35: Longueur (mm) | B35: Nombre éléments | C35: Modèle | D35: Puissance (watts) | E35: Modèle | F35: Puissance (watts) | G35: Modèle | H35: Puissance (watts) | I35: Modèle | J35: Puissance (watts) | K35: Modèle | L35: Puissance (watts) | M35: Modèle | N35: Puissance (watts) | O35: Modèle | P35: Puissance (watts) | Q35: Modèle | R35: Puissance (watts) | S35: Modèle | T35: Puissance (watts) | U35: Modèle | V35: Puissance (watts) | W35: Modèle | X35: Puissance (watts) | Y35: Modèle | Z35: Puissance (watts)
A36: =A84 -> 450 | B36: =B84 -> 9 | C36: =C84 -> INT116000450 | D36: =IF(D84=""," - ",IF($B$6<0.7,D84*POWER($B$8/50,C$80),D84*POWER($B$7/50,C$80))) -> 446 | E36: =E84 -> INT216000450 | F36: =IF(F84=""," - ",IF($B$6<0.7,F84*POWER($B$8/50,E$80),F84*POWER($B$7/50,E$80))) -> 607 | G36: =G84 -> INT226000450 | H36: =IF(H84=""," - ",IF($B$6<0.7,H84*POWER($B$8/50,G$80),H84*POWER($B$7/50,G$80))) -> 824 | I36: =I84 -> INT336000450 | J36: =IF(J84=""," - ",IF($B$6<0.7,J84*POWER($B$8/50,I$80),J84*POWER($B$7/50,I$80))) -> 1195 | K36: =K84 -> INT117500450 | L36: =IF(L84=""," - ",IF($B$6<0.7,L84*POWER($B$8/50,K$80),L84*POWER($B$7/50,K$80))) -> 534 | M36: =M84 -> INT217500450 | N36: =IF(N84=""," - ",IF($B$6<0.7,N84*POWER($B$8/50,M$80),N84*POWER($B$7/50,M$80))) -> 718 | O36: =O84 -> INT227500450 | P36: =IF(P84=""," - ",IF($B$6<0.7,P84*POWER($B$8/50,O$80),P84*POWER($B$7/50,O$80))) -> 968 | Q36: =Q84 -> INT337500450 | R36: =IF(R84=""," - ",IF($B$6<0.7,R84*POWER($B$8/50,Q$80),R84*POWER($B$7/50,Q$80))) -> 1404 | S36: =S84 -> INT119000450 | T36: =IF(T84=""," - ",IF($B$6<0.7,T84*POWER($B$8/50,S$80),T84*POWER($B$7/50,S$80))) -> 616 | U36: =U84 -> INT219000450 | V36: =IF(V84=""," - ",IF($B$6<0.7,V84*POWER($B$8/50,U$80),V84*POWER($B$7/50,U$80))) -> 823 | W36: =W84 -> INT229000450 | X36: =IF(X84=""," - ",IF($B$6<0.7,X84*POWER($B$8/50,W$80),X84*POWER($B$7/50,W$80))) -> 1092 | Y36: =Y84 -> INT339000450 | Z36: =IF(Z84=""," - ",IF($B$6<0.7,Z84*POWER($B$8/50,Y$80),Z84*POWER($B$7/50,Y$80))) -> 1580
A37: =A85 -> 600 | B37: 12 | C37: =C85 -> INT116000600 | D37: 595 | E37: INT216000600 | F37: 809 | G37: INT226000600 | H37: 1099 | I37: INT336000600 | J37: 1594 | K37: INT117500600 | L37: 712 | M37: INT217500600 | N37: 957 | O37: INT227500600 | P37: 1290 | Q37: INT337500600 | R37: 1871 | S37: INT119000600 | T37: 821 | U37: INT219000600 | V37: 1097 | W37: INT229000600 | X37: 1456 | Y37: INT339000600 | Z37: 2107
A38: 750 | B38: 15 | C38: INT116000750 | D38: 744 | E38: INT216000750 | F38: 1012 | G38: INT226000750 | H38: 1374 | I38: INT336000750 | J38: 1992 | K38: INT117500750 | L38: 890 | M38: INT217500750 | N38: 1196 | O38: INT227500750 | P38: 1613 | Q38: INT337500750 | R38: 2339 | S38: INT119000750 | T38: 1026 | U38: INT219000750 | V38: 1372 | W38: INT229000750 | X38: 1820 | Y38: INT339000750 | Z38: 2634
A39: 900 | B39: 18 | C39: INT116000900 | D39: 893 | E39: INT216000900 | F39: 1214 | G39: INT226000900 | H39: 1649 | I39: INT336000900 | J39: 2390 | K39: INT117500900 | L39: 1068 | M39: INT217500900 | N39: 1436 | O39: INT227500900 | P39: 1935 | Q39: INT337500900 | R39: 2807 | S39: INT119000900 | T39: 1231 | U39: INT219000900 | V39: 1646 | W39: INT229000900 | X39: 2184 | Y39: INT339000900 | Z39: 3161
A40: 1050 | B40: 21 | C40: INT116001050 | D40: 1042 | E40: INT216001050 | F40: 1416 | G40: INT226001050 | H40: 1924 | I40: INT336001050 | J40: 2789 | K40: INT117501050 | L40: 1246 | M40: INT217501050 | N40: 1675 | O40: INT227501050 | P40: 2258 | Q40: INT337501050 | R40: 3275 | S40: INT119001050 | T40: 1436 | U40: INT219001050 | V40: 1920 | W40: INT229001050 | X40: 2548 | Y40: INT339001050 | Z40: 3688
A41: 1200 | B41: 24 | C41: INT116001200 | D41: 1190 | E41: INT216001200 | F41: 1619 | G41: INT226001200 | H41: 2198 | I41: INT336001200 | J41: 3187 | K41: INT117501200 | L41: 1424 | M41: INT217501200 | N41: 1914 | O41: INT227501200 | P41: 2580 | Q41: INT337501200 | R41: 3743 | S41: INT119001200 | T41: 1642 | U41: INT219001200 | V41: 2195 | W41: INT229001200 | X41: 2912 | Y41: INT339001200 | Z41: 4214
A42: 1350 | B42: 27 | C42: INT116001350 | D42: 1339 | E42: INT216001350 | F42: 1821 | G42: INT226001350 | H42: 2473 | I42: INT336001350 | J42: 3586 | K42: INT117501350 | L42: 1602 | M42: INT217501350 | N42: 2153 | O42: INT227501350 | P42: 2903 | Q42: INT337501350 | R42: 4211 | S42: INT119001350 | T42: 1847 | U42: INT219001350 | V42: 2469 | W42: INT229001350 | X42: 3276 | Y42: INT339001350 | Z42: 4741
A43: 1500 | B43: 30 | C43: INT116001500 | D43: 1488 | E43: INT216001500 | F43: 2024 | G43: INT226001500 | H43: 2748 | I43: INT336001500 | J43: 3984 | K43: INT117501500 | L43: 1781 | M43: INT217501500 | N43: 2393 | O43: INT227501500 | P43: 3225 | Q43: INT337501500 | R43: 4679 | S43: INT119001500 | T43: 2052 | U43: INT219001500 | V43: 2744 | W43: INT229001500 | X43: 3641 | Y43: INT339001500 | Z43: 5268
A44: 1650 | B44: 33 | C44: INT116001650 | D44: 1637 | E44: INT216001650 | F44: 2226 | G44: INT226001650 | H44: 3023 | I44: INT336001650 | J44: 4382 | K44: INT117501650 | L44: 1959 | M44: INT217501650 | N44: 2632 | O44: INT227501650 | P44: 3548 | Q44: INT337501650 | R44: 5146 | S44: INT119001650 | T44: 2257 | U44: INT219001650 | V44: 3018 | W44: INT229001650 | X44: 4005 | Y44: INT339001650 | Z44: 5795
A45: 1800 | B45: 36 | C45: INT116001800 | D45: 1786 | E45: INT216001800 | F45: 2428 | G45: INT226001800 | H45: 3298 | I45: INT336001800 | J45: 4781 | K45: INT117501800 | L45: 2137 | M45: INT217501800 | N45: 2871 | O45: INT227501800 | P45: 3870 | Q45: INT337501800 | R45: 5614 | S45: INT119001800 | T45: 2462 | U45: INT219001800 | V45: 3292 | W45: INT229001800 | X45: 4369 | Y45: INT339001800 | Z45: 6322
A46: 1950 | B46: 39 | C46: INT116001950 | D46: 1934 | E46: INT216001950 | F46: 2631 | G46: INT226001950 | H46: 3572 | I46: INT336001950 | J46: 5179 | K46: INT117501950 | L46: 2315 | M46: INT217501950 | N46: 3110 | O46: INT227501950 | P46: 4193 | Q46: INT337501950 | R46: 6082 | S46: INT119001950 | T46: 2668 | U46: INT219001950 | V46: 3567 | W46: INT229001950 | X46: 4733 | Y46: INT339001950 | Z46: 6848
A47: 2100 | B47: 42 | C47: INT116002100 | D47: 2083 | E47: INT216002100 | F47: 2833 | G47: INT226002100 | H47: 3847 | I47: INT336002100 | J47: 5578 | K47: INT117502100 | L47: 2493 | M47: INT217502100 | N47: 3350 | O47: INT227502100 | P47: 4515 | Q47: INT337502100 | R47: 6550 | S47: INT119002100 | T47: 2873 | U47: INT219002100 | V47: 3841 | W47: INT229002100 | X47: 5097 | Y47: INT339002100 | Z47: 7375
A48: 2250 | B48: 45 | C48: INT116002250 | D48: 2232 | E48: INT216002250 | F48: 3035 | G48: INT226002250 | H48: 4122 | I48: INT336002250 | J48: 5976 | K48: INT117502250 | L48: 2671 | M48: INT217502250 | N48: 3589 | O48: INT227502250 | P48: 4838 | Q48: INT337502250 | R48: 7018 | S48: INT119002250 | T48: 3078 | U48: INT219002250 | V48: 4115 | W48: INT229002250 | X48: 5461 | Y48: INT339002250 | Z48: 7902
A49: 2400 | B49: 48 | C49: INT116002400 | D49: 2381 | E49: INT216002400 | F49: 3238 | G49: INT226002400 | H49: 4397 | I49: INT336002400 | J49: 6374 | K49: INT117502400 | L49: 2849 | M49: INT217502400 | N49: 3828 | O49: INT227502400 | P49: 5160 | Q49: INT337502400 | R49: 7486 | S49: INT119002400 | T49: 3283 | U49: INT219002400 | V49: 4390 | W49: INT229002400 | X49: 5825 | Y49: INT339002400 | Z49: 8429
A50: 2550 | B50: 51 | C50: INT116002550 | D50: 2530 | E50: INT216002550 | F50: 3440 | G50: INT226002550 | H50: 4672 | I50: INT336002550 | J50: 6773 | K50: INT117502550 | L50: 3027 | M50: INT217502550 | N50: 4067 | O50: INT227502550 | P50: 5483 | Q50: INT337502550 | R50: 7953 | S50: INT119002550 | T50: 3488 | U50: INT219002550 | V50: 4664 | W50: INT229002550 | X50: 6189 | Y50: INT339002550 | Z50: 8956
A51: 2700 | B51: 54 | C51: INT116002700 | D51: 2678 | E51: INT216002700 | F51: 3642 | G51: INT226002700 | H51: 4946 | I51: INT336002700 | J51: 7171 | K51: INT117502700 | L51: 3205 | M51: INT217502700 | N51: 4307 | O51: INT227502700 | P51: 5805 | Q51: INT337502700 | R51: 8421 | S51: INT119002700 | T51: 3694 | U51: INT219002700 | V51: 4938 | W51: INT229002700 | X51: 6553 | Y51: INT339002700 | Z51: 9482
A52: 3000 | B52: 60 | C52: INT116003000 | D52: 2976 | E52: INT216003000 | F52: 4047 | G52: INT226003000 | H52: 5496 | I52: INT336003000 | J52: 7968 | K52: INT117503000 | L52: 3561 | M52: INT217503000 | N52: 4785 | O52: INT227503000 | P52: 6450 | Q52: INT337503000 | R52: 9357 | S52: INT119003000 | T52: 4104 | U52: INT219003000 | V52: 5487 | W52: INT229003000 | X52: 7281 | Y52: INT339003000 | Z52: 10536
A56: Tableau de référence
A58: PENTE : | C58: 1.3498 | E58: 1.3668 | G58: 1.3845 | I58: 1.3768 | K58: 1.3451 | M58: 1.362 | O58: 1.3757 | Q58: 1.3651 | S58: 1.3404 | U58: 1.3572 | W58: 1.3669 | Y58: 1.3533
A59: Hauteur | C59: 300 | K59: 400 | S59: 500
A60: Type | C60: INT11 | E60: INT21 | G60: INT22 | I60: INT33 | K60: INT11 | M60: INT21 | O60: INT22 | Q60: INT33 | S60: INT11 | U60: INT21 | W60: INT22 | Y60: INT33
A61: Longueur (mm) | B61: Nombre éléments | C61: Modèle | D61: Watt Dt 50°C | E61: Modèle | F61: Watt Dt 50°C | G61: Modèle | H61: Watt Dt 50°C | I61: Modèle | J61: Watt Dt 50°C | K61: Modèle | L61: Watt Dt 50°C | M61: Modèle | N61: Watt Dt 50°C | O61: Modèle | P61: Watt Dt 50°C | Q61: Modèle | R61: Watt Dt 50°C | S61: Modèle | T61: Watt Dt 50°C | U61: Modèle | V61: Watt Dt 50°C | W61: Modèle | X61: Watt Dt 50°C | Y61: Modèle | Z61: Watt Dt 50°C
A62: 450 | B62: =A62/50 -> 9 | C62: =IF(D62=""," - ",IF(LEN($A62)=3,C$60&$C$59&"0"&$A62,C$60&$C$59&$A62)) -> INT113000450 | D62: 248 | E62: =IF(F62=""," - ",IF(LEN($A62)=3,E$60&$C$59&"0"&$A62,E$60&$C$59&$A62)) -> INT213000450 | F62: 361 | G62: =IF(H62=""," - ",IF(LEN($A62)=3,G$60&$C$59&"0"&$A62,G$60&$C$59&$A62)) -> INT223000450 | H62: 474 | I62: =IF(J62=""," - ",IF(LEN($A62)=3,I$60&$C$59&"0"&$A62,I$60&$C$59&$A62)) -> INT333000450 | J62: 672 | K62: =IF(L62=""," - ",IF(LEN($A62)=3,K$60&$K$59&"0"&$A62,K$60&$K$59&$A62)) -> INT114000450 | L62: 318 | M62: =IF(N62=""," - ",IF(LEN($A62)=3,M$60&$K$59&"0"&$A62,M$60&$K$59&$A62)) -> INT214000450 | N62: 448 | O62: =IF(P62=""," - ",IF(LEN($A62)=3,O$60&$K$59&"0"&$A62,O$60&$K$59&$A62)) -> INT224000450 | P62: 601 | Q62: =IF(R62=""," - ",IF(LEN($A62)=3,Q$60&$K$59&"0"&$A62,Q$60&$K$59&$A62)) -> INT334000450 | R62: 863 | S62: =IF(T62=""," - ",IF(LEN($A62)=3,S$60&$S$59&"0"&$A62,S$60&$S$59&$A62)) -> INT115000450 | T62: 384 | U62: =IF(V62=""," - ",IF(LEN($A62)=3,U$60&$S$59&"0"&$A62,U$60&$S$59&$A62)) -> INT215000450 | V62: 530 | W62: =IF(X62=""," - ",IF(LEN($A62)=3,W$60&$S$59&"0"&$A62,W$60&$S$59&$A62)) -> INT225000450 | X62: 718 | Y62: =IF(Z62=""," - ",IF(LEN($A62)=3,Y$60&$S$59&"0"&$A62,Y$60&$S$59&$A62)) -> INT335000450 | Z62: 1037
A63: 600 | B63: =A63/50 -> 12 | C63: INT113000600 | D63: 331 | E63: INT213000600 | F63: 481 | G63: INT223000600 | H63: 632 | I63: INT333000600 | J63: 896 | K63: INT114000600 | L63: 424 | M63: INT214000600 | N63: 598 | O63: INT224000600 | P63: 802 | Q63: INT334000600 | R63: 1151 | S63: INT115000600 | T63: 512 | U63: INT215000600 | V63: 706 | W63: INT225000600 | X63: 957 | Y63: INT335000600 | Z63: 1383
A64: 750 | B64: 15 | C64: INT113000750 | D64: 413 | E64: INT213000750 | F64: 602 | G64: INT223000750 | H64: 790 | I64: INT333000750 | J64: 1121 | K64: INT114000750 | L64: 530 | M64: INT214000750 | N64: 747 | O64: INT224000750 | P64: 1002 | Q64: INT334000750 | R64: 1439 | S64: INT115000750 | T64: 640 | U64: INT215000750 | V64: 883 | W64: INT225000750 | X64: 1196 | Y64: INT335000750 | Z64: 1729
A65: 900 | B65: 18 | C65: INT113000900 | D65: 496 | E65: INT213000900 | F65: 722 | G65: INT223000900 | H65: 948 | I65: INT333000900 | J65: 1345 | K65: INT114000900 | L65: 635 | M65: INT214000900 | N65: 896 | O65: INT224000900 | P65: 1202 | Q65: INT334000900 | R65: 1726 | S65: INT115000900 | T65: 768 | U65: INT215000900 | V65: 1059 | W65: INT225000900 | X65: 1436 | Y65: INT335000900 | Z65: 2075
A66: 1050 | B66: 21 | C66: INT113001050 | D66: 579 | E66: INT213001050 | F66: 842 | G66: INT223001050 | H66: 1106 | I66: INT333001050 | J66: 1569 | K66: INT114001050 | L66: 741 | M66: INT214001050 | N66: 1046 | O66: INT224001050 | P66: 1403 | Q66: INT334001050 | R66: 2014 | S66: INT115001050 | T66: 896 | U66: INT215001050 | V66: 1236 | W66: INT225001050 | X66: 1675 | Y66: INT335001050 | Z66: 2420
A67: 1200 | B67: 24 | C67: INT113001200 | D67: 661 | E67: INT213001200 | F67: 962 | G67: INT223001200 | H67: 1264 | I67: INT333001200 | J67: 1793 | K67: INT114001200 | L67: 847 | M67: INT214001200 | N67: 1195 | O67: INT224001200 | P67: 1603 | Q67: INT334001200 | R67: 2302 | S67: INT115001200 | T67: 1024 | U67: INT215001200 | V67: 1412 | W67: INT225001200 | X67: 1914 | Y67: INT335001200 | Z67: 2766
A68: 1350 | B68: 27 | C68: INT113001350 | D68: 744 | E68: INT213001350 | F68: 1083 | G68: INT223001350 | H68: 1422 | I68: INT333001350 | J68: 2017 | K68: INT114001350 | L68: 953 | M68: INT214001350 | N68: 1345 | O68: INT224001350 | P68: 1804 | Q68: INT334001350 | R68: 2589 | S68: INT115001350 | T68: 1152 | U68: INT215001350 | V68: 1589 | W68: INT225001350 | X68: 2153 | Y68: INT335001350 | Z68: 3112
A69: 1500 | B69: 30 | C69: INT113001500 | D69: 827 | E69: INT213001500 | F69: 1203 | G69: INT223001500 | H69: 1580 | I69: INT333001500 | J69: 2241 | K69: INT114001500 | L69: 1059 | M69: INT214001500 | N69: 1494 | O69: INT224001500 | P69: 2004 | Q69: INT334001500 | R69: 2877 | S69: INT115001500 | T69: 1280 | U69: INT215001500 | V69: 1766 | W69: INT225001500 | X69: 2393 | Y69: INT335001500 | Z69: 3458
A70: 1650 | B70: 33 | C70: INT113001650 | D70: 909 | E70: INT213001650 | F70: 1323 | G70: INT223001650 | H70: 1737 | I70: INT333001650 | J70: 2465 | K70: INT114001650 | L70: 1165 | M70: INT214001650 | N70: 1643 | O70: INT224001650 | P70: 2204 | Q70: INT334001650 | R70: 3165 | S70: INT115001650 | T70: 1407 | U70: INT215001650 | V70: 1942 | W70: INT225001650 | X70: 2632 | Y70: INT335001650 | Z70: 3803
A71: 1800 | B71: 36 | C71: INT113001800 | D71: 992 | E71: INT213001800 | F71: 1444 | G71: INT223001800 | H71: 1895 | I71: INT333001800 | J71: 2689 | K71: INT114001800 | L71: 1271 | M71: INT214001800 | N71: 1793 | O71: INT224001800 | P71: 2405 | Q71: INT334001800 | R71: 3452 | S71: INT115001800 | T71: 1535 | U71: INT215001800 | V71: 2119 | W71: INT225001800 | X71: 2871 | Y71: INT335001800 | Z71: 4149
A72: 1950 | B72: 39 | C72: INT113001950 | D72: 1074 | E72: INT213001950 | F72: 1564 | G72: INT223001950 | H72: 2053 | I72: INT333001950 | J72: 2913 | K72: INT114001950 | L72: 1377 | M72: INT214001950 | N72: 1942 | O72: INT224001950 | P72: 2605 | Q72: INT334001950 | R72: 3740 | S72: INT115001950 | T72: 1663 | U72: INT215001950 | V72: 2295 | W72: INT225001950 | X72: 3110 | Y72: INT335001950 | Z72: 4495
A73: 2100 | B73: 42 | C73: INT113002100 | D73: 1157 | E73: INT213002100 | F73: 1684 | G73: INT223002100 | H73: 2211 | I73: INT333002100 | J73: 3137 | K73: INT114002100 | L73: 1483 | M73: INT214002100 | N73: 2092 | O73: INT224002100 | P73: 2806 | Q73: INT334002100 | R73: 4028 | S73: INT115002100 | T73: 1791 | U73: INT215002100 | V73: 2472 | W73: INT225002100 | X73: 3350 | Y73: INT335002100 | Z73: 4841
A74: 2250 | B74: 45 | C74: INT113002250 | D74: 1240 | E74: INT213002250 | F74: 1805 | G74: INT223002250 | H74: 2369 | I74: INT333002250 | J74: 3362 | K74: INT114002250 | L74: 1589 | M74: INT214002250 | N74: 2241 | O74: INT224002250 | P74: 3006 | Q74: INT334002250 | R74: 4316 | S74: INT115002250 | T74: 1919 | U74: INT215002250 | V74: 2648 | W74: INT225002250 | X74: 3589 | Y74: INT335002250 | Z74: 5186
A75: 2400 | B75: 48 | C75: INT113002400 | D75: 1322 | E75: INT213002400 | F75: 1925 | G75: INT223002400 | H75: 2527 | I75: INT333002400 | J75: 3586 | K75: INT114002400 | L75: 1694 | M75: INT214002400 | N75: 2390 | O75: INT224002400 | P75: 3206 | Q75: INT334002400 | R75: 4603 | S75: INT115002400 | T75: 2047 | U75: INT215002400 | V75: 2825 | W75: INT225002400 | X75: 3828 | Y75: INT335002400 | Z75: 5532
A76: 2550 | B76: 51 | C76: INT113002550 | D76: 1405 | E76: INT213002550 | F76: 2045 | G76: INT223002550 | H76: 2685 | I76: INT333002550 | J76: 3810 | K76: INT114002550 | L76: 1800 | M76: INT214002550 | N76: 2540 | O76: INT224002550 | P76: 3407 | Q76: INT334002550 | R76: 4891 | S76: INT115002550 | T76: 2175 | U76: INT215002550 | V76: 3001 | W76: INT225002550 | X76: 4067 | Y76: INT335002550 | Z76: 5878
A77: 2700 | B77: 54 | C77: INT113002700 | D77: 1488 | E77: INT213002700 | F77: 2165 | G77: INT223002700 | H77: 2843 | I77: INT333002700 | J77: 4034 | K77: INT114002700 | L77: 1906 | M77: INT214002700 | N77: 2689 | O77: INT224002700 | P77: 3607 | Q77: INT334002700 | R77: 5179 | S77: INT115002700 | T77: 2303 | U77: INT215002700 | V77: 3178 | W77: INT225002700 | X77: 4307 | Y77: INT335002700 | Z77: 6224
A78: 3000 | B78: 60 | C78: INT113003000 | D78: 1653 | E78: INT213003000 | F78: 2406 | G78: INT223003000 | H78: 3159 | I78: INT333003000 | J78: 4482 | K78: INT114003000 | L78: 2118 | M78: INT214003000 | N78: 2988 | O78: INT224003000 | P78: 4008 | Q78: INT334003000 | R78: 5754 | S78: INT115003000 | T78: 2559 | U78: INT215003000 | V78: 3531 | W78: INT225003000 | X78: 4785 | Y78: INT335003000 | Z78: 6915
A80: PENTE : | C80: 1.3357 | E80: 1.3523 | G80: 1.3581 | I80: 1.3415 | K80: 1.3287 | M80: 1.3451 | O80: 1.3449 | Q80: 1.3238 | S80: 1.3217 | U80: 1.3379 | W80: 1.3316 | Y80: 1.3061
A81: Hauteur | C81: 600 | K81: 750 | S81: 900
A82: Type | C82: INT11 | E82: INT21 | G82: INT22 | I82: INT33 | K82: INT11 | M82: INT21 | O82: INT22 | Q82: INT33 | S82: INT11 | U82: INT21 | W82: INT22 | Y82: INT33
A83: Longueur (mm) | B83: Nombre éléments | C83: Modèle | D83: Watt Dt 50°C | E83: Modèle | F83: Watt Dt 50°C | G83: Modèle | H83: Watt Dt 50°C | I83: Modèle | J83: Watt Dt 50°C | K83: Modèle | L83: Watt Dt 50°C | M83: Modèle | N83: Watt Dt 50°C | O83: Modèle | P83: Watt Dt 50°C | Q83: Modèle | R83: Watt Dt 50°C | S83: Modèle | T83: Watt Dt 50°C | U83: Modèle | V83: Watt Dt 50°C | W83: Modèle | X83: Watt Dt 50°C | Y83: Modèle | Z83: Watt Dt 50°C
A84: 450 | B84: =A84/50 -> 9 | C84: =IF(D84=""," - ",IF(LEN($A84)=3,C$82&$C$81&"0"&$A84,C$82&$C$81&$A84)) -> INT116000450 | D84: 446 | E84: =IF(F84=""," - ",IF(LEN($A84)=3,E$82&$C$81&"0"&$A84,E$82&$C$81&$A84)) -> INT216000450 | F84: 607 | G84: =IF(H84=""," - ",IF(LEN($A84)=3,G$82&$C$81&"0"&$A84,G$82&$C$81&$A84)) -> INT226000450 | H84: 824 | I84: =IF(J84=""," - ",IF(LEN($A84)=3,I$82&$C$81&"0"&$A84,I$82&$C$81&$A84)) -> INT336000450 | J84: 1195 | K84: =IF(L84=""," - ",IF(LEN($A84)=3,K$82&$K$81&"0"&$A84,K$82&$K$81&$A84)) -> INT117500450 | L84: 534 | M84: =IF(N84=""," - ",IF(LEN($A84)=3,M$82&$K$81&"0"&$A84,M$82&$K$81&$A84)) -> INT217500450 | N84: 718 | O84: =IF(P84=""," - ",IF(LEN($A84)=3,O$82&$K$81&"0"&$A84,O$82&$K$81&$A84)) -> INT227500450 | P84: 968 | Q84: =IF(R84=""," - ",IF(LEN($A84)=3,Q$82&$K$81&"0"&$A84,Q$82&$K$81&$A84)) -> INT337500450 | R84: 1404 | S84: =IF(T84=""," - ",IF(LEN($A84)=3,S$82&$S$81&"0"&$A84,S$82&$S$81&$A84)) -> INT119000450 | T84: 616 | U84: =IF(V84=""," - ",IF(LEN($A84)=3,U$82&$S$81&"0"&$A84,U$82&$S$81&$A84)) -> INT219000450 | V84: 823 | W84: =IF(X84=""," - ",IF(LEN($A84)=3,W$82&$S$81&"0"&$A84,W$82&$S$81&$A84)) -> INT229000450 | X84: 1092 | Y84: =IF(Z84=""," - ",IF(LEN($A84)=3,Y$82&$S$81&"0"&$A84,Y$82&$S$81&$A84)) -> INT339000450 | Z84: 1580
A85: 600 | B85: =A85/50 -> 12 | C85: INT116000600 | D85: 595 | E85: INT216000600 | F85: 809 | G85: INT226000600 | H85: 1099 | I85: INT336000600 | J85: 1594 | K85: INT117500600 | L85: 712 | M85: INT217500600 | N85: 957 | O85: INT227500600 | P85: 1290 | Q85: INT337500600 | R85: 1871 | S85: INT119000600 | T85: 821 | U85: INT219000600 | V85: 1097 | W85: INT229000600 | X85: 1456 | Y85: INT339000600 | Z85: 2107
A86: 750 | B86: 15 | C86: INT116000750 | D86: 744 | E86: INT216000750 | F86: 1012 | G86: INT226000750 | H86: 1374 | I86: INT336000750 | J86: 1992 | K86: INT117500750 | L86: 890 | M86: INT217500750 | N86: 1196 | O86: INT227500750 | P86: 1613 | Q86: INT337500750 | R86: 2339 | S86: INT119000750 | T86: 1026 | U86: INT219000750 | V86: 1372 | W86: INT229000750 | X86: 1820 | Y86: INT339000750 | Z86: 2634
A87: 900 | B87: 18 | C87: INT116000900 | D87: 893 | E87: INT216000900 | F87: 1214 | G87: INT226000900 | H87: 1649 | I87: INT336000900 | J87: 2390 | K87: INT117500900 | L87: 1068 | M87: INT217500900 | N87: 1436 | O87: INT227500900 | P87: 1935 | Q87: INT337500900 | R87: 2807 | S87: INT119000900 | T87: 1231 | U87: INT219000900 | V87: 1646 | W87: INT229000900 | X87: 2184 | Y87: INT339000900 | Z87: 3161
A88: 1050 | B88: 21 | C88: INT116001050 | D88: 1042 | E88: INT216001050 | F88: 1416 | G88: INT226001050 | H88: 1924 | I88: INT336001050 | J88: 2789 | K88: INT117501050 | L88: 1246 | M88: INT217501050 | N88: 1675 | O88: INT227501050 | P88: 2258 | Q88: INT337501050 | R88: 3275 | S88: INT119001050 | T88: 1436 | U88: INT219001050 | V88: 1920 | W88: INT229001050 | X88: 2548 | Y88: INT339001050 | Z88: 3688
A89: 1200 | B89: 24 | C89: INT116001200 | D89: 1190 | E89: INT216001200 | F89: 1619 | G89: INT226001200 | H89: 2198 | I89: INT336001200 | J89: 3187 | K89: INT117501200 | L89: 1424 | M89: INT217501200 | N89: 1914 | O89: INT227501200 | P89: 2580 | Q89: INT337501200 | R89: 3743 | S89: INT119001200 | T89: 1642 | U89: INT219001200 | V89: 2195 | W89: INT229001200 | X89: 2912 | Y89: INT339001200 | Z89: 4214
A90: 1350 | B90: 27 | C90: INT116001350 | D90: 1339 | E90: INT216001350 | F90: 1821 | G90: INT226001350 | H90: 2473 | I90: INT336001350 | J90: 3586 | K90: INT117501350 | L90: 1602 | M90: INT217501350 | N90: 2153 | O90: INT227501350 | P90: 2903 | Q90: INT337501350 | R90: 4211 | S90: INT119001350 | T90: 1847 | U90: INT219001350 | V90: 2469 | W90: INT229001350 | X90: 3276 | Y90: INT339001350 | Z90: 4741
A91: 1500 | B91: 30 | C91: INT116001500 | D91: 1488 | E91: INT216001500 | F91: 2024 | G91: INT226001500 | H91: 2748 | I91: INT336001500 | J91: 3984 | K91: INT117501500 | L91: 1781 | M91: INT217501500 | N91: 2393 | O91: INT227501500 | P91: 3225 | Q91: INT337501500 | R91: 4679 | S91: INT119001500 | T91: 2052 | U91: INT219001500 | V91: 2744 | W91: INT229001500 | X91: 3641 | Y91: INT339001500 | Z91: 5268
A92: 1650 | B92: 33 | C92: INT116001650 | D92: 1637 | E92: INT216001650 | F92: 2226 | G92: INT226001650 | H92: 3023 | I92: INT336001650 | J92: 4382 | K92: INT117501650 | L92: 1959 | M92: INT217501650 | N92: 2632 | O92: INT227501650 | P92: 3548 | Q92: INT337501650 | R92: 5146 | S92: INT119001650 | T92: 2257 | U92: INT219001650 | V92: 3018 | W92: INT229001650 | X92: 4005 | Y92: INT339001650 | Z92: 5795
A93: 1800 | B93: 36 | C93: INT116001800 | D93: 1786 | E93: INT216001800 | F93: 2428 | G93: INT226001800 | H93: 3298 | I93: INT336001800 | J93: 4781 | K93: INT117501800 | L93: 2137 | M93: INT217501800 | N93: 2871 | O93: INT227501800 | P93: 3870 | Q93: INT337501800 | R93: 5614 | S93: INT119001800 | T93: 2462 | U93: INT219001800 | V93: 3292 | W93: INT229001800 | X93: 4369 | Y93: INT339001800 | Z93: 6322
A94: 1950 | B94: 39 | C94: INT116001950 | D94: 1934 | E94: INT216001950 | F94: 2631 | G94: INT226001950 | H94: 3572 | I94: INT336001950 | J94: 5179 | K94: INT117501950 | L94: 2315 | M94: INT217501950 | N94: 3110 | O94: INT227501950 | P94: 4193 | Q94: INT337501950 | R94: 6082 | S94: INT119001950 | T94: 2668 | U94: INT219001950 | V94: 3567 | W94: INT229001950 | X94: 4733 | Y94: INT339001950 | Z94: 6848
A95: 2100 | B95: 42 | C95: INT116002100 | D95: 2083 | E95: INT216002100 | F95: 2833 | G95: INT226002100 | H95: 3847 | I95: INT336002100 | J95: 5578 | K95: INT117502100 | L95: 2493 | M95: INT217502100 | N95: 3350 | O95: INT227502100 | P95: 4515 | Q95: INT337502100 | R95: 6550 | S95: INT119002100 | T95: 2873 | U95: INT219002100 | V95: 3841 | W95: INT229002100 | X95: 5097 | Y95: INT339002100 | Z95: 7375
A96: 2250 | B96: 45 | C96: INT116002250 | D96: 2232 | E96: INT216002250 | F96: 3035 | G96: INT226002250 | H96: 4122 | I96: INT336002250 | J96: 5976 | K96: INT117502250 | L96: 2671 | M96: INT217502250 | N96: 3589 | O96: INT227502250 | P96: 4838 | Q96: INT337502250 | R96: 7018 | S96: INT119002250 | T96: 3078 | U96: INT219002250 | V96: 4115 | W96: INT229002250 | X96: 5461 | Y96: INT339002250 | Z96: 7902
A97: 2400 | B97: 48 | C97: INT116002400 | D97: 2381 | E97: INT216002400 | F97: 3238 | G97: INT226002400 | H97: 4397 | I97: INT336002400 | J97: 6374 | K97: INT117502400 | L97: 2849 | M97: INT217502400 | N97: 3828 | O97: INT227502400 | P97: 5160 | Q97: INT337502400 | R97: 7486 | S97: INT119002400 | T97: 3283 | U97: INT219002400 | V97: 4390 | W97: INT229002400 | X97: 5825 | Y97: INT339002400 | Z97: 8429
A98: 2550 | B98: 51 | C98: INT116002550 | D98: 2530 | E98: INT216002550 | F98: 3440 | G98: INT226002550 | H98: 4672 | I98: INT336002550 | J98: 6773 | K98: INT117502550 | L98: 3027 | M98: INT217502550 | N98: 4067 | O98: INT227502550 | P98: 5483 | Q98: INT337502550 | R98: 7953 | S98: INT119002550 | T98: 3488 | U98: INT219002550 | V98: 4664 | W98: INT229002550 | X98: 6189 | Y98: INT339002550 | Z98: 8956
A99: 2700 | B99: 54 | C99: INT116002700 | D99: 2678 | E99: INT216002700 | F99: 3642 | G99: INT226002700 | H99: 4946 | I99: INT336002700 | J99: 7171 | K99: INT117502700 | L99: 3205 | M99: INT217502700 | N99: 4307 | O99: INT227502700 | P99: 5805 | Q99: INT337502700 | R99: 8421 | S99: INT119002700 | T99: 3694 | U99: INT219002700 | V99: 4938 | W99: INT229002700 | X99: 6553 | Y99: INT339002700 | Z99: 9482
A100: 3000 | B100: 60 | C100: INT116003000 | D100: 2976 | E100: INT216003000 | F100: 4047 | G100: INT226003000 | H100: 5496 | I100: INT336003000 | J100: 7968 | K100: INT117503000 | L100: 3561 | M100: INT217503000 | N100: 4785 | O100: INT227503000 | P100: 6450 | Q100: INT337503000 | R100: 9357 | S100: INT119003000 | T100: 4104 | U100: INT219003000 | V100: 5487 | W100: INT229003000 | X100: 7281 | Y100: INT339003000 | Z100: 10536

Sheet INTEGRA MATERNELLE
A1: Programme de calcul de la puissance thermique: INTEGRA MATERNELLE
A3: Te | B3: 75 | C3: <= Entrez la température à l'entrée en C°
A4: Ts | B4: 65 | C4: <= Entrez la température à la sortie en C°
A5: Ti | B5: 20 | C5: <= Entrez la température ambiante en C°
A6: Rapport | B6: =(B4-B5)/(B3-B5) -> 0.8181818182
A7: Delta T | B7: =((B3+B4)/2)-B5 -> 50
A8: Delta T2 | B8: =(B3-B4)/LN((B3-B5)/(B4-B5)) -> 49.83288655 | C8: Si Rapport < 0,7
A11: Hauteur | C11: =C37 -> 400 | E11: =E37 -> 600 | G11: =G37 -> 750
A12: Type | C12: =C38 -> INT32 | E12: =E38 -> INT32 | G12: =G38 -> INT32
A13: Longueur (mm) | B13: Nombre éléments | C13: Modèle | D13: Puissance (watts) | E13: Modèle | F13: Puissance (watts) | G13: Modèle | H13: Puissance (watts)
A14: =A40 -> 450 | B14: =B40 -> 9 | C14: =C40 -> INT324000450 | D14: =IF(D40=""," - ",IF($B$6<0.7,D40*POWER($B$8/50,C$36),D40*POWER($B$7/50,C$36))) -> 605 | E14: =E40 -> INT326000450 | F14: =IF(F40=""," - ",IF($B$6<0.7,F40*POWER($B$8/50,E$36),F40*POWER($B$7/50,E$36))) -> 810 | G14: =G40 -> INT327500450 | H14: =IF(H40=""," - ",IF($B$6<0.7,H40*POWER($B$8/50,G$36),H40*POWER($B$7/50,G$36))) -> 954 | V14: ,
A15: =A41 -> 600 | B15: 12 | C15: INT324000600 | D15: =IF(D41=""," - ",IF($B$6<0.7,D41*POWER($B$8/50,C$36),D41*POWER($B$7/50,C$36))) -> 806 | E15: =E41 -> INT326000600 | F15: =IF(F41=""," - ",IF($B$6<0.7,F41*POWER($B$8/50,E$36),F41*POWER($B$7/50,E$36))) -> 1080 | G15: =G41 -> INT327500600 | H15: =IF(H41=""," - ",IF($B$6<0.7,H41*POWER($B$8/50,G$36),H41*POWER($B$7/50,G$36))) -> 1272
A16: 750 | B16: 15 | C16: INT324000750 | D16: 941 | E16: INT326000750 | F16: 1260 | G16: INT327500750 | H16: 1484
A17: 900 | B17: 18 | C17: INT324000900 | D17: 1075 | E17: INT326000900 | F17: 1440 | G17: INT327500900 | H17: 1696
A18: 1050 | B18: 21 | C18: INT324001050 | D18: 1210 | E18: INT326001050 | F18: 1620 | G18: INT327501050 | H18: 1908
A19: 1200 | B19: 24 | C19: INT324001200 | D19: 1344 | E19: INT326001200 | F19: 1800 | G19: INT327501200 | H19: 2120
A20: 1350 | B20: 27 | C20: INT324001350 | D20: 1478 | E20: INT326001350 | F20: 1980 | G20: INT327501350 | H20: 2332
A21: 1500 | B21: 30 | C21: INT324001500 | D21: 1613 | E21: INT326001500 | F21: 2160 | G21: INT327501500 | H21: 2544
A22: 1650 | B22: 33 | C22: INT324001650 | D22: 1814 | E22: INT326001650 | F22: 2430 | G22: INT327501650 | H22: 2862
A23: 1800 | B23: 36 | C23: INT324001800 | D23: 2016 | E23: INT326001800 | F23: 2700 | G23: INT327501800 | H23: 3180
A24: 1950 | B24: 39 | C24: INT324001950 | D24: 2218 | E24: INT326001950 | F24: 2970 | G24: INT327501950 | H24: 3498
A25: 2100 | B25: 42 | C25: INT324002100 | D25: 2419 | E25: INT326002100 | F25: 3240 | G25: INT327502100 | H25: 3816
A26: 2250 | B26: 45 | C26: INT324002250 | D26: 2621 | E26: INT326002250 | F26: 3510 | G26: INT327502250 | H26: 4134
A27: 2400 | B27: 48 | C27: INT324002400 | D27: 2822 | E27: INT326002400 | F27: 3780 | G27: INT327502400 | H27: 4452
A28: 2550 | B28: 51 | C28: INT324002550 | D28: 3024 | E28: INT326002550 | F28: 4050 | G28: INT327502550 | H28: 4770
A29: 2700 | B29: 54 | C29: - | D29: - | E29: - | F29: - | G29: - | H29: -
A30: 3000 | B30: 60 | C30: - | D30: - | E30: - | F30: - | G30: - | H30: -
A34: Tableau de référence
A36: PENTE : | C36: 1.371 | E36: 1.37 | G36: 1.369
A37: Hauteur | C37: 400 | E37: 600 | G37: 750
A38: Type | C38: INT32 | E38: INT32 | G38: INT32
A39: Longueur (mm) | B39: Nombre éléments | C39: Modèle | D39: Watt Dt 50°C | E39: Modèle | F39: Watt Dt 50°C | G39: Modèle | H39: Watt Dt 50°C
A40: 450 | B40: =A40/50 -> 9 | C40: =IF(D40=""," - ",IF(LEN($A40)=3,C$38&$C$37&"0"&$A40,C$38&$C$37&$A40)) -> INT324000450 | D40: 605 | E40: =IF(F40=""," - ",IF(LEN($A40)=3,E$38&$E$37&"0"&$A40,E$38&$E$37&$A40)) -> INT326000450 | F40: 810 | G40: =IF(H40=""," - ",IF(LEN($A40)=3,G$38&$G$37&"0"&$A40,G$38&$G$37&$A40)) -> INT327500450 | H40: 954
A41: 600 | B41: =A41/50 -> 12 | C41: INT324000600 | D41: 806 | E41: INT326000600 | F41: 1080 | G41: INT327500600 | H41: 1272
A42: 750 | B42: 15 | C42: INT324000750 | D42: 941 | E42: INT326000750 | F42: 1260 | G42: INT327500750 | H42: 1484
A43: 900 | B43: 18 | C43: INT324000900 | D43: 1075 | E43: INT326000900 | F43: 1440 | G43: INT327500900 | H43: 1696
A44: 1050 | B44: 21 | C44: INT324001050 | D44: 1210 | E44: INT326001050 | F44: 1620 | G44: INT327501050 | H44: 1908
A45: 1200 | B45: 24 | C45: INT324001200 | D45: 1344 | E45: INT326001200 | F45: 1800 | G45: INT327501200 | H45: 2120
A46: 1350 | B46: 27 | C46: INT324001350 | D46: 1478 | E46: INT326001350 | F46: 1980 | G46: INT327501350 | H46: 2332
A47: 1500 | B47: 30 | C47: INT324001500 | D47: 1613 | E47: INT326001500 | F47: 2160 | G47: INT327501500 | H47: 2544
A48: 1650 | B48: 33 | C48: INT324001650 | D48: 1814 | E48: INT326001650 | F48: 2430 | G48: INT327501650 | H48: 2862
A49: 1800 | B49: 36 | C49: INT324001800 | D49: 2016 | E49: INT326001800 | F49: 2700 | G49: INT327501800 | H49: 3180
A50: 1950 | B50: 39 | C50: INT324001950 | D50: 2218 | E50: INT326001950 | F50: 2970 | G50: INT327501950 | H50: 3498
A51: 2100 | B51: 42 | C51: INT324002100 | D51: 2419 | E51: INT326002100 | F51: 3240 | G51: INT327502100 | H51: 3816
A52: 2250 | B52: 45 | C52: INT324002250 | D52: 2621 | E52: INT326002250 | F52: 3510 | G52: INT327502250 | H52: 4134
A53: 2400 | B53: 48 | C53: INT324002400 | D53: 2822 | E53: INT326002400 | F53: 3780 | G53: INT327502400 | H53: 4452
A54: 2550 | B54: 51 | C54: INT324002550 | D54: 3024 | E54: INT326002550 | F54: 4050 | G54: INT327502550 | H54: 4770
A55: 2700 | B55: 54 | C55: - | E55: - | G55: -
A56: 3000 | B56: 60 | C56: - | E56: - | G56: -

Sheet INTEGRA PLINTHE
A1: Programme de calcul de la puissance thermique: INTEGRA PLINTHE
A3: Te | B3: 75 | C3: <= Entrez la température à l'entrée en C°
A4: Ts | B4: 65 | C4: <= Entrez la température à la sortie en C°
A5: Ti | B5: 20 | C5: <= Entrez la température ambiante en C°
A6: Rapport | B6: =(B4-B5)/(B3-B5) -> 0.8181818182
A7: Delta T | B7: =((B3+B4)/2)-B5 -> 50
A8: Delta T2 | B8: =(B3-B4)/LN((B3-B5)/(B4-B5)) -> 49.83288655 | C8: Si Rapport < 0,7
A11: Hauteur | C11: =C34 -> 200
A12: Type | C12: =C35 -> CV22 | E12: =E35 -> CV33 | G12: =G35 -> CV44
A13: Longueur (mm) | B13: Nombre éléments | C13: Modèle | D13: Puissance (watts) | E13: Modèle | F13: Puissance (watts) | G13: Modèle | H13: Puissance (watts)
A14: =A37 -> 600 | B14: =B37 -> 12 | C14: =C37 -> CV222000600 | D14: =IF(D37=""," - ",IF($B$6<0.7,D37*POWER($B$8/50,C$33),D37*POWER($B$7/50,C$33))) -> 434 | E14: =E37 -> CV332000600 | F14: =IF(F37=""," - ",IF($B$6<0.7,F37*POWER($B$8/50,E$33),F37*POWER($B$7/50,E$33))) -> 613 | G14: =G37 -> CV442000600 | H14: =IF(H37=""," - ",IF($B$6<0.7,H37*POWER($B$8/50,G$33),H37*POWER($B$7/50,G$33))) -> 802 | V14: ,
A15: =A38 -> 700 | B15: 14 | C15: CV222000700 | D15: 507 | E15: =E38 -> CV332000700 | F15: 715 | G15: =G38 -> CV442000700 | H15: 936
A16: 800 | B16: 16 | C16: CV222000800 | D16: 579 | E16: CV332000800 | F16: 818 | G16: CV442000800 | H16: 1070
A17: 900 | B17: 18 | C17: CV222000900 | D17: 652 | E17: CV332000900 | F17: 920 | G17: CV442000900 | H17: 1203
A18: 1000 | B18: 20 | C18: CV222001000 | D18: 724 | E18: CV332001000 | F18: 1022 | G18: CV442001000 | H18: 1337
A19: 1100 | B19: 22 | C19: CV222001100 | D19: 796 | E19: CV332001100 | F19: 1124 | G19: CV442001100 | H19: 1471
A20: 1200 | B20: 24 | C20: CV222001200 | D20: 869 | E20: CV332001200 | F20: 1226 | G20: CV442001200 | H20: 1604
A21: 1400 | B21: 28 | C21: CV222001400 | D21: 1014 | E21: CV332001400 | F21: 1431 | G21: CV442001400 | H21: 1872
A22: 1600 | B22: 32 | C22: CV222001600 | D22: 1158 | E22: CV332001600 | F22: 1635 | G22: CV442001600 | H22: 2139
A23: 1800 | B23: 36 | C23: CV222001800 | D23: 1303 | E23: CV332001800 | F23: 1840 | G23: CV442001800 | H23: 2407
A24: 2000 | B24: 40 | C24: CV222002000 | D24: 1448 | E24: CV332002000 | F24: 2044 | G24: CV442002000 | H24: 2674
A25: 2300 | B25: 46 | C25: CV222002300 | D25: 1665 | E25: CV332002300 | F25: 2351 | G25: CV442002300 | H25: 3075
A26: 2600 | B26: 52 | C26: CV222002600 | D26: 1882 | E26: CV332002600 | F26: 2657 | G26: CV442002600 | H26: 3476
A27: 3000 | B27: 60 | C27: CV222003000 | D27: 2172 | E27: CV332003000 | F27: 3066 | G27: CV442003000 | H27: 4011
A31: Tableau de référence
A33: PENTE : | C33: 1.3269 | E33: 1.3403 | G33: 1.3516
A34: Hauteur | C34: 200
A35: Type | C35: CV22 | E35: CV33 | G35: CV44
A36: Longueur (mm) | B36: Nombre éléments | C36: Modèle | D36: Watt Dt 50°C | E36: Modèle | F36: Watt Dt 50°C | G36: Modèle | H36: Watt Dt 50°C
A37: 600 | B37: =A37/50 -> 12 | C37: =IF(D37=""," - ",IF(LEN($A37)=3,C$35&$C$34&"0"&$A37,C$35&$C$34&$A37)) -> CV222000600 | D37: 434 | E37: =IF(F37=""," - ",IF(LEN($A37)=3,E$35&$C$34&"0"&$A37,E$35&$C$34&$A37)) -> CV332000600 | F37: 613 | G37: =IF(H37=""," - ",IF(LEN($A37)=3,G$35&$C$34&"0"&$A37,G$35&$C$34&$A37)) -> CV442000600 | H37: 802
A38: 700 | B38: =A38/50 -> 14 | C38: CV222000700 | D38: 507 | E38: CV332000700 | F38: 715 | G38: CV442000700 | H38: 936
A39: 800 | B39: 16 | C39: CV222000800 | D39: 579 | E39: CV332000800 | F39: 818 | G39: CV442000800 | H39: 1070
A40: 900 | B40: 18 | C40: CV222000900 | D40: 652 | E40: CV332000900 | F40: 920 | G40: CV442000900 | H40: 1203
A41: 1000 | B41: 20 | C41: CV222001000 | D41: 724 | E41: CV332001000 | F41: 1022 | G41: CV442001000 | H41: 1337
A42: 1100 | B42: 22 | C42: CV222001100 | D42: 796 | E42: CV332001100 | F42: 1124 | G42: CV442001100 | H42: 1471
A43: 1200 | B43: 24 | C43: CV222001200 | D43: 869 | E43: CV332001200 | F43: 1226 | G43: CV442001200 | H43: 1604
A44: 1400 | B44: 28 | C44: CV222001400 | D44: 1014 | E44: CV332001400 | F44: 1431 | G44: CV442001400 | H44: 1872
A45: 1600 | B45: 32 | C45: CV222001600 | D45: 1158 | E45: CV332001600 | F45: 1635 | G45: CV442001600 | H45: 2139
A46: 1800 | B46: 36 | C46: CV222001800 | D46: 1303 | E46: CV332001800 | F46: 1840 | G46: CV442001800 | H46: 2407
A47: 2000 | B47: 40 | C47: CV222002000 | D47: 1448 | E47: CV332002000 | F47: 2044 | G47: CV442002000 | H47: 2674
A48: 2300 | B48: 46 | C48: CV222002300 | D48: 1665 | E48: CV332002300 | F48: 2351 | G48: CV442002300 | H48: 3075
A49: 2600 | B49: 52 | C49: CV222002600 | D49: 1882 | E49: CV332002600 | F49: 2657 | G49: CV442002600 | H49: 3476
A50: 3000 | B50: 60 | C50: CV222003000 | D50: 2172 | E50: CV332003000 | F50: 3066 | G50: CV442003000 | H50: 4011

Sheet PARADA
A1: Programme de calcul de la puissance thermique: PARADA
A3: Te | B3: 75 | C3: <= Entrez la température à l'entrée en C°
A4: Ts | B4: 65 | C4: <= Entrez la température à la sortie en C°
A5: Ti | B5: 20 | C5: <= Entrez la température ambiante en C°
A6: Rapport | B6: =(B4-B5)/(B3-B5) -> 0.8181818182
A7: Delta T | B7: =((B3+B4)/2)-B5 -> 50
A8: Delta T2 | B8: =(B3-B4)/LN((B3-B5)/(B4-B5)) -> 49.83288655 | C8: Si Rapport < 0,7
A11: Hauteur | C11: =C59 -> 300 | K11: =K59 -> 400 | S11: =S59 -> 500
A12: Type | C12: =C60 -> PAR11 | E12: =E60 -> PAR21 | G12: =G60 -> PAR22 | I12: =I60 -> PAR33 | K12: =K60 -> PAR11 | M12: =M60 -> PAR21 | O12: =O60 -> PAR22 | Q12: =Q60 -> PAR33 | S12: =S60 -> PAR11 | U12: =U60 -> PAR21 | W12: =W60 -> PAR22 | Y12: =Y60 -> PAR33
A13: Longueur (mm) | B13: Nombre éléments | C13: Modèle | D13: Puissance (watts) | E13: Modèle | F13: Puissance (watts) | G13: Modèle | H13: Puissance (watts) | I13: Modèle | J13: Puissance (watts) | K13: Modèle | L13: Puissance (watts) | M13: Modèle | N13: Puissance (watts) | O13: Modèle | P13: Puissance (watts) | Q13: Modèle | R13: Puissance (watts) | S13: Modèle | T13: Puissance (watts) | U13: Modèle | V13: Puissance (watts) | W13: Modèle | X13: Puissance (watts) | Y13: Modèle | Z13: Puissance (watts)
A14: =A62 -> 450 | B14: =B62 -> 9 | C14: =C62 -> PAR113000450 | D14: =IF(D62=""," - ",IF($B$6<0.7,D62*POWER($B$8/50,C$58),D62*POWER($B$7/50,C$58))) -> 242 | E14: =E62 -> PAR213000450 | F14: =IF(F62=""," - ",IF($B$6<0.7,F62*POWER($B$8/50,E$58),F62*POWER($B$7/50,E$58))) -> 339 | G14: =G62 -> PAR223000450 | H14: =IF(H62=""," - ",IF($B$6<0.7,H62*POWER($B$8/50,G$58),H62*POWER($B$7/50,G$58))) -> 456 | I14: =I62 -> PAR333000450 | J14: =IF(J62=""," - ",IF($B$6<0.7,J62*POWER($B$8/50,I$58),J62*POWER($B$7/50,I$58))) -> 638 | K14: =K62 -> PAR114000450 | L14: =IF(L62=""," - ",IF($B$6<0.7,L62*POWER($B$8/50,K$58),L62*POWER($B$7/50,K$58))) -> 306 | M14: =M62 -> PAR214000450 | N14: =IF(N62=""," - ",IF($B$6<0.7,N62*POWER($B$8/50,M$58),N62*POWER($B$7/50,M$58))) -> 421 | O14: =O62 -> PAR224000450 | P14: =IF(P62=""," - ",IF($B$6<0.7,P62*POWER($B$8/50,O$58),P62*POWER($B$7/50,O$58))) -> 569 | Q14: =Q62 -> PAR334000450 | R14: =IF(R62=""," - ",IF($B$6<0.7,R62*POWER($B$8/50,Q$58),R62*POWER($B$7/50,Q$58))) -> 809 | S14: =S62 -> PAR115000450 | T14: =IF(T62=""," - ",IF($B$6<0.7,T62*POWER($B$8/50,S$58),T62*POWER($B$7/50,S$58))) -> 366 | U14: =U62 -> PAR215000450 | V14: =IF(V62=""," - ",IF($B$6<0.7,V62*POWER($B$8/50,U$58),V62*POWER($B$7/50,U$58))) -> 498 | W14: =W62 -> PAR225000450 | X14: =IF(X62=""," - ",IF($B$6<0.7,X62*POWER($B$8/50,W$58),X62*POWER($B$7/50,W$58))) -> 675 | Y14: =Y62 -> PAR335000450 | Z14: =IF(Z62=""," - ",IF($B$6<0.7,Z62*POWER($B$8/50,Y$58),Z62*POWER($B$7/50,Y$58))) -> 970 | AN14: ,
A15: =A63 -> 600 | B15: 12 | C15: PAR113000600 | D15: =IF(D63=""," - ",IF($B$6<0.7,D63*POWER($B$8/50,C$58),D63*POWER($B$7/50,C$58))) -> 323 | E15: =E63 -> PAR213000600 | F15: =IF(F63=""," - ",IF($B$6<0.7,F63*POWER($B$8/50,E$58),F63*POWER($B$7/50,E$58))) -> 453 | G15: =G63 -> PAR223000600 | H15: =IF(H63=""," - ",IF($B$6<0.7,H63*POWER($B$8/50,G$58),H63*POWER($B$7/50,G$58))) -> 608 | I15: =I63 -> PAR333000600 | J15: =IF(J63=""," - ",IF($B$6<0.7,J63*POWER($B$8/50,I$58),J63*POWER($B$7/50,I$58))) -> 850 | K15: =K63 -> PAR114000600 | L15: =IF(L63=""," - ",IF($B$6<0.7,L63*POWER($B$8/50,K$58),L63*POWER($B$7/50,K$58))) -> 408 | M15: =M63 -> PAR214000600 | N15: =IF(N63=""," - ",IF($B$6<0.7,N63*POWER($B$8/50,M$58),N63*POWER($B$7/50,M$58))) -> 561 | O15: =O63 -> PAR224000600 | P15: =IF(P63=""," - ",IF($B$6<0.7,P63*POWER($B$8/50,O$58),P63*POWER($B$7/50,O$58))) -> 759 | Q15: =Q63 -> PAR334000600 | R15: =IF(R63=""," - ",IF($B$6<0.7,R63*POWER($B$8/50,Q$58),R63*POWER($B$7/50,Q$58))) -> 1079 | S15: =S63 -> PAR115000600 | T15: =IF(T63=""," - ",IF($B$6<0.7,T63*POWER($B$8/50,S$58),T63*POWER($B$7/50,S$58))) -> 489 | U15: =U63 -> PAR215000600 | V15: =IF(V63=""," - ",IF($B$6<0.7,V63*POWER($B$8/50,U$58),V63*POWER($B$7/50,U$58))) -> 664 | W15: =W63 -> PAR225000600 | X15: =IF(X63=""," - ",IF($B$6<0.7,X63*POWER($B$8/50,W$58),X63*POWER($B$7/50,W$58))) -> 900 | Y15: =Y63 -> PAR335000600 | Z15: =IF(Z63=""," - ",IF($B$6<0.7,Z63*POWER($B$8/50,Y$58),Z63*POWER($B$7/50,Y$58))) -> 1293
A16: 750 | B16: 15 | C16: PAR113000750 | D16: 404 | E16: PAR213000750 | F16: 566 | G16: PAR223000750 | H16: 759 | I16: PAR333000750 | J16: 1063 | K16: PAR114000750 | L16: 510 | M16: PAR214000750 | N16: 702 | O16: PAR224000750 | P16: 949 | Q16: PAR334000750 | R16: 1349 | S16: PAR115000750 | T16: 611 | U16: PAR215000750 | V16: 830 | W16: PAR225000750 | X16: 1124 | Y16: PAR335000750 | Z16: 1616
A17: 900 | B17: 18 | C17: PAR113000900 | D17: 485 | E17: PAR213000900 | F17: 679 | G17: PAR223000900 | H17: 911 | I17: PAR333000900 | J17: 1275 | K17: PAR114000900 | L17: 612 | M17: PAR214000900 | N17: 842 | O17: PAR224000900 | P17: 1139 | Q17: PAR334000900 | R17: 1619 | S17: PAR115000900 | T17: 733 | U17: PAR215000900 | V17: 996 | W17: PAR225000900 | X17: 1349 | Y17: PAR335000900 | Z17: 1939
A18: 1050 | B18: 21 | C18: PAR113001050 | D18: 565 | E18: PAR213001050 | F18: 792 | G18: PAR223001050 | H18: 1063 | I18: PAR333001050 | J18: 1488 | K18: PAR114001050 | L18: 714 | M18: PAR214001050 | N18: 983 | O18: PAR224001050 | P18: 1328 | Q18: PAR334001050 | R18: 1889 | S18: PAR115001050 | T18: 855 | U18: PAR215001050 | V18: 1162 | W18: PAR225001050 | X18: 1574 | Y18: PAR335001050 | Z18: 2262
A19: 1200 | B19: 24 | C19: PAR113001200 | D19: 646 | E19: PAR213001200 | F19: 905 | G19: PAR223001200 | H19: 1215 | I19: PAR333001200 | J19: 1701 | K19: PAR114001200 | L19: 816 | M19: PAR214001200 | N19: 1123 | O19: PAR224001200 | P19: 1518 | Q19: PAR334001200 | R19: 2158 | S19: PAR115001200 | T19: 977 | U19: PAR215001200 | V19: 1328 | W19: PAR225001200 | X19: 1799 | Y19: PAR335001200 | Z19: 2586
A20: 1350 | B20: 27 | C20: PAR113001350 | D20: 727 | E20: PAR213001350 | F20: 1018 | G20: PAR223001350 | H20: 1367 | I20: PAR333001350 | J20: 1913 | K20: PAR114001350 | L20: 918 | M20: PAR214001350 | N20: 1263 | O20: PAR224001350 | P20: 1708 | Q20: PAR334001350 | R20: 2428 | S20: PAR115001350 | T20: 1099 | U20: PAR215001350 | V20: 1494 | W20: PAR225001350 | X20: 2024 | Y20: PAR335001350 | Z20: 2909
A21: 1500 | B21: 30 | C21: PAR113001500 | D21: 808 | E21: PAR213001500 | F21: 1132 | G21: PAR223001500 | H21: 1519 | I21: PAR333001500 | J21: 2126 | K21: PAR114001500 | L21: 1020 | M21: PAR214001500 | N21: 1404 | O21: PAR224001500 | P21: 1898 | Q21: PAR334001500 | R21: 2698 | S21: PAR115001500 | T21: 1221 | U21: PAR215001500 | V21: 1660 | W21: PAR225001500 | X21: 2249 | Y21: PAR335001500 | Z21: 3232
A22: 1650 | B22: 33 | C22: PAR113001650 | D22: 888 | E22: PAR213001650 | F22: 1245 | G22: PAR223001650 | H22: 1671 | I22: PAR333001650 | J22: 2338 | K22: PAR114001650 | L22: 1122 | M22: PAR214001650 | N22: 1544 | O22: PAR224001650 | P22: 2087 | Q22: PAR334001650 | R22: 2968 | S22: PAR115001650 | T22: 1343 | U22: PAR215001650 | V22: 1826 | W22: PAR225001650 | X22: 2474 | Y22: PAR335001650 | Z22: 3555
A23: 1800 | B23: 36 | C23: - | D23: - | E23: PAR213001800 | F23: 1358 | G23: PAR223001800 | H23: 1823 | I23: PAR333001800 | J23: 2551 | K23: - | L23: - | M23: PAR214001800 | N23: 1684 | O23: PAR224001800 | P23: 2277 | Q23: PAR334001800 | R23: 3237 | S23: - | T23: - | U23: PAR215001800 | V23: 1992 | W23: PAR225001800 | X23: 2699 | Y23: PAR335001800 | Z23: 3878
A24: 1950 | B24: 39 | C24: - | D24: - | E24: PAR213001950 | F24: 1471 | G24: PAR223001950 | H24: 1975 | I24: PAR333001950 | J24: 2764 | K24: - | L24: - | M24: PAR214001950 | N24: 1825 | O24: PAR224001950 | P24: 2467 | Q24: PAR334001950 | R24: 3507 | S24: - | T24: - | U24: PAR215001950 | V24: 2158 | W24: PAR225001950 | X24: 2923 | Y24: PAR335001950 | Z24: 4201
A25: 2100 | B25: 42 | C25: - | D25: - | E25: PAR213002100 | F25: 1584 | G25: PAR223002100 | H25: 2126 | I25: PAR333002100 | J25: 2976 | K25: - | L25: - | M25: PAR214002100 | N25: 1965 | O25: PAR224002100 | P25: 2657 | Q25: PAR334002100 | R25: 3777 | S25: - | T25: - | U25: PAR215002100 | V25: 2324 | W25: PAR225002100 | X25: 3148 | Y25: PAR335002100 | Z25: 4525
A26: 2250 | B26: 45 | C26: - | D26: - | E26: PAR213002250 | F26: 1697 | G26: PAR223002250 | H26: 2278 | I26: PAR333002250 | J26: 3189 | K26: - | L26: - | M26: PAR214002250 | N26: 2106 | O26: PAR224002250 | P26: 2846 | Q26: PAR334002250 | R26: 4047 | S26: - | T26: - | U26: PAR215002250 | V26: 2490 | W26: PAR225002250 | X26: 3373 | Y26: PAR335002250 | Z26: 4848
A27: 2400 | B27: 48 | C27: - | D27: - | E27: PAR213002400 | F27: 1811 | G27: PAR223002400 | H27: 2430 | I27: PAR333002400 | J27: 3401 | K27: - | L27: - | M27: PAR214002400 | N27: 2246 | O27: PAR224002400 | P27: 3036 | Q27: PAR334002400 | R27: 4317 | S27: - | T27: - | U27: PAR215002400 | V27: 2656 | W27: PAR225002400 | X27: 3598 | Y27: PAR335002400 | Z27: 5171
A28: 2550 | B28: 51 | C28: - | D28: - | E28: PAR213002550 | F28: 1924 | G28: PAR223002550 | H28: 2582 | I28: PAR333002550 | J28: 3614 | K28: - | L28: - | M28: PAR214002550 | N28: 2386 | O28: PAR224002550 | P28: 3226 | Q28: PAR334002550 | R28: 4586 | S28: - | T28: - | U28: PAR215002550 | V28: 2822 | W28: PAR225002550 | X28: 3823 | Y28: PAR335002550 | Z28: 5494
A29: 2700 | B29: 54 | C29: - | D29: - | E29: PAR213002700 | F29: 2037 | G29: PAR223002700 | H29: 2734 | I29: PAR333002700 | J29: 3826 | K29: - | L29: - | M29: PAR214002700 | N29: 2527 | O29: PAR224002700 | P29: 3416 | Q29: PAR334002700 | R29: 4856 | S29: - | T29: - | U29: PAR215002700 | V29: 2988 | W29: PAR225002700 | X29: 4048 | Y29: PAR335002700 | Z29: 5817
A30: 3000 | B30: 60 | C30: - | D30: - | E30: PAR213003000 | F30: 2263 | G30: PAR223003000 | H30: 3038 | I30: PAR333003000 | J30: 4252 | K30: - | L30: - | M30: PAR214003000 | N30: 2807 | O30: PAR224003000 | P30: 3795 | Q30: PAR334003000 | R30: 5396 | S30: - | T30: - | U30: PAR215003000 | V30: 3320 | W30: PAR225003000 | X30: 4498 | Y30: PAR335003000 | Z30: 6464
A33: Hauteur | C33: =C81 -> 600 | K33: =K81 -> 750 | S33: =S81 -> 900
A34: Type | C34: =C82 -> PAR11 | E34: =E82 -> PAR21 | G34: =G82 -> PAR22 | I34: =I82 -> PAR33 | K34: =K82 -> PAR11 | M34: =M82 -> PAR21 | O34: =O82 -> PAR22 | Q34: =Q82 -> PAR33 | S34: =S82 -> PAR11 | U34: =U82 -> PAR21 | W34: =W82 -> PAR22 | Y34: =Y82 -> PAR33
A35: Longueur (mm) | B35: Nombre éléments | C35: Modèle | D35: Puissance (watts) | E35: Modèle | F35: Puissance (watts) | G35: Modèle | H35: Puissance (watts) | I35: Modèle | J35: Puissance (watts) | K35: Modèle | L35: Puissance (watts) | M35: Modèle | N35: Puissance (watts) | O35: Modèle | P35: Puissance (watts) | Q35: Modèle | R35: Puissance (watts) | S35: Modèle | T35: Puissance (watts) | U35: Modèle | V35: Puissance (watts) | W35: Modèle | X35: Puissance (watts) | Y35: Modèle | Z35: Puissance (watts)
A36: =A84 -> 450 | B36: =B84 -> 9 | C36: =C84 -> PAR116000450 | D36: =IF(D84=""," - ",IF($B$6<0.7,D84*POWER($B$8/50,C$80),D84*POWER($B$7/50,C$80))) -> 424 | E36: =E84 -> PAR216000450 | F36: =IF(F84=""," - ",IF($B$6<0.7,F84*POWER($B$8/50,E$80),F84*POWER($B$7/50,E$80))) -> 571 | G36: =G84 -> PAR226000450 | H36: =IF(H84=""," - ",IF($B$6<0.7,H84*POWER($B$8/50,G$80),H84*POWER($B$7/50,G$80))) -> 773 | I36: =I84 -> PAR336000450 | J36: =IF(J84=""," - ",IF($B$6<0.7,J84*POWER($B$8/50,I$80),J84*POWER($B$7/50,I$80))) -> 1120 | K36: =K84 -> PAR117500450 | L36: =IF(L84=""," - ",IF($B$6<0.7,L84*POWER($B$8/50,K$80),L84*POWER($B$7/50,K$80))) -> 506 | M36: =M84 -> PAR217500450 | N36: =IF(N84=""," - ",IF($B$6<0.7,N84*POWER($B$8/50,M$80),N84*POWER($B$7/50,M$80))) -> 676 | O36: =O84 -> PAR227500450 | P36: =IF(P84=""," - ",IF($B$6<0.7,P84*POWER($B$8/50,O$80),P84*POWER($B$7/50,O$80))) -> 911 | Q36: =Q84 -> PAR337500450 | R36: =IF(R84=""," - ",IF($B$6<0.7,R84*POWER($B$8/50,Q$80),R84*POWER($B$7/50,Q$80))) -> 1329 | S36: =S84 -> PAR119000450 | T36: =IF(T84=""," - ",IF($B$6<0.7,T84*POWER($B$8/50,S$80),T84*POWER($B$7/50,S$80))) -> 584 | U36: =U84 -> PAR219000450 | V36: =IF(V84=""," - ",IF($B$6<0.7,V84*POWER($B$8/50,U$80),V84*POWER($B$7/50,U$80))) -> 776 | W36: =W84 -> PAR229000450 | X36: =IF(X84=""," - ",IF($B$6<0.7,X84*POWER($B$8/50,W$80),X84*POWER($B$7/50,W$80))) -> 1037 | Y36: =Y84 -> PAR339000450 | Z36: =IF(Z84=""," - ",IF($B$6<0.7,Z84*POWER($B$8/50,Y$80),Z84*POWER($B$7/50,Y$80))) -> 1521
A37: =A85 -> 600 | B37: 12 | C37: PAR116000600 | D37: =IF(D85=""," - ",IF($B$6<0.7,D85*POWER($B$8/50,C$80),D85*POWER($B$7/50,C$80))) -> 565 | E37: PAR216000600 | F37: =IF(F85=""," - ",IF($B$6<0.7,F85*POWER($B$8/50,E$80),F85*POWER($B$7/50,E$80))) -> 762 | G37: PAR226000600 | H37: =IF(H85=""," - ",IF($B$6<0.7,H85*POWER($B$8/50,G$80),H85*POWER($B$7/50,G$80))) -> 1031 | I37: PAR336000600 | J37: =IF(J85=""," - ",IF($B$6<0.7,J85*POWER($B$8/50,I$80),J85*POWER($B$7/50,I$80))) -> 1493 | K37: PAR117500600 | L37: =IF(L85=""," - ",IF($B$6<0.7,L85*POWER($B$8/50,K$80),L85*POWER($B$7/50,K$80))) -> 675 | M37: PAR217500600 | N37: =IF(N85=""," - ",IF($B$6<0.7,N85*POWER($B$8/50,M$80),N85*POWER($B$7/50,M$80))) -> 901 | O37: PAR227500600 | P37: =IF(P85=""," - ",IF($B$6<0.7,P85*POWER($B$8/50,O$80),P85*POWER($B$7/50,O$80))) -> 1214 | Q37: PAR337500600 | R37: =IF(R85=""," - ",IF($B$6<0.7,R85*POWER($B$8/50,Q$80),R85*POWER($B$7/50,Q$80))) -> 1772 | S37: PAR119000600 | T37: =IF(T85=""," - ",IF($B$6<0.7,T85*POWER($B$8/50,S$80),T85*POWER($B$7/50,S$80))) -> 779 | U37: PAR219000600 | V37: =IF(V85=""," - ",IF($B$6<0.7,V85*POWER($B$8/50,U$80),V85*POWER($B$7/50,U$80))) -> 1034 | W37: PAR229000600 | X37: =IF(X85=""," - ",IF($B$6<0.7,X85*POWER($B$8/50,W$80),X85*POWER($B$7/50,W$80))) -> 1383 | Y37: PAR339000600 | Z37: =IF(Z85=""," - ",IF($B$6<0.7,Z85*POWER($B$8/50,Y$80),Z85*POWER($B$7/50,Y$80))) -> 2028
A38: 750 | B38: 15 | C38: PAR116000750 | D38: 707 | E38: PAR216000750 | F38: 952 | G38: PAR226000750 | H38: 1289 | I38: PAR336000750 | J38: 1867 | K38: PAR117500750 | L38: 844 | M38: PAR217500750 | N38: 1127 | O38: PAR227500750 | P38: 1518 | Q38: PAR337500750 | R38: 2215 | S38: PAR119000750 | T38: 974 | U38: PAR219000750 | V38: 1293 | W38: PAR229000750 | X38: 1729 | Y38: PAR339000750 | Z38: 2535
A39: 900 | B39: 18 | C39: PAR116000900 | D39: 848 | E39: PAR216000900 | F39: 1142 | G39: PAR226000900 | H39: 1547 | I39: PAR336000900 | J39: 2240 | K39: PAR117500900 | L39: 1013 | M39: PAR217500900 | N39: 1352 | O39: PAR227500900 | P39: 1822 | Q39: PAR337500900 | R39: 2658 | S39: PAR119000900 | T39: 1168 | U39: PAR219000900 | V39: 1552 | W39: PAR229000900 | X39: 2075 | Y39: PAR339000900 | Z39: 3041
A40: 1050 | B40: 21 | C40: PAR116001050 | D40: 990 | E40: PAR216001050 | F40: 1333 | G40: PAR226001050 | H40: 1804 | I40: PAR336001050 | J40: 2613 | K40: PAR117501050 | L40: 1181 | M40: PAR217501050 | N40: 1577 | O40: PAR227501050 | P40: 2125 | Q40: PAR337501050 | R40: 3101 | S40: PAR119001050 | T40: 1363 | U40: PAR219001050 | V40: 1810 | W40: PAR229001050 | X40: 2421 | Y40: PAR339001050 | Z40: 3548
A41: 1200 | B41: 24 | C41: PAR116001200 | D41: 1131 | E41: PAR216001200 | F41: 1523 | G41: PAR226001200 | H41: 2062 | I41: PAR336001200 | J41: 2987 | K41: PAR117501200 | L41: 1350 | M41: PAR217501200 | N41: 1802 | O41: PAR227501200 | P41: 2429 | Q41: PAR337501200 | R41: 3544 | S41: PAR119001200 | T41: 1558 | U41: PAR219001200 | V41: 2069 | W41: PAR229001200 | X41: 2766 | Y41: PAR339001200 | Z41: 4055
A42: 1350 | B42: 27 | C42: PAR116001350 | D42: 1272 | E42: PAR216001350 | F42: 1713 | G42: PAR226001350 | H42: 2320 | I42: PAR336001350 | J42: 3360 | K42: PAR117501350 | L42: 1519 | M42: PAR217501350 | N42: 2028 | O42: PAR227501350 | P42: 2732 | Q42: PAR337501350 | R42: 3987 | S42: PAR119001350 | T42: 1753 | U42: PAR219001350 | V42: 2327 | W42: PAR229001350 | X42: 3112 | Y42: PAR339001350 | Z42: 4562
A43: 1500 | B43: 30 | C43: PAR116001500 | D43: 1414 | E43: PAR216001500 | F43: 1904 | G43: PAR226001500 | H43: 2578 | I43: PAR336001500 | J43: 3733 | K43: PAR117501500 | L43: 1688 | M43: PAR217501500 | N43: 2253 | O43: PAR227501500 | P43: 3036 | Q43: PAR337501500 | R43: 4430 | S43: PAR119001500 | T43: 1947 | U43: PAR219001500 | V43: 2586 | W43: PAR229001500 | X43: 3458 | Y43: PAR339001500 | Z43: 5069
A44: 1650 | B44: 33 | C44: PAR116001650 | D44: 1555 | E44: PAR216001650 | F44: 2094 | G44: PAR226001650 | H44: 2835 | I44: PAR336001650 | J44: 4107 | K44: PAR117501650 | L44: 1856 | M44: PAR217501650 | N44: 2478 | O44: PAR227501650 | P44: 3340 | Q44: PAR337501650 | R44: 4873 | S44: PAR119001650 | T44: 2142 | U44: PAR219001650 | V44: 2845 | W44: PAR229001650 | X44: 3804 | Y44: PAR339001650 | Z44: 5576
A45: 1800 | B45: 36 | C45: - | D45: - | E45: PAR216001800 | F45: 2285 | G45: PAR226001800 | H45: 3093 | I45: PAR336001800 | J45: 4480 | K45: - | L45: - | M45: PAR217501800 | N45: 2704 | O45: PAR227501800 | P45: 3643 | Q45: PAR337501800 | R45: 5316 | S45: - | T45: - | U45: PAR219001800 | V45: 3103 | W45: PAR229001800 | X45: 4150 | Y45: PAR339001800 | Z45: 6083
A46: 1950 | B46: 39 | C46: - | D46: - | E46: PAR216001950 | F46: 2475 | G46: PAR226001950 | H46: 3351 | I46: PAR336001950 | J46: 4853 | K46: - | L46: - | M46: PAR217501950 | N46: 2929 | O46: PAR227501950 | P46: 3947 | Q46: PAR337501950 | R46: 5759 | S46: - | T46: - | U46: PAR219001950 | V46: 3362 | W46: PAR229001950 | X46: 4496 | Y46: PAR339001950 | Z46: 6590
A47: 2100 | B47: 42 | C47: - | D47: - | E47: PAR216002100 | F47: 2665 | G47: PAR226002100 | H47: 3609 | I47: PAR336002100 | J47: 5226 | K47: - | L47: - | M47: PAR217502100 | N47: 3154 | O47: PAR227502100 | P47: 4250 | Q47: PAR337502100 | R47: 6202 | S47: - | T47: - | U47: PAR219002100 | V47: 3620 | W47: PAR229002100 | X47: 4841 | Y47: PAR339002100 | Z47: 7097
A48: 2250 | B48: 45 | C48: - | D48: - | E48: PAR216002250 | F48: 2856 | G48: PAR226002250 | H48: 3866 | I48: PAR336002250 | J48: 5600 | K48: - | L48: - | M48: PAR217502250 | N48: 3380 | O48: PAR227502250 | P48: 4554 | Q48: PAR337502250 | R48: 6645 | S48: - | T48: - | U48: PAR219002250 | V48: 3879 | W48: PAR229002250 | X48: 5187 | Y48: PAR339002250 | Z48: 7604
A49: 2400 | B49: 48 | C49: - | D49: - | E49: PAR216002400 | F49: 3046 | G49: PAR226002400 | H49: 4124 | I49: PAR336002400 | J49: 5973 | K49: - | L49: - | M49: PAR217502400 | N49: 3605 | O49: PAR227502400 | P49: 4858 | Q49: PAR337502400 | R49: 7088 | S49: - | T49: - | U49: PAR219002400 | V49: 4138 | W49: PAR229002400 | X49: 5533 | Y49: PAR339002400 | Z49: 8111
A50: 2550 | B50: 51 | C50: - | D50: - | E50: PAR216002550 | F50: 3236 | G50: PAR226002550 | H50: 4382 | I50: PAR336002550 | J50: 6346 | K50: - | L50: - | M50: PAR217502550 | N50: 3830 | O50: PAR227502550 | P50: 5161 | Q50: PAR337502550 | R50: 7531 | S50: - | T50: - | U50: PAR219002550 | V50: 4396 | W50: PAR229002550 | X50: 5879 | Y50: PAR339002550 | Z50: 8617
A51: 2700 | B51: 54 | C51: - | D51: - | E51: PAR216002700 | F51: 3427 | G51: PAR226002700 | H51: 4640 | I51: PAR336002700 | J51: 6720 | K51: - | L51: - | M51: PAR217502700 | N51: 4055 | O51: PAR227502700 | P51: 5465 | Q51: PAR337502700 | R51: 7974 | S51: - | T51: - | U51: PAR219002700 | V51: 4655 | W51: PAR229002700 | X51: 6225 | Y51: PAR339002700 | Z51: 9124
A52: 3000 | B52: 60 | C52: - | D52: - | E52: PAR216003000 | F52: 3808 | G52: PAR226003000 | H52: 5155 | I52: PAR336003000 | J52: 7466 | K52: - | L52: - | M52: PAR217503000 | N52: 4506 | O52: PAR227503000 | P52: 6072 | Q52: PAR337503000 | R52: 8860 | S52: - | T52: - | U52: PAR219003000 | V52: 5172 | W52: PAR229003000 | X52: 6916 | Y52: PAR339003000 | Z52: 10138
A56: Tableau de référence
A58: PENTE : | C58: 1.3436 | E58: 1.3096 | G58: 1.3154 | I58: 1.3144 | K58: 1.3382 | M58: 1.3209 | O58: 1.3208 | Q58: 1.3224 | S58: 1.3329 | U58: 1.3322 | W58: 1.3261 | Y58: 1.3323
A59: Hauteur | C59: 300 | K59: 400 | S59: 500
A60: Type | C60: PAR11 | E60: PAR21 | G60: PAR22 | I60: PAR33 | K60: PAR11 | M60: PAR21 | O60: PAR22 | Q60: PAR33 | S60: PAR11 | U60: PAR21 | W60: PAR22 | Y60: PAR33
A61: Longueur (mm) | B61: Nombre éléments | C61: Modèle | D61: Watt Dt 50°C | E61: Modèle | F61: Watt Dt 50°C | G61: Modèle | H61: Watt Dt 50°C | I61: Modèle | J61: Watt Dt 50°C | K61: Modèle | L61: Watt Dt 50°C | M61: Modèle | N61: Watt Dt 50°C | O61: Modèle | P61: Watt Dt 50°C | Q61: Modèle | R61: Watt Dt 50°C | S61: Modèle | T61: Watt Dt 50°C | U61: Modèle | V61: Watt Dt 50°C | W61: Modèle | X61: Watt Dt 50°C | Y61: Modèle | Z61: Watt Dt 50°C
A62: 450 | B62: =A62/50 -> 9 | C62: =IF(D62=""," - ",IF(LEN($A62)=3,C$60&$C$59&"0"&$A62,C$60&$C$59&$A62)) -> PAR113000450 | D62: 242 | E62: =IF(F62=""," - ",IF(LEN($A62)=3,E$60&$C$59&"0"&$A62,E$60&$C$59&$A62)) -> PAR213000450 | F62: 339 | G62: =IF(H62=""," - ",IF(LEN($A62)=3,G$60&$C$59&"0"&$A62,G$60&$C$59&$A62)) -> PAR223000450 | H62: 456 | I62: =IF(J62=""," - ",IF(LEN($A62)=3,I$60&$C$59&"0"&$A62,I$60&$C$59&$A62)) -> PAR333000450 | J62: 638 | K62: =IF(L62=""," - ",IF(LEN($A62)=3,K$60&$K$59&"0"&$A62,K$60&$K$59&$A62)) -> PAR114000450 | L62: 306 | M62: =IF(N62=""," - ",IF(LEN($A62)=3,M$60&$K$59&"0"&$A62,M$60&$K$59&$A62)) -> PAR214000450 | N62: 421 | O62: =IF(P62=""," - ",IF(LEN($A62)=3,O$60&$K$59&"0"&$A62,O$60&$K$59&$A62)) -> PAR224000450 | P62: 569 | Q62: =IF(R62=""," - ",IF(LEN($A62)=3,Q$60&$K$59&"0"&$A62,Q$60&$K$59&$A62)) -> PAR334000450 | R62: 809 | S62: =IF(T62=""," - ",IF(LEN($A62)=3,S$60&$S$59&"0"&$A62,S$60&$S$59&$A62)) -> PAR115000450 | T62: 366 | U62: =IF(V62=""," - ",IF(LEN($A62)=3,U$60&$S$59&"0"&$A62,U$60&$S$59&$A62)) -> PAR215000450 | V62: 498 | W62: =IF(X62=""," - ",IF(LEN($A62)=3,W$60&$S$59&"0"&$A62,W$60&$S$59&$A62)) -> PAR225000450 | X62: 675 | Y62: =IF(Z62=""," - ",IF(LEN($A62)=3,Y$60&$S$59&"0"&$A62,Y$60&$S$59&$A62)) -> PAR335000450 | Z62: 970
A63: 600 | B63: =A63/50 -> 12 | C63: PAR113000600 | D63: 323 | E63: PAR213000600 | F63: 453 | G63: PAR223000600 | H63: 608 | I63: PAR333000600 | J63: 850 | K63: PAR114000600 | L63: 408 | M63: PAR214000600 | N63: 561 | O63: PAR224000600 | P63: 759 | Q63: PAR334000600 | R63: 1079 | S63: =IF(T63=""," - ",IF(LEN($A63)=3,S$60&$S$59&"0"&$A63,S$60&$S$59&$A63)) -> PAR115000600 | T63: 489 | U63: PAR215000600 | V63: 664 | W63: PAR225000600 | X63: 900 | Y63: PAR335000600 | Z63: 1293
A64: 750 | B64: 15 | C64: PAR113000750 | D64: 404 | E64: PAR213000750 | F64: 566 | G64: PAR223000750 | H64: 759 | I64: PAR333000750 | J64: 1063 | K64: PAR114000750 | L64: 510 | M64: PAR214000750 | N64: 702 | O64: PAR224000750 | P64: 949 | Q64: PAR334000750 | R64: 1349 | S64: PAR115000750 | T64: 611 | U64: PAR215000750 | V64: 830 | W64: PAR225000750 | X64: 1124 | Y64: PAR335000750 | Z64: 1616
A65: 900 | B65: 18 | C65: PAR113000900 | D65: 485 | E65: PAR213000900 | F65: 679 | G65: PAR223000900 | H65: 911 | I65: PAR333000900 | J65: 1275 | K65: PAR114000900 | L65: 612 | M65: PAR214000900 | N65: 842 | O65: PAR224000900 | P65: 1139 | Q65: PAR334000900 | R65: 1619 | S65: PAR115000900 | T65: 733 | U65: PAR215000900 | V65: 996 | W65: PAR225000900 | X65: 1349 | Y65: PAR335000900 | Z65: 1939
A66: 1050 | B66: 21 | C66: PAR113001050 | D66: 565 | E66: PAR213001050 | F66: 792 | G66: PAR223001050 | H66: 1063 | I66: PAR333001050 | J66: 1488 | K66: PAR114001050 | L66: 714 | M66: PAR214001050 | N66: 983 | O66: PAR224001050 | P66: 1328 | Q66: PAR334001050 | R66: 1889 | S66: PAR115001050 | T66: 855 | U66: PAR215001050 | V66: 1162 | W66: PAR225001050 | X66: 1574 | Y66: PAR335001050 | Z66: 2262
A67: 1200 | B67: 24 | C67: PAR113001200 | D67: 646 | E67: PAR213001200 | F67: 905 | G67: PAR223001200 | H67: 1215 | I67: PAR333001200 | J67: 1701 | K67: PAR114001200 | L67: 816 | M67: PAR214001200 | N67: 1123 | O67: PAR224001200 | P67: 1518 | Q67: PAR334001200 | R67: 2158 | S67: PAR115001200 | T67: 977 | U67: PAR215001200 | V67: 1328 | W67: PAR225001200 | X67: 1799 | Y67: PAR335001200 | Z67: 2586
A68: 1350 | B68: 27 | C68: PAR113001350 | D68: 727 | E68: PAR213001350 | F68: 1018 | G68: PAR223001350 | H68: 1367 | I68: PAR333001350 | J68: 1913 | K68: PAR114001350 | L68: 918 | M68: PAR214001350 | N68: 1263 | O68: PAR224001350 | P68: 1708 | Q68: PAR334001350 | R68: 2428 | S68: PAR115001350 | T68: 1099 | U68: PAR215001350 | V68: 1494 | W68: PAR225001350 | X68: 2024 | Y68: PAR335001350 | Z68: 2909
A69: 1500 | B69: 30 | C69: PAR113001500 | D69: 808 | E69: PAR213001500 | F69: 1132 | G69: PAR223001500 | H69: 1519 | I69: PAR333001500 | J69: 2126 | K69: PAR114001500 | L69: 1020 | M69: PAR214001500 | N69: 1404 | O69: PAR224001500 | P69: 1898 | Q69: PAR334001500 | R69: 2698 | S69: PAR115001500 | T69: 1221 | U69: PAR215001500 | V69: 1660 | W69: PAR225001500 | X69: 2249 | Y69: PAR335001500 | Z69: 3232
A70: 1650 | B70: 33 | C70: PAR113001650 | D70: 888 | E70: PAR213001650 | F70: 1245 | G70: PAR223001650 | H70: 1671 | I70: PAR333001650 | J70: 2338 | K70: PAR114001650 | L70: 1122 | M70: PAR214001650 | N70: 1544 | O70: PAR224001650 | P70: 2087 | Q70: PAR334001650 | R70: 2968 | S70: PAR115001650 | T70: 1343 | U70: PAR215001650 | V70: 1826 | W70: PAR225001650 | X70: 2474 | Y70: PAR335001650 | Z70: 3555
A71: 1800 | B71: 36 | C71: - | E71: PAR213001800 | F71: 1358 | G71: PAR223001800 | H71: 1823 | I71: PAR333001800 | J71: 2551 | K71: - | M71: PAR214001800 | N71: 1684 | O71: PAR224001800 | P71: 2277 | Q71: PAR334001800 | R71: 3237 | S71: - | U71: PAR215001800 | V71: 1992 | W71: PAR225001800 | X71: 2699 | Y71: PAR335001800 | Z71: 3878
A72: 1950 | B72: 39 | C72: - | E72: PAR213001950 | F72: 1471 | G72: PAR223001950 | H72: 1975 | I72: PAR333001950 | J72: 2764 | K72: - | M72: PAR214001950 | N72: 1825 | O72: PAR224001950 | P72: 2467 | Q72: PAR334001950 | R72: 3507 | S72: - | U72: PAR215001950 | V72: 2158 | W72: PAR225001950 | X72: 2923 | Y72: PAR335001950 | Z72: 4201
A73: 2100 | B73: 42 | C73: - | E73: PAR213002100 | F73: 1584 | G73: PAR223002100 | H73: 2126 | I73: PAR333002100 | J73: 2976 | K73: - | M73: PAR214002100 | N73: 1965 | O73: PAR224002100 | P73: 2657 | Q73: PAR334002100 | R73: 3777 | S73: - | U73: PAR215002100 | V73: 2324 | W73: PAR225002100 | X73: 3148 | Y73: PAR335002100 | Z73: 4525
A74: 2250 | B74: 45 | C74: - | E74: PAR213002250 | F74: 1697 | G74: PAR223002250 | H74: 2278 | I74: PAR333002250 | J74: 3189 | K74: - | M74: PAR214002250 | N74: 2106 | O74: PAR224002250 | P74: 2846 | Q74: PAR334002250 | R74: 4047 | S74: - | U74: PAR215002250 | V74: 2490 | W74: PAR225002250 | X74: 3373 | Y74: PAR335002250 | Z74: 4848
A75: 2400 | B75: 48 | C75: - | E75: PAR213002400 | F75: 1811 | G75: PAR223002400 | H75: 2430 | I75: PAR333002400 | J75: 3401 | K75: - | M75: PAR214002400 | N75: 2246 | O75: PAR224002400 | P75: 3036 | Q75: PAR334002400 | R75: 4317 | S75: - | U75: PAR215002400 | V75: 2656 | W75: PAR225002400 | X75: 3598 | Y75: PAR335002400 | Z75: 5171
A76: 2550 | B76: 51 | C76: - | E76: PAR213002550 | F76: 1924 | G76: PAR223002550 | H76: 2582 | I76: PAR333002550 | J76: 3614 | K76: - | M76: PAR214002550 | N76: 2386 | O76: PAR224002550 | P76: 3226 | Q76: PAR334002550 | R76: 4586 | S76: - | U76: PAR215002550 | V76: 2822 | W76: PAR225002550 | X76: 3823 | Y76: PAR335002550 | Z76: 5494
A77: 2700 | B77: 54 | C77: - | E77: PAR213002700 | F77: 2037 | G77: PAR223002700 | H77: 2734 | I77: PAR333002700 | J77: 3826 | K77: - | M77: PAR214002700 | N77: 2527 | O77: PAR224002700 | P77: 3416 | Q77: PAR334002700 | R77: 4856 | S77: - | U77: PAR215002700 | V77: 2988 | W77: PAR225002700 | X77: 4048 | Y77: PAR335002700 | Z77: 5817
A78: 3000 | B78: 60 | C78: - | E78: PAR213003000 | F78: 2263 | G78: PAR223003000 | H78: 3038 | I78: PAR333003000 | J78: 4252 | K78: - | M78: PAR214003000 | N78: 2807 | O78: PAR224003000 | P78: 3795 | Q78: PAR334003000 | R78: 5396 | S78: - | U78: PAR215003000 | V78: 3320 | W78: PAR225003000 | X78: 4498 | Y78: PAR335003000 | Z78: 6464
A80: PENTE : | C80: 1.3275 | E80: 1.3435 | G80: 1.3315 | I80: 1.3413 | K80: 1.3224 | M80: 1.3584 | O80: 1.3497 | Q80: 1.3596 | S80: 1.3172 | U80: 1.3732 | W80: 1.3678 | Y80: 1.3779 | AR80: 1.354
A81: Hauteur | C81: 600 | K81: 750 | S81: 900
A82: Type | C82: PAR11 | E82: PAR21 | G82: PAR22 | I82: PAR33 | K82: PAR11 | M82: PAR21 | O82: PAR22 | Q82: PAR33 | S82: PAR11 | U82: PAR21 | W82: PAR22 | Y82: PAR33
A83: Longueur (mm) | B83: Nombre éléments | C83: Modèle | D83: Watt Dt 50°C | E83: Modèle | F83: Watt Dt 50°C | G83: Modèle | H83: Watt Dt 50°C | I83: Modèle | J83: Watt Dt 50°C | K83: Modèle | L83: Watt Dt 50°C | M83: Modèle | N83: Watt Dt 50°C | O83: Modèle | P83: Watt Dt 50°C | Q83: Modèle | R83: Watt Dt 50°C | S83: Modèle | U83: Modèle | V83: Watt Dt 50°C | W83: Modèle | X83: Watt Dt 50°C | Y83: Modèle | Z83: Watt Dt 50°C
A84: 450 | B84: =A84/50 -> 9 | C84: =IF(D84=""," - ",IF(LEN($A62)=3,C$82&$C$81&"0"&$A62,C$82&$C$81&$A62)) -> PAR116000450 | D84: 424 | E84: =IF(F84=""," - ",IF(LEN($A62)=3,E$82&$C$81&"0"&$A62,E$82&$C$81&$A62)) -> PAR216000450 | F84: 571 | G84: =IF(H84=""," - ",IF(LEN($A62)=3,G$82&$C$81&"0"&$A62,G$82&$C$81&$A62)) -> PAR226000450 | H84: 773 | I84: =IF(J84=""," - ",IF(LEN($A62)=3,I$82&$C$81&"0"&$A62,I$82&$C$81&$A62)) -> PAR336000450 | J84: 1120 | K84: =IF(L84=""," - ",IF(LEN($A84)=3,K$82&$K$81&"0"&$A84,K$82&$K$81&$A84)) -> PAR117500450 | L84: 506 | M84: =IF(N84=""," - ",IF(LEN($A84)=3,M$82&$K$81&"0"&$A84,M$82&$K$81&$A84)) -> PAR217500450 | N84: 676 | O84: =IF(P84=""," - ",IF(LEN($A84)=3,O$82&$K$81&"0"&$A84,O$82&$K$81&$A84)) -> PAR227500450 | P84: 911 | Q84: =IF(R84=""," - ",IF(LEN($A84)=3,Q$82&$K$81&"0"&$A84,Q$82&$K$81&$A84)) -> PAR337500450 | R84: 1329 | S84: =IF(T84=""," - ",IF(LEN($A84)=3,S$82&$S$81&"0"&$A84,S$82&$S$81&$A84)) -> PAR119000450 | T84: 584 | U84: =IF(V84=""," - ",IF(LEN($A84)=3,U$82&$S$81&"0"&$A84,U$82&$S$81&$A84)) -> PAR219000450 | V84: 776 | W84: =IF(X84=""," - ",IF(LEN($A84)=3,W$82&$S$81&"0"&$A84,W$82&$S$81&$A84)) -> PAR229000450 | X84: 1037 | Y84: =IF(Z84=""," - ",IF(LEN($A84)=3,Y$82&$S$81&"0"&$A84,Y$82&$S$81&$A84)) -> PAR339000450 | Z84: 1521
A85: 600 | B85: =A85/50 -> 12 | C85: PAR116000600 | D85: 565 | E85: PAR216000600 | F85: 762 | G85: PAR226000600 | H85: 1031 | I85: PAR336000600 | J85: 1493 | K85: PAR117500600 | L85: 675 | M85: PAR217500600 | N85: 901 | O85: PAR227500600 | P85: 1214 | Q85: PAR337500600 | R85: 1772 | S85: PAR119000600 | T85: 779 | U85: PAR219000600 | V85: 1034 | W85: PAR229000600 | X85: 1383 | Y85: PAR339000600 | Z85: 2028
A86: 750 | B86: 15 | C86: PAR116000750 | D86: 707 | E86: PAR216000750 | F86: 952 | G86: PAR226000750 | H86: 1289 | I86: PAR336000750 | J86: 1867 | K86: PAR117500750 | L86: 844 | M86: PAR217500750 | N86: 1127 | O86: PAR227500750 | P86: 1518 | Q86: PAR337500750 | R86: 2215 | S86: PAR119000750 | T86: 974 | U86: PAR219000750 | V86: 1293 | W86: PAR229000750 | X86: 1729 | Y86: PAR339000750 | Z86: 2535
A87: 900 | B87: 18 | C87: PAR116000900 | D87: 848 | E87: PAR216000900 | F87: 1142 | G87: PAR226000900 | H87: 1547 | I87: PAR336000900 | J87: 2240 | K87: PAR117500900 | L87: 1013 | M87: PAR217500900 | N87: 1352 | O87: PAR227500900 | P87: 1822 | Q87: PAR337500900 | R87: 2658 | S87: PAR119000900 | T87: 1168 | U87: PAR219000900 | V87: 1552 | W87: PAR229000900 | X87: 2075 | Y87: PAR339000900 | Z87: 3041
A88: 1050 | B88: 21 | C88: PAR116001050 | D88: 990 | E88: PAR216001050 | F88: 1333 | G88: PAR226001050 | H88: 1804 | I88: PAR336001050 | J88: 2613 | K88: PAR117501050 | L88: 1181 | M88: PAR217501050 | N88: 1577 | O88: PAR227501050 | P88: 2125 | Q88: PAR337501050 | R88: 3101 | S88: PAR119001050 | T88: 1363 | U88: PAR219001050 | V88: 1810 | W88: PAR229001050 | X88: 2421 | Y88: PAR339001050 | Z88: 3548
A89: 1200 | B89: 24 | C89: PAR116001200 | D89: 1131 | E89: PAR216001200 | F89: 1523 | G89: PAR226001200 | H89: 2062 | I89: PAR336001200 | J89: 2987 | K89: PAR117501200 | L89: 1350 | M89: PAR217501200 | N89: 1802 | O89: PAR227501200 | P89: 2429 | Q89: PAR337501200 | R89: 3544 | S89: PAR119001200 | T89: 1558 | U89: PAR219001200 | V89: 2069 | W89: PAR229001200 | X89: 2766 | Y89: PAR339001200 | Z89: 4055
A90: 1350 | B90: 27 | C90: PAR116001350 | D90: 1272 | E90: PAR216001350 | F90: 1713 | G90: PAR226001350 | H90: 2320 | I90: PAR336001350 | J90: 3360 | K90: PAR117501350 | L90: 1519 | M90: PAR217501350 | N90: 2028 | O90: PAR227501350 | P90: 2732 | Q90: PAR337501350 | R90: 3987 | S90: PAR119001350 | T90: 1753 | U90: PAR219001350 | V90: 2327 | W90: PAR229001350 | X90: 3112 | Y90: PAR339001350 | Z90: 4562
A91: 1500 | B91: 30 | C91: PAR116001500 | D91: 1414 | E91: PAR216001500 | F91: 1904 | G91: PAR226001500 | H91: 2578 | I91: PAR336001500 | J91: 3733 | K91: PAR117501500 | L91: 1688 | M91: PAR217501500 | N91: 2253 | O91: PAR227501500 | P91: 3036 | Q91: PAR337501500 | R91: 4430 | S91: PAR119001500 | T91: 1947 | U91: PAR219001500 | V91: 2586 | W91: PAR229001500 | X91: 3458 | Y91: PAR339001500 | Z91: 5069
A92: 1650 | B92: 33 | C92: PAR116001650 | D92: 1555 | E92: PAR216001650 | F92: 2094 | G92: PAR226001650 | H92: 2835 | I92: PAR336001650 | J92: 4107 | K92: PAR117501650 | L92: 1856 | M92: PAR217501650 | N92: 2478 | O92: PAR227501650 | P92: 3340 | Q92: PAR337501650 | R92: 4873 | S92: PAR119001650 | T92: 2142 | U92: PAR219001650 | V92: 2845 | W92: PAR229001650 | X92: 3804 | Y92: PAR339001650 | Z92: 5576
A93: 1800 | B93: 36 | C93: - | E93: PAR216001800 | F93: 2285 | G93: PAR226001800 | H93: 3093 | I93: PAR336001800 | J93: 4480 | K93: - | M93: PAR217501800 | N93: 2704 | O93: PAR227501800 | P93: 3643 | Q93: PAR337501800 | R93: 5316 | S93: - | U93: PAR219001800 | V93: 3103 | W93: PAR229001800 | X93: 4150 | Y93: PAR339001800 | Z93: 6083
A94: 1950 | B94: 39 | C94: - | E94: PAR216001950 | F94: 2475 | G94: PAR226001950 | H94: 3351 | I94: PAR336001950 | J94: 4853 | K94: - | M94: PAR217501950 | N94: 2929 | O94: PAR227501950 | P94: 3947 | Q94: PAR337501950 | R94: 5759 | S94: - | U94: PAR219001950 | V94: 3362 | W94: PAR229001950 | X94: 4496 | Y94: PAR339001950 | Z94: 6590
A95: 2100 | B95: 42 | C95: - | E95: PAR216002100 | F95: 2665 | G95: PAR226002100 | H95: 3609 | I95: PAR336002100 | J95: 5226 | K95: - | M95: PAR217502100 | N95: 3154 | O95: PAR227502100 | P95: 4250 | Q95: PAR337502100 | R95: 6202 | S95: - | U95: PAR219002100 | V95: 3620 | W95: PAR229002100 | X95: 4841 | Y95: PAR339002100 | Z95: 7097
A96: 2250 | B96: 45 | C96: - | E96: PAR216002250 | F96: 2856 | G96: PAR226002250 | H96: 3866 | I96: PAR336002250 | J96: 5600 | K96: - | M96: PAR217502250 | N96: 3380 | O96: PAR227502250 | P96: 4554 | Q96: PAR337502250 | R96: 6645 | S96: - | U96: PAR219002250 | V96: 3879 | W96: PAR229002250 | X96: 5187 | Y96: PAR339002250 | Z96: 7604
A97: 2400 | B97: 48 | C97: - | E97: PAR216002400 | F97: 3046 | G97: PAR226002400 | H97: 4124 | I97: PAR336002400 | J97: 5973 | K97: - | M97: PAR217502400 | N97: 3605 | O97: PAR227502400 | P97: 4858 | Q97: PAR337502400 | R97: 7088 | S97: - | U97: PAR219002400 | V97: 4138 | W97: PAR229002400 | X97: 5533 | Y97: PAR339002400 | Z97: 8111
A98: 2550 | B98: 51 | C98: - | E98: PAR216002550 | F98: 3236 | G98: PAR226002550 | H98: 4382 | I98: PAR336002550 | J98: 6346 | K98: - | M98: PAR217502550 | N98: 3830 | O98: PAR227502550 | P98: 5161 | Q98: PAR337502550 | R98: 7531 | S98: - | U98: PAR219002550 | V98: 4396 | W98: PAR229002550 | X98: 5879 | Y98: PAR339002550 | Z98: 8617
A99: 2700 | B99: 54 | C99: - | E99: PAR216002700 | F99: 3427 | G99: PAR226002700 | H99: 4640 | I99: PAR336002700 | J99: 6720 | K99: - | M99: PAR217502700 | N99: 4055 | O99: PAR227502700 | P99: 5465 | Q99: PAR337502700 | R99: 7974 | S99: - | U99: PAR219002700 | V99: 4655 | W99: PAR229002700 | X99: 6225 | Y99: PAR339002700 | Z99: 9124
A100: 3000 | B100: 60 | C100: - | E100: PAR216003000 | F100: 3808 | G100: PAR226003000 | H100: 5155 | I100: PAR336003000 | J100: 7466 | K100: - | M100: PAR217503000 | N100: 4506 | O100: PAR227503000 | P100: 6072 | Q100: PAR337503000 | R100: 8860 | S100: - | U100: PAR219003000 | V100: 5172 | W100: PAR229003000 | X100: 6916 | Y100: PAR339003000 | Z100: 10138

Sheet PARADA PLINTHE
A1: Programme de calcul de la puissance thermique: PARADA PLINTHE et PARADA PLINTHE DOUBLE
A3: Te | B3: 75 | C3: <= Entrez la température à l'entrée en C°
A4: Ts | B4: 65 | C4: <= Entrez la température à la sortie en C°
A5: Ti | B5: 20 | C5: <= Entrez la température ambiante en C°
A6: Rapport | B6: =(B4-B5)/(B3-B5) -> 0.8181818182
A7: Delta T | B7: =((B3+B4)/2)-B5 -> 50
A8: Delta T2 | B8: =(B3-B4)/LN((B3-B5)/(B4-B5)) -> 49.83288655 | C8: Si Rapport < 0,7
A11: Hauteur | C11: =C53 -> 200
A12: Type | C12: =C54 -> FCV22 | E12: =E54 -> FCV33 | G12: =G54 -> FCV44
A13: Longueur (mm) | B13: Nombre éléments | C13: Modèle | D13: Puissance (watts) | E13: Modèle | F13: Puissance (watts) | G13: Modèle | H13: Puissance (watts)
A14: =A56 -> 600 | B14: =B56 -> 12 | C14: =C56 -> FCV222000600 | D14: =IF(D56=""," - ",IF($B$6<0.7,D56*POWER($B$8/50,C$52),D56*POWER($B$7/50,C$52))) -> 434 | E14: =E56 -> FCV332000600 | F14: =IF(F56=""," - ",IF($B$6<0.7,F56*POWER($B$8/50,E$52),F56*POWER($B$7/50,E$52))) -> 628 | G14: =G56 -> FCV442000600 | H14: =IF(H56=""," - ",IF($B$6<0.7,H56*POWER($B$8/50,G$52),H56*POWER($B$7/50,G$52))) -> 803 | V14: ,
A15: =A57 -> 700 | B15: 14 | C15: FCV222000700 | D15: 507 | E15: =E57 -> FCV332000700 | F15: 733 | G15: =G57 -> FCV442000700 | H15: 937
A16: 800 | B16: 16 | C16: FCV222000800 | D16: 579 | E16: FCV332000800 | F16: 838 | G16: FCV442000800 | H16: 1071
A17: 900 | B17: 18 | C17: FCV222000900 | D17: 652 | E17: FCV332000900 | F17: 942 | G17: FCV442000900 | H17: 1205
A18: 1000 | B18: 20 | C18: FCV222001000 | D18: 724 | E18: FCV332001000 | F18: 1047 | G18: FCV442001000 | H18: 1339
A19: 1100 | B19: 22 | C19: FCV222001100 | D19: 796 | E19: FCV332001100 | F19: 1152 | G19: FCV442001100 | H19: 1473
A20: 1200 | B20: 24 | C20: FCV222001200 | D20: 869 | E20: FCV332001200 | F20: 1256 | G20: FCV442001200 | H20: 1607
A21: 1400 | B21: 28 | C21: FCV222001400 | D21: 1014 | E21: FCV332001400 | F21: 1466 | G21: FCV442001400 | H21: 1875
A22: 1600 | B22: 32 | C22: FCV222001600 | D22: 1158 | E22: FCV332001600 | F22: 1675 | G22: FCV442001600 | H22: 2142
A23: 1800 | B23: 36 | C23: FCV222001800 | D23: 1303 | E23: FCV332001800 | F23: 1885 | G23: FCV442001800 | H23: 2410
A24: 2000 | B24: 40 | C24: FCV222002000 | D24: 1448 | E24: FCV332002000 | F24: 2094 | G24: FCV442002000 | H24: 2678
A25: 2300 | B25: 46 | C25: FCV222002300 | D25: 1665 | E25: FCV332002300 | F25: 2408 | G25: FCV442002300 | H25: 3080
A26: 2600 | B26: 52 | C26: FCV222002600 | D26: 1882 | E26: FCV332002600 | F26: 2722 | G26: FCV442002600 | H26: 3481
A27: 3000 | B27: 60 | C27: FCV222003000 | D27: 2172 | E27: FCV332003000 | F27: 3141 | G27: FCV442003000 | H27: 4017
A30: Hauteur | C30: =C72 -> 200
A31: Type | C31: =C73 -> FFCV22 | E31: =E73 -> FFCV33 | G31: =G73 -> FFCV44
A32: Longueur (mm) | B32: Nombre éléments | C32: Modèle | D32: Puissance (watts) | E32: Modèle | F32: Puissance (watts) | G32: Modèle | H32: Puissance (watts)
A33: =A75 -> 600 | B33: =B75 -> 12 | C33: =C75 -> FFCV222000600 | D33: =IF(D75=""," - ",IF($B$6<0.7,D75*POWER($B$8/50,C$71),D75*POWER($B$7/50,C$71))) -> 430 | E33: =E75 -> FFCV332000600 | F33: =IF(F75=""," - ",IF($B$6<0.7,F75*POWER($B$8/50,E$71),F75*POWER($B$7/50,E$71))) -> 598 | G33: =G75 -> FFCV442000600 | H33: =IF(H75=""," - ",IF($B$6<0.7,H75*POWER($B$8/50,G$71),H75*POWER($B$7/50,G$71))) -> 793
A34: =A76 -> 700 | B34: 14 | C34: FFCV222000700 | D34: 502 | E34: FFCV332000700 | F34: 697 | G34: FFCV442000700 | H34: 925
A35: 800 | B35: 16 | C35: FFCV222000800 | D35: 574 | E35: FFCV332000800 | F35: 797 | G35: FFCV442000800 | H35: 1057
A36: 900 | B36: 18 | C36: FFCV222000900 | D36: 645 | E36: FFCV332000900 | F36: 896 | G36: FFCV442000900 | H36: 1189
A37: 1000 | B37: 20 | C37: FFCV222001000 | D37: 717 | E37: FFCV332001000 | F37: 996 | G37: FFCV442001000 | H37: 1321
A38: 1100 | B38: 22 | C38: FFCV222001100 | D38: 789 | E38: FFCV332001100 | F38: 1096 | G38: FFCV442001100 | H38: 1453
A39: 1200 | B39: 24 | C39: FFCV222001200 | D39: 860 | E39: FFCV332001200 | F39: 1195 | G39: FFCV442001200 | H39: 1585
A40: 1400 | B40: 28 | C40: FFCV222001400 | D40: 1004 | E40: FFCV332001400 | F40: 1394 | G40: FFCV442001400 | H40: 1849
A41: 1600 | B41: 32 | C41: FFCV222001600 | D41: 1147 | E41: FFCV332001600 | F41: 1594 | G41: FFCV442001600 | H41: 2114
A42: 1800 | B42: 36 | C42: FFCV222001800 | D42: 1291 | E42: FFCV332001800 | F42: 1793 | G42: FFCV442001800 | H42: 2378
A43: 2000 | B43: 40 | C43: FFCV222002000 | D43: 1434 | E43: FFCV332002000 | F43: 1992 | G43: FFCV442002000 | H43: 2642
A44: 2300 | B44: 46 | C44: FFCV222002300 | D44: 1649 | E44: FFCV332002300 | F44: 2291 | G44: FFCV442002300 | H44: 3038
A45: 2600 | B45: 52 | C45: FFCV222002600 | D45: 1864 | E45: FFCV332002600 | F45: 2590 | G45: FFCV442002600 | H45: 3435
A46: 3000 | B46: 60 | C46: FFCV222003000 | D46: 2151 | E46: FFCV332003000 | F46: 2988 | G46: FFCV442003000 | H46: 3963
A50: Tableau de référence
A52: PENTE : | C52: 1.3238 | E52: 1.3337 | G52: 1.3433
A53: Hauteur | C53: 200
A54: Type | C54: FCV22 | E54: FCV33 | G54: FCV44
A55: Longueur (mm) | B55: Nombre éléments | C55: Modèle | D55: Watt Dt 50°C | E55: Modèle | F55: Watt Dt 50°C | G55: Modèle | H55: Watt Dt 50°C
A56: 600 | B56: =A56/50 -> 12 | C56: =IF(D56=""," - ",IF(LEN($A56)=3,C$54&$C$53&"0"&$A56,C$54&$C$53&$A56)) -> FCV222000600 | D56: 434 | E56: =IF(F56=""," - ",IF(LEN($A56)=3,E$54&$C$53&"0"&$A56,E$54&$C$53&$A56)) -> FCV332000600 | F56: 628 | G56: =IF(H56=""," - ",IF(LEN($A56)=3,G$54&$C$53&"0"&$A56,G$54&$C$53&$A56)) -> FCV442000600 | H56: 803
A57: 700 | B57: =A57/50 -> 14 | C57: FCV222000700 | D57: 507 | E57: FCV332000700 | F57: 733 | G57: FCV442000700 | H57: 937
A58: 800 | B58: 16 | C58: FCV222000800 | D58: 579 | E58: FCV332000800 | F58: 838 | G58: FCV442000800 | H58: 1071
A59: 900 | B59: 18 | C59: FCV222000900 | D59: 652 | E59: FCV332000900 | F59: 942 | G59: FCV442000900 | H59: 1205
A60: 1000 | B60: 20 | C60: FCV222001000 | D60: 724 | E60: FCV332001000 | F60: 1047 | G60: FCV442001000 | H60: 1339
A61: 1100 | B61: 22 | C61: FCV222001100 | D61: 796 | E61: FCV332001100 | F61: 1152 | G61: FCV442001100 | H61: 1473
A62: 1200 | B62: 24 | C62: FCV222001200 | D62: 869 | E62: FCV332001200 | F62: 1256 | G62: FCV442001200 | H62: 1607
A63: 1400 | B63: 28 | C63: FCV222001400 | D63: 1014 | E63: FCV332001400 | F63: 1466 | G63: FCV442001400 | H63: 1875
A64: 1600 | B64: 32 | C64: FCV222001600 | D64: 1158 | E64: FCV332001600 | F64: 1675 | G64: FCV442001600 | H64: 2142
A65: 1800 | B65: 36 | C65: FCV222001800 | D65: 1303 | E65: FCV332001800 | F65: 1885 | G65: FCV442001800 | H65: 2410
A66: 2000 | B66: 40 | C66: FCV222002000 | D66: 1448 | E66: FCV332002000 | F66: 2094 | G66: FCV442002000 | H66: 2678
A67: 2300 | B67: 46 | C67: FCV222002300 | D67: 1665 | E67: FCV332002300 | F67: 2408 | G67: FCV442002300 | H67: 3080
A68: 2600 | B68: 52 | C68: FCV222002600 | D68: 1882 | E68: FCV332002600 | F68: 2722 | G68: FCV442002600 | H68: 3481
A69: 3000 | B69: 60 | C69: FCV222003000 | D69: 2172 | E69: FCV332003000 | F69: 3141 | G69: FCV442003000 | H69: 4017
A71: PENTE : | C71: 1.3176 | E71: 1.3458 | G71: 1.3396 | Z71: 1.354
A72: Hauteur | C72: 200
A73: Type | C73: FFCV22 | E73: FFCV33 | G73: FFCV44
A74: Longueur (mm) | B74: Nombre éléments | C74: Modèle | D74: Watt Dt 50°C | E74: Modèle | F74: Watt Dt 50°C | G74: Modèle | H74: Watt Dt 50°C
A75: 600 | B75: =A75/50 -> 12 | C75: =IF(D75=""," - ",IF(LEN($A56)=3,C$73&$C$72&"0"&$A56,C$73&$C$72&$A56)) -> FFCV222000600 | D75: 430 | E75: =IF(F75=""," - ",IF(LEN($A56)=3,E$73&$C$72&"0"&$A56,E$73&$C$72&$A56)) -> FFCV332000600 | F75: 598 | G75: =IF(H75=""," - ",IF(LEN($A56)=3,G$73&$C$72&"0"&$A56,G$73&$C$72&$A56)) -> FFCV442000600 | H75: 793
A76: 700 | B76: =A76/50 -> 14 | C76: FFCV222000700 | D76: 502 | E76: FFCV332000700 | F76: 697 | G76: FFCV442000700 | H76: 925
A77: 800 | B77: 16 | C77: FFCV222000800 | D77: 574 | E77: FFCV332000800 | F77: 797 | G77: FFCV442000800 | H77: 1057
A78: 900 | B78: 18 | C78: FFCV222000900 | D78: 645 | E78: FFCV332000900 | F78: 896 | G78: FFCV442000900 | H78: 1189
A79: 1000 | B79: 20 | C79: FFCV222001000 | D79: 717 | E79: FFCV332001000 | F79: 996 | G79: FFCV442001000 | H79: 1321
A80: 1100 | B80: 22 | C80: FFCV222001100 | D80: 789 | E80: FFCV332001100 | F80: 1096 | G80: FFCV442001100 | H80: 1453
A81: 1200 | B81: 24 | C81: FFCV222001200 | D81: 860 | E81: FFCV332001200 | F81: 1195 | G81: FFCV442001200 | H81: 1585
A82: 1400 | B82: 28 | C82: FFCV222001400 | D82: 1004 | E82: FFCV332001400 | F82: 1394 | G82: FFCV442001400 | H82: 1849
A83: 1600 | B83: 32 | C83: FFCV222001600 | D83: 1147 | E83: FFCV332001600 | F83: 1594 | G83: FFCV442001600 | H83: 2114
A84: 1800 | B84: 36 | C84: FFCV222001800 | D84: 1291 | E84: FFCV332001800 | F84: 1793 | G84: FFCV442001800 | H84: 2378
A85: 2000 | B85: 40 | C85: FFCV222002000 | D85: 1434 | E85: FFCV332002000 | F85: 1992 | G85: FFCV442002000 | H85: 2642
A86: 2300 | B86: 46 | C86: FFCV222002300 | D86: 1649 | E86: FFCV332002300 | F86: 2291 | G86: FFCV442002300 | H86: 3038
A87: 2600 | B87: 52 | C87: FFCV222002600 | D87: 1864 | E87: FFCV332002600 | F87: 2590 | G87: FFCV442002600 | H87: 3435
A88: 3000 | B88: 60 | C88: FFCV222003000 | D88: 2151 | E88: FFCV332003000 | F88: 2988 | G88: FFCV442003000 | H88: 3963

Sheet RAMO
A1: Programme de calcul de la puissance thermique: RAMO
A3: Te | B3: 75 | C3: <= Entrez la température à l'entrée en C°
A4: Ts | B4: 65 | C4: <= Entrez la température à la sortie en C°
A5: Ti | B5: 20 | C5: <= Entrez la température ambiante en C°
A6: Rapport | B6: =(B4-B5)/(B3-B5) -> 0.8181818182
A7: Delta T | B7: =((B3+B4)/2)-B5 -> 50
A8: Delta T2 | B8: =(B3-B4)/LN((B3-B5)/(B4-B5)) -> 49.83288655 | C8: Si Rapport < 0,7
A11: Hauteur | C11: =C59 -> 300 | K11: =K59 -> 400 | S11: =S59 -> 500
A12: Type | C12: =C60 -> RA11 | E12: =E60 -> RA21 | G12: =G60 -> RA22 | I12: =I60 -> RA33 | K12: =K60 -> RA11 | M12: =M60 -> RA21 | O12: =O60 -> RA22 | Q12: =Q60 -> RA33 | S12: =S60 -> RA11 | U12: =U60 -> RA21 | W12: =W60 -> RA22 | Y12: =Y60 -> RA33
A13: Longueur (mm) | B13: Nombre éléments | C13: Modèle | D13: Puissance (watts) | E13: Modèle | F13: Puissance (watts) | G13: Modèle | H13: Puissance (watts) | I13: Modèle | J13: Puissance (watts) | K13: Modèle | L13: Puissance (watts) | M13: Modèle | N13: Puissance (watts) | O13: Modèle | P13: Puissance (watts) | Q13: Modèle | R13: Puissance (watts) | S13: Modèle | T13: Puissance (watts) | U13: Modèle | V13: Puissance (watts) | W13: Modèle | X13: Puissance (watts) | Y13: Modèle | Z13: Puissance (watts)
A14: =A62 -> 450 | B14: =B62 -> 9 | C14: =C62 -> RA113000450 | D14: =IF(D62=""," - ",IF($B$6<0.7,D62*POWER($B$8/50,C$58),D62*POWER($B$7/50,C$58))) -> 242 | E14: =E62 -> RA213000450 | F14: =IF(F62=""," - ",IF($B$6<0.7,F62*POWER($B$8/50,E$58),F62*POWER($B$7/50,E$58))) -> 339 | G14: =G62 -> RA223000450 | H14: =IF(H62=""," - ",IF($B$6<0.7,H62*POWER($B$8/50,G$58),H62*POWER($B$7/50,G$58))) -> 456 | I14: =I62 -> RA333000450 | J14: =IF(J62=""," - ",IF($B$6<0.7,J62*POWER($B$8/50,I$58),J62*POWER($B$7/50,I$58))) -> 638 | K14: =K62 -> RA114000450 | L14: =IF(L62=""," - ",IF($B$6<0.7,L62*POWER($B$8/50,K$58),L62*POWER($B$7/50,K$58))) -> 306 | M14: =M62 -> RA214000450 | N14: =IF(N62=""," - ",IF($B$6<0.7,N62*POWER($B$8/50,M$58),N62*POWER($B$7/50,M$58))) -> 421 | O14: =O62 -> RA224000450 | P14: =IF(P62=""," - ",IF($B$6<0.7,P62*POWER($B$8/50,O$58),P62*POWER($B$7/50,O$58))) -> 569 | Q14: =Q62 -> RA334000450 | R14: =IF(R62=""," - ",IF($B$6<0.7,R62*POWER($B$8/50,Q$58),R62*POWER($B$7/50,Q$58))) -> 809 | S14: =S62 -> RA115000450 | T14: =IF(T62=""," - ",IF($B$6<0.7,T62*POWER($B$8/50,S$58),T62*POWER($B$7/50,S$58))) -> 366 | U14: =U62 -> RA215000450 | V14: =IF(V62=""," - ",IF($B$6<0.7,V62*POWER($B$8/50,U$58),V62*POWER($B$7/50,U$58))) -> 498 | W14: =W62 -> RA225000450 | X14: =IF(X62=""," - ",IF($B$6<0.7,X62*POWER($B$8/50,W$58),X62*POWER($B$7/50,W$58))) -> 675 | Y14: =Y62 -> RA335000450 | Z14: =IF(Z62=""," - ",IF($B$6<0.7,Z62*POWER($B$8/50,Y$58),Z62*POWER($B$7/50,Y$58))) -> 970 | AN14: ,
A15: =A63 -> 600 | B15: 12 | C15: RA113000600 | D15: =IF(D63=""," - ",IF($B$6<0.7,D63*POWER($B$8/50,C$58),D63*POWER($B$7/50,C$58))) -> 323 | E15: =E63 -> RA213000600 | F15: =IF(F63=""," - ",IF($B$6<0.7,F63*POWER($B$8/50,E$58),F63*POWER($B$7/50,E$58))) -> 453 | G15: =G63 -> RA223000600 | H15: =IF(H63=""," - ",IF($B$6<0.7,H63*POWER($B$8/50,G$58),H63*POWER($B$7/50,G$58))) -> 608 | I15: =I63 -> RA333000600 | J15: =IF(J63=""," - ",IF($B$6<0.7,J63*POWER($B$8/50,I$58),J63*POWER($B$7/50,I$58))) -> 850 | K15: =K63 -> RA114000600 | L15: =IF(L63=""," - ",IF($B$6<0.7,L63*POWER($B$8/50,K$58),L63*POWER($B$7/50,K$58))) -> 408 | M15: =M63 -> RA214000600 | N15: =IF(N63=""," - ",IF($B$6<0.7,N63*POWER($B$8/50,M$58),N63*POWER($B$7/50,M$58))) -> 561 | O15: =O63 -> RA224000600 | P15: =IF(P63=""," - ",IF($B$6<0.7,P63*POWER($B$8/50,O$58),P63*POWER($B$7/50,O$58))) -> 759 | Q15: =Q63 -> RA334000600 | R15: =IF(R63=""," - ",IF($B$6<0.7,R63*POWER($B$8/50,Q$58),R63*POWER($B$7/50,Q$58))) -> 1079 | S15: =S63 -> RA115000600 | T15: =IF(T63=""," - ",IF($B$6<0.7,T63*POWER($B$8/50,S$58),T63*POWER($B$7/50,S$58))) -> 489 | U15: =U63 -> RA215000600 | V15: =IF(V63=""," - ",IF($B$6<0.7,V63*POWER($B$8/50,U$58),V63*POWER($B$7/50,U$58))) -> 664 | W15: =W63 -> RA225000600 | X15: =IF(X63=""," - ",IF($B$6<0.7,X63*POWER($B$8/50,W$58),X63*POWER($B$7/50,W$58))) -> 900 | Y15: =Y63 -> RA335000600 | Z15: =IF(Z63=""," - ",IF($B$6<0.7,Z63*POWER($B$8/50,Y$58),Z63*POWER($B$7/50,Y$58))) -> 1293
A16: 750 | B16: 15 | C16: RA113000750 | D16: 404 | E16: RA213000750 | F16: 566 | G16: RA223000750 | H16: 759 | I16: RA333000750 | J16: 1063 | K16: RA114000750 | L16: 510 | M16: RA214000750 | N16: 702 | O16: RA224000750 | P16: 949 | Q16: RA334000750 | R16: 1349 | S16: RA115000750 | T16: 611 | U16: RA215000750 | V16: 830 | W16: RA225000750 | X16: 1124 | Y16: RA335000750 | Z16: 1616
A17: 900 | B17: 18 | C17: RA113000900 | D17: 485 | E17: RA213000900 | F17: 679 | G17: RA223000900 | H17: 911 | I17: RA333000900 | J17: 1275 | K17: RA114000900 | L17: 612 | M17: RA214000900 | N17: 842 | O17: RA224000900 | P17: 1139 | Q17: RA334000900 | R17: 1619 | S17: RA115000900 | T17: 733 | U17: RA215000900 | V17: 996 | W17: RA225000900 | X17: 1349 | Y17: RA335000900 | Z17: 1939
A18: 1050 | B18: 21 | C18: RA113001050 | D18: 565 | E18: RA213001050 | F18: 792 | G18: RA223001050 | H18: 1063 | I18: RA333001050 | J18: 1488 | K18: RA114001050 | L18: 714 | M18: RA214001050 | N18: 983 | O18: RA224001050 | P18: 1328 | Q18: RA334001050 | R18: 1889 | S18: RA115001050 | T18: 855 | U18: RA215001050 | V18: 1162 | W18: RA225001050 | X18: 1574 | Y18: RA335001050 | Z18: 2262
A19: 1200 | B19: 24 | C19: RA113001200 | D19: 646 | E19: RA213001200 | F19: 905 | G19: RA223001200 | H19: 1215 | I19: RA333001200 | J19: 1701 | K19: RA114001200 | L19: 816 | M19: RA214001200 | N19: 1123 | O19: RA224001200 | P19: 1518 | Q19: RA334001200 | R19: 2158 | S19: RA115001200 | T19: 977 | U19: RA215001200 | V19: 1328 | W19: RA225001200 | X19: 1799 | Y19: RA335001200 | Z19: 2586
A20: 1350 | B20: 27 | C20: RA113001350 | D20: 727 | E20: RA213001350 | F20: 1018 | G20: RA223001350 | H20: 1367 | I20: RA333001350 | J20: 1913 | K20: RA114001350 | L20: 918 | M20: RA214001350 | N20: 1263 | O20: RA224001350 | P20: 1708 | Q20: RA334001350 | R20: 2428 | S20: RA115001350 | T20: 1099 | U20: RA215001350 | V20: 1494 | W20: RA225001350 | X20: 2024 | Y20: RA335001350 | Z20: 2909
A21: 1500 | B21: 30 | C21: RA113001500 | D21: 808 | E21: RA213001500 | F21: 1132 | G21: RA223001500 | H21: 1519 | I21: RA333001500 | J21: 2126 | K21: RA114001500 | L21: 1020 | M21: RA214001500 | N21: 1404 | O21: RA224001500 | P21: 1898 | Q21: RA334001500 | R21: 2698 | S21: RA115001500 | T21: 1221 | U21: RA215001500 | V21: 1660 | W21: RA225001500 | X21: 2249 | Y21: RA335001500 | Z21: 3232
A22: 1650 | B22: 33 | C22: RA113001650 | D22: 888 | E22: RA213001650 | F22: 1245 | G22: RA223001650 | H22: 1671 | I22: RA333001650 | J22: 2338 | K22: RA114001650 | L22: 1122 | M22: RA214001650 | N22: 1544 | O22: RA224001650 | P22: 2087 | Q22: RA334001650 | R22: 2968 | S22: RA115001650 | T22: 1343 | U22: RA215001650 | V22: 1826 | W22: RA225001650 | X22: 2474 | Y22: RA335001650 | Z22: 3555
A23: 1800 | B23: 36 | C23: - | D23: - | E23: RA213001800 | F23: 1358 | G23: RA223001800 | H23: 1823 | I23: RA333001800 | J23: 2551 | K23: - | L23: - | M23: RA214001800 | N23: 1684 | O23: RA224001800 | P23: 2277 | Q23: RA334001800 | R23: 3237 | S23: - | T23: - | U23: RA215001800 | V23: 1992 | W23: RA225001800 | X23: 2699 | Y23: RA335001800 | Z23: 3878
A24: 1950 | B24: 39 | C24: - | D24: - | E24: RA213001950 | F24: 1471 | G24: RA223001950 | H24: 1975 | I24: RA333001950 | J24: 2764 | K24: - | L24: - | M24: RA214001950 | N24: 1825 | O24: RA224001950 | P24: 2467 | Q24: RA334001950 | R24: 3507 | S24: - | T24: - | U24: RA215001950 | V24: 2158 | W24: RA225001950 | X24: 2923 | Y24: RA335001950 | Z24: 4201
A25: 2100 | B25: 42 | C25: - | D25: - | E25: RA213002100 | F25: 1584 | G25: RA223002100 | H25: 2126 | I25: RA333002100 | J25: 2976 | K25: - | L25: - | M25: RA214002100 | N25: 1965 | O25: RA224002100 | P25: 2657 | Q25: RA334002100 | R25: 3777 | S25: - | T25: - | U25: RA215002100 | V25: 2324 | W25: RA225002100 | X25: 3148 | Y25: RA335002100 | Z25: 4525
A26: 2250 | B26: 45 | C26: - | D26: - | E26: RA213002250 | F26: 1697 | G26: RA223002250 | H26: 2278 | I26: RA333002250 | J26: 3189 | K26: - | L26: - | M26: RA214002250 | N26: 2106 | O26: RA224002250 | P26: 2846 | Q26: RA334002250 | R26: 4047 | S26: - | T26: - | U26: RA215002250 | V26: 2490 | W26: RA225002250 | X26: 3373 | Y26: RA335002250 | Z26: 4848
A27: 2400 | B27: 48 | C27: - | D27: - | E27: RA213002400 | F27: 1811 | G27: RA223002400 | H27: 2430 | I27: RA333002400 | J27: 3401 | K27: - | L27: - | M27: RA214002400 | N27: 2246 | O27: RA224002400 | P27: 3036 | Q27: RA334002400 | R27: 4317 | S27: - | T27: - | U27: RA215002400 | V27: 2656 | W27: RA225002400 | X27: 3598 | Y27: RA335002400 | Z27: 5171
A28: 2550 | B28: 51 | C28: - | D28: - | E28: RA213002550 | F28: 1924 | G28: RA223002550 | H28: 2582 | I28: RA333002550 | J28: 3614 | K28: - | L28: - | M28: RA214002550 | N28: 2386 | O28: RA224002550 | P28: 3226 | Q28: RA334002550 | R28: 4586 | S28: - | T28: - | U28: RA215002550 | V28: 2822 | W28: RA225002550 | X28: 3823 | Y28: RA335002550 | Z28: 5494
A29: 2700 | B29: 54 | C29: - | D29: - | E29: RA213002700 | F29: 2037 | G29: RA223002700 | H29: 2734 | I29: RA333002700 | J29: 3826 | K29: - | L29: - | M29: RA214002700 | N29: 2527 | O29: RA224002700 | P29: 3416 | Q29: RA334002700 | R29: 4856 | S29: - | T29: - | U29: RA215002700 | V29: 2988 | W29: RA225002700 | X29: 4048 | Y29: RA335002700 | Z29: 5817
A30: 3000 | B30: 60 | C30: - | D30: - | E30: RA213003000 | F30: 2263 | G30: RA223003000 | H30: 3038 | I30: RA333003000 | J30: 4252 | K30: - | L30: - | M30: RA214003000 | N30: 2807 | O30: RA224003000 | P30: 3795 | Q30: RA334003000 | R30: 5396 | S30: - | T30: - | U30: RA215003000 | V30: 3320 | W30: RA225003000 | X30: 4498 | Y30: RA335003000 | Z30: 6464
A33: Hauteur | C33: =C81 -> 600 | K33: =K81 -> 750 | S33: =S81 -> 900
A34: Type | C34: =C82 -> RA11 | E34: =E82 -> RA21 | G34: =G82 -> RA22 | I34: =I82 -> RA33 | K34: =K82 -> RA11 | M34: =M82 -> RA21 | O34: =O82 -> RA22 | Q34: =Q82 -> RA33 | S34: =S82 -> RA11 | U34: =U82 -> RA21 | W34: =W82 -> RA22 | Y34: =Y82 -> RA33
